Workbook

Sheet HOME
B4: SISTEMA DE CONTROL VACACIONES

Sheet CONFIGURACION
C3: AÑO DE COMIENZO | D3: 2017
B4: LA VERSION GRATUITA SOLO SIRVE PARA 5 TRABAJADORES. CONTACTANOS PARA COMPRAR LA VERSION FULL : Whats'App +56 9 9492 4535 | M4: INGRESAR LOS DIAS FERIADOS POR CADA AÑO SIN BORRAR LOS ANTERIORES | P4: no | Q4: dias | R4: totaldias
B5: DATOS EMPLEADOS | M5: FERIADOS DEL AÑO | P5: 0 | Q5: 0 | R5: 0
B6: NOMBRE | C6: RUT | D6: FECHA CONTRATO | E6: ANTIGÜEDAD | F6: VAC./ AÑO | G6: DÍAS VAC. | H6: VAC. PROG. | I6: ACTIVACIÓN PROG. | J6: TOTA VAC. PROG. | K6: DIAS ASIGNADOS | L6: ANTIGÜEDAD A FECHA FUTURO | M6: DESCRIPCION | N6: FECHA | P6: 1 | Q6: 0 | R6: =0+Q7 -> 0
A7: 1 | B7: MONICA ANDREZ FERNANDEZ LAZO | C7: 13.429.987-8 | D7: 2019-07-02 | E7: =IF(TablaEMPLEADOS[[#This Row],[ANTIGÜEDAD A FECHA FUTURO]]="NO", IFERROR(IF(TablaEMPLEADOS[[#This Row],[FECHA CONTRATO]]=0,"",IF(DATEDIF(TablaEMPLEADOS[[#This Row],[FECHA CONTRATO]],TODAY(),"y")=0,"", DATEDIF(TablaEMPLEADOS[[#This Row],[FECHA CONTRATO]],TODAY(),"y") & " año(s) ") & IF(DATEDIF(TablaEMPLEADOS[[#This Row],[FECHA CONTRATO]],TODAY(),"ym")=0,"",DATEDIF(TablaEMPLEADOS[[#This Row],[FECHA CONTRATO]],TODAY(),"ym") & " mes(es) ") & IF(DATEDIF(TablaEMPLEADOS[[#This Row],[FECHA CONTRATO]],TODAY(),"md")=0,"",DATEDIF(TablaEMPLEADOS[[#This Row],[FECHA CONTRATO]],TODAY(),"md") & " día(s)")),""), IFERROR(IF(TablaEMPLEADOS[[#This Row],[FECHA CONTRATO]]=0,"",IF(DATEDIF(TablaEMPLEADOS[[#This Row],[FECHA CONTRATO]],TablaEMPLEADOS[[#This Row],[ANTIGÜEDAD A FECHA FUTURO]],"y")=0,"", DATEDIF(TablaEMPLEADOS[[#This Row],[FECHA CONTRATO]],TablaEMPLEADOS[[#This Row],[ANTIGÜEDAD A FECHA FUTURO]],"y") & " año(s) ") & IF(DATEDIF(TablaEMPLEADOS[[#This Row],[FECHA CONTRATO]],TablaEMPLEADOS[[#This Row],[ANTIGÜEDAD A FECHA FUTURO]],"ym")=0,"",DATEDIF(TablaEMPLEADOS[[#This Row],[FECHA CONTRATO]],TablaEMPLEADOS[[#This Row],[ANTIGÜEDAD A FECHA FUTURO]],"ym") & " mes(es) ") & IF(DATEDIF(TablaEMPLEADOS[[#This Row],[FECHA CONTRATO]],TablaEMPLEADOS[[#This Row],[ANTIGÜEDAD A FECHA FUTURO]],"md")=0,"",DATEDIF(TablaEMPLEADOS[[#This Row],[FECHA CONTRATO]],TablaEMPLEADOS[[#This Row],[ANTIGÜEDAD A FECHA FUTURO]],"md") & " día(s)")),"")) -> 1 año(s) 19 día(s) | F7: 15 | G7: =IF(TablaEMPLEADOS[[#This Row],[ANTIGÜEDAD A FECHA FUTURO]]="NO",ROUND(((TODAY()-TablaEMPLEADOS[[#This Row],[FECHA CONTRATO]]+1)/365)*TablaEMPLEADOS[[#This Row],[VAC./ AÑO]]+TablaEMPLEADOS[[#This Row],[TOTA VAC. PROG.]],0),ROUND(((TablaEMPLEADOS[[#This Row],[ANTIGÜEDAD A FECHA FUTURO]]-TablaEMPLEADOS[[#This Row],[FECHA CONTRATO]]+1)/365)*TablaEMPLEADOS[[#This Row],[VAC./ AÑO]]+TablaEMPLEADOS[[#This Row],[TOTA VAC. PROG.]],0)) -> 16 | H7: NO | J7: =IFERROR(IF(OR(TablaEMPLEADOS[[#This Row],[VAC./ AÑO]]=20,TablaEMPLEADOS[[#This Row],[VAC. PROG.]]="NO"),0,IF(TablaEMPLEADOS[[#This Row],[ANTIGÜEDAD A FECHA FUTURO]]="NO",VLOOKUP(ROUNDDOWN(YEARFRAC(TablaEMPLEADOS[[#This Row],[ACTIVACIÓN PROG.]],TODAY()),0),Tabla2[],2,0),VLOOKUP(ROUNDDOWN(YEARFRAC(TablaEMPLEADOS[[#This Row],[ACTIVACIÓN PROG.]],TablaEMPLEADOS[[#This Row],[ANTIGÜEDAD A FECHA FUTURO]]),0),Tabla2[],3,0))),"") -> 0 | L7: =IFERROR(VLOOKUP(TablaEMPLEADOS[[#This Row],[NOMBRE]],VERIFICACION!$D$4:$G$4,4,0),"NO") -> NO | M7: Año Nuevo | N7: 2019-01-01 | P7: 2 | Q7: 0 | R7: =R6+Tabla2[[#This Row],[dias]] -> 0
A8: 2 | B8: JOSE LUIS ANDRADE SOTO | C8: 9.383.263-9 | D8: 2014-03-10 | E8: =IF(TablaEMPLEADOS[[#This Row],[ANTIGÜEDAD A FECHA FUTURO]]="NO", IFERROR(IF(TablaEMPLEADOS[[#This Row],[FECHA CONTRATO]]=0,"",IF(DATEDIF(TablaEMPLEADOS[[#This Row],[FECHA CONTRATO]],TODAY(),"y")=0,"", DATEDIF(TablaEMPLEADOS[[#This Row],[FECHA CONTRATO]],TODAY(),"y") & " año(s) ") & IF(DATEDIF(TablaEMPLEADOS[[#This Row],[FECHA CONTRATO]],TODAY(),"ym")=0,"",DATEDIF(TablaEMPLEADOS[[#This Row],[FECHA CONTRATO]],TODAY(),"ym") & " mes(es) ") & IF(DATEDIF(TablaEMPLEADOS[[#This Row],[FECHA CONTRATO]],TODAY(),"md")=0,"",DATEDIF(TablaEMPLEADOS[[#This Row],[FECHA CONTRATO]],TODAY(),"md") & " día(s)")),""), IFERROR(IF(TablaEMPLEADOS[[#This Row],[FECHA CONTRATO]]=0,"",IF(DATEDIF(TablaEMPLEADOS[[#This Row],[FECHA CONTRATO]],TablaEMPLEADOS[[#This Row],[ANTIGÜEDAD A FECHA FUTURO]],"y")=0,"", DATEDIF(TablaEMPLEADOS[[#This Row],[FECHA CONTRATO]],TablaEMPLEADOS[[#This Row],[ANTIGÜEDAD A FECHA FUTURO]],"y") & " año(s) ") & IF(DATEDIF(TablaEMPLEADOS[[#This Row],[FECHA CONTRATO]],TablaEMPLEADOS[[#This Row],[ANTIGÜEDAD A FECHA FUTURO]],"ym")=0,"",DATEDIF(TablaEMPLEADOS[[#This Row],[FECHA CONTRATO]],TablaEMPLEADOS[[#This Row],[ANTIGÜEDAD A FECHA FUTURO]],"ym") & " mes(es) ") & IF(DATEDIF(TablaEMPLEADOS[[#This Row],[FECHA CONTRATO]],TablaEMPLEADOS[[#This Row],[ANTIGÜEDAD A FECHA FUTURO]],"md")=0,"",DATEDIF(TablaEMPLEADOS[[#This Row],[FECHA CONTRATO]],TablaEMPLEADOS[[#This Row],[ANTIGÜEDAD A FECHA FUTURO]],"md") & " día(s)")),"")) -> 6 año(s) 4 mes(es) 11 día(s) | F8: 15 | G8: =IF(TablaEMPLEADOS[[#This Row],[ANTIGÜEDAD A FECHA FUTURO]]="NO",ROUND(((TODAY()-TablaEMPLEADOS[[#This Row],[FECHA CONTRATO]]+1)/365)*TablaEMPLEADOS[[#This Row],[VAC./ AÑO]]+TablaEMPLEADOS[[#This Row],[TOTA VAC. PROG.]],0),ROUND(((TablaEMPLEADOS[[#This Row],[ANTIGÜEDAD A FECHA FUTURO]]-TablaEMPLEADOS[[#This Row],[FECHA CONTRATO]]+1)/365)*TablaEMPLEADOS[[#This Row],[VAC./ AÑO]]+TablaEMPLEADOS[[#This Row],[TOTA VAC. PROG.]],0)) -> 96 | H8: NO | J8: =IFERROR(IF(OR(TablaEMPLEADOS[[#This Row],[VAC./ AÑO]]=20,TablaEMPLEADOS[[#This Row],[VAC. PROG.]]="NO"),0,IF(TablaEMPLEADOS[[#This Row],[ANTIGÜEDAD A FECHA FUTURO]]="NO",VLOOKUP(ROUNDDOWN(YEARFRAC(TablaEMPLEADOS[[#This Row],[ACTIVACIÓN PROG.]],TODAY()),0),Tabla2[],2,0),VLOOKUP(ROUNDDOWN(YEARFRAC(TablaEMPLEADOS[[#This Row],[ACTIVACIÓN PROG.]],TablaEMPLEADOS[[#This Row],[ANTIGÜEDAD A FECHA FUTURO]]),0),Tabla2[],3,0))),"") -> 0 | L8: =IFERROR(VLOOKUP(TablaEMPLEADOS[[#This Row],[NOMBRE]],VERIFICACION!$D$4:$G$4,4,0),"NO") -> NO | M8: Visita Papa | N8: 2018-01-16 | P8: 3 | Q8: 1 | R8: =R7+Tabla2[[#This Row],[dias]] -> 1
A9: 3 | B9: MANUEL TERCERO MORALES | C9: 6.558.985-0 | D9: 2014-08-15 | E9: =IF(TablaEMPLEADOS[[#This Row],[ANTIGÜEDAD A FECHA FUTURO]]="NO", IFERROR(IF(TablaEMPLEADOS[[#This Row],[FECHA CONTRATO]]=0,"",IF(DATEDIF(TablaEMPLEADOS[[#This Row],[FECHA CONTRATO]],TODAY(),"y")=0,"", DATEDIF(TablaEMPLEADOS[[#This Row],[FECHA CONTRATO]],TODAY(),"y") & " año(s) ") & IF(DATEDIF(TablaEMPLEADOS[[#This Row],[FECHA CONTRATO]],TODAY(),"ym")=0,"",DATEDIF(TablaEMPLEADOS[[#This Row],[FECHA CONTRATO]],TODAY(),"ym") & " mes(es) ") & IF(DATEDIF(TablaEMPLEADOS[[#This Row],[FECHA CONTRATO]],TODAY(),"md")=0,"",DATEDIF(TablaEMPLEADOS[[#This Row],[FECHA CONTRATO]],TODAY(),"md") & " día(s)")),""), IFERROR(IF(TablaEMPLEADOS[[#This Row],[FECHA CONTRATO]]=0,"",IF(DATEDIF(TablaEMPLEADOS[[#This Row],[FECHA CONTRATO]],TablaEMPLEADOS[[#This Row],[ANTIGÜEDAD A FECHA FUTURO]],"y")=0,"", DATEDIF(TablaEMPLEADOS[[#This Row],[FECHA CONTRATO]],TablaEMPLEADOS[[#This Row],[ANTIGÜEDAD A FECHA FUTURO]],"y") & " año(s) ") & IF(DATEDIF(TablaEMPLEADOS[[#This Row],[FECHA CONTRATO]],TablaEMPLEADOS[[#This Row],[ANTIGÜEDAD A FECHA FUTURO]],"ym")=0,"",DATEDIF(TablaEMPLEADOS[[#This Row],[FECHA CONTRATO]],TablaEMPLEADOS[[#This Row],[ANTIGÜEDAD A FECHA FUTURO]],"ym") & " mes(es) ") & IF(DATEDIF(TablaEMPLEADOS[[#This Row],[FECHA CONTRATO]],TablaEMPLEADOS[[#This Row],[ANTIGÜEDAD A FECHA FUTURO]],"md")=0,"",DATEDIF(TablaEMPLEADOS[[#This Row],[FECHA CONTRATO]],TablaEMPLEADOS[[#This Row],[ANTIGÜEDAD A FECHA FUTURO]],"md") & " día(s)")),"")) -> 5 año(s) 11 mes(es) 6 día(s) | F9: 15 | G9: =IF(TablaEMPLEADOS[[#This Row],[ANTIGÜEDAD A FECHA FUTURO]]="NO",ROUND(((TODAY()-TablaEMPLEADOS[[#This Row],[FECHA CONTRATO]]+1)/365)*TablaEMPLEADOS[[#This Row],[VAC./ AÑO]]+TablaEMPLEADOS[[#This Row],[TOTA VAC. PROG.]],0),ROUND(((TablaEMPLEADOS[[#This Row],[ANTIGÜEDAD A FECHA FUTURO]]-TablaEMPLEADOS[[#This Row],[FECHA CONTRATO]]+1)/365)*TablaEMPLEADOS[[#This Row],[VAC./ AÑO]]+TablaEMPLEADOS[[#This Row],[TOTA VAC. PROG.]],0)) -> 89 | H9: NO | J9: =IFERROR(IF(OR(TablaEMPLEADOS[[#This Row],[VAC./ AÑO]]=20,TablaEMPLEADOS[[#This Row],[VAC. PROG.]]="NO"),0,IF(TablaEMPLEADOS[[#This Row],[ANTIGÜEDAD A FECHA FUTURO]]="NO",VLOOKUP(ROUNDDOWN(YEARFRAC(TablaEMPLEADOS[[#This Row],[ACTIVACIÓN PROG.]],TODAY()),0),Tabla2[],2,0),VLOOKUP(ROUNDDOWN(YEARFRAC(TablaEMPLEADOS[[#This Row],[ACTIVACIÓN PROG.]],TablaEMPLEADOS[[#This Row],[ANTIGÜEDAD A FECHA FUTURO]]),0),Tabla2[],3,0))),"") -> 0 | L9: =IFERROR(VLOOKUP(TablaEMPLEADOS[[#This Row],[NOMBRE]],VERIFICACION!$D$4:$G$4,4,0),"NO") -> NO | M9: Viernes Santo | N9: 2019-04-19 | P9: 4 | Q9: 1 | R9: =R8+Tabla2[[#This Row],[dias]] -> 2
A10: 4 | E10: =IF(TablaEMPLEADOS[[#This Row],[ANTIGÜEDAD A FECHA FUTURO]]="NO", IFERROR(IF(TablaEMPLEADOS[[#This Row],[FECHA CONTRATO]]=0,"",IF(DATEDIF(TablaEMPLEADOS[[#This Row],[FECHA CONTRATO]],TODAY(),"y")=0,"", DATEDIF(TablaEMPLEADOS[[#This Row],[FECHA CONTRATO]],TODAY(),"y") & " año(s) ") & IF(DATEDIF(TablaEMPLEADOS[[#This Row],[FECHA CONTRATO]],TODAY(),"ym")=0,"",DATEDIF(TablaEMPLEADOS[[#This Row],[FECHA CONTRATO]],TODAY(),"ym") & " mes(es) ") & IF(DATEDIF(TablaEMPLEADOS[[#This Row],[FECHA CONTRATO]],TODAY(),"md")=0,"",DATEDIF(TablaEMPLEADOS[[#This Row],[FECHA CONTRATO]],TODAY(),"md") & " día(s)")),""), IFERROR(IF(TablaEMPLEADOS[[#This Row],[FECHA CONTRATO]]=0,"",IF(DATEDIF(TablaEMPLEADOS[[#This Row],[FECHA CONTRATO]],TablaEMPLEADOS[[#This Row],[ANTIGÜEDAD A FECHA FUTURO]],"y")=0,"", DATEDIF(TablaEMPLEADOS[[#This Row],[FECHA CONTRATO]],TablaEMPLEADOS[[#This Row],[ANTIGÜEDAD A FECHA FUTURO]],"y") & " año(s) ") & IF(DATEDIF(TablaEMPLEADOS[[#This Row],[FECHA CONTRATO]],TablaEMPLEADOS[[#This Row],[ANTIGÜEDAD A FECHA FUTURO]],"ym")=0,"",DATEDIF(TablaEMPLEADOS[[#This Row],[FECHA CONTRATO]],TablaEMPLEADOS[[#This Row],[ANTIGÜEDAD A FECHA FUTURO]],"ym") & " mes(es) ") & IF(DATEDIF(TablaEMPLEADOS[[#This Row],[FECHA CONTRATO]],TablaEMPLEADOS[[#This Row],[ANTIGÜEDAD A FECHA FUTURO]],"md")=0,"",DATEDIF(TablaEMPLEADOS[[#This Row],[FECHA CONTRATO]],TablaEMPLEADOS[[#This Row],[ANTIGÜEDAD A FECHA FUTURO]],"md") & " día(s)")),"")) ->  | G10: =IF(TablaEMPLEADOS[[#This Row],[ANTIGÜEDAD A FECHA FUTURO]]="NO",ROUND(((TODAY()-TablaEMPLEADOS[[#This Row],[FECHA CONTRATO]]+1)/365)*TablaEMPLEADOS[[#This Row],[VAC./ AÑO]]+TablaEMPLEADOS[[#This Row],[TOTA VAC. PROG.]],0),ROUND(((TablaEMPLEADOS[[#This Row],[ANTIGÜEDAD A FECHA FUTURO]]-TablaEMPLEADOS[[#This Row],[FECHA CONTRATO]]+1)/365)*TablaEMPLEADOS[[#This Row],[VAC./ AÑO]]+TablaEMPLEADOS[[#This Row],[TOTA VAC. PROG.]],0)) ->  | J10: =IFERROR(IF(OR(TablaEMPLEADOS[[#This Row],[VAC./ AÑO]]=20,TablaEMPLEADOS[[#This Row],[VAC. PROG.]]="NO"),0,IF(TablaEMPLEADOS[[#This Row],[ANTIGÜEDAD A FECHA FUTURO]]="NO",VLOOKUP(ROUNDDOWN(YEARFRAC(TablaEMPLEADOS[[#This Row],[ACTIVACIÓN PROG.]],TODAY()),0),Tabla2[],2,0),VLOOKUP(ROUNDDOWN(YEARFRAC(TablaEMPLEADOS[[#This Row],[ACTIVACIÓN PROG.]],TablaEMPLEADOS[[#This Row],[ANTIGÜEDAD A FECHA FUTURO]]),0),Tabla2[],3,0))),"") ->  | L10: =IFERROR(VLOOKUP(TablaEMPLEADOS[[#This Row],[NOMBRE]],VERIFICACION!$D$4:$G$4,4,0),"NO") -> NO | M10: Sábado Santo | N10: 2019-04-20 | P10: 5 | Q10: 1 | R10: =R9+Tabla2[[#This Row],[dias]] -> 3
A11: 5 | E11: =IF(TablaEMPLEADOS[[#This Row],[ANTIGÜEDAD A FECHA FUTURO]]="NO", IFERROR(IF(TablaEMPLEADOS[[#This Row],[FECHA CONTRATO]]=0,"",IF(DATEDIF(TablaEMPLEADOS[[#This Row],[FECHA CONTRATO]],TODAY(),"y")=0,"", DATEDIF(TablaEMPLEADOS[[#This Row],[FECHA CONTRATO]],TODAY(),"y") & " año(s) ") & IF(DATEDIF(TablaEMPLEADOS[[#This Row],[FECHA CONTRATO]],TODAY(),"ym")=0,"",DATEDIF(TablaEMPLEADOS[[#This Row],[FECHA CONTRATO]],TODAY(),"ym") & " mes(es) ") & IF(DATEDIF(TablaEMPLEADOS[[#This Row],[FECHA CONTRATO]],TODAY(),"md")=0,"",DATEDIF(TablaEMPLEADOS[[#This Row],[FECHA CONTRATO]],TODAY(),"md") & " día(s)")),""), IFERROR(IF(TablaEMPLEADOS[[#This Row],[FECHA CONTRATO]]=0,"",IF(DATEDIF(TablaEMPLEADOS[[#This Row],[FECHA CONTRATO]],TablaEMPLEADOS[[#This Row],[ANTIGÜEDAD A FECHA FUTURO]],"y")=0,"", DATEDIF(TablaEMPLEADOS[[#This Row],[FECHA CONTRATO]],TablaEMPLEADOS[[#This Row],[ANTIGÜEDAD A FECHA FUTURO]],"y") & " año(s) ") & IF(DATEDIF(TablaEMPLEADOS[[#This Row],[FECHA CONTRATO]],TablaEMPLEADOS[[#This Row],[ANTIGÜEDAD A FECHA FUTURO]],"ym")=0,"",DATEDIF(TablaEMPLEADOS[[#This Row],[FECHA CONTRATO]],TablaEMPLEADOS[[#This Row],[ANTIGÜEDAD A FECHA FUTURO]],"ym") & " mes(es) ") & IF(DATEDIF(TablaEMPLEADOS[[#This Row],[FECHA CONTRATO]],TablaEMPLEADOS[[#This Row],[ANTIGÜEDAD A FECHA FUTURO]],"md")=0,"",DATEDIF(TablaEMPLEADOS[[#This Row],[FECHA CONTRATO]],TablaEMPLEADOS[[#This Row],[ANTIGÜEDAD A FECHA FUTURO]],"md") & " día(s)")),"")) ->  | G11: =IF(TablaEMPLEADOS[[#This Row],[ANTIGÜEDAD A FECHA FUTURO]]="NO",ROUND(((TODAY()-TablaEMPLEADOS[[#This Row],[FECHA CONTRATO]]+1)/365)*TablaEMPLEADOS[[#This Row],[VAC./ AÑO]]+TablaEMPLEADOS[[#This Row],[TOTA VAC. PROG.]],0),ROUND(((TablaEMPLEADOS[[#This Row],[ANTIGÜEDAD A FECHA FUTURO]]-TablaEMPLEADOS[[#This Row],[FECHA CONTRATO]]+1)/365)*TablaEMPLEADOS[[#This Row],[VAC./ AÑO]]+TablaEMPLEADOS[[#This Row],[TOTA VAC. PROG.]],0)) ->  | J11: =IFERROR(IF(OR(TablaEMPLEADOS[[#This Row],[VAC./ AÑO]]=20,TablaEMPLEADOS[[#This Row],[VAC. PROG.]]="NO"),0,IF(TablaEMPLEADOS[[#This Row],[ANTIGÜEDAD A FECHA FUTURO]]="NO",VLOOKUP(ROUNDDOWN(YEARFRAC(TablaEMPLEADOS[[#This Row],[ACTIVACIÓN PROG.]],TODAY()),0),Tabla2[],2,0),VLOOKUP(ROUNDDOWN(YEARFRAC(TablaEMPLEADOS[[#This Row],[ACTIVACIÓN PROG.]],TablaEMPLEADOS[[#This Row],[ANTIGÜEDAD A FECHA FUTURO]]),0),Tabla2[],3,0))),"") ->  | L11: =IFERROR(VLOOKUP(TablaEMPLEADOS[[#This Row],[NOMBRE]],VERIFICACION!$D$4:$G$4,4,0),"NO") -> NO | M11: Día Nacional del Trabajo | N11: 2019-05-01 | P11: 6 | Q11: 2 | R11: =R10+Tabla2[[#This Row],[dias]] -> 5
A12: 6 | E12: =IF(TablaEMPLEADOS[[#This Row],[ANTIGÜEDAD A FECHA FUTURO]]="NO", IFERROR(IF(TablaEMPLEADOS[[#This Row],[FECHA CONTRATO]]=0,"",IF(DATEDIF(TablaEMPLEADOS[[#This Row],[FECHA CONTRATO]],TODAY(),"y")=0,"", DATEDIF(TablaEMPLEADOS[[#This Row],[FECHA CONTRATO]],TODAY(),"y") & " año(s) ") & IF(DATEDIF(TablaEMPLEADOS[[#This Row],[FECHA CONTRATO]],TODAY(),"ym")=0,"",DATEDIF(TablaEMPLEADOS[[#This Row],[FECHA CONTRATO]],TODAY(),"ym") & " mes(es) ") & IF(DATEDIF(TablaEMPLEADOS[[#This Row],[FECHA CONTRATO]],TODAY(),"md")=0,"",DATEDIF(TablaEMPLEADOS[[#This Row],[FECHA CONTRATO]],TODAY(),"md") & " día(s)")),""), IFERROR(IF(TablaEMPLEADOS[[#This Row],[FECHA CONTRATO]]=0,"",IF(DATEDIF(TablaEMPLEADOS[[#This Row],[FECHA CONTRATO]],TablaEMPLEADOS[[#This Row],[ANTIGÜEDAD A FECHA FUTURO]],"y")=0,"", DATEDIF(TablaEMPLEADOS[[#This Row],[FECHA CONTRATO]],TablaEMPLEADOS[[#This Row],[ANTIGÜEDAD A FECHA FUTURO]],"y") & " año(s) ") & IF(DATEDIF(TablaEMPLEADOS[[#This Row],[FECHA CONTRATO]],TablaEMPLEADOS[[#This Row],[ANTIGÜEDAD A FECHA FUTURO]],"ym")=0,"",DATEDIF(TablaEMPLEADOS[[#This Row],[FECHA CONTRATO]],TablaEMPLEADOS[[#This Row],[ANTIGÜEDAD A FECHA FUTURO]],"ym") & " mes(es) ") & IF(DATEDIF(TablaEMPLEADOS[[#This Row],[FECHA CONTRATO]],TablaEMPLEADOS[[#This Row],[ANTIGÜEDAD A FECHA FUTURO]],"md")=0,"",DATEDIF(TablaEMPLEADOS[[#This Row],[FECHA CONTRATO]],TablaEMPLEADOS[[#This Row],[ANTIGÜEDAD A FECHA FUTURO]],"md") & " día(s)")),"")) ->  | G12: =IF(TablaEMPLEADOS[[#This Row],[ANTIGÜEDAD A FECHA FUTURO]]="NO",ROUND(((TODAY()-TablaEMPLEADOS[[#This Row],[FECHA CONTRATO]]+1)/365)*TablaEMPLEADOS[[#This Row],[VAC./ AÑO]]+TablaEMPLEADOS[[#This Row],[TOTA VAC. PROG.]],0),ROUND(((TablaEMPLEADOS[[#This Row],[ANTIGÜEDAD A FECHA FUTURO]]-TablaEMPLEADOS[[#This Row],[FECHA CONTRATO]]+1)/365)*TablaEMPLEADOS[[#This Row],[VAC./ AÑO]]+TablaEMPLEADOS[[#This Row],[TOTA VAC. PROG.]],0)) ->  | J12: =IFERROR(IF(OR(TablaEMPLEADOS[[#This Row],[VAC./ AÑO]]=20,TablaEMPLEADOS[[#This Row],[VAC. PROG.]]="NO"),0,IF(TablaEMPLEADOS[[#This Row],[ANTIGÜEDAD A FECHA FUTURO]]="NO",VLOOKUP(ROUNDDOWN(YEARFRAC(TablaEMPLEADOS[[#This Row],[ACTIVACIÓN PROG.]],TODAY()),0),Tabla2[],2,0),VLOOKUP(ROUNDDOWN(YEARFRAC(TablaEMPLEADOS[[#This Row],[ACTIVACIÓN PROG.]],TablaEMPLEADOS[[#This Row],[ANTIGÜEDAD A FECHA FUTURO]]),0),Tabla2[],3,0))),"") ->  | L12: =IFERROR(VLOOKUP(TablaEMPLEADOS[[#This Row],[NOMBRE]],VERIFICACION!$D$4:$G$4,4,0),"NO") -> NO | M12: Día de las Glorias Navales | N12: 2019-05-21 | P12: 7 | Q12: 2 | R12: =R11+Tabla2[[#This Row],[dias]] -> 7
A13: 7 | E13: =IF(TablaEMPLEADOS[[#This Row],[ANTIGÜEDAD A FECHA FUTURO]]="NO", IFERROR(IF(TablaEMPLEADOS[[#This Row],[FECHA CONTRATO]]=0,"",IF(DATEDIF(TablaEMPLEADOS[[#This Row],[FECHA CONTRATO]],TODAY(),"y")=0,"", DATEDIF(TablaEMPLEADOS[[#This Row],[FECHA CONTRATO]],TODAY(),"y") & " año(s) ") & IF(DATEDIF(TablaEMPLEADOS[[#This Row],[FECHA CONTRATO]],TODAY(),"ym")=0,"",DATEDIF(TablaEMPLEADOS[[#This Row],[FECHA CONTRATO]],TODAY(),"ym") & " mes(es) ") & IF(DATEDIF(TablaEMPLEADOS[[#This Row],[FECHA CONTRATO]],TODAY(),"md")=0,"",DATEDIF(TablaEMPLEADOS[[#This Row],[FECHA CONTRATO]],TODAY(),"md") & " día(s)")),""), IFERROR(IF(TablaEMPLEADOS[[#This Row],[FECHA CONTRATO]]=0,"",IF(DATEDIF(TablaEMPLEADOS[[#This Row],[FECHA CONTRATO]],TablaEMPLEADOS[[#This Row],[ANTIGÜEDAD A FECHA FUTURO]],"y")=0,"", DATEDIF(TablaEMPLEADOS[[#This Row],[FECHA CONTRATO]],TablaEMPLEADOS[[#This Row],[ANTIGÜEDAD A FECHA FUTURO]],"y") & " año(s) ") & IF(DATEDIF(TablaEMPLEADOS[[#This Row],[FECHA CONTRATO]],TablaEMPLEADOS[[#This Row],[ANTIGÜEDAD A FECHA FUTURO]],"ym")=0,"",DATEDIF(TablaEMPLEADOS[[#This Row],[FECHA CONTRATO]],TablaEMPLEADOS[[#This Row],[ANTIGÜEDAD A FECHA FUTURO]],"ym") & " mes(es) ") & IF(DATEDIF(TablaEMPLEADOS[[#This Row],[FECHA CONTRATO]],TablaEMPLEADOS[[#This Row],[ANTIGÜEDAD A FECHA FUTURO]],"md")=0,"",DATEDIF(TablaEMPLEADOS[[#This Row],[FECHA CONTRATO]],TablaEMPLEADOS[[#This Row],[ANTIGÜEDAD A FECHA FUTURO]],"md") & " día(s)")),"")) ->  | G13: =IF(TablaEMPLEADOS[[#This Row],[ANTIGÜEDAD A FECHA FUTURO]]="NO",ROUND(((TODAY()-TablaEMPLEADOS[[#This Row],[FECHA CONTRATO]]+1)/365)*TablaEMPLEADOS[[#This Row],[VAC./ AÑO]]+TablaEMPLEADOS[[#This Row],[TOTA VAC. PROG.]],0),ROUND(((TablaEMPLEADOS[[#This Row],[ANTIGÜEDAD A FECHA FUTURO]]-TablaEMPLEADOS[[#This Row],[FECHA CONTRATO]]+1)/365)*TablaEMPLEADOS[[#This Row],[VAC./ AÑO]]+TablaEMPLEADOS[[#This Row],[TOTA VAC. PROG.]],0)) ->  | J13: =IFERROR(IF(OR(TablaEMPLEADOS[[#This Row],[VAC./ AÑO]]=20,TablaEMPLEADOS[[#This Row],[VAC. PROG.]]="NO"),0,IF(TablaEMPLEADOS[[#This Row],[ANTIGÜEDAD A FECHA FUTURO]]="NO",VLOOKUP(ROUNDDOWN(YEARFRAC(TablaEMPLEADOS[[#This Row],[ACTIVACIÓN PROG.]],TODAY()),0),Tabla2[],2,0),VLOOKUP(ROUNDDOWN(YEARFRAC(TablaEMPLEADOS[[#This Row],[ACTIVACIÓN PROG.]],TablaEMPLEADOS[[#This Row],[ANTIGÜEDAD A FECHA FUTURO]]),0),Tabla2[],3,0))),"") ->  | L13: =IFERROR(VLOOKUP(TablaEMPLEADOS[[#This Row],[NOMBRE]],VERIFICACION!$D$4:$G$4,4,0),"NO") -> NO | M13: San Pedro y San Pablo | N13: 2019-06-29 | P13: 8 | Q13: 2 | R13: =R12+Tabla2[[#This Row],[dias]] -> 9
A14: 8 | E14: =IF(TablaEMPLEADOS[[#This Row],[ANTIGÜEDAD A FECHA FUTURO]]="NO", IFERROR(IF(TablaEMPLEADOS[[#This Row],[FECHA CONTRATO]]=0,"",IF(DATEDIF(TablaEMPLEADOS[[#This Row],[FECHA CONTRATO]],TODAY(),"y")=0,"", DATEDIF(TablaEMPLEADOS[[#This Row],[FECHA CONTRATO]],TODAY(),"y") & " año(s) ") & IF(DATEDIF(TablaEMPLEADOS[[#This Row],[FECHA CONTRATO]],TODAY(),"ym")=0,"",DATEDIF(TablaEMPLEADOS[[#This Row],[FECHA CONTRATO]],TODAY(),"ym") & " mes(es) ") & IF(DATEDIF(TablaEMPLEADOS[[#This Row],[FECHA CONTRATO]],TODAY(),"md")=0,"",DATEDIF(TablaEMPLEADOS[[#This Row],[FECHA CONTRATO]],TODAY(),"md") & " día(s)")),""), IFERROR(IF(TablaEMPLEADOS[[#This Row],[FECHA CONTRATO]]=0,"",IF(DATEDIF(TablaEMPLEADOS[[#This Row],[FECHA CONTRATO]],TablaEMPLEADOS[[#This Row],[ANTIGÜEDAD A FECHA FUTURO]],"y")=0,"", DATEDIF(TablaEMPLEADOS[[#This Row],[FECHA CONTRATO]],TablaEMPLEADOS[[#This Row],[ANTIGÜEDAD A FECHA FUTURO]],"y") & " año(s) ") & IF(DATEDIF(TablaEMPLEADOS[[#This Row],[FECHA CONTRATO]],TablaEMPLEADOS[[#This Row],[ANTIGÜEDAD A FECHA FUTURO]],"ym")=0,"",DATEDIF(TablaEMPLEADOS[[#This Row],[FECHA CONTRATO]],TablaEMPLEADOS[[#This Row],[ANTIGÜEDAD A FECHA FUTURO]],"ym") & " mes(es) ") & IF(DATEDIF(TablaEMPLEADOS[[#This Row],[FECHA CONTRATO]],TablaEMPLEADOS[[#This Row],[ANTIGÜEDAD A FECHA FUTURO]],"md")=0,"",DATEDIF(TablaEMPLEADOS[[#This Row],[FECHA CONTRATO]],TablaEMPLEADOS[[#This Row],[ANTIGÜEDAD A FECHA FUTURO]],"md") & " día(s)")),"")) ->  | G14: =IF(TablaEMPLEADOS[[#This Row],[ANTIGÜEDAD A FECHA FUTURO]]="NO",ROUND(((TODAY()-TablaEMPLEADOS[[#This Row],[FECHA CONTRATO]]+1)/365)*TablaEMPLEADOS[[#This Row],[VAC./ AÑO]]+TablaEMPLEADOS[[#This Row],[TOTA VAC. PROG.]],0),ROUND(((TablaEMPLEADOS[[#This Row],[ANTIGÜEDAD A FECHA FUTURO]]-TablaEMPLEADOS[[#This Row],[FECHA CONTRATO]]+1)/365)*TablaEMPLEADOS[[#This Row],[VAC./ AÑO]]+TablaEMPLEADOS[[#This Row],[TOTA VAC. PROG.]],0)) ->  | J14: =IFERROR(IF(OR(TablaEMPLEADOS[[#This Row],[VAC./ AÑO]]=20,TablaEMPLEADOS[[#This Row],[VAC. PROG.]]="NO"),0,IF(TablaEMPLEADOS[[#This Row],[ANTIGÜEDAD A FECHA FUTURO]]="NO",VLOOKUP(ROUNDDOWN(YEARFRAC(TablaEMPLEADOS[[#This Row],[ACTIVACIÓN PROG.]],TODAY()),0),Tabla2[],2,0),VLOOKUP(ROUNDDOWN(YEARFRAC(TablaEMPLEADOS[[#This Row],[ACTIVACIÓN PROG.]],TablaEMPLEADOS[[#This Row],[ANTIGÜEDAD A FECHA FUTURO]]),0),Tabla2[],3,0))),"") ->  | L14: =IFERROR(VLOOKUP(TablaEMPLEADOS[[#This Row],[NOMBRE]],VERIFICACION!$D$4:$G$4,4,0),"NO") -> NO | M14: Día de la Virgen del Carmen | N14: 2019-07-16 | P14: 9 | Q14: 3 | R14: =R13+Tabla2[[#This Row],[dias]] -> 12
A15: 9 | E15: =IF(TablaEMPLEADOS[[#This Row],[ANTIGÜEDAD A FECHA FUTURO]]="NO", IFERROR(IF(TablaEMPLEADOS[[#This Row],[FECHA CONTRATO]]=0,"",IF(DATEDIF(TablaEMPLEADOS[[#This Row],[FECHA CONTRATO]],TODAY(),"y")=0,"", DATEDIF(TablaEMPLEADOS[[#This Row],[FECHA CONTRATO]],TODAY(),"y") & " año(s) ") & IF(DATEDIF(TablaEMPLEADOS[[#This Row],[FECHA CONTRATO]],TODAY(),"ym")=0,"",DATEDIF(TablaEMPLEADOS[[#This Row],[FECHA CONTRATO]],TODAY(),"ym") & " mes(es) ") & IF(DATEDIF(TablaEMPLEADOS[[#This Row],[FECHA CONTRATO]],TODAY(),"md")=0,"",DATEDIF(TablaEMPLEADOS[[#This Row],[FECHA CONTRATO]],TODAY(),"md") & " día(s)")),""), IFERROR(IF(TablaEMPLEADOS[[#This Row],[FECHA CONTRATO]]=0,"",IF(DATEDIF(TablaEMPLEADOS[[#This Row],[FECHA CONTRATO]],TablaEMPLEADOS[[#This Row],[ANTIGÜEDAD A FECHA FUTURO]],"y")=0,"", DATEDIF(TablaEMPLEADOS[[#This Row],[FECHA CONTRATO]],TablaEMPLEADOS[[#This Row],[ANTIGÜEDAD A FECHA FUTURO]],"y") & " año(s) ") & IF(DATEDIF(TablaEMPLEADOS[[#This Row],[FECHA CONTRATO]],TablaEMPLEADOS[[#This Row],[ANTIGÜEDAD A FECHA FUTURO]],"ym")=0,"",DATEDIF(TablaEMPLEADOS[[#This Row],[FECHA CONTRATO]],TablaEMPLEADOS[[#This Row],[ANTIGÜEDAD A FECHA FUTURO]],"ym") & " mes(es) ") & IF(DATEDIF(TablaEMPLEADOS[[#This Row],[FECHA CONTRATO]],TablaEMPLEADOS[[#This Row],[ANTIGÜEDAD A FECHA FUTURO]],"md")=0,"",DATEDIF(TablaEMPLEADOS[[#This Row],[FECHA CONTRATO]],TablaEMPLEADOS[[#This Row],[ANTIGÜEDAD A FECHA FUTURO]],"md") & " día(s)")),"")) ->  | G15: =IF(TablaEMPLEADOS[[#This Row],[ANTIGÜEDAD A FECHA FUTURO]]="NO",ROUND(((TODAY()-TablaEMPLEADOS[[#This Row],[FECHA CONTRATO]]+1)/365)*TablaEMPLEADOS[[#This Row],[VAC./ AÑO]]+TablaEMPLEADOS[[#This Row],[TOTA VAC. PROG.]],0),ROUND(((TablaEMPLEADOS[[#This Row],[ANTIGÜEDAD A FECHA FUTURO]]-TablaEMPLEADOS[[#This Row],[FECHA CONTRATO]]+1)/365)*TablaEMPLEADOS[[#This Row],[VAC./ AÑO]]+TablaEMPLEADOS[[#This Row],[TOTA VAC. PROG.]],0)) ->  | J15: =IFERROR(IF(OR(TablaEMPLEADOS[[#This Row],[VAC./ AÑO]]=20,TablaEMPLEADOS[[#This Row],[VAC. PROG.]]="NO"),0,IF(TablaEMPLEADOS[[#This Row],[ANTIGÜEDAD A FECHA FUTURO]]="NO",VLOOKUP(ROUNDDOWN(YEARFRAC(TablaEMPLEADOS[[#This Row],[ACTIVACIÓN PROG.]],TODAY()),0),Tabla2[],2,0),VLOOKUP(ROUNDDOWN(YEARFRAC(TablaEMPLEADOS[[#This Row],[ACTIVACIÓN PROG.]],TablaEMPLEADOS[[#This Row],[ANTIGÜEDAD A FECHA FUTURO]]),0),Tabla2[],3,0))),"") ->  | L15: =IFERROR(VLOOKUP(TablaEMPLEADOS[[#This Row],[NOMBRE]],VERIFICACION!$D$4:$G$4,4,0),"NO") -> NO | M15: Asunción de la Virgen | N15: 2019-08-15 | P15: 10 | Q15: 3 | R15: =R14+Tabla2[[#This Row],[dias]] -> 15
A16: 10 | E16: =IF(TablaEMPLEADOS[[#This Row],[ANTIGÜEDAD A FECHA FUTURO]]="NO", IFERROR(IF(TablaEMPLEADOS[[#This Row],[FECHA CONTRATO]]=0,"",IF(DATEDIF(TablaEMPLEADOS[[#This Row],[FECHA CONTRATO]],TODAY(),"y")=0,"", DATEDIF(TablaEMPLEADOS[[#This Row],[FECHA CONTRATO]],TODAY(),"y") & " año(s) ") & IF(DATEDIF(TablaEMPLEADOS[[#This Row],[FECHA CONTRATO]],TODAY(),"ym")=0,"",DATEDIF(TablaEMPLEADOS[[#This Row],[FECHA CONTRATO]],TODAY(),"ym") & " mes(es) ") & IF(DATEDIF(TablaEMPLEADOS[[#This Row],[FECHA CONTRATO]],TODAY(),"md")=0,"",DATEDIF(TablaEMPLEADOS[[#This Row],[FECHA CONTRATO]],TODAY(),"md") & " día(s)")),""), IFERROR(IF(TablaEMPLEADOS[[#This Row],[FECHA CONTRATO]]=0,"",IF(DATEDIF(TablaEMPLEADOS[[#This Row],[FECHA CONTRATO]],TablaEMPLEADOS[[#This Row],[ANTIGÜEDAD A FECHA FUTURO]],"y")=0,"", DATEDIF(TablaEMPLEADOS[[#This Row],[FECHA CONTRATO]],TablaEMPLEADOS[[#This Row],[ANTIGÜEDAD A FECHA FUTURO]],"y") & " año(s) ") & IF(DATEDIF(TablaEMPLEADOS[[#This Row],[FECHA CONTRATO]],TablaEMPLEADOS[[#This Row],[ANTIGÜEDAD A FECHA FUTURO]],"ym")=0,"",DATEDIF(TablaEMPLEADOS[[#This Row],[FECHA CONTRATO]],TablaEMPLEADOS[[#This Row],[ANTIGÜEDAD A FECHA FUTURO]],"ym") & " mes(es) ") & IF(DATEDIF(TablaEMPLEADOS[[#This Row],[FECHA CONTRATO]],TablaEMPLEADOS[[#This Row],[ANTIGÜEDAD A FECHA FUTURO]],"md")=0,"",DATEDIF(TablaEMPLEADOS[[#This Row],[FECHA CONTRATO]],TablaEMPLEADOS[[#This Row],[ANTIGÜEDAD A FECHA FUTURO]],"md") & " día(s)")),"")) ->  | G16: =IF(TablaEMPLEADOS[[#This Row],[ANTIGÜEDAD A FECHA FUTURO]]="NO",ROUND(((TODAY()-TablaEMPLEADOS[[#This Row],[FECHA CONTRATO]]+1)/365)*TablaEMPLEADOS[[#This Row],[VAC./ AÑO]]+TablaEMPLEADOS[[#This Row],[TOTA VAC. PROG.]],0),ROUND(((TablaEMPLEADOS[[#This Row],[ANTIGÜEDAD A FECHA FUTURO]]-TablaEMPLEADOS[[#This Row],[FECHA CONTRATO]]+1)/365)*TablaEMPLEADOS[[#This Row],[VAC./ AÑO]]+TablaEMPLEADOS[[#This Row],[TOTA VAC. PROG.]],0)) ->  | J16: =IFERROR(IF(OR(TablaEMPLEADOS[[#This Row],[VAC./ AÑO]]=20,TablaEMPLEADOS[[#This Row],[VAC. PROG.]]="NO"),0,IF(TablaEMPLEADOS[[#This Row],[ANTIGÜEDAD A FECHA FUTURO]]="NO",VLOOKUP(ROUNDDOWN(YEARFRAC(TablaEMPLEADOS[[#This Row],[ACTIVACIÓN PROG.]],TODAY()),0),Tabla2[],2,0),VLOOKUP(ROUNDDOWN(YEARFRAC(TablaEMPLEADOS[[#This Row],[ACTIVACIÓN PROG.]],TablaEMPLEADOS[[#This Row],[ANTIGÜEDAD A FECHA FUTURO]]),0),Tabla2[],3,0))),"") ->  | L16: =IFERROR(VLOOKUP(TablaEMPLEADOS[[#This Row],[NOMBRE]],VERIFICACION!$D$4:$G$4,4,0),"NO") -> NO | M16: Fiestas Patrias | N16: 2019-09-18 | P16: 11 | Q16: 3 | R16: =R15+Tabla2[[#This Row],[dias]] -> 18
A17: 11 | E17: =IF(TablaEMPLEADOS[[#This Row],[ANTIGÜEDAD A FECHA FUTURO]]="NO", IFERROR(IF(TablaEMPLEADOS[[#This Row],[FECHA CONTRATO]]=0,"",IF(DATEDIF(TablaEMPLEADOS[[#This Row],[FECHA CONTRATO]],TODAY(),"y")=0,"", DATEDIF(TablaEMPLEADOS[[#This Row],[FECHA CONTRATO]],TODAY(),"y") & " año(s) ") & IF(DATEDIF(TablaEMPLEADOS[[#This Row],[FECHA CONTRATO]],TODAY(),"ym")=0,"",DATEDIF(TablaEMPLEADOS[[#This Row],[FECHA CONTRATO]],TODAY(),"ym") & " mes(es) ") & IF(DATEDIF(TablaEMPLEADOS[[#This Row],[FECHA CONTRATO]],TODAY(),"md")=0,"",DATEDIF(TablaEMPLEADOS[[#This Row],[FECHA CONTRATO]],TODAY(),"md") & " día(s)")),""), IFERROR(IF(TablaEMPLEADOS[[#This Row],[FECHA CONTRATO]]=0,"",IF(DATEDIF(TablaEMPLEADOS[[#This Row],[FECHA CONTRATO]],TablaEMPLEADOS[[#This Row],[ANTIGÜEDAD A FECHA FUTURO]],"y")=0,"", DATEDIF(TablaEMPLEADOS[[#This Row],[FECHA CONTRATO]],TablaEMPLEADOS[[#This Row],[ANTIGÜEDAD A FECHA FUTURO]],"y") & " año(s) ") & IF(DATEDIF(TablaEMPLEADOS[[#This Row],[FECHA CONTRATO]],TablaEMPLEADOS[[#This Row],[ANTIGÜEDAD A FECHA FUTURO]],"ym")=0,"",DATEDIF(TablaEMPLEADOS[[#This Row],[FECHA CONTRATO]],TablaEMPLEADOS[[#This Row],[ANTIGÜEDAD A FECHA FUTURO]],"ym") & " mes(es) ") & IF(DATEDIF(TablaEMPLEADOS[[#This Row],[FECHA CONTRATO]],TablaEMPLEADOS[[#This Row],[ANTIGÜEDAD A FECHA FUTURO]],"md")=0,"",DATEDIF(TablaEMPLEADOS[[#This Row],[FECHA CONTRATO]],TablaEMPLEADOS[[#This Row],[ANTIGÜEDAD A FECHA FUTURO]],"md") & " día(s)")),"")) ->  | G17: =IF(TablaEMPLEADOS[[#This Row],[ANTIGÜEDAD A FECHA FUTURO]]="NO",ROUND(((TODAY()-TablaEMPLEADOS[[#This Row],[FECHA CONTRATO]]+1)/365)*TablaEMPLEADOS[[#This Row],[VAC./ AÑO]]+TablaEMPLEADOS[[#This Row],[TOTA VAC. PROG.]],0),ROUND(((TablaEMPLEADOS[[#This Row],[ANTIGÜEDAD A FECHA FUTURO]]-TablaEMPLEADOS[[#This Row],[FECHA CONTRATO]]+1)/365)*TablaEMPLEADOS[[#This Row],[VAC./ AÑO]]+TablaEMPLEADOS[[#This Row],[TOTA VAC. PROG.]],0)) ->  | J17: =IFERROR(IF(OR(TablaEMPLEADOS[[#This Row],[VAC./ AÑO]]=20,TablaEMPLEADOS[[#This Row],[VAC. PROG.]]="NO"),0,IF(TablaEMPLEADOS[[#This Row],[ANTIGÜEDAD A FECHA FUTURO]]="NO",VLOOKUP(ROUNDDOWN(YEARFRAC(TablaEMPLEADOS[[#This Row],[ACTIVACIÓN PROG.]],TODAY()),0),Tabla2[],2,0),VLOOKUP(ROUNDDOWN(YEARFRAC(TablaEMPLEADOS[[#This Row],[ACTIVACIÓN PROG.]],TablaEMPLEADOS[[#This Row],[ANTIGÜEDAD A FECHA FUTURO]]),0),Tabla2[],3,0))),"") ->  | L17: =IFERROR(VLOOKUP(TablaEMPLEADOS[[#This Row],[NOMBRE]],VERIFICACION!$D$4:$G$4,4,0),"NO") -> NO | M17: Independencia Nacional | N17: 2019-09-19 | P17: 12 | Q17: 4 | R17: =R16+Tabla2[[#This Row],[dias]] -> 22
A18: 12 | E18: =IF(TablaEMPLEADOS[[#This Row],[ANTIGÜEDAD A FECHA FUTURO]]="NO", IFERROR(IF(TablaEMPLEADOS[[#This Row],[FECHA CONTRATO]]=0,"",IF(DATEDIF(TablaEMPLEADOS[[#This Row],[FECHA CONTRATO]],TODAY(),"y")=0,"", DATEDIF(TablaEMPLEADOS[[#This Row],[FECHA CONTRATO]],TODAY(),"y") & " año(s) ") & IF(DATEDIF(TablaEMPLEADOS[[#This Row],[FECHA CONTRATO]],TODAY(),"ym")=0,"",DATEDIF(TablaEMPLEADOS[[#This Row],[FECHA CONTRATO]],TODAY(),"ym") & " mes(es) ") & IF(DATEDIF(TablaEMPLEADOS[[#This Row],[FECHA CONTRATO]],TODAY(),"md")=0,"",DATEDIF(TablaEMPLEADOS[[#This Row],[FECHA CONTRATO]],TODAY(),"md") & " día(s)")),""), IFERROR(IF(TablaEMPLEADOS[[#This Row],[FECHA CONTRATO]]=0,"",IF(DATEDIF(TablaEMPLEADOS[[#This Row],[FECHA CONTRATO]],TablaEMPLEADOS[[#This Row],[ANTIGÜEDAD A FECHA FUTURO]],"y")=0,"", DATEDIF(TablaEMPLEADOS[[#This Row],[FECHA CONTRATO]],TablaEMPLEADOS[[#This Row],[ANTIGÜEDAD A FECHA FUTURO]],"y") & " año(s) ") & IF(DATEDIF(TablaEMPLEADOS[[#This Row],[FECHA CONTRATO]],TablaEMPLEADOS[[#This Row],[ANTIGÜEDAD A FECHA FUTURO]],"ym")=0,"",DATEDIF(TablaEMPLEADOS[[#This Row],[FECHA CONTRATO]],TablaEMPLEADOS[[#This Row],[ANTIGÜEDAD A FECHA FUTURO]],"ym") & " mes(es) ") & IF(DATEDIF(TablaEMPLEADOS[[#This Row],[FECHA CONTRATO]],TablaEMPLEADOS[[#This Row],[ANTIGÜEDAD A FECHA FUTURO]],"md")=0,"",DATEDIF(TablaEMPLEADOS[[#This Row],[FECHA CONTRATO]],TablaEMPLEADOS[[#This Row],[ANTIGÜEDAD A FECHA FUTURO]],"md") & " día(s)")),"")) ->  | G18: =IF(TablaEMPLEADOS[[#This Row],[ANTIGÜEDAD A FECHA FUTURO]]="NO",ROUND(((TODAY()-TablaEMPLEADOS[[#This Row],[FECHA CONTRATO]]+1)/365)*TablaEMPLEADOS[[#This Row],[VAC./ AÑO]]+TablaEMPLEADOS[[#This Row],[TOTA VAC. PROG.]],0),ROUND(((TablaEMPLEADOS[[#This Row],[ANTIGÜEDAD A FECHA FUTURO]]-TablaEMPLEADOS[[#This Row],[FECHA CONTRATO]]+1)/365)*TablaEMPLEADOS[[#This Row],[VAC./ AÑO]]+TablaEMPLEADOS[[#This Row],[TOTA VAC. PROG.]],0)) ->  | J18: =IFERROR(IF(OR(TablaEMPLEADOS[[#This Row],[VAC./ AÑO]]=20,TablaEMPLEADOS[[#This Row],[VAC. PROG.]]="NO"),0,IF(TablaEMPLEADOS[[#This Row],[ANTIGÜEDAD A FECHA FUTURO]]="NO",VLOOKUP(ROUNDDOWN(YEARFRAC(TablaEMPLEADOS[[#This Row],[ACTIVACIÓN PROG.]],TODAY()),0),Tabla2[],2,0),VLOOKUP(ROUNDDOWN(YEARFRAC(TablaEMPLEADOS[[#This Row],[ACTIVACIÓN PROG.]],TablaEMPLEADOS[[#This Row],[ANTIGÜEDAD A FECHA FUTURO]]),0),Tabla2[],3,0))),"") ->  | L18: =IFERROR(VLOOKUP(TablaEMPLEADOS[[#This Row],[NOMBRE]],VERIFICACION!$D$4:$G$4,4,0),"NO") -> NO | M18: Día de las Glorias del Ejército | N18: 2019-09-20 | P18: 13 | Q18: 4 | R18: =R17+Tabla2[[#This Row],[dias]] -> 26
A19: 13 | E19: =IF(TablaEMPLEADOS[[#This Row],[ANTIGÜEDAD A FECHA FUTURO]]="NO", IFERROR(IF(TablaEMPLEADOS[[#This Row],[FECHA CONTRATO]]=0,"",IF(DATEDIF(TablaEMPLEADOS[[#This Row],[FECHA CONTRATO]],TODAY(),"y")=0,"", DATEDIF(TablaEMPLEADOS[[#This Row],[FECHA CONTRATO]],TODAY(),"y") & " año(s) ") & IF(DATEDIF(TablaEMPLEADOS[[#This Row],[FECHA CONTRATO]],TODAY(),"ym")=0,"",DATEDIF(TablaEMPLEADOS[[#This Row],[FECHA CONTRATO]],TODAY(),"ym") & " mes(es) ") & IF(DATEDIF(TablaEMPLEADOS[[#This Row],[FECHA CONTRATO]],TODAY(),"md")=0,"",DATEDIF(TablaEMPLEADOS[[#This Row],[FECHA CONTRATO]],TODAY(),"md") & " día(s)")),""), IFERROR(IF(TablaEMPLEADOS[[#This Row],[FECHA CONTRATO]]=0,"",IF(DATEDIF(TablaEMPLEADOS[[#This Row],[FECHA CONTRATO]],TablaEMPLEADOS[[#This Row],[ANTIGÜEDAD A FECHA FUTURO]],"y")=0,"", DATEDIF(TablaEMPLEADOS[[#This Row],[FECHA CONTRATO]],TablaEMPLEADOS[[#This Row],[ANTIGÜEDAD A FECHA FUTURO]],"y") & " año(s) ") & IF(DATEDIF(TablaEMPLEADOS[[#This Row],[FECHA CONTRATO]],TablaEMPLEADOS[[#This Row],[ANTIGÜEDAD A FECHA FUTURO]],"ym")=0,"",DATEDIF(TablaEMPLEADOS[[#This Row],[FECHA CONTRATO]],TablaEMPLEADOS[[#This Row],[ANTIGÜEDAD A FECHA FUTURO]],"ym") & " mes(es) ") & IF(DATEDIF(TablaEMPLEADOS[[#This Row],[FECHA CONTRATO]],TablaEMPLEADOS[[#This Row],[ANTIGÜEDAD A FECHA FUTURO]],"md")=0,"",DATEDIF(TablaEMPLEADOS[[#This Row],[FECHA CONTRATO]],TablaEMPLEADOS[[#This Row],[ANTIGÜEDAD A FECHA FUTURO]],"md") & " día(s)")),"")) ->  | G19: =IF(TablaEMPLEADOS[[#This Row],[ANTIGÜEDAD A FECHA FUTURO]]="NO",ROUND(((TODAY()-TablaEMPLEADOS[[#This Row],[FECHA CONTRATO]]+1)/365)*TablaEMPLEADOS[[#This Row],[VAC./ AÑO]]+TablaEMPLEADOS[[#This Row],[TOTA VAC. PROG.]],0),ROUND(((TablaEMPLEADOS[[#This Row],[ANTIGÜEDAD A FECHA FUTURO]]-TablaEMPLEADOS[[#This Row],[FECHA CONTRATO]]+1)/365)*TablaEMPLEADOS[[#This Row],[VAC./ AÑO]]+TablaEMPLEADOS[[#This Row],[TOTA VAC. PROG.]],0)) ->  | J19: =IFERROR(IF(OR(TablaEMPLEADOS[[#This Row],[VAC./ AÑO]]=20,TablaEMPLEADOS[[#This Row],[VAC. PROG.]]="NO"),0,IF(TablaEMPLEADOS[[#This Row],[ANTIGÜEDAD A FECHA FUTURO]]="NO",VLOOKUP(ROUNDDOWN(YEARFRAC(TablaEMPLEADOS[[#This Row],[ACTIVACIÓN PROG.]],TODAY()),0),Tabla2[],2,0),VLOOKUP(ROUNDDOWN(YEARFRAC(TablaEMPLEADOS[[#This Row],[ACTIVACIÓN PROG.]],TablaEMPLEADOS[[#This Row],[ANTIGÜEDAD A FECHA FUTURO]]),0),Tabla2[],3,0))),"") ->  | L19: =IFERROR(VLOOKUP(TablaEMPLEADOS[[#This Row],[NOMBRE]],VERIFICACION!$D$4:$G$4,4,0),"NO") -> NO | M19: Encuentro de Dos Mundos | N19: 2019-10-12 | P19: 14 | Q19: 4 | R19: =R18+Tabla2[[#This Row],[dias]] -> 30
A20: 14 | E20: =IF(TablaEMPLEADOS[[#This Row],[ANTIGÜEDAD A FECHA FUTURO]]="NO", IFERROR(IF(TablaEMPLEADOS[[#This Row],[FECHA CONTRATO]]=0,"",IF(DATEDIF(TablaEMPLEADOS[[#This Row],[FECHA CONTRATO]],TODAY(),"y")=0,"", DATEDIF(TablaEMPLEADOS[[#This Row],[FECHA CONTRATO]],TODAY(),"y") & " año(s) ") & IF(DATEDIF(TablaEMPLEADOS[[#This Row],[FECHA CONTRATO]],TODAY(),"ym")=0,"",DATEDIF(TablaEMPLEADOS[[#This Row],[FECHA CONTRATO]],TODAY(),"ym") & " mes(es) ") & IF(DATEDIF(TablaEMPLEADOS[[#This Row],[FECHA CONTRATO]],TODAY(),"md")=0,"",DATEDIF(TablaEMPLEADOS[[#This Row],[FECHA CONTRATO]],TODAY(),"md") & " día(s)")),""), IFERROR(IF(TablaEMPLEADOS[[#This Row],[FECHA CONTRATO]]=0,"",IF(DATEDIF(TablaEMPLEADOS[[#This Row],[FECHA CONTRATO]],TablaEMPLEADOS[[#This Row],[ANTIGÜEDAD A FECHA FUTURO]],"y")=0,"", DATEDIF(TablaEMPLEADOS[[#This Row],[FECHA CONTRATO]],TablaEMPLEADOS[[#This Row],[ANTIGÜEDAD A FECHA FUTURO]],"y") & " año(s) ") & IF(DATEDIF(TablaEMPLEADOS[[#This Row],[FECHA CONTRATO]],TablaEMPLEADOS[[#This Row],[ANTIGÜEDAD A FECHA FUTURO]],"ym")=0,"",DATEDIF(TablaEMPLEADOS[[#This Row],[FECHA CONTRATO]],TablaEMPLEADOS[[#This Row],[ANTIGÜEDAD A FECHA FUTURO]],"ym") & " mes(es) ") & IF(DATEDIF(TablaEMPLEADOS[[#This Row],[FECHA CONTRATO]],TablaEMPLEADOS[[#This Row],[ANTIGÜEDAD A FECHA FUTURO]],"md")=0,"",DATEDIF(TablaEMPLEADOS[[#This Row],[FECHA CONTRATO]],TablaEMPLEADOS[[#This Row],[ANTIGÜEDAD A FECHA FUTURO]],"md") & " día(s)")),"")) ->  | G20: =IF(TablaEMPLEADOS[[#This Row],[ANTIGÜEDAD A FECHA FUTURO]]="NO",ROUND(((TODAY()-TablaEMPLEADOS[[#This Row],[FECHA CONTRATO]]+1)/365)*TablaEMPLEADOS[[#This Row],[VAC./ AÑO]]+TablaEMPLEADOS[[#This Row],[TOTA VAC. PROG.]],0),ROUND(((TablaEMPLEADOS[[#This Row],[ANTIGÜEDAD A FECHA FUTURO]]-TablaEMPLEADOS[[#This Row],[FECHA CONTRATO]]+1)/365)*TablaEMPLEADOS[[#This Row],[VAC./ AÑO]]+TablaEMPLEADOS[[#This Row],[TOTA VAC. PROG.]],0)) ->  | J20: =IFERROR(IF(OR(TablaEMPLEADOS[[#This Row],[VAC./ AÑO]]=20,TablaEMPLEADOS[[#This Row],[VAC. PROG.]]="NO"),0,IF(TablaEMPLEADOS[[#This Row],[ANTIGÜEDAD A FECHA FUTURO]]="NO",VLOOKUP(ROUNDDOWN(YEARFRAC(TablaEMPLEADOS[[#This Row],[ACTIVACIÓN PROG.]],TODAY()),0),Tabla2[],2,0),VLOOKUP(ROUNDDOWN(YEARFRAC(TablaEMPLEADOS[[#This Row],[ACTIVACIÓN PROG.]],TablaEMPLEADOS[[#This Row],[ANTIGÜEDAD A FECHA FUTURO]]),0),Tabla2[],3,0))),"") ->  | L20: =IFERROR(VLOOKUP(TablaEMPLEADOS[[#This Row],[NOMBRE]],VERIFICACION!$D$4:$G$4,4,0),"NO") -> NO | M20: Día de Todos los Santos | N20: 2019-11-01 | P20: 15 | Q20: 5 | R20: =R19+Tabla2[[#This Row],[dias]] -> 35
A21: 15 | E21: =IF(TablaEMPLEADOS[[#This Row],[ANTIGÜEDAD A FECHA FUTURO]]="NO", IFERROR(IF(TablaEMPLEADOS[[#This Row],[FECHA CONTRATO]]=0,"",IF(DATEDIF(TablaEMPLEADOS[[#This Row],[FECHA CONTRATO]],TODAY(),"y")=0,"", DATEDIF(TablaEMPLEADOS[[#This Row],[FECHA CONTRATO]],TODAY(),"y") & " año(s) ") & IF(DATEDIF(TablaEMPLEADOS[[#This Row],[FECHA CONTRATO]],TODAY(),"ym")=0,"",DATEDIF(TablaEMPLEADOS[[#This Row],[FECHA CONTRATO]],TODAY(),"ym") & " mes(es) ") & IF(DATEDIF(TablaEMPLEADOS[[#This Row],[FECHA CONTRATO]],TODAY(),"md")=0,"",DATEDIF(TablaEMPLEADOS[[#This Row],[FECHA CONTRATO]],TODAY(),"md") & " día(s)")),""), IFERROR(IF(TablaEMPLEADOS[[#This Row],[FECHA CONTRATO]]=0,"",IF(DATEDIF(TablaEMPLEADOS[[#This Row],[FECHA CONTRATO]],TablaEMPLEADOS[[#This Row],[ANTIGÜEDAD A FECHA FUTURO]],"y")=0,"", DATEDIF(TablaEMPLEADOS[[#This Row],[FECHA CONTRATO]],TablaEMPLEADOS[[#This Row],[ANTIGÜEDAD A FECHA FUTURO]],"y") & " año(s) ") & IF(DATEDIF(TablaEMPLEADOS[[#This Row],[FECHA CONTRATO]],TablaEMPLEADOS[[#This Row],[ANTIGÜEDAD A FECHA FUTURO]],"ym")=0,"",DATEDIF(TablaEMPLEADOS[[#This Row],[FECHA CONTRATO]],TablaEMPLEADOS[[#This Row],[ANTIGÜEDAD A FECHA FUTURO]],"ym") & " mes(es) ") & IF(DATEDIF(TablaEMPLEADOS[[#This Row],[FECHA CONTRATO]],TablaEMPLEADOS[[#This Row],[ANTIGÜEDAD A FECHA FUTURO]],"md")=0,"",DATEDIF(TablaEMPLEADOS[[#This Row],[FECHA CONTRATO]],TablaEMPLEADOS[[#This Row],[ANTIGÜEDAD A FECHA FUTURO]],"md") & " día(s)")),"")) ->  | G21: =IF(TablaEMPLEADOS[[#This Row],[ANTIGÜEDAD A FECHA FUTURO]]="NO",ROUND(((TODAY()-TablaEMPLEADOS[[#This Row],[FECHA CONTRATO]]+1)/365)*TablaEMPLEADOS[[#This Row],[VAC./ AÑO]]+TablaEMPLEADOS[[#This Row],[TOTA VAC. PROG.]],0),ROUND(((TablaEMPLEADOS[[#This Row],[ANTIGÜEDAD A FECHA FUTURO]]-TablaEMPLEADOS[[#This Row],[FECHA CONTRATO]]+1)/365)*TablaEMPLEADOS[[#This Row],[VAC./ AÑO]]+TablaEMPLEADOS[[#This Row],[TOTA VAC. PROG.]],0)) ->  | J21: =IFERROR(IF(OR(TablaEMPLEADOS[[#This Row],[VAC./ AÑO]]=20,TablaEMPLEADOS[[#This Row],[VAC. PROG.]]="NO"),0,IF(TablaEMPLEADOS[[#This Row],[ANTIGÜEDAD A FECHA FUTURO]]="NO",VLOOKUP(ROUNDDOWN(YEARFRAC(TablaEMPLEADOS[[#This Row],[ACTIVACIÓN PROG.]],TODAY()),0),Tabla2[],2,0),VLOOKUP(ROUNDDOWN(YEARFRAC(TablaEMPLEADOS[[#This Row],[ACTIVACIÓN PROG.]],TablaEMPLEADOS[[#This Row],[ANTIGÜEDAD A FECHA FUTURO]]),0),Tabla2[],3,0))),"") ->  | L21: =IFERROR(VLOOKUP(TablaEMPLEADOS[[#This Row],[NOMBRE]],VERIFICACION!$D$4:$G$4,4,0),"NO") -> NO | M21: Día de las Iglesias Evangélicas y Protestantes | N21: 2019-11-02 | P21: 16 | Q21: 5 | R21: =R20+Tabla2[[#This Row],[dias]] -> 40
A22: 16 | E22: =IF(TablaEMPLEADOS[[#This Row],[ANTIGÜEDAD A FECHA FUTURO]]="NO", IFERROR(IF(TablaEMPLEADOS[[#This Row],[FECHA CONTRATO]]=0,"",IF(DATEDIF(TablaEMPLEADOS[[#This Row],[FECHA CONTRATO]],TODAY(),"y")=0,"", DATEDIF(TablaEMPLEADOS[[#This Row],[FECHA CONTRATO]],TODAY(),"y") & " año(s) ") & IF(DATEDIF(TablaEMPLEADOS[[#This Row],[FECHA CONTRATO]],TODAY(),"ym")=0,"",DATEDIF(TablaEMPLEADOS[[#This Row],[FECHA CONTRATO]],TODAY(),"ym") & " mes(es) ") & IF(DATEDIF(TablaEMPLEADOS[[#This Row],[FECHA CONTRATO]],TODAY(),"md")=0,"",DATEDIF(TablaEMPLEADOS[[#This Row],[FECHA CONTRATO]],TODAY(),"md") & " día(s)")),""), IFERROR(IF(TablaEMPLEADOS[[#This Row],[FECHA CONTRATO]]=0,"",IF(DATEDIF(TablaEMPLEADOS[[#This Row],[FECHA CONTRATO]],TablaEMPLEADOS[[#This Row],[ANTIGÜEDAD A FECHA FUTURO]],"y")=0,"", DATEDIF(TablaEMPLEADOS[[#This Row],[FECHA CONTRATO]],TablaEMPLEADOS[[#This Row],[ANTIGÜEDAD A FECHA FUTURO]],"y") & " año(s) ") & IF(DATEDIF(TablaEMPLEADOS[[#This Row],[FECHA CONTRATO]],TablaEMPLEADOS[[#This Row],[ANTIGÜEDAD A FECHA FUTURO]],"ym")=0,"",DATEDIF(TablaEMPLEADOS[[#This Row],[FECHA CONTRATO]],TablaEMPLEADOS[[#This Row],[ANTIGÜEDAD A FECHA FUTURO]],"ym") & " mes(es) ") & IF(DATEDIF(TablaEMPLEADOS[[#This Row],[FECHA CONTRATO]],TablaEMPLEADOS[[#This Row],[ANTIGÜEDAD A FECHA FUTURO]],"md")=0,"",DATEDIF(TablaEMPLEADOS[[#This Row],[FECHA CONTRATO]],TablaEMPLEADOS[[#This Row],[ANTIGÜEDAD A FECHA FUTURO]],"md") & " día(s)")),"")) ->  | G22: =IF(TablaEMPLEADOS[[#This Row],[ANTIGÜEDAD A FECHA FUTURO]]="NO",ROUND(((TODAY()-TablaEMPLEADOS[[#This Row],[FECHA CONTRATO]]+1)/365)*TablaEMPLEADOS[[#This Row],[VAC./ AÑO]]+TablaEMPLEADOS[[#This Row],[TOTA VAC. PROG.]],0),ROUND(((TablaEMPLEADOS[[#This Row],[ANTIGÜEDAD A FECHA FUTURO]]-TablaEMPLEADOS[[#This Row],[FECHA CONTRATO]]+1)/365)*TablaEMPLEADOS[[#This Row],[VAC./ AÑO]]+TablaEMPLEADOS[[#This Row],[TOTA VAC. PROG.]],0)) ->  | J22: =IFERROR(IF(OR(TablaEMPLEADOS[[#This Row],[VAC./ AÑO]]=20,TablaEMPLEADOS[[#This Row],[VAC. PROG.]]="NO"),0,IF(TablaEMPLEADOS[[#This Row],[ANTIGÜEDAD A FECHA FUTURO]]="NO",VLOOKUP(ROUNDDOWN(YEARFRAC(TablaEMPLEADOS[[#This Row],[ACTIVACIÓN PROG.]],TODAY()),0),Tabla2[],2,0),VLOOKUP(ROUNDDOWN(YEARFRAC(TablaEMPLEADOS[[#This Row],[ACTIVACIÓN PROG.]],TablaEMPLEADOS[[#This Row],[ANTIGÜEDAD A FECHA FUTURO]]),0),Tabla2[],3,0))),"") ->  | L22: =IFERROR(VLOOKUP(TablaEMPLEADOS[[#This Row],[NOMBRE]],VERIFICACION!$D$4:$G$4,4,0),"NO") -> NO | M22: Inmaculada Concepción | N22: 2019-12-08 | P22: 17 | Q22: 5 | R22: =R21+Tabla2[[#This Row],[dias]] -> 45
A23: 17 | E23: =IF(TablaEMPLEADOS[[#This Row],[ANTIGÜEDAD A FECHA FUTURO]]="NO", IFERROR(IF(TablaEMPLEADOS[[#This Row],[FECHA CONTRATO]]=0,"",IF(DATEDIF(TablaEMPLEADOS[[#This Row],[FECHA CONTRATO]],TODAY(),"y")=0,"", DATEDIF(TablaEMPLEADOS[[#This Row],[FECHA CONTRATO]],TODAY(),"y") & " año(s) ") & IF(DATEDIF(TablaEMPLEADOS[[#This Row],[FECHA CONTRATO]],TODAY(),"ym")=0,"",DATEDIF(TablaEMPLEADOS[[#This Row],[FECHA CONTRATO]],TODAY(),"ym") & " mes(es) ") & IF(DATEDIF(TablaEMPLEADOS[[#This Row],[FECHA CONTRATO]],TODAY(),"md")=0,"",DATEDIF(TablaEMPLEADOS[[#This Row],[FECHA CONTRATO]],TODAY(),"md") & " día(s)")),""), IFERROR(IF(TablaEMPLEADOS[[#This Row],[FECHA CONTRATO]]=0,"",IF(DATEDIF(TablaEMPLEADOS[[#This Row],[FECHA CONTRATO]],TablaEMPLEADOS[[#This Row],[ANTIGÜEDAD A FECHA FUTURO]],"y")=0,"", DATEDIF(TablaEMPLEADOS[[#This Row],[FECHA CONTRATO]],TablaEMPLEADOS[[#This Row],[ANTIGÜEDAD A FECHA FUTURO]],"y") & " año(s) ") & IF(DATEDIF(TablaEMPLEADOS[[#This Row],[FECHA CONTRATO]],TablaEMPLEADOS[[#This Row],[ANTIGÜEDAD A FECHA FUTURO]],"ym")=0,"",DATEDIF(TablaEMPLEADOS[[#This Row],[FECHA CONTRATO]],TablaEMPLEADOS[[#This Row],[ANTIGÜEDAD A FECHA FUTURO]],"ym") & " mes(es) ") & IF(DATEDIF(TablaEMPLEADOS[[#This Row],[FECHA CONTRATO]],TablaEMPLEADOS[[#This Row],[ANTIGÜEDAD A FECHA FUTURO]],"md")=0,"",DATEDIF(TablaEMPLEADOS[[#This Row],[FECHA CONTRATO]],TablaEMPLEADOS[[#This Row],[ANTIGÜEDAD A FECHA FUTURO]],"md") & " día(s)")),"")) ->  | G23: =IF(TablaEMPLEADOS[[#This Row],[ANTIGÜEDAD A FECHA FUTURO]]="NO",ROUND(((TODAY()-TablaEMPLEADOS[[#This Row],[FECHA CONTRATO]]+1)/365)*TablaEMPLEADOS[[#This Row],[VAC./ AÑO]]+TablaEMPLEADOS[[#This Row],[TOTA VAC. PROG.]],0),ROUND(((TablaEMPLEADOS[[#This Row],[ANTIGÜEDAD A FECHA FUTURO]]-TablaEMPLEADOS[[#This Row],[FECHA CONTRATO]]+1)/365)*TablaEMPLEADOS[[#This Row],[VAC./ AÑO]]+TablaEMPLEADOS[[#This Row],[TOTA VAC. PROG.]],0)) ->  | J23: =IFERROR(IF(OR(TablaEMPLEADOS[[#This Row],[VAC./ AÑO]]=20,TablaEMPLEADOS[[#This Row],[VAC. PROG.]]="NO"),0,IF(TablaEMPLEADOS[[#This Row],[ANTIGÜEDAD A FECHA FUTURO]]="NO",VLOOKUP(ROUNDDOWN(YEARFRAC(TablaEMPLEADOS[[#This Row],[ACTIVACIÓN PROG.]],TODAY()),0),Tabla2[],2,0),VLOOKUP(ROUNDDOWN(YEARFRAC(TablaEMPLEADOS[[#This Row],[ACTIVACIÓN PROG.]],TablaEMPLEADOS[[#This Row],[ANTIGÜEDAD A FECHA FUTURO]]),0),Tabla2[],3,0))),"") ->  | L23: =IFERROR(VLOOKUP(TablaEMPLEADOS[[#This Row],[NOMBRE]],VERIFICACION!$D$4:$G$4,4,0),"NO") -> NO | M23: Navidad | N23: 2019-12-25 | P23: 18 | Q23: 6 | R23: =R22+Tabla2[[#This Row],[dias]] -> 51
A24: 18 | E24: =IF(TablaEMPLEADOS[[#This Row],[ANTIGÜEDAD A FECHA FUTURO]]="NO", IFERROR(IF(TablaEMPLEADOS[[#This Row],[FECHA CONTRATO]]=0,"",IF(DATEDIF(TablaEMPLEADOS[[#This Row],[FECHA CONTRATO]],TODAY(),"y")=0,"", DATEDIF(TablaEMPLEADOS[[#This Row],[FECHA CONTRATO]],TODAY(),"y") & " año(s) ") & IF(DATEDIF(TablaEMPLEADOS[[#This Row],[FECHA CONTRATO]],TODAY(),"ym")=0,"",DATEDIF(TablaEMPLEADOS[[#This Row],[FECHA CONTRATO]],TODAY(),"ym") & " mes(es) ") & IF(DATEDIF(TablaEMPLEADOS[[#This Row],[FECHA CONTRATO]],TODAY(),"md")=0,"",DATEDIF(TablaEMPLEADOS[[#This Row],[FECHA CONTRATO]],TODAY(),"md") & " día(s)")),""), IFERROR(IF(TablaEMPLEADOS[[#This Row],[FECHA CONTRATO]]=0,"",IF(DATEDIF(TablaEMPLEADOS[[#This Row],[FECHA CONTRATO]],TablaEMPLEADOS[[#This Row],[ANTIGÜEDAD A FECHA FUTURO]],"y")=0,"", DATEDIF(TablaEMPLEADOS[[#This Row],[FECHA CONTRATO]],TablaEMPLEADOS[[#This Row],[ANTIGÜEDAD A FECHA FUTURO]],"y") & " año(s) ") & IF(DATEDIF(TablaEMPLEADOS[[#This Row],[FECHA CONTRATO]],TablaEMPLEADOS[[#This Row],[ANTIGÜEDAD A FECHA FUTURO]],"ym")=0,"",DATEDIF(TablaEMPLEADOS[[#This Row],[FECHA CONTRATO]],TablaEMPLEADOS[[#This Row],[ANTIGÜEDAD A FECHA FUTURO]],"ym") & " mes(es) ") & IF(DATEDIF(TablaEMPLEADOS[[#This Row],[FECHA CONTRATO]],TablaEMPLEADOS[[#This Row],[ANTIGÜEDAD A FECHA FUTURO]],"md")=0,"",DATEDIF(TablaEMPLEADOS[[#This Row],[FECHA CONTRATO]],TablaEMPLEADOS[[#This Row],[ANTIGÜEDAD A FECHA FUTURO]],"md") & " día(s)")),"")) ->  | G24: =IF(TablaEMPLEADOS[[#This Row],[ANTIGÜEDAD A FECHA FUTURO]]="NO",ROUND(((TODAY()-TablaEMPLEADOS[[#This Row],[FECHA CONTRATO]]+1)/365)*TablaEMPLEADOS[[#This Row],[VAC./ AÑO]]+TablaEMPLEADOS[[#This Row],[TOTA VAC. PROG.]],0),ROUND(((TablaEMPLEADOS[[#This Row],[ANTIGÜEDAD A FECHA FUTURO]]-TablaEMPLEADOS[[#This Row],[FECHA CONTRATO]]+1)/365)*TablaEMPLEADOS[[#This Row],[VAC./ AÑO]]+TablaEMPLEADOS[[#This Row],[TOTA VAC. PROG.]],0)) ->  | J24: =IFERROR(IF(OR(TablaEMPLEADOS[[#This Row],[VAC./ AÑO]]=20,TablaEMPLEADOS[[#This Row],[VAC. PROG.]]="NO"),0,IF(TablaEMPLEADOS[[#This Row],[ANTIGÜEDAD A FECHA FUTURO]]="NO",VLOOKUP(ROUNDDOWN(YEARFRAC(TablaEMPLEADOS[[#This Row],[ACTIVACIÓN PROG.]],TODAY()),0),Tabla2[],2,0),VLOOKUP(ROUNDDOWN(YEARFRAC(TablaEMPLEADOS[[#This Row],[ACTIVACIÓN PROG.]],TablaEMPLEADOS[[#This Row],[ANTIGÜEDAD A FECHA FUTURO]]),0),Tabla2[],3,0))),"") ->  | L24: =IFERROR(VLOOKUP(TablaEMPLEADOS[[#This Row],[NOMBRE]],VERIFICACION!$D$4:$G$4,4,0),"NO") -> NO | M24: Año Nuevo | N24: 2020-01-01 | P24: 19 | Q24: 6 | R24: =R23+Tabla2[[#This Row],[dias]] -> 57
A25: 19 | E25: =IF(TablaEMPLEADOS[[#This Row],[ANTIGÜEDAD A FECHA FUTURO]]="NO", IFERROR(IF(TablaEMPLEADOS[[#This Row],[FECHA CONTRATO]]=0,"",IF(DATEDIF(TablaEMPLEADOS[[#This Row],[FECHA CONTRATO]],TODAY(),"y")=0,"", DATEDIF(TablaEMPLEADOS[[#This Row],[FECHA CONTRATO]],TODAY(),"y") & " año(s) ") & IF(DATEDIF(TablaEMPLEADOS[[#This Row],[FECHA CONTRATO]],TODAY(),"ym")=0,"",DATEDIF(TablaEMPLEADOS[[#This Row],[FECHA CONTRATO]],TODAY(),"ym") & " mes(es) ") & IF(DATEDIF(TablaEMPLEADOS[[#This Row],[FECHA CONTRATO]],TODAY(),"md")=0,"",DATEDIF(TablaEMPLEADOS[[#This Row],[FECHA CONTRATO]],TODAY(),"md") & " día(s)")),""), IFERROR(IF(TablaEMPLEADOS[[#This Row],[FECHA CONTRATO]]=0,"",IF(DATEDIF(TablaEMPLEADOS[[#This Row],[FECHA CONTRATO]],TablaEMPLEADOS[[#This Row],[ANTIGÜEDAD A FECHA FUTURO]],"y")=0,"", DATEDIF(TablaEMPLEADOS[[#This Row],[FECHA CONTRATO]],TablaEMPLEADOS[[#This Row],[ANTIGÜEDAD A FECHA FUTURO]],"y") & " año(s) ") & IF(DATEDIF(TablaEMPLEADOS[[#This Row],[FECHA CONTRATO]],TablaEMPLEADOS[[#This Row],[ANTIGÜEDAD A FECHA FUTURO]],"ym")=0,"",DATEDIF(TablaEMPLEADOS[[#This Row],[FECHA CONTRATO]],TablaEMPLEADOS[[#This Row],[ANTIGÜEDAD A FECHA FUTURO]],"ym") & " mes(es) ") & IF(DATEDIF(TablaEMPLEADOS[[#This Row],[FECHA CONTRATO]],TablaEMPLEADOS[[#This Row],[ANTIGÜEDAD A FECHA FUTURO]],"md")=0,"",DATEDIF(TablaEMPLEADOS[[#This Row],[FECHA CONTRATO]],TablaEMPLEADOS[[#This Row],[ANTIGÜEDAD A FECHA FUTURO]],"md") & " día(s)")),"")) ->  | G25: =IF(TablaEMPLEADOS[[#This Row],[ANTIGÜEDAD A FECHA FUTURO]]="NO",ROUND(((TODAY()-TablaEMPLEADOS[[#This Row],[FECHA CONTRATO]]+1)/365)*TablaEMPLEADOS[[#This Row],[VAC./ AÑO]]+TablaEMPLEADOS[[#This Row],[TOTA VAC. PROG.]],0),ROUND(((TablaEMPLEADOS[[#This Row],[ANTIGÜEDAD A FECHA FUTURO]]-TablaEMPLEADOS[[#This Row],[FECHA CONTRATO]]+1)/365)*TablaEMPLEADOS[[#This Row],[VAC./ AÑO]]+TablaEMPLEADOS[[#This Row],[TOTA VAC. PROG.]],0)) ->  | J25: =IFERROR(IF(OR(TablaEMPLEADOS[[#This Row],[VAC./ AÑO]]=20,TablaEMPLEADOS[[#This Row],[VAC. PROG.]]="NO"),0,IF(TablaEMPLEADOS[[#This Row],[ANTIGÜEDAD A FECHA FUTURO]]="NO",VLOOKUP(ROUNDDOWN(YEARFRAC(TablaEMPLEADOS[[#This Row],[ACTIVACIÓN PROG.]],TODAY()),0),Tabla2[],2,0),VLOOKUP(ROUNDDOWN(YEARFRAC(TablaEMPLEADOS[[#This Row],[ACTIVACIÓN PROG.]],TablaEMPLEADOS[[#This Row],[ANTIGÜEDAD A FECHA FUTURO]]),0),Tabla2[],3,0))),"") ->  | L25: =IFERROR(VLOOKUP(TablaEMPLEADOS[[#This Row],[NOMBRE]],VERIFICACION!$D$4:$G$4,4,0),"NO") -> NO | M25: Viernes Santo | N25: 2020-04-20 | P25: 20 | Q25: 6 | R25: =R24+Tabla2[[#This Row],[dias]] -> 63
A26: 20 | E26: =IF(TablaEMPLEADOS[[#This Row],[ANTIGÜEDAD A FECHA FUTURO]]="NO", IFERROR(IF(TablaEMPLEADOS[[#This Row],[FECHA CONTRATO]]=0,"",IF(DATEDIF(TablaEMPLEADOS[[#This Row],[FECHA CONTRATO]],TODAY(),"y")=0,"", DATEDIF(TablaEMPLEADOS[[#This Row],[FECHA CONTRATO]],TODAY(),"y") & " año(s) ") & IF(DATEDIF(TablaEMPLEADOS[[#This Row],[FECHA CONTRATO]],TODAY(),"ym")=0,"",DATEDIF(TablaEMPLEADOS[[#This Row],[FECHA CONTRATO]],TODAY(),"ym") & " mes(es) ") & IF(DATEDIF(TablaEMPLEADOS[[#This Row],[FECHA CONTRATO]],TODAY(),"md")=0,"",DATEDIF(TablaEMPLEADOS[[#This Row],[FECHA CONTRATO]],TODAY(),"md") & " día(s)")),""), IFERROR(IF(TablaEMPLEADOS[[#This Row],[FECHA CONTRATO]]=0,"",IF(DATEDIF(TablaEMPLEADOS[[#This Row],[FECHA CONTRATO]],TablaEMPLEADOS[[#This Row],[ANTIGÜEDAD A FECHA FUTURO]],"y")=0,"", DATEDIF(TablaEMPLEADOS[[#This Row],[FECHA CONTRATO]],TablaEMPLEADOS[[#This Row],[ANTIGÜEDAD A FECHA FUTURO]],"y") & " año(s) ") & IF(DATEDIF(TablaEMPLEADOS[[#This Row],[FECHA CONTRATO]],TablaEMPLEADOS[[#This Row],[ANTIGÜEDAD A FECHA FUTURO]],"ym")=0,"",DATEDIF(TablaEMPLEADOS[[#This Row],[FECHA CONTRATO]],TablaEMPLEADOS[[#This Row],[ANTIGÜEDAD A FECHA FUTURO]],"ym") & " mes(es) ") & IF(DATEDIF(TablaEMPLEADOS[[#This Row],[FECHA CONTRATO]],TablaEMPLEADOS[[#This Row],[ANTIGÜEDAD A FECHA FUTURO]],"md")=0,"",DATEDIF(TablaEMPLEADOS[[#This Row],[FECHA CONTRATO]],TablaEMPLEADOS[[#This Row],[ANTIGÜEDAD A FECHA FUTURO]],"md") & " día(s)")),"")) ->  | G26: =IF(TablaEMPLEADOS[[#This Row],[ANTIGÜEDAD A FECHA FUTURO]]="NO",ROUND(((TODAY()-TablaEMPLEADOS[[#This Row],[FECHA CONTRATO]]+1)/365)*TablaEMPLEADOS[[#This Row],[VAC./ AÑO]]+TablaEMPLEADOS[[#This Row],[TOTA VAC. PROG.]],0),ROUND(((TablaEMPLEADOS[[#This Row],[ANTIGÜEDAD A FECHA FUTURO]]-TablaEMPLEADOS[[#This Row],[FECHA CONTRATO]]+1)/365)*TablaEMPLEADOS[[#This Row],[VAC./ AÑO]]+TablaEMPLEADOS[[#This Row],[TOTA VAC. PROG.]],0)) ->  | J26: =IFERROR(IF(OR(TablaEMPLEADOS[[#This Row],[VAC./ AÑO]]=20,TablaEMPLEADOS[[#This Row],[VAC. PROG.]]="NO"),0,IF(TablaEMPLEADOS[[#This Row],[ANTIGÜEDAD A FECHA FUTURO]]="NO",VLOOKUP(ROUNDDOWN(YEARFRAC(TablaEMPLEADOS[[#This Row],[ACTIVACIÓN PROG.]],TODAY()),0),Tabla2[],2,0),VLOOKUP(ROUNDDOWN(YEARFRAC(TablaEMPLEADOS[[#This Row],[ACTIVACIÓN PROG.]],TablaEMPLEADOS[[#This Row],[ANTIGÜEDAD A FECHA FUTURO]]),0),Tabla2[],3,0))),"") ->  | L26: =IFERROR(VLOOKUP(TablaEMPLEADOS[[#This Row],[NOMBRE]],VERIFICACION!$D$4:$G$4,4,0),"NO") -> NO | M26: Sábado Santo | N26: 2020-04-21 | P26: 21 | Q26: 7 | R26: =R25+Tabla2[[#This Row],[dias]] -> 70
A27: 21 | E27: =IF(TablaEMPLEADOS[[#This Row],[ANTIGÜEDAD A FECHA FUTURO]]="NO", IFERROR(IF(TablaEMPLEADOS[[#This Row],[FECHA CONTRATO]]=0,"",IF(DATEDIF(TablaEMPLEADOS[[#This Row],[FECHA CONTRATO]],TODAY(),"y")=0,"", DATEDIF(TablaEMPLEADOS[[#This Row],[FECHA CONTRATO]],TODAY(),"y") & " año(s) ") & IF(DATEDIF(TablaEMPLEADOS[[#This Row],[FECHA CONTRATO]],TODAY(),"ym")=0,"",DATEDIF(TablaEMPLEADOS[[#This Row],[FECHA CONTRATO]],TODAY(),"ym") & " mes(es) ") & IF(DATEDIF(TablaEMPLEADOS[[#This Row],[FECHA CONTRATO]],TODAY(),"md")=0,"",DATEDIF(TablaEMPLEADOS[[#This Row],[FECHA CONTRATO]],TODAY(),"md") & " día(s)")),""), IFERROR(IF(TablaEMPLEADOS[[#This Row],[FECHA CONTRATO]]=0,"",IF(DATEDIF(TablaEMPLEADOS[[#This Row],[FECHA CONTRATO]],TablaEMPLEADOS[[#This Row],[ANTIGÜEDAD A FECHA FUTURO]],"y")=0,"", DATEDIF(TablaEMPLEADOS[[#This Row],[FECHA CONTRATO]],TablaEMPLEADOS[[#This Row],[ANTIGÜEDAD A FECHA FUTURO]],"y") & " año(s) ") & IF(DATEDIF(TablaEMPLEADOS[[#This Row],[FECHA CONTRATO]],TablaEMPLEADOS[[#This Row],[ANTIGÜEDAD A FECHA FUTURO]],"ym")=0,"",DATEDIF(TablaEMPLEADOS[[#This Row],[FECHA CONTRATO]],TablaEMPLEADOS[[#This Row],[ANTIGÜEDAD A FECHA FUTURO]],"ym") & " mes(es) ") & IF(DATEDIF(TablaEMPLEADOS[[#This Row],[FECHA CONTRATO]],TablaEMPLEADOS[[#This Row],[ANTIGÜEDAD A FECHA FUTURO]],"md")=0,"",DATEDIF(TablaEMPLEADOS[[#This Row],[FECHA CONTRATO]],TablaEMPLEADOS[[#This Row],[ANTIGÜEDAD A FECHA FUTURO]],"md") & " día(s)")),"")) ->  | G27: =IF(TablaEMPLEADOS[[#This Row],[ANTIGÜEDAD A FECHA FUTURO]]="NO",ROUND(((TODAY()-TablaEMPLEADOS[[#This Row],[FECHA CONTRATO]]+1)/365)*TablaEMPLEADOS[[#This Row],[VAC./ AÑO]]+TablaEMPLEADOS[[#This Row],[TOTA VAC. PROG.]],0),ROUND(((TablaEMPLEADOS[[#This Row],[ANTIGÜEDAD A FECHA FUTURO]]-TablaEMPLEADOS[[#This Row],[FECHA CONTRATO]]+1)/365)*TablaEMPLEADOS[[#This Row],[VAC./ AÑO]]+TablaEMPLEADOS[[#This Row],[TOTA VAC. PROG.]],0)) ->  | J27: =IFERROR(IF(OR(TablaEMPLEADOS[[#This Row],[VAC./ AÑO]]=20,TablaEMPLEADOS[[#This Row],[VAC. PROG.]]="NO"),0,IF(TablaEMPLEADOS[[#This Row],[ANTIGÜEDAD A FECHA FUTURO]]="NO",VLOOKUP(ROUNDDOWN(YEARFRAC(TablaEMPLEADOS[[#This Row],[ACTIVACIÓN PROG.]],TODAY()),0),Tabla2[],2,0),VLOOKUP(ROUNDDOWN(YEARFRAC(TablaEMPLEADOS[[#This Row],[ACTIVACIÓN PROG.]],TablaEMPLEADOS[[#This Row],[ANTIGÜEDAD A FECHA FUTURO]]),0),Tabla2[],3,0))),"") ->  | L27: =IFERROR(VLOOKUP(TablaEMPLEADOS[[#This Row],[NOMBRE]],VERIFICACION!$D$4:$G$4,4,0),"NO") -> NO | M27: Día Nacional del Trabajo | N27: 2020-05-01 | P27: 22 | Q27: 7 | R27: =R26+Tabla2[[#This Row],[dias]] -> 77
A28: 22 | E28: =IF(TablaEMPLEADOS[[#This Row],[ANTIGÜEDAD A FECHA FUTURO]]="NO", IFERROR(IF(TablaEMPLEADOS[[#This Row],[FECHA CONTRATO]]=0,"",IF(DATEDIF(TablaEMPLEADOS[[#This Row],[FECHA CONTRATO]],TODAY(),"y")=0,"", DATEDIF(TablaEMPLEADOS[[#This Row],[FECHA CONTRATO]],TODAY(),"y") & " año(s) ") & IF(DATEDIF(TablaEMPLEADOS[[#This Row],[FECHA CONTRATO]],TODAY(),"ym")=0,"",DATEDIF(TablaEMPLEADOS[[#This Row],[FECHA CONTRATO]],TODAY(),"ym") & " mes(es) ") & IF(DATEDIF(TablaEMPLEADOS[[#This Row],[FECHA CONTRATO]],TODAY(),"md")=0,"",DATEDIF(TablaEMPLEADOS[[#This Row],[FECHA CONTRATO]],TODAY(),"md") & " día(s)")),""), IFERROR(IF(TablaEMPLEADOS[[#This Row],[FECHA CONTRATO]]=0,"",IF(DATEDIF(TablaEMPLEADOS[[#This Row],[FECHA CONTRATO]],TablaEMPLEADOS[[#This Row],[ANTIGÜEDAD A FECHA FUTURO]],"y")=0,"", DATEDIF(TablaEMPLEADOS[[#This Row],[FECHA CONTRATO]],TablaEMPLEADOS[[#This Row],[ANTIGÜEDAD A FECHA FUTURO]],"y") & " año(s) ") & IF(DATEDIF(TablaEMPLEADOS[[#This Row],[FECHA CONTRATO]],TablaEMPLEADOS[[#This Row],[ANTIGÜEDAD A FECHA FUTURO]],"ym")=0,"",DATEDIF(TablaEMPLEADOS[[#This Row],[FECHA CONTRATO]],TablaEMPLEADOS[[#This Row],[ANTIGÜEDAD A FECHA FUTURO]],"ym") & " mes(es) ") & IF(DATEDIF(TablaEMPLEADOS[[#This Row],[FECHA CONTRATO]],TablaEMPLEADOS[[#This Row],[ANTIGÜEDAD A FECHA FUTURO]],"md")=0,"",DATEDIF(TablaEMPLEADOS[[#This Row],[FECHA CONTRATO]],TablaEMPLEADOS[[#This Row],[ANTIGÜEDAD A FECHA FUTURO]],"md") & " día(s)")),"")) ->  | G28: =IF(TablaEMPLEADOS[[#This Row],[ANTIGÜEDAD A FECHA FUTURO]]="NO",ROUND(((TODAY()-TablaEMPLEADOS[[#This Row],[FECHA CONTRATO]]+1)/365)*TablaEMPLEADOS[[#This Row],[VAC./ AÑO]]+TablaEMPLEADOS[[#This Row],[TOTA VAC. PROG.]],0),ROUND(((TablaEMPLEADOS[[#This Row],[ANTIGÜEDAD A FECHA FUTURO]]-TablaEMPLEADOS[[#This Row],[FECHA CONTRATO]]+1)/365)*TablaEMPLEADOS[[#This Row],[VAC./ AÑO]]+TablaEMPLEADOS[[#This Row],[TOTA VAC. PROG.]],0)) ->  | J28: =IFERROR(IF(OR(TablaEMPLEADOS[[#This Row],[VAC./ AÑO]]=20,TablaEMPLEADOS[[#This Row],[VAC. PROG.]]="NO"),0,IF(TablaEMPLEADOS[[#This Row],[ANTIGÜEDAD A FECHA FUTURO]]="NO",VLOOKUP(ROUNDDOWN(YEARFRAC(TablaEMPLEADOS[[#This Row],[ACTIVACIÓN PROG.]],TODAY()),0),Tabla2[],2,0),VLOOKUP(ROUNDDOWN(YEARFRAC(TablaEMPLEADOS[[#This Row],[ACTIVACIÓN PROG.]],TablaEMPLEADOS[[#This Row],[ANTIGÜEDAD A FECHA FUTURO]]),0),Tabla2[],3,0))),"") ->  | L28: =IFERROR(VLOOKUP(TablaEMPLEADOS[[#This Row],[NOMBRE]],VERIFICACION!$D$4:$G$4,4,0),"NO") -> NO | M28: Día de las Glorias Navales | N28: 2020-05-21 | P28: 23 | Q28: 7 | R28: =R27+Tabla2[[#This Row],[dias]] -> 84
A29: 23 | E29: =IF(TablaEMPLEADOS[[#This Row],[ANTIGÜEDAD A FECHA FUTURO]]="NO", IFERROR(IF(TablaEMPLEADOS[[#This Row],[FECHA CONTRATO]]=0,"",IF(DATEDIF(TablaEMPLEADOS[[#This Row],[FECHA CONTRATO]],TODAY(),"y")=0,"", DATEDIF(TablaEMPLEADOS[[#This Row],[FECHA CONTRATO]],TODAY(),"y") & " año(s) ") & IF(DATEDIF(TablaEMPLEADOS[[#This Row],[FECHA CONTRATO]],TODAY(),"ym")=0,"",DATEDIF(TablaEMPLEADOS[[#This Row],[FECHA CONTRATO]],TODAY(),"ym") & " mes(es) ") & IF(DATEDIF(TablaEMPLEADOS[[#This Row],[FECHA CONTRATO]],TODAY(),"md")=0,"",DATEDIF(TablaEMPLEADOS[[#This Row],[FECHA CONTRATO]],TODAY(),"md") & " día(s)")),""), IFERROR(IF(TablaEMPLEADOS[[#This Row],[FECHA CONTRATO]]=0,"",IF(DATEDIF(TablaEMPLEADOS[[#This Row],[FECHA CONTRATO]],TablaEMPLEADOS[[#This Row],[ANTIGÜEDAD A FECHA FUTURO]],"y")=0,"", DATEDIF(TablaEMPLEADOS[[#This Row],[FECHA CONTRATO]],TablaEMPLEADOS[[#This Row],[ANTIGÜEDAD A FECHA FUTURO]],"y") & " año(s) ") & IF(DATEDIF(TablaEMPLEADOS[[#This Row],[FECHA CONTRATO]],TablaEMPLEADOS[[#This Row],[ANTIGÜEDAD A FECHA FUTURO]],"ym")=0,"",DATEDIF(TablaEMPLEADOS[[#This Row],[FECHA CONTRATO]],TablaEMPLEADOS[[#This Row],[ANTIGÜEDAD A FECHA FUTURO]],"ym") & " mes(es) ") & IF(DATEDIF(TablaEMPLEADOS[[#This Row],[FECHA CONTRATO]],TablaEMPLEADOS[[#This Row],[ANTIGÜEDAD A FECHA FUTURO]],"md")=0,"",DATEDIF(TablaEMPLEADOS[[#This Row],[FECHA CONTRATO]],TablaEMPLEADOS[[#This Row],[ANTIGÜEDAD A FECHA FUTURO]],"md") & " día(s)")),"")) ->  | G29: =IF(TablaEMPLEADOS[[#This Row],[ANTIGÜEDAD A FECHA FUTURO]]="NO",ROUND(((TODAY()-TablaEMPLEADOS[[#This Row],[FECHA CONTRATO]]+1)/365)*TablaEMPLEADOS[[#This Row],[VAC./ AÑO]]+TablaEMPLEADOS[[#This Row],[TOTA VAC. PROG.]],0),ROUND(((TablaEMPLEADOS[[#This Row],[ANTIGÜEDAD A FECHA FUTURO]]-TablaEMPLEADOS[[#This Row],[FECHA CONTRATO]]+1)/365)*TablaEMPLEADOS[[#This Row],[VAC./ AÑO]]+TablaEMPLEADOS[[#This Row],[TOTA VAC. PROG.]],0)) ->  | J29: =IFERROR(IF(OR(TablaEMPLEADOS[[#This Row],[VAC./ AÑO]]=20,TablaEMPLEADOS[[#This Row],[VAC. PROG.]]="NO"),0,IF(TablaEMPLEADOS[[#This Row],[ANTIGÜEDAD A FECHA FUTURO]]="NO",VLOOKUP(ROUNDDOWN(YEARFRAC(TablaEMPLEADOS[[#This Row],[ACTIVACIÓN PROG.]],TODAY()),0),Tabla2[],2,0),VLOOKUP(ROUNDDOWN(YEARFRAC(TablaEMPLEADOS[[#This Row],[ACTIVACIÓN PROG.]],TablaEMPLEADOS[[#This Row],[ANTIGÜEDAD A FECHA FUTURO]]),0),Tabla2[],3,0))),"") ->  | L29: =IFERROR(VLOOKUP(TablaEMPLEADOS[[#This Row],[NOMBRE]],VERIFICACION!$D$4:$G$4,4,0),"NO") -> NO | M29: San Pedro y San Pablo | N29: 2020-06-29 | P29: 24 | Q29: 8 | R29: =R28+Tabla2[[#This Row],[dias]] -> 92
A30: 24 | E30: =IF(TablaEMPLEADOS[[#This Row],[ANTIGÜEDAD A FECHA FUTURO]]="NO", IFERROR(IF(TablaEMPLEADOS[[#This Row],[FECHA CONTRATO]]=0,"",IF(DATEDIF(TablaEMPLEADOS[[#This Row],[FECHA CONTRATO]],TODAY(),"y")=0,"", DATEDIF(TablaEMPLEADOS[[#This Row],[FECHA CONTRATO]],TODAY(),"y") & " año(s) ") & IF(DATEDIF(TablaEMPLEADOS[[#This Row],[FECHA CONTRATO]],TODAY(),"ym")=0,"",DATEDIF(TablaEMPLEADOS[[#This Row],[FECHA CONTRATO]],TODAY(),"ym") & " mes(es) ") & IF(DATEDIF(TablaEMPLEADOS[[#This Row],[FECHA CONTRATO]],TODAY(),"md")=0,"",DATEDIF(TablaEMPLEADOS[[#This Row],[FECHA CONTRATO]],TODAY(),"md") & " día(s)")),""), IFERROR(IF(TablaEMPLEADOS[[#This Row],[FECHA CONTRATO]]=0,"",IF(DATEDIF(TablaEMPLEADOS[[#This Row],[FECHA CONTRATO]],TablaEMPLEADOS[[#This Row],[ANTIGÜEDAD A FECHA FUTURO]],"y")=0,"", DATEDIF(TablaEMPLEADOS[[#This Row],[FECHA CONTRATO]],TablaEMPLEADOS[[#This Row],[ANTIGÜEDAD A FECHA FUTURO]],"y") & " año(s) ") & IF(DATEDIF(TablaEMPLEADOS[[#This Row],[FECHA CONTRATO]],TablaEMPLEADOS[[#This Row],[ANTIGÜEDAD A FECHA FUTURO]],"ym")=0,"",DATEDIF(TablaEMPLEADOS[[#This Row],[FECHA CONTRATO]],TablaEMPLEADOS[[#This Row],[ANTIGÜEDAD A FECHA FUTURO]],"ym") & " mes(es) ") & IF(DATEDIF(TablaEMPLEADOS[[#This Row],[FECHA CONTRATO]],TablaEMPLEADOS[[#This Row],[ANTIGÜEDAD A FECHA FUTURO]],"md")=0,"",DATEDIF(TablaEMPLEADOS[[#This Row],[FECHA CONTRATO]],TablaEMPLEADOS[[#This Row],[ANTIGÜEDAD A FECHA FUTURO]],"md") & " día(s)")),"")) ->  | G30: =IF(TablaEMPLEADOS[[#This Row],[ANTIGÜEDAD A FECHA FUTURO]]="NO",ROUND(((TODAY()-TablaEMPLEADOS[[#This Row],[FECHA CONTRATO]]+1)/365)*TablaEMPLEADOS[[#This Row],[VAC./ AÑO]]+TablaEMPLEADOS[[#This Row],[TOTA VAC. PROG.]],0),ROUND(((TablaEMPLEADOS[[#This Row],[ANTIGÜEDAD A FECHA FUTURO]]-TablaEMPLEADOS[[#This Row],[FECHA CONTRATO]]+1)/365)*TablaEMPLEADOS[[#This Row],[VAC./ AÑO]]+TablaEMPLEADOS[[#This Row],[TOTA VAC. PROG.]],0)) ->  | J30: =IFERROR(IF(OR(TablaEMPLEADOS[[#This Row],[VAC./ AÑO]]=20,TablaEMPLEADOS[[#This Row],[VAC. PROG.]]="NO"),0,IF(TablaEMPLEADOS[[#This Row],[ANTIGÜEDAD A FECHA FUTURO]]="NO",VLOOKUP(ROUNDDOWN(YEARFRAC(TablaEMPLEADOS[[#This Row],[ACTIVACIÓN PROG.]],TODAY()),0),Tabla2[],2,0),VLOOKUP(ROUNDDOWN(YEARFRAC(TablaEMPLEADOS[[#This Row],[ACTIVACIÓN PROG.]],TablaEMPLEADOS[[#This Row],[ANTIGÜEDAD A FECHA FUTURO]]),0),Tabla2[],3,0))),"") ->  | L30: =IFERROR(VLOOKUP(TablaEMPLEADOS[[#This Row],[NOMBRE]],VERIFICACION!$D$4:$G$4,4,0),"NO") -> NO | M30: Día de la Virgen del Carmen | N30: 2020-07-16 | P30: 25 | Q30: 8 | R30: =R29+Tabla2[[#This Row],[dias]] -> 100
A31: 25 | E31: =IF(TablaEMPLEADOS[[#This Row],[ANTIGÜEDAD A FECHA FUTURO]]="NO", IFERROR(IF(TablaEMPLEADOS[[#This Row],[FECHA CONTRATO]]=0,"",IF(DATEDIF(TablaEMPLEADOS[[#This Row],[FECHA CONTRATO]],TODAY(),"y")=0,"", DATEDIF(TablaEMPLEADOS[[#This Row],[FECHA CONTRATO]],TODAY(),"y") & " año(s) ") & IF(DATEDIF(TablaEMPLEADOS[[#This Row],[FECHA CONTRATO]],TODAY(),"ym")=0,"",DATEDIF(TablaEMPLEADOS[[#This Row],[FECHA CONTRATO]],TODAY(),"ym") & " mes(es) ") & IF(DATEDIF(TablaEMPLEADOS[[#This Row],[FECHA CONTRATO]],TODAY(),"md")=0,"",DATEDIF(TablaEMPLEADOS[[#This Row],[FECHA CONTRATO]],TODAY(),"md") & " día(s)")),""), IFERROR(IF(TablaEMPLEADOS[[#This Row],[FECHA CONTRATO]]=0,"",IF(DATEDIF(TablaEMPLEADOS[[#This Row],[FECHA CONTRATO]],TablaEMPLEADOS[[#This Row],[ANTIGÜEDAD A FECHA FUTURO]],"y")=0,"", DATEDIF(TablaEMPLEADOS[[#This Row],[FECHA CONTRATO]],TablaEMPLEADOS[[#This Row],[ANTIGÜEDAD A FECHA FUTURO]],"y") & " año(s) ") & IF(DATEDIF(TablaEMPLEADOS[[#This Row],[FECHA CONTRATO]],TablaEMPLEADOS[[#This Row],[ANTIGÜEDAD A FECHA FUTURO]],"ym")=0,"",DATEDIF(TablaEMPLEADOS[[#This Row],[FECHA CONTRATO]],TablaEMPLEADOS[[#This Row],[ANTIGÜEDAD A FECHA FUTURO]],"ym") & " mes(es) ") & IF(DATEDIF(TablaEMPLEADOS[[#This Row],[FECHA CONTRATO]],TablaEMPLEADOS[[#This Row],[ANTIGÜEDAD A FECHA FUTURO]],"md")=0,"",DATEDIF(TablaEMPLEADOS[[#This Row],[FECHA CONTRATO]],TablaEMPLEADOS[[#This Row],[ANTIGÜEDAD A FECHA FUTURO]],"md") & " día(s)")),"")) ->  | G31: =IF(TablaEMPLEADOS[[#This Row],[ANTIGÜEDAD A FECHA FUTURO]]="NO",ROUND(((TODAY()-TablaEMPLEADOS[[#This Row],[FECHA CONTRATO]]+1)/365)*TablaEMPLEADOS[[#This Row],[VAC./ AÑO]]+TablaEMPLEADOS[[#This Row],[TOTA VAC. PROG.]],0),ROUND(((TablaEMPLEADOS[[#This Row],[ANTIGÜEDAD A FECHA FUTURO]]-TablaEMPLEADOS[[#This Row],[FECHA CONTRATO]]+1)/365)*TablaEMPLEADOS[[#This Row],[VAC./ AÑO]]+TablaEMPLEADOS[[#This Row],[TOTA VAC. PROG.]],0)) ->  | J31: =IFERROR(IF(OR(TablaEMPLEADOS[[#This Row],[VAC./ AÑO]]=20,TablaEMPLEADOS[[#This Row],[VAC. PROG.]]="NO"),0,IF(TablaEMPLEADOS[[#This Row],[ANTIGÜEDAD A FECHA FUTURO]]="NO",VLOOKUP(ROUNDDOWN(YEARFRAC(TablaEMPLEADOS[[#This Row],[ACTIVACIÓN PROG.]],TODAY()),0),Tabla2[],2,0),VLOOKUP(ROUNDDOWN(YEARFRAC(TablaEMPLEADOS[[#This Row],[ACTIVACIÓN PROG.]],TablaEMPLEADOS[[#This Row],[ANTIGÜEDAD A FECHA FUTURO]]),0),Tabla2[],3,0))),"") ->  | L31: =IFERROR(VLOOKUP(TablaEMPLEADOS[[#This Row],[NOMBRE]],VERIFICACION!$D$4:$G$4,4,0),"NO") -> NO | M31: Asunción de la Virgen | N31: 2020-08-15 | P31: 26 | Q31: 8 | R31: =R30+Tabla2[[#This Row],[dias]] -> 108
A32: 26 | E32: =IF(TablaEMPLEADOS[[#This Row],[ANTIGÜEDAD A FECHA FUTURO]]="NO", IFERROR(IF(TablaEMPLEADOS[[#This Row],[FECHA CONTRATO]]=0,"",IF(DATEDIF(TablaEMPLEADOS[[#This Row],[FECHA CONTRATO]],TODAY(),"y")=0,"", DATEDIF(TablaEMPLEADOS[[#This Row],[FECHA CONTRATO]],TODAY(),"y") & " año(s) ") & IF(DATEDIF(TablaEMPLEADOS[[#This Row],[FECHA CONTRATO]],TODAY(),"ym")=0,"",DATEDIF(TablaEMPLEADOS[[#This Row],[FECHA CONTRATO]],TODAY(),"ym") & " mes(es) ") & IF(DATEDIF(TablaEMPLEADOS[[#This Row],[FECHA CONTRATO]],TODAY(),"md")=0,"",DATEDIF(TablaEMPLEADOS[[#This Row],[FECHA CONTRATO]],TODAY(),"md") & " día(s)")),""), IFERROR(IF(TablaEMPLEADOS[[#This Row],[FECHA CONTRATO]]=0,"",IF(DATEDIF(TablaEMPLEADOS[[#This Row],[FECHA CONTRATO]],TablaEMPLEADOS[[#This Row],[ANTIGÜEDAD A FECHA FUTURO]],"y")=0,"", DATEDIF(TablaEMPLEADOS[[#This Row],[FECHA CONTRATO]],TablaEMPLEADOS[[#This Row],[ANTIGÜEDAD A FECHA FUTURO]],"y") & " año(s) ") & IF(DATEDIF(TablaEMPLEADOS[[#This Row],[FECHA CONTRATO]],TablaEMPLEADOS[[#This Row],[ANTIGÜEDAD A FECHA FUTURO]],"ym")=0,"",DATEDIF(TablaEMPLEADOS[[#This Row],[FECHA CONTRATO]],TablaEMPLEADOS[[#This Row],[ANTIGÜEDAD A FECHA FUTURO]],"ym") & " mes(es) ") & IF(DATEDIF(TablaEMPLEADOS[[#This Row],[FECHA CONTRATO]],TablaEMPLEADOS[[#This Row],[ANTIGÜEDAD A FECHA FUTURO]],"md")=0,"",DATEDIF(TablaEMPLEADOS[[#This Row],[FECHA CONTRATO]],TablaEMPLEADOS[[#This Row],[ANTIGÜEDAD A FECHA FUTURO]],"md") & " día(s)")),"")) ->  | G32: =IF(TablaEMPLEADOS[[#This Row],[ANTIGÜEDAD A FECHA FUTURO]]="NO",ROUND(((TODAY()-TablaEMPLEADOS[[#This Row],[FECHA CONTRATO]]+1)/365)*TablaEMPLEADOS[[#This Row],[VAC./ AÑO]]+TablaEMPLEADOS[[#This Row],[TOTA VAC. PROG.]],0),ROUND(((TablaEMPLEADOS[[#This Row],[ANTIGÜEDAD A FECHA FUTURO]]-TablaEMPLEADOS[[#This Row],[FECHA CONTRATO]]+1)/365)*TablaEMPLEADOS[[#This Row],[VAC./ AÑO]]+TablaEMPLEADOS[[#This Row],[TOTA VAC. PROG.]],0)) ->  | J32: =IFERROR(IF(OR(TablaEMPLEADOS[[#This Row],[VAC./ AÑO]]=20,TablaEMPLEADOS[[#This Row],[VAC. PROG.]]="NO"),0,IF(TablaEMPLEADOS[[#This Row],[ANTIGÜEDAD A FECHA FUTURO]]="NO",VLOOKUP(ROUNDDOWN(YEARFRAC(TablaEMPLEADOS[[#This Row],[ACTIVACIÓN PROG.]],TODAY()),0),Tabla2[],2,0),VLOOKUP(ROUNDDOWN(YEARFRAC(TablaEMPLEADOS[[#This Row],[ACTIVACIÓN PROG.]],TablaEMPLEADOS[[#This Row],[ANTIGÜEDAD A FECHA FUTURO]]),0),Tabla2[],3,0))),"") ->  | L32: =IFERROR(VLOOKUP(TablaEMPLEADOS[[#This Row],[NOMBRE]],VERIFICACION!$D$4:$G$4,4,0),"NO") -> NO | M32: Fiestas Patrias | N32: 2020-09-18 | P32: 27 | Q32: 9 | R32: =R31+Tabla2[[#This Row],[dias]] -> 117
A33: 27 | E33: =IF(TablaEMPLEADOS[[#This Row],[ANTIGÜEDAD A FECHA FUTURO]]="NO", IFERROR(IF(TablaEMPLEADOS[[#This Row],[FECHA CONTRATO]]=0,"",IF(DATEDIF(TablaEMPLEADOS[[#This Row],[FECHA CONTRATO]],TODAY(),"y")=0,"", DATEDIF(TablaEMPLEADOS[[#This Row],[FECHA CONTRATO]],TODAY(),"y") & " año(s) ") & IF(DATEDIF(TablaEMPLEADOS[[#This Row],[FECHA CONTRATO]],TODAY(),"ym")=0,"",DATEDIF(TablaEMPLEADOS[[#This Row],[FECHA CONTRATO]],TODAY(),"ym") & " mes(es) ") & IF(DATEDIF(TablaEMPLEADOS[[#This Row],[FECHA CONTRATO]],TODAY(),"md")=0,"",DATEDIF(TablaEMPLEADOS[[#This Row],[FECHA CONTRATO]],TODAY(),"md") & " día(s)")),""), IFERROR(IF(TablaEMPLEADOS[[#This Row],[FECHA CONTRATO]]=0,"",IF(DATEDIF(TablaEMPLEADOS[[#This Row],[FECHA CONTRATO]],TablaEMPLEADOS[[#This Row],[ANTIGÜEDAD A FECHA FUTURO]],"y")=0,"", DATEDIF(TablaEMPLEADOS[[#This Row],[FECHA CONTRATO]],TablaEMPLEADOS[[#This Row],[ANTIGÜEDAD A FECHA FUTURO]],"y") & " año(s) ") & IF(DATEDIF(TablaEMPLEADOS[[#This Row],[FECHA CONTRATO]],TablaEMPLEADOS[[#This Row],[ANTIGÜEDAD A FECHA FUTURO]],"ym")=0,"",DATEDIF(TablaEMPLEADOS[[#This Row],[FECHA CONTRATO]],TablaEMPLEADOS[[#This Row],[ANTIGÜEDAD A FECHA FUTURO]],"ym") & " mes(es) ") & IF(DATEDIF(TablaEMPLEADOS[[#This Row],[FECHA CONTRATO]],TablaEMPLEADOS[[#This Row],[ANTIGÜEDAD A FECHA FUTURO]],"md")=0,"",DATEDIF(TablaEMPLEADOS[[#This Row],[FECHA CONTRATO]],TablaEMPLEADOS[[#This Row],[ANTIGÜEDAD A FECHA FUTURO]],"md") & " día(s)")),"")) ->  | G33: =IF(TablaEMPLEADOS[[#This Row],[ANTIGÜEDAD A FECHA FUTURO]]="NO",ROUND(((TODAY()-TablaEMPLEADOS[[#This Row],[FECHA CONTRATO]]+1)/365)*TablaEMPLEADOS[[#This Row],[VAC./ AÑO]]+TablaEMPLEADOS[[#This Row],[TOTA VAC. PROG.]],0),ROUND(((TablaEMPLEADOS[[#This Row],[ANTIGÜEDAD A FECHA FUTURO]]-TablaEMPLEADOS[[#This Row],[FECHA CONTRATO]]+1)/365)*TablaEMPLEADOS[[#This Row],[VAC./ AÑO]]+TablaEMPLEADOS[[#This Row],[TOTA VAC. PROG.]],0)) ->  | J33: =IFERROR(IF(OR(TablaEMPLEADOS[[#This Row],[VAC./ AÑO]]=20,TablaEMPLEADOS[[#This Row],[VAC. PROG.]]="NO"),0,IF(TablaEMPLEADOS[[#This Row],[ANTIGÜEDAD A FECHA FUTURO]]="NO",VLOOKUP(ROUNDDOWN(YEARFRAC(TablaEMPLEADOS[[#This Row],[ACTIVACIÓN PROG.]],TODAY()),0),Tabla2[],2,0),VLOOKUP(ROUNDDOWN(YEARFRAC(TablaEMPLEADOS[[#This Row],[ACTIVACIÓN PROG.]],TablaEMPLEADOS[[#This Row],[ANTIGÜEDAD A FECHA FUTURO]]),0),Tabla2[],3,0))),"") ->  | L33: =IFERROR(VLOOKUP(TablaEMPLEADOS[[#This Row],[NOMBRE]],VERIFICACION!$D$4:$G$4,4,0),"NO") -> NO | M33: Independencia Nacional | N33: 2020-09-19 | P33: 28 | Q33: 9 | R33: =R32+Tabla2[[#This Row],[dias]] -> 126
A34: 28 | E34: =IF(TablaEMPLEADOS[[#This Row],[ANTIGÜEDAD A FECHA FUTURO]]="NO", IFERROR(IF(TablaEMPLEADOS[[#This Row],[FECHA CONTRATO]]=0,"",IF(DATEDIF(TablaEMPLEADOS[[#This Row],[FECHA CONTRATO]],TODAY(),"y")=0,"", DATEDIF(TablaEMPLEADOS[[#This Row],[FECHA CONTRATO]],TODAY(),"y") & " año(s) ") & IF(DATEDIF(TablaEMPLEADOS[[#This Row],[FECHA CONTRATO]],TODAY(),"ym")=0,"",DATEDIF(TablaEMPLEADOS[[#This Row],[FECHA CONTRATO]],TODAY(),"ym") & " mes(es) ") & IF(DATEDIF(TablaEMPLEADOS[[#This Row],[FECHA CONTRATO]],TODAY(),"md")=0,"",DATEDIF(TablaEMPLEADOS[[#This Row],[FECHA CONTRATO]],TODAY(),"md") & " día(s)")),""), IFERROR(IF(TablaEMPLEADOS[[#This Row],[FECHA CONTRATO]]=0,"",IF(DATEDIF(TablaEMPLEADOS[[#This Row],[FECHA CONTRATO]],TablaEMPLEADOS[[#This Row],[ANTIGÜEDAD A FECHA FUTURO]],"y")=0,"", DATEDIF(TablaEMPLEADOS[[#This Row],[FECHA CONTRATO]],TablaEMPLEADOS[[#This Row],[ANTIGÜEDAD A FECHA FUTURO]],"y") & " año(s) ") & IF(DATEDIF(TablaEMPLEADOS[[#This Row],[FECHA CONTRATO]],TablaEMPLEADOS[[#This Row],[ANTIGÜEDAD A FECHA FUTURO]],"ym")=0,"",DATEDIF(TablaEMPLEADOS[[#This Row],[FECHA CONTRATO]],TablaEMPLEADOS[[#This Row],[ANTIGÜEDAD A FECHA FUTURO]],"ym") & " mes(es) ") & IF(DATEDIF(TablaEMPLEADOS[[#This Row],[FECHA CONTRATO]],TablaEMPLEADOS[[#This Row],[ANTIGÜEDAD A FECHA FUTURO]],"md")=0,"",DATEDIF(TablaEMPLEADOS[[#This Row],[FECHA CONTRATO]],TablaEMPLEADOS[[#This Row],[ANTIGÜEDAD A FECHA FUTURO]],"md") & " día(s)")),"")) ->  | G34: =IF(TablaEMPLEADOS[[#This Row],[ANTIGÜEDAD A FECHA FUTURO]]="NO",ROUND(((TODAY()-TablaEMPLEADOS[[#This Row],[FECHA CONTRATO]]+1)/365)*TablaEMPLEADOS[[#This Row],[VAC./ AÑO]]+TablaEMPLEADOS[[#This Row],[TOTA VAC. PROG.]],0),ROUND(((TablaEMPLEADOS[[#This Row],[ANTIGÜEDAD A FECHA FUTURO]]-TablaEMPLEADOS[[#This Row],[FECHA CONTRATO]]+1)/365)*TablaEMPLEADOS[[#This Row],[VAC./ AÑO]]+TablaEMPLEADOS[[#This Row],[TOTA VAC. PROG.]],0)) ->  | J34: =IFERROR(IF(OR(TablaEMPLEADOS[[#This Row],[VAC./ AÑO]]=20,TablaEMPLEADOS[[#This Row],[VAC. PROG.]]="NO"),0,IF(TablaEMPLEADOS[[#This Row],[ANTIGÜEDAD A FECHA FUTURO]]="NO",VLOOKUP(ROUNDDOWN(YEARFRAC(TablaEMPLEADOS[[#This Row],[ACTIVACIÓN PROG.]],TODAY()),0),Tabla2[],2,0),VLOOKUP(ROUNDDOWN(YEARFRAC(TablaEMPLEADOS[[#This Row],[ACTIVACIÓN PROG.]],TablaEMPLEADOS[[#This Row],[ANTIGÜEDAD A FECHA FUTURO]]),0),Tabla2[],3,0))),"") ->  | L34: =IFERROR(VLOOKUP(TablaEMPLEADOS[[#This Row],[NOMBRE]],VERIFICACION!$D$4:$G$4,4,0),"NO") -> NO | M34: Día de las Glorias del Ejército | N34: 2020-09-20 | P34: 29 | Q34: 9 | R34: =R33+Tabla2[[#This Row],[dias]] -> 135
A35: 29 | E35: =IF(TablaEMPLEADOS[[#This Row],[ANTIGÜEDAD A FECHA FUTURO]]="NO", IFERROR(IF(TablaEMPLEADOS[[#This Row],[FECHA CONTRATO]]=0,"",IF(DATEDIF(TablaEMPLEADOS[[#This Row],[FECHA CONTRATO]],TODAY(),"y")=0,"", DATEDIF(TablaEMPLEADOS[[#This Row],[FECHA CONTRATO]],TODAY(),"y") & " año(s) ") & IF(DATEDIF(TablaEMPLEADOS[[#This Row],[FECHA CONTRATO]],TODAY(),"ym")=0,"",DATEDIF(TablaEMPLEADOS[[#This Row],[FECHA CONTRATO]],TODAY(),"ym") & " mes(es) ") & IF(DATEDIF(TablaEMPLEADOS[[#This Row],[FECHA CONTRATO]],TODAY(),"md")=0,"",DATEDIF(TablaEMPLEADOS[[#This Row],[FECHA CONTRATO]],TODAY(),"md") & " día(s)")),""), IFERROR(IF(TablaEMPLEADOS[[#This Row],[FECHA CONTRATO]]=0,"",IF(DATEDIF(TablaEMPLEADOS[[#This Row],[FECHA CONTRATO]],TablaEMPLEADOS[[#This Row],[ANTIGÜEDAD A FECHA FUTURO]],"y")=0,"", DATEDIF(TablaEMPLEADOS[[#This Row],[FECHA CONTRATO]],TablaEMPLEADOS[[#This Row],[ANTIGÜEDAD A FECHA FUTURO]],"y") & " año(s) ") & IF(DATEDIF(TablaEMPLEADOS[[#This Row],[FECHA CONTRATO]],TablaEMPLEADOS[[#This Row],[ANTIGÜEDAD A FECHA FUTURO]],"ym")=0,"",DATEDIF(TablaEMPLEADOS[[#This Row],[FECHA CONTRATO]],TablaEMPLEADOS[[#This Row],[ANTIGÜEDAD A FECHA FUTURO]],"ym") & " mes(es) ") & IF(DATEDIF(TablaEMPLEADOS[[#This Row],[FECHA CONTRATO]],TablaEMPLEADOS[[#This Row],[ANTIGÜEDAD A FECHA FUTURO]],"md")=0,"",DATEDIF(TablaEMPLEADOS[[#This Row],[FECHA CONTRATO]],TablaEMPLEADOS[[#This Row],[ANTIGÜEDAD A FECHA FUTURO]],"md") & " día(s)")),"")) ->  | G35: =IF(TablaEMPLEADOS[[#This Row],[ANTIGÜEDAD A FECHA FUTURO]]="NO",ROUND(((TODAY()-TablaEMPLEADOS[[#This Row],[FECHA CONTRATO]]+1)/365)*TablaEMPLEADOS[[#This Row],[VAC./ AÑO]]+TablaEMPLEADOS[[#This Row],[TOTA VAC. PROG.]],0),ROUND(((TablaEMPLEADOS[[#This Row],[ANTIGÜEDAD A FECHA FUTURO]]-TablaEMPLEADOS[[#This Row],[FECHA CONTRATO]]+1)/365)*TablaEMPLEADOS[[#This Row],[VAC./ AÑO]]+TablaEMPLEADOS[[#This Row],[TOTA VAC. PROG.]],0)) ->  | J35: =IFERROR(IF(OR(TablaEMPLEADOS[[#This Row],[VAC./ AÑO]]=20,TablaEMPLEADOS[[#This Row],[VAC. PROG.]]="NO"),0,IF(TablaEMPLEADOS[[#This Row],[ANTIGÜEDAD A FECHA FUTURO]]="NO",VLOOKUP(ROUNDDOWN(YEARFRAC(TablaEMPLEADOS[[#This Row],[ACTIVACIÓN PROG.]],TODAY()),0),Tabla2[],2,0),VLOOKUP(ROUNDDOWN(YEARFRAC(TablaEMPLEADOS[[#This Row],[ACTIVACIÓN PROG.]],TablaEMPLEADOS[[#This Row],[ANTIGÜEDAD A FECHA FUTURO]]),0),Tabla2[],3,0))),"") ->  | L35: =IFERROR(VLOOKUP(TablaEMPLEADOS[[#This Row],[NOMBRE]],VERIFICACION!$D$4:$G$4,4,0),"NO") -> NO | M35: Encuentro de Dos Mundos | N35: 2020-10-12 | P35: 30 | Q35: 10 | R35: =R34+Tabla2[[#This Row],[dias]] -> 145
A36: 30 | E36: =IF(TablaEMPLEADOS[[#This Row],[ANTIGÜEDAD A FECHA FUTURO]]="NO", IFERROR(IF(TablaEMPLEADOS[[#This Row],[FECHA CONTRATO]]=0,"",IF(DATEDIF(TablaEMPLEADOS[[#This Row],[FECHA CONTRATO]],TODAY(),"y")=0,"", DATEDIF(TablaEMPLEADOS[[#This Row],[FECHA CONTRATO]],TODAY(),"y") & " año(s) ") & IF(DATEDIF(TablaEMPLEADOS[[#This Row],[FECHA CONTRATO]],TODAY(),"ym")=0,"",DATEDIF(TablaEMPLEADOS[[#This Row],[FECHA CONTRATO]],TODAY(),"ym") & " mes(es) ") & IF(DATEDIF(TablaEMPLEADOS[[#This Row],[FECHA CONTRATO]],TODAY(),"md")=0,"",DATEDIF(TablaEMPLEADOS[[#This Row],[FECHA CONTRATO]],TODAY(),"md") & " día(s)")),""), IFERROR(IF(TablaEMPLEADOS[[#This Row],[FECHA CONTRATO]]=0,"",IF(DATEDIF(TablaEMPLEADOS[[#This Row],[FECHA CONTRATO]],TablaEMPLEADOS[[#This Row],[ANTIGÜEDAD A FECHA FUTURO]],"y")=0,"", DATEDIF(TablaEMPLEADOS[[#This Row],[FECHA CONTRATO]],TablaEMPLEADOS[[#This Row],[ANTIGÜEDAD A FECHA FUTURO]],"y") & " año(s) ") & IF(DATEDIF(TablaEMPLEADOS[[#This Row],[FECHA CONTRATO]],TablaEMPLEADOS[[#This Row],[ANTIGÜEDAD A FECHA FUTURO]],"ym")=0,"",DATEDIF(TablaEMPLEADOS[[#This Row],[FECHA CONTRATO]],TablaEMPLEADOS[[#This Row],[ANTIGÜEDAD A FECHA FUTURO]],"ym") & " mes(es) ") & IF(DATEDIF(TablaEMPLEADOS[[#This Row],[FECHA CONTRATO]],TablaEMPLEADOS[[#This Row],[ANTIGÜEDAD A FECHA FUTURO]],"md")=0,"",DATEDIF(TablaEMPLEADOS[[#This Row],[FECHA CONTRATO]],TablaEMPLEADOS[[#This Row],[ANTIGÜEDAD A FECHA FUTURO]],"md") & " día(s)")),"")) ->  | G36: =IF(TablaEMPLEADOS[[#This Row],[ANTIGÜEDAD A FECHA FUTURO]]="NO",ROUND(((TODAY()-TablaEMPLEADOS[[#This Row],[FECHA CONTRATO]]+1)/365)*TablaEMPLEADOS[[#This Row],[VAC./ AÑO]]+TablaEMPLEADOS[[#This Row],[TOTA VAC. PROG.]],0),ROUND(((TablaEMPLEADOS[[#This Row],[ANTIGÜEDAD A FECHA FUTURO]]-TablaEMPLEADOS[[#This Row],[FECHA CONTRATO]]+1)/365)*TablaEMPLEADOS[[#This Row],[VAC./ AÑO]]+TablaEMPLEADOS[[#This Row],[TOTA VAC. PROG.]],0)) ->  | J36: =IFERROR(IF(OR(TablaEMPLEADOS[[#This Row],[VAC./ AÑO]]=20,TablaEMPLEADOS[[#This Row],[VAC. PROG.]]="NO"),0,IF(TablaEMPLEADOS[[#This Row],[ANTIGÜEDAD A FECHA FUTURO]]="NO",VLOOKUP(ROUNDDOWN(YEARFRAC(TablaEMPLEADOS[[#This Row],[ACTIVACIÓN PROG.]],TODAY()),0),Tabla2[],2,0),VLOOKUP(ROUNDDOWN(YEARFRAC(TablaEMPLEADOS[[#This Row],[ACTIVACIÓN PROG.]],TablaEMPLEADOS[[#This Row],[ANTIGÜEDAD A FECHA FUTURO]]),0),Tabla2[],3,0))),"") ->  | L36: =IFERROR(VLOOKUP(TablaEMPLEADOS[[#This Row],[NOMBRE]],VERIFICACION!$D$4:$G$4,4,0),"NO") -> NO | M36: Día de Todos los Santos | N36: 2020-11-01 | P36: 31 | Q36: 10 | R36: =R35+Tabla2[[#This Row],[dias]] -> 155 | S36: SI
A37: 31 | E37: =IF(TablaEMPLEADOS[[#This Row],[ANTIGÜEDAD A FECHA FUTURO]]="NO", IFERROR(IF(TablaEMPLEADOS[[#This Row],[FECHA CONTRATO]]=0,"",IF(DATEDIF(TablaEMPLEADOS[[#This Row],[FECHA CONTRATO]],TODAY(),"y")=0,"", DATEDIF(TablaEMPLEADOS[[#This Row],[FECHA CONTRATO]],TODAY(),"y") & " año(s) ") & IF(DATEDIF(TablaEMPLEADOS[[#This Row],[FECHA CONTRATO]],TODAY(),"ym")=0,"",DATEDIF(TablaEMPLEADOS[[#This Row],[FECHA CONTRATO]],TODAY(),"ym") & " mes(es) ") & IF(DATEDIF(TablaEMPLEADOS[[#This Row],[FECHA CONTRATO]],TODAY(),"md")=0,"",DATEDIF(TablaEMPLEADOS[[#This Row],[FECHA CONTRATO]],TODAY(),"md") & " día(s)")),""), IFERROR(IF(TablaEMPLEADOS[[#This Row],[FECHA CONTRATO]]=0,"",IF(DATEDIF(TablaEMPLEADOS[[#This Row],[FECHA CONTRATO]],TablaEMPLEADOS[[#This Row],[ANTIGÜEDAD A FECHA FUTURO]],"y")=0,"", DATEDIF(TablaEMPLEADOS[[#This Row],[FECHA CONTRATO]],TablaEMPLEADOS[[#This Row],[ANTIGÜEDAD A FECHA FUTURO]],"y") & " año(s) ") & IF(DATEDIF(TablaEMPLEADOS[[#This Row],[FECHA CONTRATO]],TablaEMPLEADOS[[#This Row],[ANTIGÜEDAD A FECHA FUTURO]],"ym")=0,"",DATEDIF(TablaEMPLEADOS[[#This Row],[FECHA CONTRATO]],TablaEMPLEADOS[[#This Row],[ANTIGÜEDAD A FECHA FUTURO]],"ym") & " mes(es) ") & IF(DATEDIF(TablaEMPLEADOS[[#This Row],[FECHA CONTRATO]],TablaEMPLEADOS[[#This Row],[ANTIGÜEDAD A FECHA FUTURO]],"md")=0,"",DATEDIF(TablaEMPLEADOS[[#This Row],[FECHA CONTRATO]],TablaEMPLEADOS[[#This Row],[ANTIGÜEDAD A FECHA FUTURO]],"md") & " día(s)")),"")) ->  | G37: =IF(TablaEMPLEADOS[[#This Row],[ANTIGÜEDAD A FECHA FUTURO]]="NO",ROUND(((TODAY()-TablaEMPLEADOS[[#This Row],[FECHA CONTRATO]]+1)/365)*TablaEMPLEADOS[[#This Row],[VAC./ AÑO]]+TablaEMPLEADOS[[#This Row],[TOTA VAC. PROG.]],0),ROUND(((TablaEMPLEADOS[[#This Row],[ANTIGÜEDAD A FECHA FUTURO]]-TablaEMPLEADOS[[#This Row],[FECHA CONTRATO]]+1)/365)*TablaEMPLEADOS[[#This Row],[VAC./ AÑO]]+TablaEMPLEADOS[[#This Row],[TOTA VAC. PROG.]],0)) ->  | J37: =IFERROR(IF(OR(TablaEMPLEADOS[[#This Row],[VAC./ AÑO]]=20,TablaEMPLEADOS[[#This Row],[VAC. PROG.]]="NO"),0,IF(TablaEMPLEADOS[[#This Row],[ANTIGÜEDAD A FECHA FUTURO]]="NO",VLOOKUP(ROUNDDOWN(YEARFRAC(TablaEMPLEADOS[[#This Row],[ACTIVACIÓN PROG.]],TODAY()),0),Tabla2[],2,0),VLOOKUP(ROUNDDOWN(YEARFRAC(TablaEMPLEADOS[[#This Row],[ACTIVACIÓN PROG.]],TablaEMPLEADOS[[#This Row],[ANTIGÜEDAD A FECHA FUTURO]]),0),Tabla2[],3,0))),"") ->  | L37: =IFERROR(VLOOKUP(TablaEMPLEADOS[[#This Row],[NOMBRE]],VERIFICACION!$D$4:$G$4,4,0),"NO") -> NO | M37: Día de las Iglesias Evangélicas y Protestantes | N37: 2020-11-02 | P37: 32 | Q37: 10 | R37: =R36+Tabla2[[#This Row],[dias]] -> 165 | S37: NO
A38: 32 | E38: =IF(TablaEMPLEADOS[[#This Row],[ANTIGÜEDAD A FECHA FUTURO]]="NO", IFERROR(IF(TablaEMPLEADOS[[#This Row],[FECHA CONTRATO]]=0,"",IF(DATEDIF(TablaEMPLEADOS[[#This Row],[FECHA CONTRATO]],TODAY(),"y")=0,"", DATEDIF(TablaEMPLEADOS[[#This Row],[FECHA CONTRATO]],TODAY(),"y") & " año(s) ") & IF(DATEDIF(TablaEMPLEADOS[[#This Row],[FECHA CONTRATO]],TODAY(),"ym")=0,"",DATEDIF(TablaEMPLEADOS[[#This Row],[FECHA CONTRATO]],TODAY(),"ym") & " mes(es) ") & IF(DATEDIF(TablaEMPLEADOS[[#This Row],[FECHA CONTRATO]],TODAY(),"md")=0,"",DATEDIF(TablaEMPLEADOS[[#This Row],[FECHA CONTRATO]],TODAY(),"md") & " día(s)")),""), IFERROR(IF(TablaEMPLEADOS[[#This Row],[FECHA CONTRATO]]=0,"",IF(DATEDIF(TablaEMPLEADOS[[#This Row],[FECHA CONTRATO]],TablaEMPLEADOS[[#This Row],[ANTIGÜEDAD A FECHA FUTURO]],"y")=0,"", DATEDIF(TablaEMPLEADOS[[#This Row],[FECHA CONTRATO]],TablaEMPLEADOS[[#This Row],[ANTIGÜEDAD A FECHA FUTURO]],"y") & " año(s) ") & IF(DATEDIF(TablaEMPLEADOS[[#This Row],[FECHA CONTRATO]],TablaEMPLEADOS[[#This Row],[ANTIGÜEDAD A FECHA FUTURO]],"ym")=0,"",DATEDIF(TablaEMPLEADOS[[#This Row],[FECHA CONTRATO]],TablaEMPLEADOS[[#This Row],[ANTIGÜEDAD A FECHA FUTURO]],"ym") & " mes(es) ") & IF(DATEDIF(TablaEMPLEADOS[[#This Row],[FECHA CONTRATO]],TablaEMPLEADOS[[#This Row],[ANTIGÜEDAD A FECHA FUTURO]],"md")=0,"",DATEDIF(TablaEMPLEADOS[[#This Row],[FECHA CONTRATO]],TablaEMPLEADOS[[#This Row],[ANTIGÜEDAD A FECHA FUTURO]],"md") & " día(s)")),"")) ->  | G38: =IF(TablaEMPLEADOS[[#This Row],[ANTIGÜEDAD A FECHA FUTURO]]="NO",ROUND(((TODAY()-TablaEMPLEADOS[[#This Row],[FECHA CONTRATO]]+1)/365)*TablaEMPLEADOS[[#This Row],[VAC./ AÑO]]+TablaEMPLEADOS[[#This Row],[TOTA VAC. PROG.]],0),ROUND(((TablaEMPLEADOS[[#This Row],[ANTIGÜEDAD A FECHA FUTURO]]-TablaEMPLEADOS[[#This Row],[FECHA CONTRATO]]+1)/365)*TablaEMPLEADOS[[#This Row],[VAC./ AÑO]]+TablaEMPLEADOS[[#This Row],[TOTA VAC. PROG.]],0)) ->  | J38: =IFERROR(IF(OR(TablaEMPLEADOS[[#This Row],[VAC./ AÑO]]=20,TablaEMPLEADOS[[#This Row],[VAC. PROG.]]="NO"),0,IF(TablaEMPLEADOS[[#This Row],[ANTIGÜEDAD A FECHA FUTURO]]="NO",VLOOKUP(ROUNDDOWN(YEARFRAC(TablaEMPLEADOS[[#This Row],[ACTIVACIÓN PROG.]],TODAY()),0),Tabla2[],2,0),VLOOKUP(ROUNDDOWN(YEARFRAC(TablaEMPLEADOS[[#This Row],[ACTIVACIÓN PROG.]],TablaEMPLEADOS[[#This Row],[ANTIGÜEDAD A FECHA FUTURO]]),0),Tabla2[],3,0))),"") ->  | L38: =IFERROR(VLOOKUP(TablaEMPLEADOS[[#This Row],[NOMBRE]],VERIFICACION!$D$4:$G$4,4,0),"NO") -> NO | M38: Inmaculada Concepción | N38: 2020-12-08 | P38: 33 | Q38: 11 | R38: =R37+Tabla2[[#This Row],[dias]] -> 176
A39: 33 | E39: =IF(TablaEMPLEADOS[[#This Row],[ANTIGÜEDAD A FECHA FUTURO]]="NO", IFERROR(IF(TablaEMPLEADOS[[#This Row],[FECHA CONTRATO]]=0,"",IF(DATEDIF(TablaEMPLEADOS[[#This Row],[FECHA CONTRATO]],TODAY(),"y")=0,"", DATEDIF(TablaEMPLEADOS[[#This Row],[FECHA CONTRATO]],TODAY(),"y") & " año(s) ") & IF(DATEDIF(TablaEMPLEADOS[[#This Row],[FECHA CONTRATO]],TODAY(),"ym")=0,"",DATEDIF(TablaEMPLEADOS[[#This Row],[FECHA CONTRATO]],TODAY(),"ym") & " mes(es) ") & IF(DATEDIF(TablaEMPLEADOS[[#This Row],[FECHA CONTRATO]],TODAY(),"md")=0,"",DATEDIF(TablaEMPLEADOS[[#This Row],[FECHA CONTRATO]],TODAY(),"md") & " día(s)")),""), IFERROR(IF(TablaEMPLEADOS[[#This Row],[FECHA CONTRATO]]=0,"",IF(DATEDIF(TablaEMPLEADOS[[#This Row],[FECHA CONTRATO]],TablaEMPLEADOS[[#This Row],[ANTIGÜEDAD A FECHA FUTURO]],"y")=0,"", DATEDIF(TablaEMPLEADOS[[#This Row],[FECHA CONTRATO]],TablaEMPLEADOS[[#This Row],[ANTIGÜEDAD A FECHA FUTURO]],"y") & " año(s) ") & IF(DATEDIF(TablaEMPLEADOS[[#This Row],[FECHA CONTRATO]],TablaEMPLEADOS[[#This Row],[ANTIGÜEDAD A FECHA FUTURO]],"ym")=0,"",DATEDIF(TablaEMPLEADOS[[#This Row],[FECHA CONTRATO]],TablaEMPLEADOS[[#This Row],[ANTIGÜEDAD A FECHA FUTURO]],"ym") & " mes(es) ") & IF(DATEDIF(TablaEMPLEADOS[[#This Row],[FECHA CONTRATO]],TablaEMPLEADOS[[#This Row],[ANTIGÜEDAD A FECHA FUTURO]],"md")=0,"",DATEDIF(TablaEMPLEADOS[[#This Row],[FECHA CONTRATO]],TablaEMPLEADOS[[#This Row],[ANTIGÜEDAD A FECHA FUTURO]],"md") & " día(s)")),"")) ->  | G39: =IF(TablaEMPLEADOS[[#This Row],[ANTIGÜEDAD A FECHA FUTURO]]="NO",ROUND(((TODAY()-TablaEMPLEADOS[[#This Row],[FECHA CONTRATO]]+1)/365)*TablaEMPLEADOS[[#This Row],[VAC./ AÑO]]+TablaEMPLEADOS[[#This Row],[TOTA VAC. PROG.]],0),ROUND(((TablaEMPLEADOS[[#This Row],[ANTIGÜEDAD A FECHA FUTURO]]-TablaEMPLEADOS[[#This Row],[FECHA CONTRATO]]+1)/365)*TablaEMPLEADOS[[#This Row],[VAC./ AÑO]]+TablaEMPLEADOS[[#This Row],[TOTA VAC. PROG.]],0)) ->  | J39: =IFERROR(IF(OR(TablaEMPLEADOS[[#This Row],[VAC./ AÑO]]=20,TablaEMPLEADOS[[#This Row],[VAC. PROG.]]="NO"),0,IF(TablaEMPLEADOS[[#This Row],[ANTIGÜEDAD A FECHA FUTURO]]="NO",VLOOKUP(ROUNDDOWN(YEARFRAC(TablaEMPLEADOS[[#This Row],[ACTIVACIÓN PROG.]],TODAY()),0),Tabla2[],2,0),VLOOKUP(ROUNDDOWN(YEARFRAC(TablaEMPLEADOS[[#This Row],[ACTIVACIÓN PROG.]],TablaEMPLEADOS[[#This Row],[ANTIGÜEDAD A FECHA FUTURO]]),0),Tabla2[],3,0))),"") ->  | L39: =IFERROR(VLOOKUP(TablaEMPLEADOS[[#This Row],[NOMBRE]],VERIFICACION!$D$4:$G$4,4,0),"NO") -> NO | M39: Navidad | N39: 2020-12-25 | P39: 34 | Q39: 11 | R39: =R38+Tabla2[[#This Row],[dias]] -> 187
A40: 34 | E40: =IF(TablaEMPLEADOS[[#This Row],[ANTIGÜEDAD A FECHA FUTURO]]="NO", IFERROR(IF(TablaEMPLEADOS[[#This Row],[FECHA CONTRATO]]=0,"",IF(DATEDIF(TablaEMPLEADOS[[#This Row],[FECHA CONTRATO]],TODAY(),"y")=0,"", DATEDIF(TablaEMPLEADOS[[#This Row],[FECHA CONTRATO]],TODAY(),"y") & " año(s) ") & IF(DATEDIF(TablaEMPLEADOS[[#This Row],[FECHA CONTRATO]],TODAY(),"ym")=0,"",DATEDIF(TablaEMPLEADOS[[#This Row],[FECHA CONTRATO]],TODAY(),"ym") & " mes(es) ") & IF(DATEDIF(TablaEMPLEADOS[[#This Row],[FECHA CONTRATO]],TODAY(),"md")=0,"",DATEDIF(TablaEMPLEADOS[[#This Row],[FECHA CONTRATO]],TODAY(),"md") & " día(s)")),""), IFERROR(IF(TablaEMPLEADOS[[#This Row],[FECHA CONTRATO]]=0,"",IF(DATEDIF(TablaEMPLEADOS[[#This Row],[FECHA CONTRATO]],TablaEMPLEADOS[[#This Row],[ANTIGÜEDAD A FECHA FUTURO]],"y")=0,"", DATEDIF(TablaEMPLEADOS[[#This Row],[FECHA CONTRATO]],TablaEMPLEADOS[[#This Row],[ANTIGÜEDAD A FECHA FUTURO]],"y") & " año(s) ") & IF(DATEDIF(TablaEMPLEADOS[[#This Row],[FECHA CONTRATO]],TablaEMPLEADOS[[#This Row],[ANTIGÜEDAD A FECHA FUTURO]],"ym")=0,"",DATEDIF(TablaEMPLEADOS[[#This Row],[FECHA CONTRATO]],TablaEMPLEADOS[[#This Row],[ANTIGÜEDAD A FECHA FUTURO]],"ym") & " mes(es) ") & IF(DATEDIF(TablaEMPLEADOS[[#This Row],[FECHA CONTRATO]],TablaEMPLEADOS[[#This Row],[ANTIGÜEDAD A FECHA FUTURO]],"md")=0,"",DATEDIF(TablaEMPLEADOS[[#This Row],[FECHA CONTRATO]],TablaEMPLEADOS[[#This Row],[ANTIGÜEDAD A FECHA FUTURO]],"md") & " día(s)")),"")) ->  | G40: =IF(TablaEMPLEADOS[[#This Row],[ANTIGÜEDAD A FECHA FUTURO]]="NO",ROUND(((TODAY()-TablaEMPLEADOS[[#This Row],[FECHA CONTRATO]]+1)/365)*TablaEMPLEADOS[[#This Row],[VAC./ AÑO]]+TablaEMPLEADOS[[#This Row],[TOTA VAC. PROG.]],0),ROUND(((TablaEMPLEADOS[[#This Row],[ANTIGÜEDAD A FECHA FUTURO]]-TablaEMPLEADOS[[#This Row],[FECHA CONTRATO]]+1)/365)*TablaEMPLEADOS[[#This Row],[VAC./ AÑO]]+TablaEMPLEADOS[[#This Row],[TOTA VAC. PROG.]],0)) ->  | J40: =IFERROR(IF(OR(TablaEMPLEADOS[[#This Row],[VAC./ AÑO]]=20,TablaEMPLEADOS[[#This Row],[VAC. PROG.]]="NO"),0,IF(TablaEMPLEADOS[[#This Row],[ANTIGÜEDAD A FECHA FUTURO]]="NO",VLOOKUP(ROUNDDOWN(YEARFRAC(TablaEMPLEADOS[[#This Row],[ACTIVACIÓN PROG.]],TODAY()),0),Tabla2[],2,0),VLOOKUP(ROUNDDOWN(YEARFRAC(TablaEMPLEADOS[[#This Row],[ACTIVACIÓN PROG.]],TablaEMPLEADOS[[#This Row],[ANTIGÜEDAD A FECHA FUTURO]]),0),Tabla2[],3,0))),"") ->  | L40: =IFERROR(VLOOKUP(TablaEMPLEADOS[[#This Row],[NOMBRE]],VERIFICACION!$D$4:$G$4,4,0),"NO") -> NO | P40: 35 | Q40: 11 | R40: =R39+Tabla2[[#This Row],[dias]] -> 198
A41: 35 | E41: =IF(TablaEMPLEADOS[[#This Row],[ANTIGÜEDAD A FECHA FUTURO]]="NO", IFERROR(IF(TablaEMPLEADOS[[#This Row],[FECHA CONTRATO]]=0,"",IF(DATEDIF(TablaEMPLEADOS[[#This Row],[FECHA CONTRATO]],TODAY(),"y")=0,"", DATEDIF(TablaEMPLEADOS[[#This Row],[FECHA CONTRATO]],TODAY(),"y") & " año(s) ") & IF(DATEDIF(TablaEMPLEADOS[[#This Row],[FECHA CONTRATO]],TODAY(),"ym")=0,"",DATEDIF(TablaEMPLEADOS[[#This Row],[FECHA CONTRATO]],TODAY(),"ym") & " mes(es) ") & IF(DATEDIF(TablaEMPLEADOS[[#This Row],[FECHA CONTRATO]],TODAY(),"md")=0,"",DATEDIF(TablaEMPLEADOS[[#This Row],[FECHA CONTRATO]],TODAY(),"md") & " día(s)")),""), IFERROR(IF(TablaEMPLEADOS[[#This Row],[FECHA CONTRATO]]=0,"",IF(DATEDIF(TablaEMPLEADOS[[#This Row],[FECHA CONTRATO]],TablaEMPLEADOS[[#This Row],[ANTIGÜEDAD A FECHA FUTURO]],"y")=0,"", DATEDIF(TablaEMPLEADOS[[#This Row],[FECHA CONTRATO]],TablaEMPLEADOS[[#This Row],[ANTIGÜEDAD A FECHA FUTURO]],"y") & " año(s) ") & IF(DATEDIF(TablaEMPLEADOS[[#This Row],[FECHA CONTRATO]],TablaEMPLEADOS[[#This Row],[ANTIGÜEDAD A FECHA FUTURO]],"ym")=0,"",DATEDIF(TablaEMPLEADOS[[#This Row],[FECHA CONTRATO]],TablaEMPLEADOS[[#This Row],[ANTIGÜEDAD A FECHA FUTURO]],"ym") & " mes(es) ") & IF(DATEDIF(TablaEMPLEADOS[[#This Row],[FECHA CONTRATO]],TablaEMPLEADOS[[#This Row],[ANTIGÜEDAD A FECHA FUTURO]],"md")=0,"",DATEDIF(TablaEMPLEADOS[[#This Row],[FECHA CONTRATO]],TablaEMPLEADOS[[#This Row],[ANTIGÜEDAD A FECHA FUTURO]],"md") & " día(s)")),"")) ->  | G41: =IF(TablaEMPLEADOS[[#This Row],[ANTIGÜEDAD A FECHA FUTURO]]="NO",ROUND(((TODAY()-TablaEMPLEADOS[[#This Row],[FECHA CONTRATO]]+1)/365)*TablaEMPLEADOS[[#This Row],[VAC./ AÑO]]+TablaEMPLEADOS[[#This Row],[TOTA VAC. PROG.]],0),ROUND(((TablaEMPLEADOS[[#This Row],[ANTIGÜEDAD A FECHA FUTURO]]-TablaEMPLEADOS[[#This Row],[FECHA CONTRATO]]+1)/365)*TablaEMPLEADOS[[#This Row],[VAC./ AÑO]]+TablaEMPLEADOS[[#This Row],[TOTA VAC. PROG.]],0)) ->  | J41: =IFERROR(IF(OR(TablaEMPLEADOS[[#This Row],[VAC./ AÑO]]=20,TablaEMPLEADOS[[#This Row],[VAC. PROG.]]="NO"),0,IF(TablaEMPLEADOS[[#This Row],[ANTIGÜEDAD A FECHA FUTURO]]="NO",VLOOKUP(ROUNDDOWN(YEARFRAC(TablaEMPLEADOS[[#This Row],[ACTIVACIÓN PROG.]],TODAY()),0),Tabla2[],2,0),VLOOKUP(ROUNDDOWN(YEARFRAC(TablaEMPLEADOS[[#This Row],[ACTIVACIÓN PROG.]],TablaEMPLEADOS[[#This Row],[ANTIGÜEDAD A FECHA FUTURO]]),0),Tabla2[],3,0))),"") ->  | L41: =IFERROR(VLOOKUP(TablaEMPLEADOS[[#This Row],[NOMBRE]],VERIFICACION!$D$4:$G$4,4,0),"NO") -> NO | P41: 36 | Q41: 12 | R41: =R40+Tabla2[[#This Row],[dias]] -> 210
A42: 36 | E42: =IF(TablaEMPLEADOS[[#This Row],[ANTIGÜEDAD A FECHA FUTURO]]="NO", IFERROR(IF(TablaEMPLEADOS[[#This Row],[FECHA CONTRATO]]=0,"",IF(DATEDIF(TablaEMPLEADOS[[#This Row],[FECHA CONTRATO]],TODAY(),"y")=0,"", DATEDIF(TablaEMPLEADOS[[#This Row],[FECHA CONTRATO]],TODAY(),"y") & " año(s) ") & IF(DATEDIF(TablaEMPLEADOS[[#This Row],[FECHA CONTRATO]],TODAY(),"ym")=0,"",DATEDIF(TablaEMPLEADOS[[#This Row],[FECHA CONTRATO]],TODAY(),"ym") & " mes(es) ") & IF(DATEDIF(TablaEMPLEADOS[[#This Row],[FECHA CONTRATO]],TODAY(),"md")=0,"",DATEDIF(TablaEMPLEADOS[[#This Row],[FECHA CONTRATO]],TODAY(),"md") & " día(s)")),""), IFERROR(IF(TablaEMPLEADOS[[#This Row],[FECHA CONTRATO]]=0,"",IF(DATEDIF(TablaEMPLEADOS[[#This Row],[FECHA CONTRATO]],TablaEMPLEADOS[[#This Row],[ANTIGÜEDAD A FECHA FUTURO]],"y")=0,"", DATEDIF(TablaEMPLEADOS[[#This Row],[FECHA CONTRATO]],TablaEMPLEADOS[[#This Row],[ANTIGÜEDAD A FECHA FUTURO]],"y") & " año(s) ") & IF(DATEDIF(TablaEMPLEADOS[[#This Row],[FECHA CONTRATO]],TablaEMPLEADOS[[#This Row],[ANTIGÜEDAD A FECHA FUTURO]],"ym")=0,"",DATEDIF(TablaEMPLEADOS[[#This Row],[FECHA CONTRATO]],TablaEMPLEADOS[[#This Row],[ANTIGÜEDAD A FECHA FUTURO]],"ym") & " mes(es) ") & IF(DATEDIF(TablaEMPLEADOS[[#This Row],[FECHA CONTRATO]],TablaEMPLEADOS[[#This Row],[ANTIGÜEDAD A FECHA FUTURO]],"md")=0,"",DATEDIF(TablaEMPLEADOS[[#This Row],[FECHA CONTRATO]],TablaEMPLEADOS[[#This Row],[ANTIGÜEDAD A FECHA FUTURO]],"md") & " día(s)")),"")) ->  | G42: =IF(TablaEMPLEADOS[[#This Row],[ANTIGÜEDAD A FECHA FUTURO]]="NO",ROUND(((TODAY()-TablaEMPLEADOS[[#This Row],[FECHA CONTRATO]]+1)/365)*TablaEMPLEADOS[[#This Row],[VAC./ AÑO]]+TablaEMPLEADOS[[#This Row],[TOTA VAC. PROG.]],0),ROUND(((TablaEMPLEADOS[[#This Row],[ANTIGÜEDAD A FECHA FUTURO]]-TablaEMPLEADOS[[#This Row],[FECHA CONTRATO]]+1)/365)*TablaEMPLEADOS[[#This Row],[VAC./ AÑO]]+TablaEMPLEADOS[[#This Row],[TOTA VAC. PROG.]],0)) ->  | J42: =IFERROR(IF(OR(TablaEMPLEADOS[[#This Row],[VAC./ AÑO]]=20,TablaEMPLEADOS[[#This Row],[VAC. PROG.]]="NO"),0,IF(TablaEMPLEADOS[[#This Row],[ANTIGÜEDAD A FECHA FUTURO]]="NO",VLOOKUP(ROUNDDOWN(YEARFRAC(TablaEMPLEADOS[[#This Row],[ACTIVACIÓN PROG.]],TODAY()),0),Tabla2[],2,0),VLOOKUP(ROUNDDOWN(YEARFRAC(TablaEMPLEADOS[[#This Row],[ACTIVACIÓN PROG.]],TablaEMPLEADOS[[#This Row],[ANTIGÜEDAD A FECHA FUTURO]]),0),Tabla2[],3,0))),"") ->  | L42: =IFERROR(VLOOKUP(TablaEMPLEADOS[[#This Row],[NOMBRE]],VERIFICACION!$D$4:$G$4,4,0),"NO") -> NO | P42: 37 | Q42: 12 | R42: =R41+Tabla2[[#This Row],[dias]] -> 222
A43: 37 | E43: =IF(TablaEMPLEADOS[[#This Row],[ANTIGÜEDAD A FECHA FUTURO]]="NO", IFERROR(IF(TablaEMPLEADOS[[#This Row],[FECHA CONTRATO]]=0,"",IF(DATEDIF(TablaEMPLEADOS[[#This Row],[FECHA CONTRATO]],TODAY(),"y")=0,"", DATEDIF(TablaEMPLEADOS[[#This Row],[FECHA CONTRATO]],TODAY(),"y") & " año(s) ") & IF(DATEDIF(TablaEMPLEADOS[[#This Row],[FECHA CONTRATO]],TODAY(),"ym")=0,"",DATEDIF(TablaEMPLEADOS[[#This Row],[FECHA CONTRATO]],TODAY(),"ym") & " mes(es) ") & IF(DATEDIF(TablaEMPLEADOS[[#This Row],[FECHA CONTRATO]],TODAY(),"md")=0,"",DATEDIF(TablaEMPLEADOS[[#This Row],[FECHA CONTRATO]],TODAY(),"md") & " día(s)")),""), IFERROR(IF(TablaEMPLEADOS[[#This Row],[FECHA CONTRATO]]=0,"",IF(DATEDIF(TablaEMPLEADOS[[#This Row],[FECHA CONTRATO]],TablaEMPLEADOS[[#This Row],[ANTIGÜEDAD A FECHA FUTURO]],"y")=0,"", DATEDIF(TablaEMPLEADOS[[#This Row],[FECHA CONTRATO]],TablaEMPLEADOS[[#This Row],[ANTIGÜEDAD A FECHA FUTURO]],"y") & " año(s) ") & IF(DATEDIF(TablaEMPLEADOS[[#This Row],[FECHA CONTRATO]],TablaEMPLEADOS[[#This Row],[ANTIGÜEDAD A FECHA FUTURO]],"ym")=0,"",DATEDIF(TablaEMPLEADOS[[#This Row],[FECHA CONTRATO]],TablaEMPLEADOS[[#This Row],[ANTIGÜEDAD A FECHA FUTURO]],"ym") & " mes(es) ") & IF(DATEDIF(TablaEMPLEADOS[[#This Row],[FECHA CONTRATO]],TablaEMPLEADOS[[#This Row],[ANTIGÜEDAD A FECHA FUTURO]],"md")=0,"",DATEDIF(TablaEMPLEADOS[[#This Row],[FECHA CONTRATO]],TablaEMPLEADOS[[#This Row],[ANTIGÜEDAD A FECHA FUTURO]],"md") & " día(s)")),"")) ->  | G43: =IF(TablaEMPLEADOS[[#This Row],[ANTIGÜEDAD A FECHA FUTURO]]="NO",ROUND(((TODAY()-TablaEMPLEADOS[[#This Row],[FECHA CONTRATO]]+1)/365)*TablaEMPLEADOS[[#This Row],[VAC./ AÑO]]+TablaEMPLEADOS[[#This Row],[TOTA VAC. PROG.]],0),ROUND(((TablaEMPLEADOS[[#This Row],[ANTIGÜEDAD A FECHA FUTURO]]-TablaEMPLEADOS[[#This Row],[FECHA CONTRATO]]+1)/365)*TablaEMPLEADOS[[#This Row],[VAC./ AÑO]]+TablaEMPLEADOS[[#This Row],[TOTA VAC. PROG.]],0)) ->  | J43: =IFERROR(IF(OR(TablaEMPLEADOS[[#This Row],[VAC./ AÑO]]=20,TablaEMPLEADOS[[#This Row],[VAC. PROG.]]="NO"),0,IF(TablaEMPLEADOS[[#This Row],[ANTIGÜEDAD A FECHA FUTURO]]="NO",VLOOKUP(ROUNDDOWN(YEARFRAC(TablaEMPLEADOS[[#This Row],[ACTIVACIÓN PROG.]],TODAY()),0),Tabla2[],2,0),VLOOKUP(ROUNDDOWN(YEARFRAC(TablaEMPLEADOS[[#This Row],[ACTIVACIÓN PROG.]],TablaEMPLEADOS[[#This Row],[ANTIGÜEDAD A FECHA FUTURO]]),0),Tabla2[],3,0))),"") ->  | L43: =IFERROR(VLOOKUP(TablaEMPLEADOS[[#This Row],[NOMBRE]],VERIFICACION!$D$4:$G$4,4,0),"NO") -> NO | P43: 38 | Q43: 12 | R43: =R42+Tabla2[[#This Row],[dias]] -> 234
A44: 38 | E44: =IF(TablaEMPLEADOS[[#This Row],[ANTIGÜEDAD A FECHA FUTURO]]="NO", IFERROR(IF(TablaEMPLEADOS[[#This Row],[FECHA CONTRATO]]=0,"",IF(DATEDIF(TablaEMPLEADOS[[#This Row],[FECHA CONTRATO]],TODAY(),"y")=0,"", DATEDIF(TablaEMPLEADOS[[#This Row],[FECHA CONTRATO]],TODAY(),"y") & " año(s) ") & IF(DATEDIF(TablaEMPLEADOS[[#This Row],[FECHA CONTRATO]],TODAY(),"ym")=0,"",DATEDIF(TablaEMPLEADOS[[#This Row],[FECHA CONTRATO]],TODAY(),"ym") & " mes(es) ") & IF(DATEDIF(TablaEMPLEADOS[[#This Row],[FECHA CONTRATO]],TODAY(),"md")=0,"",DATEDIF(TablaEMPLEADOS[[#This Row],[FECHA CONTRATO]],TODAY(),"md") & " día(s)")),""), IFERROR(IF(TablaEMPLEADOS[[#This Row],[FECHA CONTRATO]]=0,"",IF(DATEDIF(TablaEMPLEADOS[[#This Row],[FECHA CONTRATO]],TablaEMPLEADOS[[#This Row],[ANTIGÜEDAD A FECHA FUTURO]],"y")=0,"", DATEDIF(TablaEMPLEADOS[[#This Row],[FECHA CONTRATO]],TablaEMPLEADOS[[#This Row],[ANTIGÜEDAD A FECHA FUTURO]],"y") & " año(s) ") & IF(DATEDIF(TablaEMPLEADOS[[#This Row],[FECHA CONTRATO]],TablaEMPLEADOS[[#This Row],[ANTIGÜEDAD A FECHA FUTURO]],"ym")=0,"",DATEDIF(TablaEMPLEADOS[[#This Row],[FECHA CONTRATO]],TablaEMPLEADOS[[#This Row],[ANTIGÜEDAD A FECHA FUTURO]],"ym") & " mes(es) ") & IF(DATEDIF(TablaEMPLEADOS[[#This Row],[FECHA CONTRATO]],TablaEMPLEADOS[[#This Row],[ANTIGÜEDAD A FECHA FUTURO]],"md")=0,"",DATEDIF(TablaEMPLEADOS[[#This Row],[FECHA CONTRATO]],TablaEMPLEADOS[[#This Row],[ANTIGÜEDAD A FECHA FUTURO]],"md") & " día(s)")),"")) ->  | G44: =IF(TablaEMPLEADOS[[#This Row],[ANTIGÜEDAD A FECHA FUTURO]]="NO",ROUND(((TODAY()-TablaEMPLEADOS[[#This Row],[FECHA CONTRATO]]+1)/365)*TablaEMPLEADOS[[#This Row],[VAC./ AÑO]]+TablaEMPLEADOS[[#This Row],[TOTA VAC. PROG.]],0),ROUND(((TablaEMPLEADOS[[#This Row],[ANTIGÜEDAD A FECHA FUTURO]]-TablaEMPLEADOS[[#This Row],[FECHA CONTRATO]]+1)/365)*TablaEMPLEADOS[[#This Row],[VAC./ AÑO]]+TablaEMPLEADOS[[#This Row],[TOTA VAC. PROG.]],0)) ->  | J44: =IFERROR(IF(OR(TablaEMPLEADOS[[#This Row],[VAC./ AÑO]]=20,TablaEMPLEADOS[[#This Row],[VAC. PROG.]]="NO"),0,IF(TablaEMPLEADOS[[#This Row],[ANTIGÜEDAD A FECHA FUTURO]]="NO",VLOOKUP(ROUNDDOWN(YEARFRAC(TablaEMPLEADOS[[#This Row],[ACTIVACIÓN PROG.]],TODAY()),0),Tabla2[],2,0),VLOOKUP(ROUNDDOWN(YEARFRAC(TablaEMPLEADOS[[#This Row],[ACTIVACIÓN PROG.]],TablaEMPLEADOS[[#This Row],[ANTIGÜEDAD A FECHA FUTURO]]),0),Tabla2[],3,0))),"") ->  | L44: =IFERROR(VLOOKUP(TablaEMPLEADOS[[#This Row],[NOMBRE]],VERIFICACION!$D$4:$G$4,4,0),"NO") -> NO | P44: 39 | Q44: 13 | R44: =R43+Tabla2[[#This Row],[dias]] -> 247
A45: 39 | E45: =IF(TablaEMPLEADOS[[#This Row],[ANTIGÜEDAD A FECHA FUTURO]]="NO", IFERROR(IF(TablaEMPLEADOS[[#This Row],[FECHA CONTRATO]]=0,"",IF(DATEDIF(TablaEMPLEADOS[[#This Row],[FECHA CONTRATO]],TODAY(),"y")=0,"", DATEDIF(TablaEMPLEADOS[[#This Row],[FECHA CONTRATO]],TODAY(),"y") & " año(s) ") & IF(DATEDIF(TablaEMPLEADOS[[#This Row],[FECHA CONTRATO]],TODAY(),"ym")=0,"",DATEDIF(TablaEMPLEADOS[[#This Row],[FECHA CONTRATO]],TODAY(),"ym") & " mes(es) ") & IF(DATEDIF(TablaEMPLEADOS[[#This Row],[FECHA CONTRATO]],TODAY(),"md")=0,"",DATEDIF(TablaEMPLEADOS[[#This Row],[FECHA CONTRATO]],TODAY(),"md") & " día(s)")),""), IFERROR(IF(TablaEMPLEADOS[[#This Row],[FECHA CONTRATO]]=0,"",IF(DATEDIF(TablaEMPLEADOS[[#This Row],[FECHA CONTRATO]],TablaEMPLEADOS[[#This Row],[ANTIGÜEDAD A FECHA FUTURO]],"y")=0,"", DATEDIF(TablaEMPLEADOS[[#This Row],[FECHA CONTRATO]],TablaEMPLEADOS[[#This Row],[ANTIGÜEDAD A FECHA FUTURO]],"y") & " año(s) ") & IF(DATEDIF(TablaEMPLEADOS[[#This Row],[FECHA CONTRATO]],TablaEMPLEADOS[[#This Row],[ANTIGÜEDAD A FECHA FUTURO]],"ym")=0,"",DATEDIF(TablaEMPLEADOS[[#This Row],[FECHA CONTRATO]],TablaEMPLEADOS[[#This Row],[ANTIGÜEDAD A FECHA FUTURO]],"ym") & " mes(es) ") & IF(DATEDIF(TablaEMPLEADOS[[#This Row],[FECHA CONTRATO]],TablaEMPLEADOS[[#This Row],[ANTIGÜEDAD A FECHA FUTURO]],"md")=0,"",DATEDIF(TablaEMPLEADOS[[#This Row],[FECHA CONTRATO]],TablaEMPLEADOS[[#This Row],[ANTIGÜEDAD A FECHA FUTURO]],"md") & " día(s)")),"")) ->  | G45: =IF(TablaEMPLEADOS[[#This Row],[ANTIGÜEDAD A FECHA FUTURO]]="NO",ROUND(((TODAY()-TablaEMPLEADOS[[#This Row],[FECHA CONTRATO]]+1)/365)*TablaEMPLEADOS[[#This Row],[VAC./ AÑO]]+TablaEMPLEADOS[[#This Row],[TOTA VAC. PROG.]],0),ROUND(((TablaEMPLEADOS[[#This Row],[ANTIGÜEDAD A FECHA FUTURO]]-TablaEMPLEADOS[[#This Row],[FECHA CONTRATO]]+1)/365)*TablaEMPLEADOS[[#This Row],[VAC./ AÑO]]+TablaEMPLEADOS[[#This Row],[TOTA VAC. PROG.]],0)) ->  | J45: =IFERROR(IF(OR(TablaEMPLEADOS[[#This Row],[VAC./ AÑO]]=20,TablaEMPLEADOS[[#This Row],[VAC. PROG.]]="NO"),0,IF(TablaEMPLEADOS[[#This Row],[ANTIGÜEDAD A FECHA FUTURO]]="NO",VLOOKUP(ROUNDDOWN(YEARFRAC(TablaEMPLEADOS[[#This Row],[ACTIVACIÓN PROG.]],TODAY()),0),Tabla2[],2,0),VLOOKUP(ROUNDDOWN(YEARFRAC(TablaEMPLEADOS[[#This Row],[ACTIVACIÓN PROG.]],TablaEMPLEADOS[[#This Row],[ANTIGÜEDAD A FECHA FUTURO]]),0),Tabla2[],3,0))),"") ->  | L45: =IFERROR(VLOOKUP(TablaEMPLEADOS[[#This Row],[NOMBRE]],VERIFICACION!$D$4:$G$4,4,0),"NO") -> NO | P45: 40 | Q45: 13 | R45: =R44+Tabla2[[#This Row],[dias]] -> 260
A46: 40 | E46: =IF(TablaEMPLEADOS[[#This Row],[ANTIGÜEDAD A FECHA FUTURO]]="NO", IFERROR(IF(TablaEMPLEADOS[[#This Row],[FECHA CONTRATO]]=0,"",IF(DATEDIF(TablaEMPLEADOS[[#This Row],[FECHA CONTRATO]],TODAY(),"y")=0,"", DATEDIF(TablaEMPLEADOS[[#This Row],[FECHA CONTRATO]],TODAY(),"y") & " año(s) ") & IF(DATEDIF(TablaEMPLEADOS[[#This Row],[FECHA CONTRATO]],TODAY(),"ym")=0,"",DATEDIF(TablaEMPLEADOS[[#This Row],[FECHA CONTRATO]],TODAY(),"ym") & " mes(es) ") & IF(DATEDIF(TablaEMPLEADOS[[#This Row],[FECHA CONTRATO]],TODAY(),"md")=0,"",DATEDIF(TablaEMPLEADOS[[#This Row],[FECHA CONTRATO]],TODAY(),"md") & " día(s)")),""), IFERROR(IF(TablaEMPLEADOS[[#This Row],[FECHA CONTRATO]]=0,"",IF(DATEDIF(TablaEMPLEADOS[[#This Row],[FECHA CONTRATO]],TablaEMPLEADOS[[#This Row],[ANTIGÜEDAD A FECHA FUTURO]],"y")=0,"", DATEDIF(TablaEMPLEADOS[[#This Row],[FECHA CONTRATO]],TablaEMPLEADOS[[#This Row],[ANTIGÜEDAD A FECHA FUTURO]],"y") & " año(s) ") & IF(DATEDIF(TablaEMPLEADOS[[#This Row],[FECHA CONTRATO]],TablaEMPLEADOS[[#This Row],[ANTIGÜEDAD A FECHA FUTURO]],"ym")=0,"",DATEDIF(TablaEMPLEADOS[[#This Row],[FECHA CONTRATO]],TablaEMPLEADOS[[#This Row],[ANTIGÜEDAD A FECHA FUTURO]],"ym") & " mes(es) ") & IF(DATEDIF(TablaEMPLEADOS[[#This Row],[FECHA CONTRATO]],TablaEMPLEADOS[[#This Row],[ANTIGÜEDAD A FECHA FUTURO]],"md")=0,"",DATEDIF(TablaEMPLEADOS[[#This Row],[FECHA CONTRATO]],TablaEMPLEADOS[[#This Row],[ANTIGÜEDAD A FECHA FUTURO]],"md") & " día(s)")),"")) ->  | G46: =IF(TablaEMPLEADOS[[#This Row],[ANTIGÜEDAD A FECHA FUTURO]]="NO",ROUND(((TODAY()-TablaEMPLEADOS[[#This Row],[FECHA CONTRATO]]+1)/365)*TablaEMPLEADOS[[#This Row],[VAC./ AÑO]]+TablaEMPLEADOS[[#This Row],[TOTA VAC. PROG.]],0),ROUND(((TablaEMPLEADOS[[#This Row],[ANTIGÜEDAD A FECHA FUTURO]]-TablaEMPLEADOS[[#This Row],[FECHA CONTRATO]]+1)/365)*TablaEMPLEADOS[[#This Row],[VAC./ AÑO]]+TablaEMPLEADOS[[#This Row],[TOTA VAC. PROG.]],0)) ->  | J46: =IFERROR(IF(OR(TablaEMPLEADOS[[#This Row],[VAC./ AÑO]]=20,TablaEMPLEADOS[[#This Row],[VAC. PROG.]]="NO"),0,IF(TablaEMPLEADOS[[#This Row],[ANTIGÜEDAD A FECHA FUTURO]]="NO",VLOOKUP(ROUNDDOWN(YEARFRAC(TablaEMPLEADOS[[#This Row],[ACTIVACIÓN PROG.]],TODAY()),0),Tabla2[],2,0),VLOOKUP(ROUNDDOWN(YEARFRAC(TablaEMPLEADOS[[#This Row],[ACTIVACIÓN PROG.]],TablaEMPLEADOS[[#This Row],[ANTIGÜEDAD A FECHA FUTURO]]),0),Tabla2[],3,0))),"") ->  | L46: =IFERROR(VLOOKUP(TablaEMPLEADOS[[#This Row],[NOMBRE]],VERIFICACION!$D$4:$G$4,4,0),"NO") -> NO | P46: 41 | Q46: 13 | R46: =R45+Tabla2[[#This Row],[dias]] -> 273
A47: 41 | E47: =IF(TablaEMPLEADOS[[#This Row],[ANTIGÜEDAD A FECHA FUTURO]]="NO", IFERROR(IF(TablaEMPLEADOS[[#This Row],[FECHA CONTRATO]]=0,"",IF(DATEDIF(TablaEMPLEADOS[[#This Row],[FECHA CONTRATO]],TODAY(),"y")=0,"", DATEDIF(TablaEMPLEADOS[[#This Row],[FECHA CONTRATO]],TODAY(),"y") & " año(s) ") & IF(DATEDIF(TablaEMPLEADOS[[#This Row],[FECHA CONTRATO]],TODAY(),"ym")=0,"",DATEDIF(TablaEMPLEADOS[[#This Row],[FECHA CONTRATO]],TODAY(),"ym") & " mes(es) ") & IF(DATEDIF(TablaEMPLEADOS[[#This Row],[FECHA CONTRATO]],TODAY(),"md")=0,"",DATEDIF(TablaEMPLEADOS[[#This Row],[FECHA CONTRATO]],TODAY(),"md") & " día(s)")),""), IFERROR(IF(TablaEMPLEADOS[[#This Row],[FECHA CONTRATO]]=0,"",IF(DATEDIF(TablaEMPLEADOS[[#This Row],[FECHA CONTRATO]],TablaEMPLEADOS[[#This Row],[ANTIGÜEDAD A FECHA FUTURO]],"y")=0,"", DATEDIF(TablaEMPLEADOS[[#This Row],[FECHA CONTRATO]],TablaEMPLEADOS[[#This Row],[ANTIGÜEDAD A FECHA FUTURO]],"y") & " año(s) ") & IF(DATEDIF(TablaEMPLEADOS[[#This Row],[FECHA CONTRATO]],TablaEMPLEADOS[[#This Row],[ANTIGÜEDAD A FECHA FUTURO]],"ym")=0,"",DATEDIF(TablaEMPLEADOS[[#This Row],[FECHA CONTRATO]],TablaEMPLEADOS[[#This Row],[ANTIGÜEDAD A FECHA FUTURO]],"ym") & " mes(es) ") & IF(DATEDIF(TablaEMPLEADOS[[#This Row],[FECHA CONTRATO]],TablaEMPLEADOS[[#This Row],[ANTIGÜEDAD A FECHA FUTURO]],"md")=0,"",DATEDIF(TablaEMPLEADOS[[#This Row],[FECHA CONTRATO]],TablaEMPLEADOS[[#This Row],[ANTIGÜEDAD A FECHA FUTURO]],"md") & " día(s)")),"")) ->  | G47: =IF(TablaEMPLEADOS[[#This Row],[ANTIGÜEDAD A FECHA FUTURO]]="NO",ROUND(((TODAY()-TablaEMPLEADOS[[#This Row],[FECHA CONTRATO]]+1)/365)*TablaEMPLEADOS[[#This Row],[VAC./ AÑO]]+TablaEMPLEADOS[[#This Row],[TOTA VAC. PROG.]],0),ROUND(((TablaEMPLEADOS[[#This Row],[ANTIGÜEDAD A FECHA FUTURO]]-TablaEMPLEADOS[[#This Row],[FECHA CONTRATO]]+1)/365)*TablaEMPLEADOS[[#This Row],[VAC./ AÑO]]+TablaEMPLEADOS[[#This Row],[TOTA VAC. PROG.]],0)) ->  | J47: =IFERROR(IF(OR(TablaEMPLEADOS[[#This Row],[VAC./ AÑO]]=20,TablaEMPLEADOS[[#This Row],[VAC. PROG.]]="NO"),0,IF(TablaEMPLEADOS[[#This Row],[ANTIGÜEDAD A FECHA FUTURO]]="NO",VLOOKUP(ROUNDDOWN(YEARFRAC(TablaEMPLEADOS[[#This Row],[ACTIVACIÓN PROG.]],TODAY()),0),Tabla2[],2,0),VLOOKUP(ROUNDDOWN(YEARFRAC(TablaEMPLEADOS[[#This Row],[ACTIVACIÓN PROG.]],TablaEMPLEADOS[[#This Row],[ANTIGÜEDAD A FECHA FUTURO]]),0),Tabla2[],3,0))),"") ->  | L47: =IFERROR(VLOOKUP(TablaEMPLEADOS[[#This Row],[NOMBRE]],VERIFICACION!$D$4:$G$4,4,0),"NO") -> NO | P47: 42 | Q47: 14 | R47: =R46+Tabla2[[#This Row],[dias]] -> 287
A48: 42 | E48: =IF(TablaEMPLEADOS[[#This Row],[ANTIGÜEDAD A FECHA FUTURO]]="NO", IFERROR(IF(TablaEMPLEADOS[[#This Row],[FECHA CONTRATO]]=0,"",IF(DATEDIF(TablaEMPLEADOS[[#This Row],[FECHA CONTRATO]],TODAY(),"y")=0,"", DATEDIF(TablaEMPLEADOS[[#This Row],[FECHA CONTRATO]],TODAY(),"y") & " año(s) ") & IF(DATEDIF(TablaEMPLEADOS[[#This Row],[FECHA CONTRATO]],TODAY(),"ym")=0,"",DATEDIF(TablaEMPLEADOS[[#This Row],[FECHA CONTRATO]],TODAY(),"ym") & " mes(es) ") & IF(DATEDIF(TablaEMPLEADOS[[#This Row],[FECHA CONTRATO]],TODAY(),"md")=0,"",DATEDIF(TablaEMPLEADOS[[#This Row],[FECHA CONTRATO]],TODAY(),"md") & " día(s)")),""), IFERROR(IF(TablaEMPLEADOS[[#This Row],[FECHA CONTRATO]]=0,"",IF(DATEDIF(TablaEMPLEADOS[[#This Row],[FECHA CONTRATO]],TablaEMPLEADOS[[#This Row],[ANTIGÜEDAD A FECHA FUTURO]],"y")=0,"", DATEDIF(TablaEMPLEADOS[[#This Row],[FECHA CONTRATO]],TablaEMPLEADOS[[#This Row],[ANTIGÜEDAD A FECHA FUTURO]],"y") & " año(s) ") & IF(DATEDIF(TablaEMPLEADOS[[#This Row],[FECHA CONTRATO]],TablaEMPLEADOS[[#This Row],[ANTIGÜEDAD A FECHA FUTURO]],"ym")=0,"",DATEDIF(TablaEMPLEADOS[[#This Row],[FECHA CONTRATO]],TablaEMPLEADOS[[#This Row],[ANTIGÜEDAD A FECHA FUTURO]],"ym") & " mes(es) ") & IF(DATEDIF(TablaEMPLEADOS[[#This Row],[FECHA CONTRATO]],TablaEMPLEADOS[[#This Row],[ANTIGÜEDAD A FECHA FUTURO]],"md")=0,"",DATEDIF(TablaEMPLEADOS[[#This Row],[FECHA CONTRATO]],TablaEMPLEADOS[[#This Row],[ANTIGÜEDAD A FECHA FUTURO]],"md") & " día(s)")),"")) ->  | G48: =IF(TablaEMPLEADOS[[#This Row],[ANTIGÜEDAD A FECHA FUTURO]]="NO",ROUND(((TODAY()-TablaEMPLEADOS[[#This Row],[FECHA CONTRATO]]+1)/365)*TablaEMPLEADOS[[#This Row],[VAC./ AÑO]]+TablaEMPLEADOS[[#This Row],[TOTA VAC. PROG.]],0),ROUND(((TablaEMPLEADOS[[#This Row],[ANTIGÜEDAD A FECHA FUTURO]]-TablaEMPLEADOS[[#This Row],[FECHA CONTRATO]]+1)/365)*TablaEMPLEADOS[[#This Row],[VAC./ AÑO]]+TablaEMPLEADOS[[#This Row],[TOTA VAC. PROG.]],0)) ->  | J48: =IFERROR(IF(OR(TablaEMPLEADOS[[#This Row],[VAC./ AÑO]]=20,TablaEMPLEADOS[[#This Row],[VAC. PROG.]]="NO"),0,IF(TablaEMPLEADOS[[#This Row],[ANTIGÜEDAD A FECHA FUTURO]]="NO",VLOOKUP(ROUNDDOWN(YEARFRAC(TablaEMPLEADOS[[#This Row],[ACTIVACIÓN PROG.]],TODAY()),0),Tabla2[],2,0),VLOOKUP(ROUNDDOWN(YEARFRAC(TablaEMPLEADOS[[#This Row],[ACTIVACIÓN PROG.]],TablaEMPLEADOS[[#This Row],[ANTIGÜEDAD A FECHA FUTURO]]),0),Tabla2[],3,0))),"") ->  | L48: =IFERROR(VLOOKUP(TablaEMPLEADOS[[#This Row],[NOMBRE]],VERIFICACION!$D$4:$G$4,4,0),"NO") -> NO | P48: 43 | Q48: 14 | R48: =R47+Tabla2[[#This Row],[dias]] -> 301
A49: 43 | G49: =IF(TablaEMPLEADOS[[#This Row],[ANTIGÜEDAD A FECHA FUTURO]]="NO",ROUND(((TODAY()-TablaEMPLEADOS[[#This Row],[FECHA CONTRATO]]+1)/365)*TablaEMPLEADOS[[#This Row],[VAC./ AÑO]]+TablaEMPLEADOS[[#This Row],[TOTA VAC. PROG.]],0),ROUND(((TablaEMPLEADOS[[#This Row],[ANTIGÜEDAD A FECHA FUTURO]]-TablaEMPLEADOS[[#This Row],[FECHA CONTRATO]]+1)/365)*TablaEMPLEADOS[[#This Row],[VAC./ AÑO]]+TablaEMPLEADOS[[#This Row],[TOTA VAC. PROG.]],0)) ->  | J49: =IFERROR(IF(OR(TablaEMPLEADOS[[#This Row],[VAC./ AÑO]]=20,TablaEMPLEADOS[[#This Row],[VAC. PROG.]]="NO"),0,IF(TablaEMPLEADOS[[#This Row],[ANTIGÜEDAD A FECHA FUTURO]]="NO",VLOOKUP(ROUNDDOWN(YEARFRAC(TablaEMPLEADOS[[#This Row],[ACTIVACIÓN PROG.]],TODAY()),0),Tabla2[],2,0),VLOOKUP(ROUNDDOWN(YEARFRAC(TablaEMPLEADOS[[#This Row],[ACTIVACIÓN PROG.]],TablaEMPLEADOS[[#This Row],[ANTIGÜEDAD A FECHA FUTURO]]),0),Tabla2[],3,0))),"") ->  | L49: =IFERROR(VLOOKUP(TablaEMPLEADOS[[#This Row],[NOMBRE]],VERIFICACION!$D$4:$G$4,4,0),"NO") -> NO | P49: 44 | Q49: 14 | R49: =R48+Tabla2[[#This Row],[dias]] -> 315
A50: 44 | L50: =IFERROR(VLOOKUP(TablaEMPLEADOS[[#This Row],[NOMBRE]],VERIFICACION!$D$4:$G$4,4,0),"NO") -> NO | P50: 45 | Q50: 15 | R50: =R49+Tabla2[[#This Row],[dias]] -> 330
A51: 45 | L51: =IFERROR(VLOOKUP(TablaEMPLEADOS[[#This Row],[NOMBRE]],VERIFICACION!$D$4:$G$4,4,0),"NO") -> NO | P51: 46 | Q51: 15 | R51: =R50+Tabla2[[#This Row],[dias]] -> 345
A52: 46 | J52: =IFERROR(IF(OR(TablaEMPLEADOS[[#This Row],[VAC./ AÑO]]=20,TablaEMPLEADOS[[#This Row],[VAC. PROG.]]="NO"),0,IF(TablaEMPLEADOS[[#This Row],[ANTIGÜEDAD A FECHA FUTURO]]="NO",VLOOKUP(ROUNDDOWN(YEARFRAC(TablaEMPLEADOS[[#This Row],[ACTIVACIÓN PROG.]],TODAY()),0),Tabla2[],2,0),VLOOKUP(ROUNDDOWN(YEARFRAC(TablaEMPLEADOS[[#This Row],[ACTIVACIÓN PROG.]],TablaEMPLEADOS[[#This Row],[ANTIGÜEDAD A FECHA FUTURO]]),0),Tabla2[],3,0))),"") ->  | L52: =IFERROR(VLOOKUP(TablaEMPLEADOS[[#This Row],[NOMBRE]],VERIFICACION!$D$4:$G$4,4,0),"NO") -> NO | P52: 47 | Q52: 15 | R52: =R51+Tabla2[[#This Row],[dias]] -> 360
A53: 47 | J53: =IFERROR(IF(OR(TablaEMPLEADOS[[#This Row],[VAC./ AÑO]]=20,TablaEMPLEADOS[[#This Row],[VAC. PROG.]]="NO"),0,IF(TablaEMPLEADOS[[#This Row],[ANTIGÜEDAD A FECHA FUTURO]]="NO",VLOOKUP(ROUNDDOWN(YEARFRAC(TablaEMPLEADOS[[#This Row],[ACTIVACIÓN PROG.]],TODAY()),0),Tabla2[],2,0),VLOOKUP(ROUNDDOWN(YEARFRAC(TablaEMPLEADOS[[#This Row],[ACTIVACIÓN PROG.]],TablaEMPLEADOS[[#This Row],[ANTIGÜEDAD A FECHA FUTURO]]),0),Tabla2[],3,0))),"") ->  | L53: =IFERROR(VLOOKUP(TablaEMPLEADOS[[#This Row],[NOMBRE]],VERIFICACION!$D$4:$G$4,4,0),"NO") -> NO | P53: 48 | Q53: 16 | R53: =R52+Tabla2[[#This Row],[dias]] -> 376
A54: 48 | J54: =IFERROR(IF(OR(TablaEMPLEADOS[[#This Row],[VAC./ AÑO]]=20,TablaEMPLEADOS[[#This Row],[VAC. PROG.]]="NO"),0,IF(TablaEMPLEADOS[[#This Row],[ANTIGÜEDAD A FECHA FUTURO]]="NO",VLOOKUP(ROUNDDOWN(YEARFRAC(TablaEMPLEADOS[[#This Row],[ACTIVACIÓN PROG.]],TODAY()),0),Tabla2[],2,0),VLOOKUP(ROUNDDOWN(YEARFRAC(TablaEMPLEADOS[[#This Row],[ACTIVACIÓN PROG.]],TablaEMPLEADOS[[#This Row],[ANTIGÜEDAD A FECHA FUTURO]]),0),Tabla2[],3,0))),"") ->  | L54: =IFERROR(VLOOKUP(TablaEMPLEADOS[[#This Row],[NOMBRE]],VERIFICACION!$D$4:$G$4,4,0),"NO") -> NO | P54: 49 | Q54: 16 | R54: =R53+Tabla2[[#This Row],[dias]] -> 392
A55: 49 | E55: =IF(TablaEMPLEADOS[[#This Row],[ANTIGÜEDAD A FECHA FUTURO]]="NO", IFERROR(IF(TablaEMPLEADOS[[#This Row],[FECHA CONTRATO]]=0,"",IF(DATEDIF(TablaEMPLEADOS[[#This Row],[FECHA CONTRATO]],TODAY(),"y")=0,"", DATEDIF(TablaEMPLEADOS[[#This Row],[FECHA CONTRATO]],TODAY(),"y") & " año(s) ") & IF(DATEDIF(TablaEMPLEADOS[[#This Row],[FECHA CONTRATO]],TODAY(),"ym")=0,"",DATEDIF(TablaEMPLEADOS[[#This Row],[FECHA CONTRATO]],TODAY(),"ym") & " mes(es) ") & IF(DATEDIF(TablaEMPLEADOS[[#This Row],[FECHA CONTRATO]],TODAY(),"md")=0,"",DATEDIF(TablaEMPLEADOS[[#This Row],[FECHA CONTRATO]],TODAY(),"md") & " día(s)")),""), IFERROR(IF(TablaEMPLEADOS[[#This Row],[FECHA CONTRATO]]=0,"",IF(DATEDIF(TablaEMPLEADOS[[#This Row],[FECHA CONTRATO]],TablaEMPLEADOS[[#This Row],[ANTIGÜEDAD A FECHA FUTURO]],"y")=0,"", DATEDIF(TablaEMPLEADOS[[#This Row],[FECHA CONTRATO]],TablaEMPLEADOS[[#This Row],[ANTIGÜEDAD A FECHA FUTURO]],"y") & " año(s) ") & IF(DATEDIF(TablaEMPLEADOS[[#This Row],[FECHA CONTRATO]],TablaEMPLEADOS[[#This Row],[ANTIGÜEDAD A FECHA FUTURO]],"ym")=0,"",DATEDIF(TablaEMPLEADOS[[#This Row],[FECHA CONTRATO]],TablaEMPLEADOS[[#This Row],[ANTIGÜEDAD A FECHA FUTURO]],"ym") & " mes(es) ") & IF(DATEDIF(TablaEMPLEADOS[[#This Row],[FECHA CONTRATO]],TablaEMPLEADOS[[#This Row],[ANTIGÜEDAD A FECHA FUTURO]],"md")=0,"",DATEDIF(TablaEMPLEADOS[[#This Row],[FECHA CONTRATO]],TablaEMPLEADOS[[#This Row],[ANTIGÜEDAD A FECHA FUTURO]],"md") & " día(s)")),"")) ->  | G55: =IF(TablaEMPLEADOS[[#This Row],[ANTIGÜEDAD A FECHA FUTURO]]="NO",ROUND(((TODAY()-TablaEMPLEADOS[[#This Row],[FECHA CONTRATO]]+1)/365)*TablaEMPLEADOS[[#This Row],[VAC./ AÑO]]+TablaEMPLEADOS[[#This Row],[TOTA VAC. PROG.]],0),ROUND(((TablaEMPLEADOS[[#This Row],[ANTIGÜEDAD A FECHA FUTURO]]-TablaEMPLEADOS[[#This Row],[FECHA CONTRATO]]+1)/365)*TablaEMPLEADOS[[#This Row],[VAC./ AÑO]]+TablaEMPLEADOS[[#This Row],[TOTA VAC. PROG.]],0)) ->  | J55: =IFERROR(IF(OR(TablaEMPLEADOS[[#This Row],[VAC./ AÑO]]=20,TablaEMPLEADOS[[#This Row],[VAC. PROG.]]="NO"),0,IF(TablaEMPLEADOS[[#This Row],[ANTIGÜEDAD A FECHA FUTURO]]="NO",VLOOKUP(ROUNDDOWN(YEARFRAC(TablaEMPLEADOS[[#This Row],[ACTIVACIÓN PROG.]],TODAY()),0),Tabla2[],2,0),VLOOKUP(ROUNDDOWN(YEARFRAC(TablaEMPLEADOS[[#This Row],[ACTIVACIÓN PROG.]],TablaEMPLEADOS[[#This Row],[ANTIGÜEDAD A FECHA FUTURO]]),0),Tabla2[],3,0))),"") ->  | L55: =IFERROR(VLOOKUP(TablaEMPLEADOS[[#This Row],[NOMBRE]],VERIFICACION!$D$4:$G$4,4,0),"NO") -> NO | P55: 50 | Q55: 16 | R55: =R54+Tabla2[[#This Row],[dias]] -> 408
A56: 50 | P56: 51 | Q56: 17 | R56: =R55+Tabla2[[#This Row],[dias]] -> 425
A57: 51 | P57: 52 | Q57: 17 | R57: =R56+Tabla2[[#This Row],[dias]] -> 442
A58: 52
A59: 53
A60: 54
A61: 55
A62: 56
A63: 57
A64: 58
A65: 59
A66: 60
A67: 61
A68: 62
A69: 63
A70: 64
A71: 65
A72: 66
A73: 67
A74: 68
A75: 69
A76: 70
A77: 71
A78: 72
A79: 73
A80: 74
A81: 75
A82: 76
A83: 77
A84: 78
A85: 79
A86: 80
A87: 81
A88: 82
A89: 83
A90: 84
A91: 85
A92: 86
A93: 87
A94: 88
A95: 89
A96: 90
A97: 91
A98: 92
A99: 93
A100: 94
A101: 95
A102: 96
A103: 97
A104: 98
A105: 99
A106: 100
A107: 101
A108: 102
A109: 103
A110: 104
A111: 105
A112: 106
A113: 107
A114: 108
A115: 109
A116: 110
A117: 111
A118: 112
A119: 113
A120: 114
A121: 115
A122: 116
A123: 117
A124: 118
A125: 119
A126: 120
A127: 121
A128: 122
A129: 123
A130: 124
A131: 125
A132: 126
A133: 127
A134: 128
A135: 129
A136: 130
A137: 131
A138: 132
A139: 133
A140: 134
A141: 135
A142: 136
A143: 137
A144: 138
A145: 139
A146: 140
A147: 141
A148: 142
A149: 143
A150: 144
A151: 145
A152: 146
A153: 147
A154: 148
A155: 149
A156: 150
A157: 151
A158: 152
A159: 153
A160: 154
A161: 155
A162: 156
A163: 157
A164: 158
A165: 159
A166: 160
A167: 161
A168: 162
A169: 163
A170: 164
A171: 165
A172: 166
A173: 167
A174: 168
A175: 169
A176: 170
A177: 171
A178: 172
A179: 173
A180: 174
A181: 175
A182: 176
A183: 177
A184: 178
A185: 179
A186: 180
A187: 181
A188: 182
A189: 183
A190: 184
A191: 185
A192: 186
A193: 187
A194: 188
A195: 189
A196: 190
A197: 191
A198: 192
A199: 193
A200: 194

Sheet REPORTES
D3: n° | E3: NOMBRE | F3: RUT | G3: FECHA CONTRATO | H3: ANTIGÜEDAD | I3: DIAS ACUMULADOS | J3: DIAS TOMADAS | K3: DIAS RESTANTES
D4: 1 | E4: =IFERROR(VLOOKUP(Tabla8[[#This Row],[n°]],CONFIGURACION!$A$7:$K$200,2,),"") -> MONICA ANDREZ FERNANDEZ LAZO | F4: =IFERROR(VLOOKUP(Tabla8[[#This Row],[n°]],CONFIGURACION!$A$7:$K$200,3,),"") -> 13.429.987-8 | G4: =IFERROR(VLOOKUP(Tabla8[[#This Row],[n°]],CONFIGURACION!$A$7:$K$200,4,),"") -> 2019-07-02 | H4: =IFERROR(VLOOKUP(Tabla8[[#This Row],[n°]],CONFIGURACION!$A$7:$K$200,5,),"") -> 1 año(s) 19 día(s) | I4: =IFERROR(VLOOKUP(Tabla8[[#This Row],[n°]],CONFIGURACION!$A$7:$K$200,7,),"") -> 16 | J4: =IFERROR(SUMIFS(TablaBDD[TOTAL DIAS],TablaBDD[NOMBRE],Tabla8[[#This Row],[NOMBRE]])+VLOOKUP(Tabla8[[#This Row],[NOMBRE]],CONFIGURACION!$B$7:$K$200,10,0),"") -> 0 | K4: =IFERROR(Tabla8[[#This Row],[DIAS ACUMULADOS]]-Tabla8[[#This Row],[DIAS TOMADAS]],"") -> 16
D5: 2 | E5: =IFERROR(VLOOKUP(Tabla8[[#This Row],[n°]],CONFIGURACION!$A$7:$K$200,2,),"") -> JOSE LUIS ANDRADE SOTO | F5: =IFERROR(VLOOKUP(Tabla8[[#This Row],[n°]],CONFIGURACION!$A$7:$K$200,3,),"") -> 9.383.263-9 | G5: =IFERROR(VLOOKUP(Tabla8[[#This Row],[n°]],CONFIGURACION!$A$7:$K$200,4,),"") -> 2014-03-10 | H5: =IFERROR(VLOOKUP(Tabla8[[#This Row],[n°]],CONFIGURACION!$A$7:$K$200,5,),"") -> 6 año(s) 4 mes(es) 11 día(s) | I5: =IFERROR(VLOOKUP(Tabla8[[#This Row],[n°]],CONFIGURACION!$A$7:$K$200,7,),"") -> 96 | J5: =IFERROR(SUMIFS(TablaBDD[TOTAL DIAS],TablaBDD[NOMBRE],Tabla8[[#This Row],[NOMBRE]])+VLOOKUP(Tabla8[[#This Row],[NOMBRE]],CONFIGURACION!$B$7:$K$200,10,0),"") -> 0 | K5: =IFERROR(Tabla8[[#This Row],[DIAS ACUMULADOS]]-Tabla8[[#This Row],[DIAS TOMADAS]],"") -> 96
D6: 3 | E6: =IFERROR(VLOOKUP(Tabla8[[#This Row],[n°]],CONFIGURACION!$A$7:$K$200,2,),"") -> MANUEL TERCERO MORALES | F6: =IFERROR(VLOOKUP(Tabla8[[#This Row],[n°]],CONFIGURACION!$A$7:$K$200,3,),"") -> 6.558.985-0 | G6: =IFERROR(VLOOKUP(Tabla8[[#This Row],[n°]],CONFIGURACION!$A$7:$K$200,4,),"") -> 2014-08-15 | H6: =IFERROR(VLOOKUP(Tabla8[[#This Row],[n°]],CONFIGURACION!$A$7:$K$200,5,),"") -> 5 año(s) 11 mes(es) 6 día(s) | I6: =IFERROR(VLOOKUP(Tabla8[[#This Row],[n°]],CONFIGURACION!$A$7:$K$200,7,),"") -> 89 | J6: =IFERROR(SUMIFS(TablaBDD[TOTAL DIAS],TablaBDD[NOMBRE],Tabla8[[#This Row],[NOMBRE]])+VLOOKUP(Tabla8[[#This Row],[NOMBRE]],CONFIGURACION!$B$7:$K$200,10,0),"") -> 0 | K6: =IFERROR(Tabla8[[#This Row],[DIAS ACUMULADOS]]-Tabla8[[#This Row],[DIAS TOMADAS]],"") -> 89
D7: 4 | E7: =IFERROR(VLOOKUP(Tabla8[[#This Row],[n°]],CONFIGURACION!$A$7:$K$200,2,),"") -> 0 | F7: =IFERROR(VLOOKUP(Tabla8[[#This Row],[n°]],CONFIGURACION!$A$7:$K$200,3,),"") -> 0 | G7: =IFERROR(VLOOKUP(Tabla8[[#This Row],[n°]],CONFIGURACION!$A$7:$K$200,4,),"") -> 00:00:00 | H7: =IFERROR(VLOOKUP(Tabla8[[#This Row],[n°]],CONFIGURACION!$A$7:$K$200,5,),"") ->  | I7: =IFERROR(VLOOKUP(Tabla8[[#This Row],[n°]],CONFIGURACION!$A$7:$K$200,7,),"") ->  | J7: =IFERROR(SUMIFS(TablaBDD[TOTAL DIAS],TablaBDD[NOMBRE],Tabla8[[#This Row],[NOMBRE]])+VLOOKUP(Tabla8[[#This Row],[NOMBRE]],CONFIGURACION!$B$7:$K$200,10,0),"") ->  | K7: =IFERROR(Tabla8[[#This Row],[DIAS ACUMULADOS]]-Tabla8[[#This Row],[DIAS TOMADAS]],"") -> 
D8: 5 | E8: =IFERROR(VLOOKUP(Tabla8[[#This Row],[n°]],CONFIGURACION!$A$7:$K$200,2,),"") -> 0 | F8: =IFERROR(VLOOKUP(Tabla8[[#This Row],[n°]],CONFIGURACION!$A$7:$K$200,3,),"") -> 0 | G8: =IFERROR(VLOOKUP(Tabla8[[#This Row],[n°]],CONFIGURACION!$A$7:$K$200,4,),"") -> 00:00:00 | H8: =IFERROR(VLOOKUP(Tabla8[[#This Row],[n°]],CONFIGURACION!$A$7:$K$200,5,),"") ->  | I8: =IFERROR(VLOOKUP(Tabla8[[#This Row],[n°]],CONFIGURACION!$A$7:$K$200,7,),"") ->  | J8: =IFERROR(SUMIFS(TablaBDD[TOTAL DIAS],TablaBDD[NOMBRE],Tabla8[[#This Row],[NOMBRE]])+VLOOKUP(Tabla8[[#This Row],[NOMBRE]],CONFIGURACION!$B$7:$K$200,10,0),"") ->  | K8: =IFERROR(Tabla8[[#This Row],[DIAS ACUMULADOS]]-Tabla8[[#This Row],[DIAS TOMADAS]],"") -> 
D9: 6 | E9: =IFERROR(VLOOKUP(Tabla8[[#This Row],[n°]],CONFIGURACION!$A$7:$K$200,2,),"") -> 0 | F9: =IFERROR(VLOOKUP(Tabla8[[#This Row],[n°]],CONFIGURACION!$A$7:$K$200,3,),"") -> 0 | G9: =IFERROR(VLOOKUP(Tabla8[[#This Row],[n°]],CONFIGURACION!$A$7:$K$200,4,),"") -> 00:00:00 | H9: =IFERROR(VLOOKUP(Tabla8[[#This Row],[n°]],CONFIGURACION!$A$7:$K$200,5,),"") ->  | I9: =IFERROR(VLOOKUP(Tabla8[[#This Row],[n°]],CONFIGURACION!$A$7:$K$200,7,),"") ->  | J9: =IFERROR(SUMIFS(TablaBDD[TOTAL DIAS],TablaBDD[NOMBRE],Tabla8[[#This Row],[NOMBRE]])+VLOOKUP(Tabla8[[#This Row],[NOMBRE]],CONFIGURACION!$B$7:$K$200,10,0),"") ->  | K9: =IFERROR(Tabla8[[#This Row],[DIAS ACUMULADOS]]-Tabla8[[#This Row],[DIAS TOMADAS]],"") -> 
D10: 7 | E10: =IFERROR(VLOOKUP(Tabla8[[#This Row],[n°]],CONFIGURACION!$A$7:$K$200,2,),"") -> 0 | F10: =IFERROR(VLOOKUP(Tabla8[[#This Row],[n°]],CONFIGURACION!$A$7:$K$200,3,),"") -> 0 | G10: =IFERROR(VLOOKUP(Tabla8[[#This Row],[n°]],CONFIGURACION!$A$7:$K$200,4,),"") -> 00:00:00 | H10: =IFERROR(VLOOKUP(Tabla8[[#This Row],[n°]],CONFIGURACION!$A$7:$K$200,5,),"") ->  | I10: =IFERROR(VLOOKUP(Tabla8[[#This Row],[n°]],CONFIGURACION!$A$7:$K$200,7,),"") ->  | J10: =IFERROR(SUMIFS(TablaBDD[TOTAL DIAS],TablaBDD[NOMBRE],Tabla8[[#This Row],[NOMBRE]])+VLOOKUP(Tabla8[[#This Row],[NOMBRE]],CONFIGURACION!$B$7:$K$200,10,0),"") ->  | K10: =IFERROR(Tabla8[[#This Row],[DIAS ACUMULADOS]]-Tabla8[[#This Row],[DIAS TOMADAS]],"") -> 
D11: 8 | E11: =IFERROR(VLOOKUP(Tabla8[[#This Row],[n°]],CONFIGURACION!$A$7:$K$200,2,),"") -> 0 | F11: =IFERROR(VLOOKUP(Tabla8[[#This Row],[n°]],CONFIGURACION!$A$7:$K$200,3,),"") -> 0 | G11: =IFERROR(VLOOKUP(Tabla8[[#This Row],[n°]],CONFIGURACION!$A$7:$K$200,4,),"") -> 00:00:00 | H11: =IFERROR(VLOOKUP(Tabla8[[#This Row],[n°]],CONFIGURACION!$A$7:$K$200,5,),"") ->  | I11: =IFERROR(VLOOKUP(Tabla8[[#This Row],[n°]],CONFIGURACION!$A$7:$K$200,7,),"") ->  | J11: =IFERROR(SUMIFS(TablaBDD[TOTAL DIAS],TablaBDD[NOMBRE],Tabla8[[#This Row],[NOMBRE]])+VLOOKUP(Tabla8[[#This Row],[NOMBRE]],CONFIGURACION!$B$7:$K$200,10,0),"") ->  | K11: =IFERROR(Tabla8[[#This Row],[DIAS ACUMULADOS]]-Tabla8[[#This Row],[DIAS TOMADAS]],"") -> 
D12: 9 | E12: =IFERROR(VLOOKUP(Tabla8[[#This Row],[n°]],CONFIGURACION!$A$7:$K$200,2,),"") -> 0 | F12: =IFERROR(VLOOKUP(Tabla8[[#This Row],[n°]],CONFIGURACION!$A$7:$K$200,3,),"") -> 0 | G12: =IFERROR(VLOOKUP(Tabla8[[#This Row],[n°]],CONFIGURACION!$A$7:$K$200,4,),"") -> 00:00:00 | H12: =IFERROR(VLOOKUP(Tabla8[[#This Row],[n°]],CONFIGURACION!$A$7:$K$200,5,),"") ->  | I12: =IFERROR(VLOOKUP(Tabla8[[#This Row],[n°]],CONFIGURACION!$A$7:$K$200,7,),"") ->  | J12: =IFERROR(SUMIFS(TablaBDD[TOTAL DIAS],TablaBDD[NOMBRE],Tabla8[[#This Row],[NOMBRE]])+VLOOKUP(Tabla8[[#This Row],[NOMBRE]],CONFIGURACION!$B$7:$K$200,10,0),"") ->  | K12: =IFERROR(Tabla8[[#This Row],[DIAS ACUMULADOS]]-Tabla8[[#This Row],[DIAS TOMADAS]],"") -> 
D13: 10 | E13: =IFERROR(VLOOKUP(Tabla8[[#This Row],[n°]],CONFIGURACION!$A$7:$K$200,2,),"") -> 0 | F13: =IFERROR(VLOOKUP(Tabla8[[#This Row],[n°]],CONFIGURACION!$A$7:$K$200,3,),"") -> 0 | G13: =IFERROR(VLOOKUP(Tabla8[[#This Row],[n°]],CONFIGURACION!$A$7:$K$200,4,),"") -> 00:00:00 | H13: =IFERROR(VLOOKUP(Tabla8[[#This Row],[n°]],CONFIGURACION!$A$7:$K$200,5,),"") ->  | I13: =IFERROR(VLOOKUP(Tabla8[[#This Row],[n°]],CONFIGURACION!$A$7:$K$200,7,),"") ->  | J13: =IFERROR(SUMIFS(TablaBDD[TOTAL DIAS],TablaBDD[NOMBRE],Tabla8[[#This Row],[NOMBRE]])+VLOOKUP(Tabla8[[#This Row],[NOMBRE]],CONFIGURACION!$B$7:$K$200,10,0),"") ->  | K13: =IFERROR(Tabla8[[#This Row],[DIAS ACUMULADOS]]-Tabla8[[#This Row],[DIAS TOMADAS]],"") -> 
D14: 11 | E14: =IFERROR(VLOOKUP(Tabla8[[#This Row],[n°]],CONFIGURACION!$A$7:$K$200,2,),"") -> 0 | F14: =IFERROR(VLOOKUP(Tabla8[[#This Row],[n°]],CONFIGURACION!$A$7:$K$200,3,),"") -> 0 | G14: =IFERROR(VLOOKUP(Tabla8[[#This Row],[n°]],CONFIGURACION!$A$7:$K$200,4,),"") -> 00:00:00 | H14: =IFERROR(VLOOKUP(Tabla8[[#This Row],[n°]],CONFIGURACION!$A$7:$K$200,5,),"") ->  | I14: =IFERROR(VLOOKUP(Tabla8[[#This Row],[n°]],CONFIGURACION!$A$7:$K$200,7,),"") ->  | J14: =IFERROR(SUMIFS(TablaBDD[TOTAL DIAS],TablaBDD[NOMBRE],Tabla8[[#This Row],[NOMBRE]])+VLOOKUP(Tabla8[[#This Row],[NOMBRE]],CONFIGURACION!$B$7:$K$200,10,0),"") ->  | K14: =IFERROR(Tabla8[[#This Row],[DIAS ACUMULADOS]]-Tabla8[[#This Row],[DIAS TOMADAS]],"") -> 
D15: 12 | E15: =IFERROR(VLOOKUP(Tabla8[[#This Row],[n°]],CONFIGURACION!$A$7:$K$200,2,),"") -> 0 | F15: =IFERROR(VLOOKUP(Tabla8[[#This Row],[n°]],CONFIGURACION!$A$7:$K$200,3,),"") -> 0 | G15: =IFERROR(VLOOKUP(Tabla8[[#This Row],[n°]],CONFIGURACION!$A$7:$K$200,4,),"") -> 00:00:00 | H15: =IFERROR(VLOOKUP(Tabla8[[#This Row],[n°]],CONFIGURACION!$A$7:$K$200,5,),"") ->  | I15: =IFERROR(VLOOKUP(Tabla8[[#This Row],[n°]],CONFIGURACION!$A$7:$K$200,7,),"") ->  | J15: =IFERROR(SUMIFS(TablaBDD[TOTAL DIAS],TablaBDD[NOMBRE],Tabla8[[#This Row],[NOMBRE]])+VLOOKUP(Tabla8[[#This Row],[NOMBRE]],CONFIGURACION!$B$7:$K$200,10,0),"") ->  | K15: =IFERROR(Tabla8[[#This Row],[DIAS ACUMULADOS]]-Tabla8[[#This Row],[DIAS TOMADAS]],"") -> 
D16: 13 | E16: =IFERROR(VLOOKUP(Tabla8[[#This Row],[n°]],CONFIGURACION!$A$7:$K$200,2,),"") -> 0 | F16: =IFERROR(VLOOKUP(Tabla8[[#This Row],[n°]],CONFIGURACION!$A$7:$K$200,3,),"") -> 0 | G16: =IFERROR(VLOOKUP(Tabla8[[#This Row],[n°]],CONFIGURACION!$A$7:$K$200,4,),"") -> 00:00:00 | H16: =IFERROR(VLOOKUP(Tabla8[[#This Row],[n°]],CONFIGURACION!$A$7:$K$200,5,),"") ->  | I16: =IFERROR(VLOOKUP(Tabla8[[#This Row],[n°]],CONFIGURACION!$A$7:$K$200,7,),"") ->  | J16: =IFERROR(SUMIFS(TablaBDD[TOTAL DIAS],TablaBDD[NOMBRE],Tabla8[[#This Row],[NOMBRE]])+VLOOKUP(Tabla8[[#This Row],[NOMBRE]],CONFIGURACION!$B$7:$K$200,10,0),"") ->  | K16: =IFERROR(Tabla8[[#This Row],[DIAS ACUMULADOS]]-Tabla8[[#This Row],[DIAS TOMADAS]],"") -> 
D17: 14 | E17: =IFERROR(VLOOKUP(Tabla8[[#This Row],[n°]],CONFIGURACION!$A$7:$K$200,2,),"") -> 0 | F17: =IFERROR(VLOOKUP(Tabla8[[#This Row],[n°]],CONFIGURACION!$A$7:$K$200,3,),"") -> 0 | G17: =IFERROR(VLOOKUP(Tabla8[[#This Row],[n°]],CONFIGURACION!$A$7:$K$200,4,),"") -> 00:00:00 | H17: =IFERROR(VLOOKUP(Tabla8[[#This Row],[n°]],CONFIGURACION!$A$7:$K$200,5,),"") ->  | I17: =IFERROR(VLOOKUP(Tabla8[[#This Row],[n°]],CONFIGURACION!$A$7:$K$200,7,),"") ->  | J17: =IFERROR(SUMIFS(TablaBDD[TOTAL DIAS],TablaBDD[NOMBRE],Tabla8[[#This Row],[NOMBRE]])+VLOOKUP(Tabla8[[#This Row],[NOMBRE]],CONFIGURACION!$B$7:$K$200,10,0),"") ->  | K17: =IFERROR(Tabla8[[#This Row],[DIAS ACUMULADOS]]-Tabla8[[#This Row],[DIAS TOMADAS]],"") -> 
D18: 15 | E18: =IFERROR(VLOOKUP(Tabla8[[#This Row],[n°]],CONFIGURACION!$A$7:$K$200,2,),"") -> 0 | F18: =IFERROR(VLOOKUP(Tabla8[[#This Row],[n°]],CONFIGURACION!$A$7:$K$200,3,),"") -> 0 | G18: =IFERROR(VLOOKUP(Tabla8[[#This Row],[n°]],CONFIGURACION!$A$7:$K$200,4,),"") -> 00:00:00 | H18: =IFERROR(VLOOKUP(Tabla8[[#This Row],[n°]],CONFIGURACION!$A$7:$K$200,5,),"") ->  | I18: =IFERROR(VLOOKUP(Tabla8[[#This Row],[n°]],CONFIGURACION!$A$7:$K$200,7,),"") ->  | J18: =IFERROR(SUMIFS(TablaBDD[TOTAL DIAS],TablaBDD[NOMBRE],Tabla8[[#This Row],[NOMBRE]])+VLOOKUP(Tabla8[[#This Row],[NOMBRE]],CONFIGURACION!$B$7:$K$200,10,0),"") ->  | K18: =IFERROR(Tabla8[[#This Row],[DIAS ACUMULADOS]]-Tabla8[[#This Row],[DIAS TOMADAS]],"") -> 
D19: 16 | E19: =IFERROR(VLOOKUP(Tabla8[[#This Row],[n°]],CONFIGURACION!$A$7:$K$200,2,),"") -> 0 | F19: =IFERROR(VLOOKUP(Tabla8[[#This Row],[n°]],CONFIGURACION!$A$7:$K$200,3,),"") -> 0 | G19: =IFERROR(VLOOKUP(Tabla8[[#This Row],[n°]],CONFIGURACION!$A$7:$K$200,4,),"") -> 00:00:00 | H19: =IFERROR(VLOOKUP(Tabla8[[#This Row],[n°]],CONFIGURACION!$A$7:$K$200,5,),"") ->  | I19: =IFERROR(VLOOKUP(Tabla8[[#This Row],[n°]],CONFIGURACION!$A$7:$K$200,7,),"") ->  | J19: =IFERROR(SUMIFS(TablaBDD[TOTAL DIAS],TablaBDD[NOMBRE],Tabla8[[#This Row],[NOMBRE]])+VLOOKUP(Tabla8[[#This Row],[NOMBRE]],CONFIGURACION!$B$7:$K$200,10,0),"") ->  | K19: =IFERROR(Tabla8[[#This Row],[DIAS ACUMULADOS]]-Tabla8[[#This Row],[DIAS TOMADAS]],"") -> 
D20: 17 | E20: =IFERROR(VLOOKUP(Tabla8[[#This Row],[n°]],CONFIGURACION!$A$7:$K$200,2,),"") -> 0 | F20: =IFERROR(VLOOKUP(Tabla8[[#This Row],[n°]],CONFIGURACION!$A$7:$K$200,3,),"") -> 0 | G20: =IFERROR(VLOOKUP(Tabla8[[#This Row],[n°]],CONFIGURACION!$A$7:$K$200,4,),"") -> 00:00:00 | H20: =IFERROR(VLOOKUP(Tabla8[[#This Row],[n°]],CONFIGURACION!$A$7:$K$200,5,),"") ->  | I20: =IFERROR(VLOOKUP(Tabla8[[#This Row],[n°]],CONFIGURACION!$A$7:$K$200,7,),"") ->  | J20: =IFERROR(SUMIFS(TablaBDD[TOTAL DIAS],TablaBDD[NOMBRE],Tabla8[[#This Row],[NOMBRE]])+VLOOKUP(Tabla8[[#This Row],[NOMBRE]],CONFIGURACION!$B$7:$K$200,10,0),"") ->  | K20: =IFERROR(Tabla8[[#This Row],[DIAS ACUMULADOS]]-Tabla8[[#This Row],[DIAS TOMADAS]],"") -> 
D21: 18 | E21: =IFERROR(VLOOKUP(Tabla8[[#This Row],[n°]],CONFIGURACION!$A$7:$K$200,2,),"") -> 0 | F21: =IFERROR(VLOOKUP(Tabla8[[#This Row],[n°]],CONFIGURACION!$A$7:$K$200,3,),"") -> 0 | G21: =IFERROR(VLOOKUP(Tabla8[[#This Row],[n°]],CONFIGURACION!$A$7:$K$200,4,),"") -> 00:00:00 | H21: =IFERROR(VLOOKUP(Tabla8[[#This Row],[n°]],CONFIGURACION!$A$7:$K$200,5,),"") ->  | I21: =IFERROR(VLOOKUP(Tabla8[[#This Row],[n°]],CONFIGURACION!$A$7:$K$200,7,),"") ->  | J21: =IFERROR(SUMIFS(TablaBDD[TOTAL DIAS],TablaBDD[NOMBRE],Tabla8[[#This Row],[NOMBRE]])+VLOOKUP(Tabla8[[#This Row],[NOMBRE]],CONFIGURACION!$B$7:$K$200,10,0),"") ->  | K21: =IFERROR(Tabla8[[#This Row],[DIAS ACUMULADOS]]-Tabla8[[#This Row],[DIAS TOMADAS]],"") -> 
D22: 19 | E22: =IFERROR(VLOOKUP(Tabla8[[#This Row],[n°]],CONFIGURACION!$A$7:$K$200,2,),"") -> 0 | F22: =IFERROR(VLOOKUP(Tabla8[[#This Row],[n°]],CONFIGURACION!$A$7:$K$200,3,),"") -> 0 | G22: =IFERROR(VLOOKUP(Tabla8[[#This Row],[n°]],CONFIGURACION!$A$7:$K$200,4,),"") -> 00:00:00 | H22: =IFERROR(VLOOKUP(Tabla8[[#This Row],[n°]],CONFIGURACION!$A$7:$K$200,5,),"") ->  | I22: =IFERROR(VLOOKUP(Tabla8[[#This Row],[n°]],CONFIGURACION!$A$7:$K$200,7,),"") ->  | J22: =IFERROR(SUMIFS(TablaBDD[TOTAL DIAS],TablaBDD[NOMBRE],Tabla8[[#This Row],[NOMBRE]])+VLOOKUP(Tabla8[[#This Row],[NOMBRE]],CONFIGURACION!$B$7:$K$200,10,0),"") ->  | K22: =IFERROR(Tabla8[[#This Row],[DIAS ACUMULADOS]]-Tabla8[[#This Row],[DIAS TOMADAS]],"") -> 
D23: 20 | E23: =IFERROR(VLOOKUP(Tabla8[[#This Row],[n°]],CONFIGURACION!$A$7:$K$200,2,),"") -> 0 | F23: =IFERROR(VLOOKUP(Tabla8[[#This Row],[n°]],CONFIGURACION!$A$7:$K$200,3,),"") -> 0 | G23: =IFERROR(VLOOKUP(Tabla8[[#This Row],[n°]],CONFIGURACION!$A$7:$K$200,4,),"") -> 00:00:00 | H23: =IFERROR(VLOOKUP(Tabla8[[#This Row],[n°]],CONFIGURACION!$A$7:$K$200,5,),"") ->  | I23: =IFERROR(VLOOKUP(Tabla8[[#This Row],[n°]],CONFIGURACION!$A$7:$K$200,7,),"") ->  | J23: =IFERROR(SUMIFS(TablaBDD[TOTAL DIAS],TablaBDD[NOMBRE],Tabla8[[#This Row],[NOMBRE]])+VLOOKUP(Tabla8[[#This Row],[NOMBRE]],CONFIGURACION!$B$7:$K$200,10,0),"") ->  | K23: =IFERROR(Tabla8[[#This Row],[DIAS ACUMULADOS]]-Tabla8[[#This Row],[DIAS TOMADAS]],"") -> 
D24: 21 | E24: =IFERROR(VLOOKUP(Tabla8[[#This Row],[n°]],CONFIGURACION!$A$7:$K$200,2,),"") -> 0 | F24: =IFERROR(VLOOKUP(Tabla8[[#This Row],[n°]],CONFIGURACION!$A$7:$K$200,3,),"") -> 0 | G24: =IFERROR(VLOOKUP(Tabla8[[#This Row],[n°]],CONFIGURACION!$A$7:$K$200,4,),"") -> 00:00:00 | H24: =IFERROR(VLOOKUP(Tabla8[[#This Row],[n°]],CONFIGURACION!$A$7:$K$200,5,),"") ->  | I24: =IFERROR(VLOOKUP(Tabla8[[#This Row],[n°]],CONFIGURACION!$A$7:$K$200,7,),"") ->  | J24: =IFERROR(SUMIFS(TablaBDD[TOTAL DIAS],TablaBDD[NOMBRE],Tabla8[[#This Row],[NOMBRE]])+VLOOKUP(Tabla8[[#This Row],[NOMBRE]],CONFIGURACION!$B$7:$K$200,10,0),"") ->  | K24: =IFERROR(Tabla8[[#This Row],[DIAS ACUMULADOS]]-Tabla8[[#This Row],[DIAS TOMADAS]],"") -> 
D25: 22 | E25: =IFERROR(VLOOKUP(Tabla8[[#This Row],[n°]],CONFIGURACION!$A$7:$K$200,2,),"") -> 0 | F25: =IFERROR(VLOOKUP(Tabla8[[#This Row],[n°]],CONFIGURACION!$A$7:$K$200,3,),"") -> 0 | G25: =IFERROR(VLOOKUP(Tabla8[[#This Row],[n°]],CONFIGURACION!$A$7:$K$200,4,),"") -> 00:00:00 | H25: =IFERROR(VLOOKUP(Tabla8[[#This Row],[n°]],CONFIGURACION!$A$7:$K$200,5,),"") ->  | I25: =IFERROR(VLOOKUP(Tabla8[[#This Row],[n°]],CONFIGURACION!$A$7:$K$200,7,),"") ->  | J25: =IFERROR(SUMIFS(TablaBDD[TOTAL DIAS],TablaBDD[NOMBRE],Tabla8[[#This Row],[NOMBRE]])+VLOOKUP(Tabla8[[#This Row],[NOMBRE]],CONFIGURACION!$B$7:$K$200,10,0),"") ->  | K25: =IFERROR(Tabla8[[#This Row],[DIAS ACUMULADOS]]-Tabla8[[#This Row],[DIAS TOMADAS]],"") -> 
D26: 23 | E26: =IFERROR(VLOOKUP(Tabla8[[#This Row],[n°]],CONFIGURACION!$A$7:$K$200,2,),"") -> 0 | F26: =IFERROR(VLOOKUP(Tabla8[[#This Row],[n°]],CONFIGURACION!$A$7:$K$200,3,),"") -> 0 | G26: =IFERROR(VLOOKUP(Tabla8[[#This Row],[n°]],CONFIGURACION!$A$7:$K$200,4,),"") -> 00:00:00 | H26: =IFERROR(VLOOKUP(Tabla8[[#This Row],[n°]],CONFIGURACION!$A$7:$K$200,5,),"") ->  | I26: =IFERROR(VLOOKUP(Tabla8[[#This Row],[n°]],CONFIGURACION!$A$7:$K$200,7,),"") ->  | J26: =IFERROR(SUMIFS(TablaBDD[TOTAL DIAS],TablaBDD[NOMBRE],Tabla8[[#This Row],[NOMBRE]])+VLOOKUP(Tabla8[[#This Row],[NOMBRE]],CONFIGURACION!$B$7:$K$200,10,0),"") ->  | K26: =IFERROR(Tabla8[[#This Row],[DIAS ACUMULADOS]]-Tabla8[[#This Row],[DIAS TOMADAS]],"") -> 
D27: 24 | E27: =IFERROR(VLOOKUP(Tabla8[[#This Row],[n°]],CONFIGURACION!$A$7:$K$200,2,),"") -> 0 | F27: =IFERROR(VLOOKUP(Tabla8[[#This Row],[n°]],CONFIGURACION!$A$7:$K$200,3,),"") -> 0 | G27: =IFERROR(VLOOKUP(Tabla8[[#This Row],[n°]],CONFIGURACION!$A$7:$K$200,4,),"") -> 00:00:00 | H27: =IFERROR(VLOOKUP(Tabla8[[#This Row],[n°]],CONFIGURACION!$A$7:$K$200,5,),"") ->  | I27: =IFERROR(VLOOKUP(Tabla8[[#This Row],[n°]],CONFIGURACION!$A$7:$K$200,7,),"") ->  | J27: =IFERROR(SUMIFS(TablaBDD[TOTAL DIAS],TablaBDD[NOMBRE],Tabla8[[#This Row],[NOMBRE]])+VLOOKUP(Tabla8[[#This Row],[NOMBRE]],CONFIGURACION!$B$7:$K$200,10,0),"") ->  | K27: =IFERROR(Tabla8[[#This Row],[DIAS ACUMULADOS]]-Tabla8[[#This Row],[DIAS TOMADAS]],"") -> 
D28: 25 | E28: =IFERROR(VLOOKUP(Tabla8[[#This Row],[n°]],CONFIGURACION!$A$7:$K$200,2,),"") -> 0 | F28: =IFERROR(VLOOKUP(Tabla8[[#This Row],[n°]],CONFIGURACION!$A$7:$K$200,3,),"") -> 0 | G28: =IFERROR(VLOOKUP(Tabla8[[#This Row],[n°]],CONFIGURACION!$A$7:$K$200,4,),"") -> 00:00:00 | H28: =IFERROR(VLOOKUP(Tabla8[[#This Row],[n°]],CONFIGURACION!$A$7:$K$200,5,),"") ->  | I28: =IFERROR(VLOOKUP(Tabla8[[#This Row],[n°]],CONFIGURACION!$A$7:$K$200,7,),"") ->  | J28: =IFERROR(SUMIFS(TablaBDD[TOTAL DIAS],TablaBDD[NOMBRE],Tabla8[[#This Row],[NOMBRE]])+VLOOKUP(Tabla8[[#This Row],[NOMBRE]],CONFIGURACION!$B$7:$K$200,10,0),"") ->  | K28: =IFERROR(Tabla8[[#This Row],[DIAS ACUMULADOS]]-Tabla8[[#This Row],[DIAS TOMADAS]],"") -> 
D29: 26 | E29: =IFERROR(VLOOKUP(Tabla8[[#This Row],[n°]],CONFIGURACION!$A$7:$K$200,2,),"") -> 0 | F29: =IFERROR(VLOOKUP(Tabla8[[#This Row],[n°]],CONFIGURACION!$A$7:$K$200,3,),"") -> 0 | G29: =IFERROR(VLOOKUP(Tabla8[[#This Row],[n°]],CONFIGURACION!$A$7:$K$200,4,),"") -> 00:00:00 | H29: =IFERROR(VLOOKUP(Tabla8[[#This Row],[n°]],CONFIGURACION!$A$7:$K$200,5,),"") ->  | I29: =IFERROR(VLOOKUP(Tabla8[[#This Row],[n°]],CONFIGURACION!$A$7:$K$200,7,),"") ->  | J29: =IFERROR(SUMIFS(TablaBDD[TOTAL DIAS],TablaBDD[NOMBRE],Tabla8[[#This Row],[NOMBRE]])+VLOOKUP(Tabla8[[#This Row],[NOMBRE]],CONFIGURACION!$B$7:$K$200,10,0),"") ->  | K29: =IFERROR(Tabla8[[#This Row],[DIAS ACUMULADOS]]-Tabla8[[#This Row],[DIAS TOMADAS]],"") -> 
D30: 27 | E30: =IFERROR(VLOOKUP(Tabla8[[#This Row],[n°]],CONFIGURACION!$A$7:$K$200,2,),"") -> 0 | F30: =IFERROR(VLOOKUP(Tabla8[[#This Row],[n°]],CONFIGURACION!$A$7:$K$200,3,),"") -> 0 | G30: =IFERROR(VLOOKUP(Tabla8[[#This Row],[n°]],CONFIGURACION!$A$7:$K$200,4,),"") -> 00:00:00 | H30: =IFERROR(VLOOKUP(Tabla8[[#This Row],[n°]],CONFIGURACION!$A$7:$K$200,5,),"") ->  | I30: =IFERROR(VLOOKUP(Tabla8[[#This Row],[n°]],CONFIGURACION!$A$7:$K$200,7,),"") ->  | J30: =IFERROR(SUMIFS(TablaBDD[TOTAL DIAS],TablaBDD[NOMBRE],Tabla8[[#This Row],[NOMBRE]])+VLOOKUP(Tabla8[[#This Row],[NOMBRE]],CONFIGURACION!$B$7:$K$200,10,0),"") ->  | K30: =IFERROR(Tabla8[[#This Row],[DIAS ACUMULADOS]]-Tabla8[[#This Row],[DIAS TOMADAS]],"") -> 
D31: 28 | E31: =IFERROR(VLOOKUP(Tabla8[[#This Row],[n°]],CONFIGURACION!$A$7:$K$200,2,),"") -> 0 | F31: =IFERROR(VLOOKUP(Tabla8[[#This Row],[n°]],CONFIGURACION!$A$7:$K$200,3,),"") -> 0 | G31: =IFERROR(VLOOKUP(Tabla8[[#This Row],[n°]],CONFIGURACION!$A$7:$K$200,4,),"") -> 00:00:00 | H31: =IFERROR(VLOOKUP(Tabla8[[#This Row],[n°]],CONFIGURACION!$A$7:$K$200,5,),"") ->  | I31: =IFERROR(VLOOKUP(Tabla8[[#This Row],[n°]],CONFIGURACION!$A$7:$K$200,7,),"") ->  | J31: =IFERROR(SUMIFS(TablaBDD[TOTAL DIAS],TablaBDD[NOMBRE],Tabla8[[#This Row],[NOMBRE]])+VLOOKUP(Tabla8[[#This Row],[NOMBRE]],CONFIGURACION!$B$7:$K$200,10,0),"") ->  | K31: =IFERROR(Tabla8[[#This Row],[DIAS ACUMULADOS]]-Tabla8[[#This Row],[DIAS TOMADAS]],"") -> 
D32: 29 | E32: =IFERROR(VLOOKUP(Tabla8[[#This Row],[n°]],CONFIGURACION!$A$7:$K$200,2,),"") -> 0 | F32: =IFERROR(VLOOKUP(Tabla8[[#This Row],[n°]],CONFIGURACION!$A$7:$K$200,3,),"") -> 0 | G32: =IFERROR(VLOOKUP(Tabla8[[#This Row],[n°]],CONFIGURACION!$A$7:$K$200,4,),"") -> 00:00:00 | H32: =IFERROR(VLOOKUP(Tabla8[[#This Row],[n°]],CONFIGURACION!$A$7:$K$200,5,),"") ->  | I32: =IFERROR(VLOOKUP(Tabla8[[#This Row],[n°]],CONFIGURACION!$A$7:$K$200,7,),"") ->  | J32: =IFERROR(SUMIFS(TablaBDD[TOTAL DIAS],TablaBDD[NOMBRE],Tabla8[[#This Row],[NOMBRE]])+VLOOKUP(Tabla8[[#This Row],[NOMBRE]],CONFIGURACION!$B$7:$K$200,10,0),"") ->  | K32: =IFERROR(Tabla8[[#This Row],[DIAS ACUMULADOS]]-Tabla8[[#This Row],[DIAS TOMADAS]],"") -> 
D33: 30 | E33: =IFERROR(VLOOKUP(Tabla8[[#This Row],[n°]],CONFIGURACION!$A$7:$K$200,2,),"") -> 0 | F33: =IFERROR(VLOOKUP(Tabla8[[#This Row],[n°]],CONFIGURACION!$A$7:$K$200,3,),"") -> 0 | G33: =IFERROR(VLOOKUP(Tabla8[[#This Row],[n°]],CONFIGURACION!$A$7:$K$200,4,),"") -> 00:00:00 | H33: =IFERROR(VLOOKUP(Tabla8[[#This Row],[n°]],CONFIGURACION!$A$7:$K$200,5,),"") ->  | I33: =IFERROR(VLOOKUP(Tabla8[[#This Row],[n°]],CONFIGURACION!$A$7:$K$200,7,),"") ->  | J33: =IFERROR(SUMIFS(TablaBDD[TOTAL DIAS],TablaBDD[NOMBRE],Tabla8[[#This Row],[NOMBRE]])+VLOOKUP(Tabla8[[#This Row],[NOMBRE]],CONFIGURACION!$B$7:$K$200,10,0),"") ->  | K33: =IFERROR(Tabla8[[#This Row],[DIAS ACUMULADOS]]-Tabla8[[#This Row],[DIAS TOMADAS]],"") -> 
D34: 31 | E34: =IFERROR(VLOOKUP(Tabla8[[#This Row],[n°]],CONFIGURACION!$A$7:$K$200,2,),"") -> 0 | F34: =IFERROR(VLOOKUP(Tabla8[[#This Row],[n°]],CONFIGURACION!$A$7:$K$200,3,),"") -> 0 | G34: =IFERROR(VLOOKUP(Tabla8[[#This Row],[n°]],CONFIGURACION!$A$7:$K$200,4,),"") -> 00:00:00 | H34: =IFERROR(VLOOKUP(Tabla8[[#This Row],[n°]],CONFIGURACION!$A$7:$K$200,5,),"") ->  | I34: =IFERROR(VLOOKUP(Tabla8[[#This Row],[n°]],CONFIGURACION!$A$7:$K$200,7,),"") ->  | J34: =IFERROR(SUMIFS(TablaBDD[TOTAL DIAS],TablaBDD[NOMBRE],Tabla8[[#This Row],[NOMBRE]])+VLOOKUP(Tabla8[[#This Row],[NOMBRE]],CONFIGURACION!$B$7:$K$200,10,0),"") ->  | K34: =IFERROR(Tabla8[[#This Row],[DIAS ACUMULADOS]]-Tabla8[[#This Row],[DIAS TOMADAS]],"") -> 
D35: 32 | E35: =IFERROR(VLOOKUP(Tabla8[[#This Row],[n°]],CONFIGURACION!$A$7:$K$200,2,),"") -> 0 | F35: =IFERROR(VLOOKUP(Tabla8[[#This Row],[n°]],CONFIGURACION!$A$7:$K$200,3,),"") -> 0 | G35: =IFERROR(VLOOKUP(Tabla8[[#This Row],[n°]],CONFIGURACION!$A$7:$K$200,4,),"") -> 00:00:00 | H35: =IFERROR(VLOOKUP(Tabla8[[#This Row],[n°]],CONFIGURACION!$A$7:$K$200,5,),"") ->  | I35: =IFERROR(VLOOKUP(Tabla8[[#This Row],[n°]],CONFIGURACION!$A$7:$K$200,7,),"") ->  | J35: =IFERROR(SUMIFS(TablaBDD[TOTAL DIAS],TablaBDD[NOMBRE],Tabla8[[#This Row],[NOMBRE]])+VLOOKUP(Tabla8[[#This Row],[NOMBRE]],CONFIGURACION!$B$7:$K$200,10,0),"") ->  | K35: =IFERROR(Tabla8[[#This Row],[DIAS ACUMULADOS]]-Tabla8[[#This Row],[DIAS TOMADAS]],"") -> 
D36: 33 | E36: =IFERROR(VLOOKUP(Tabla8[[#This Row],[n°]],CONFIGURACION!$A$7:$K$200,2,),"") -> 0 | F36: =IFERROR(VLOOKUP(Tabla8[[#This Row],[n°]],CONFIGURACION!$A$7:$K$200,3,),"") -> 0 | G36: =IFERROR(VLOOKUP(Tabla8[[#This Row],[n°]],CONFIGURACION!$A$7:$K$200,4,),"") -> 00:00:00 | H36: =IFERROR(VLOOKUP(Tabla8[[#This Row],[n°]],CONFIGURACION!$A$7:$K$200,5,),"") ->  | I36: =IFERROR(VLOOKUP(Tabla8[[#This Row],[n°]],CONFIGURACION!$A$7:$K$200,7,),"") ->  | J36: =IFERROR(SUMIFS(TablaBDD[TOTAL DIAS],TablaBDD[NOMBRE],Tabla8[[#This Row],[NOMBRE]])+VLOOKUP(Tabla8[[#This Row],[NOMBRE]],CONFIGURACION!$B$7:$K$200,10,0),"") ->  | K36: =IFERROR(Tabla8[[#This Row],[DIAS ACUMULADOS]]-Tabla8[[#This Row],[DIAS TOMADAS]],"") -> 
D37: 34 | E37: =IFERROR(VLOOKUP(Tabla8[[#This Row],[n°]],CONFIGURACION!$A$7:$K$200,2,),"") -> 0 | F37: =IFERROR(VLOOKUP(Tabla8[[#This Row],[n°]],CONFIGURACION!$A$7:$K$200,3,),"") -> 0 | G37: =IFERROR(VLOOKUP(Tabla8[[#This Row],[n°]],CONFIGURACION!$A$7:$K$200,4,),"") -> 00:00:00 | H37: =IFERROR(VLOOKUP(Tabla8[[#This Row],[n°]],CONFIGURACION!$A$7:$K$200,5,),"") ->  | I37: =IFERROR(VLOOKUP(Tabla8[[#This Row],[n°]],CONFIGURACION!$A$7:$K$200,7,),"") ->  | J37: =IFERROR(SUMIFS(TablaBDD[TOTAL DIAS],TablaBDD[NOMBRE],Tabla8[[#This Row],[NOMBRE]])+VLOOKUP(Tabla8[[#This Row],[NOMBRE]],CONFIGURACION!$B$7:$K$200,10,0),"") ->  | K37: =IFERROR(Tabla8[[#This Row],[DIAS ACUMULADOS]]-Tabla8[[#This Row],[DIAS TOMADAS]],"") -> 
D38: 35 | E38: =IFERROR(VLOOKUP(Tabla8[[#This Row],[n°]],CONFIGURACION!$A$7:$K$200,2,),"") -> 0 | F38: =IFERROR(VLOOKUP(Tabla8[[#This Row],[n°]],CONFIGURACION!$A$7:$K$200,3,),"") -> 0 | G38: =IFERROR(VLOOKUP(Tabla8[[#This Row],[n°]],CONFIGURACION!$A$7:$K$200,4,),"") -> 00:00:00 | H38: =IFERROR(VLOOKUP(Tabla8[[#This Row],[n°]],CONFIGURACION!$A$7:$K$200,5,),"") ->  | I38: =IFERROR(VLOOKUP(Tabla8[[#This Row],[n°]],CONFIGURACION!$A$7:$K$200,7,),"") ->  | J38: =IFERROR(SUMIFS(TablaBDD[TOTAL DIAS],TablaBDD[NOMBRE],Tabla8[[#This Row],[NOMBRE]])+VLOOKUP(Tabla8[[#This Row],[NOMBRE]],CONFIGURACION!$B$7:$K$200,10,0),"") ->  | K38: =IFERROR(Tabla8[[#This Row],[DIAS ACUMULADOS]]-Tabla8[[#This Row],[DIAS TOMADAS]],"") -> 
D39: 36 | E39: =IFERROR(VLOOKUP(Tabla8[[#This Row],[n°]],CONFIGURACION!$A$7:$K$200,2,),"") -> 0 | F39: =IFERROR(VLOOKUP(Tabla8[[#This Row],[n°]],CONFIGURACION!$A$7:$K$200,3,),"") -> 0 | G39: =IFERROR(VLOOKUP(Tabla8[[#This Row],[n°]],CONFIGURACION!$A$7:$K$200,4,),"") -> 00:00:00 | H39: =IFERROR(VLOOKUP(Tabla8[[#This Row],[n°]],CONFIGURACION!$A$7:$K$200,5,),"") ->  | I39: =IFERROR(VLOOKUP(Tabla8[[#This Row],[n°]],CONFIGURACION!$A$7:$K$200,7,),"") ->  | J39: =IFERROR(SUMIFS(TablaBDD[TOTAL DIAS],TablaBDD[NOMBRE],Tabla8[[#This Row],[NOMBRE]])+VLOOKUP(Tabla8[[#This Row],[NOMBRE]],CONFIGURACION!$B$7:$K$200,10,0),"") ->  | K39: =IFERROR(Tabla8[[#This Row],[DIAS ACUMULADOS]]-Tabla8[[#This Row],[DIAS TOMADAS]],"") -> 
D40: 37 | E40: =IFERROR(VLOOKUP(Tabla8[[#This Row],[n°]],CONFIGURACION!$A$7:$K$200,2,),"") -> 0 | F40: =IFERROR(VLOOKUP(Tabla8[[#This Row],[n°]],CONFIGURACION!$A$7:$K$200,3,),"") -> 0 | G40: =IFERROR(VLOOKUP(Tabla8[[#This Row],[n°]],CONFIGURACION!$A$7:$K$200,4,),"") -> 00:00:00 | H40: =IFERROR(VLOOKUP(Tabla8[[#This Row],[n°]],CONFIGURACION!$A$7:$K$200,5,),"") ->  | I40: =IFERROR(VLOOKUP(Tabla8[[#This Row],[n°]],CONFIGURACION!$A$7:$K$200,7,),"") ->  | J40: =IFERROR(SUMIFS(TablaBDD[TOTAL DIAS],TablaBDD[NOMBRE],Tabla8[[#This Row],[NOMBRE]])+VLOOKUP(Tabla8[[#This Row],[NOMBRE]],CONFIGURACION!$B$7:$K$200,10,0),"") ->  | K40: =IFERROR(Tabla8[[#This Row],[DIAS ACUMULADOS]]-Tabla8[[#This Row],[DIAS TOMADAS]],"") -> 
D41: 38 | E41: =IFERROR(VLOOKUP(Tabla8[[#This Row],[n°]],CONFIGURACION!$A$7:$K$200,2,),"") -> 0 | F41: =IFERROR(VLOOKUP(Tabla8[[#This Row],[n°]],CONFIGURACION!$A$7:$K$200,3,),"") -> 0 | G41: =IFERROR(VLOOKUP(Tabla8[[#This Row],[n°]],CONFIGURACION!$A$7:$K$200,4,),"") -> 00:00:00 | H41: =IFERROR(VLOOKUP(Tabla8[[#This Row],[n°]],CONFIGURACION!$A$7:$K$200,5,),"") ->  | I41: =IFERROR(VLOOKUP(Tabla8[[#This Row],[n°]],CONFIGURACION!$A$7:$K$200,7,),"") ->  | J41: =IFERROR(SUMIFS(TablaBDD[TOTAL DIAS],TablaBDD[NOMBRE],Tabla8[[#This Row],[NOMBRE]])+VLOOKUP(Tabla8[[#This Row],[NOMBRE]],CONFIGURACION!$B$7:$K$200,10,0),"") ->  | K41: =IFERROR(Tabla8[[#This Row],[DIAS ACUMULADOS]]-Tabla8[[#This Row],[DIAS TOMADAS]],"") -> 
D42: 39 | E42: =IFERROR(VLOOKUP(Tabla8[[#This Row],[n°]],CONFIGURACION!$A$7:$K$200,2,),"") -> 0 | F42: =IFERROR(VLOOKUP(Tabla8[[#This Row],[n°]],CONFIGURACION!$A$7:$K$200,3,),"") -> 0 | G42: =IFERROR(VLOOKUP(Tabla8[[#This Row],[n°]],CONFIGURACION!$A$7:$K$200,4,),"") -> 00:00:00 | H42: =IFERROR(VLOOKUP(Tabla8[[#This Row],[n°]],CONFIGURACION!$A$7:$K$200,5,),"") ->  | I42: =IFERROR(VLOOKUP(Tabla8[[#This Row],[n°]],CONFIGURACION!$A$7:$K$200,7,),"") ->  | J42: =IFERROR(SUMIFS(TablaBDD[TOTAL DIAS],TablaBDD[NOMBRE],Tabla8[[#This Row],[NOMBRE]])+VLOOKUP(Tabla8[[#This Row],[NOMBRE]],CONFIGURACION!$B$7:$K$200,10,0),"") ->  | K42: =IFERROR(Tabla8[[#This Row],[DIAS ACUMULADOS]]-Tabla8[[#This Row],[DIAS TOMADAS]],"") -> 
D43: 40 | E43: =IFERROR(VLOOKUP(Tabla8[[#This Row],[n°]],CONFIGURACION!$A$7:$K$200,2,),"") -> 0 | F43: =IFERROR(VLOOKUP(Tabla8[[#This Row],[n°]],CONFIGURACION!$A$7:$K$200,3,),"") -> 0 | G43: =IFERROR(VLOOKUP(Tabla8[[#This Row],[n°]],CONFIGURACION!$A$7:$K$200,4,),"") -> 00:00:00 | H43: =IFERROR(VLOOKUP(Tabla8[[#This Row],[n°]],CONFIGURACION!$A$7:$K$200,5,),"") ->  | I43: =IFERROR(VLOOKUP(Tabla8[[#This Row],[n°]],CONFIGURACION!$A$7:$K$200,7,),"") ->  | J43: =IFERROR(SUMIFS(TablaBDD[TOTAL DIAS],TablaBDD[NOMBRE],Tabla8[[#This Row],[NOMBRE]])+VLOOKUP(Tabla8[[#This Row],[NOMBRE]],CONFIGURACION!$B$7:$K$200,10,0),"") ->  | K43: =IFERROR(Tabla8[[#This Row],[DIAS ACUMULADOS]]-Tabla8[[#This Row],[DIAS TOMADAS]],"") -> 
D44: 41 | E44: =IFERROR(VLOOKUP(Tabla8[[#This Row],[n°]],CONFIGURACION!$A$7:$K$200,2,),"") -> 0 | F44: =IFERROR(VLOOKUP(Tabla8[[#This Row],[n°]],CONFIGURACION!$A$7:$K$200,3,),"") -> 0 | G44: =IFERROR(VLOOKUP(Tabla8[[#This Row],[n°]],CONFIGURACION!$A$7:$K$200,4,),"") -> 00:00:00 | H44: =IFERROR(VLOOKUP(Tabla8[[#This Row],[n°]],CONFIGURACION!$A$7:$K$200,5,),"") ->  | I44: =IFERROR(VLOOKUP(Tabla8[[#This Row],[n°]],CONFIGURACION!$A$7:$K$200,7,),"") ->  | J44: =IFERROR(SUMIFS(TablaBDD[TOTAL DIAS],TablaBDD[NOMBRE],Tabla8[[#This Row],[NOMBRE]])+VLOOKUP(Tabla8[[#This Row],[NOMBRE]],CONFIGURACION!$B$7:$K$200,10,0),"") ->  | K44: =IFERROR(Tabla8[[#This Row],[DIAS ACUMULADOS]]-Tabla8[[#This Row],[DIAS TOMADAS]],"") -> 
D45: 42 | E45: =IFERROR(VLOOKUP(Tabla8[[#This Row],[n°]],CONFIGURACION!$A$7:$K$200,2,),"") -> 0 | F45: =IFERROR(VLOOKUP(Tabla8[[#This Row],[n°]],CONFIGURACION!$A$7:$K$200,3,),"") -> 0 | G45: =IFERROR(VLOOKUP(Tabla8[[#This Row],[n°]],CONFIGURACION!$A$7:$K$200,4,),"") -> 00:00:00 | H45: =IFERROR(VLOOKUP(Tabla8[[#This Row],[n°]],CONFIGURACION!$A$7:$K$200,5,),"") ->  | I45: =IFERROR(VLOOKUP(Tabla8[[#This Row],[n°]],CONFIGURACION!$A$7:$K$200,7,),"") ->  | J45: =IFERROR(SUMIFS(TablaBDD[TOTAL DIAS],TablaBDD[NOMBRE],Tabla8[[#This Row],[NOMBRE]])+VLOOKUP(Tabla8[[#This Row],[NOMBRE]],CONFIGURACION!$B$7:$K$200,10,0),"") ->  | K45: =IFERROR(Tabla8[[#This Row],[DIAS ACUMULADOS]]-Tabla8[[#This Row],[DIAS TOMADAS]],"") -> 
D46: 43 | E46: =IFERROR(VLOOKUP(Tabla8[[#This Row],[n°]],CONFIGURACION!$A$7:$K$200,2,),"") -> 0 | F46: =IFERROR(VLOOKUP(Tabla8[[#This Row],[n°]],CONFIGURACION!$A$7:$K$200,3,),"") -> 0 | G46: =IFERROR(VLOOKUP(Tabla8[[#This Row],[n°]],CONFIGURACION!$A$7:$K$200,4,),"") -> 00:00:00 | H46: =IFERROR(VLOOKUP(Tabla8[[#This Row],[n°]],CONFIGURACION!$A$7:$K$200,5,),"") -> 0 | I46: =IFERROR(VLOOKUP(Tabla8[[#This Row],[n°]],CONFIGURACION!$A$7:$K$200,7,),"") ->  | J46: =IFERROR(SUMIFS(TablaBDD[TOTAL DIAS],TablaBDD[NOMBRE],Tabla8[[#This Row],[NOMBRE]])+VLOOKUP(Tabla8[[#This Row],[NOMBRE]],CONFIGURACION!$B$7:$K$200,10,0),"") ->  | K46: =IFERROR(Tabla8[[#This Row],[DIAS ACUMULADOS]]-Tabla8[[#This Row],[DIAS TOMADAS]],"") -> 
D47: 44 | E47: =IFERROR(VLOOKUP(Tabla8[[#This Row],[n°]],CONFIGURACION!$A$7:$K$200,2,),"") -> 0 | F47: =IFERROR(VLOOKUP(Tabla8[[#This Row],[n°]],CONFIGURACION!$A$7:$K$200,3,),"") -> 0 | G47: =IFERROR(VLOOKUP(Tabla8[[#This Row],[n°]],CONFIGURACION!$A$7:$K$200,4,),"") -> 00:00:00 | H47: =IFERROR(VLOOKUP(Tabla8[[#This Row],[n°]],CONFIGURACION!$A$7:$K$200,5,),"") -> 0 | I47: =IFERROR(VLOOKUP(Tabla8[[#This Row],[n°]],CONFIGURACION!$A$7:$K$200,7,),"") -> 0 | J47: =IFERROR(SUMIFS(TablaBDD[TOTAL DIAS],TablaBDD[NOMBRE],Tabla8[[#This Row],[NOMBRE]])+VLOOKUP(Tabla8[[#This Row],[NOMBRE]],CONFIGURACION!$B$7:$K$200,10,0),"") ->  | K47: =IFERROR(Tabla8[[#This Row],[DIAS ACUMULADOS]]-Tabla8[[#This Row],[DIAS TOMADAS]],"") -> 
D48: 45 | E48: =IFERROR(VLOOKUP(Tabla8[[#This Row],[n°]],CONFIGURACION!$A$7:$K$200,2,),"") -> 0 | F48: =IFERROR(VLOOKUP(Tabla8[[#This Row],[n°]],CONFIGURACION!$A$7:$K$200,3,),"") -> 0 | G48: =IFERROR(VLOOKUP(Tabla8[[#This Row],[n°]],CONFIGURACION!$A$7:$K$200,4,),"") -> 00:00:00 | H48: =IFERROR(VLOOKUP(Tabla8[[#This Row],[n°]],CONFIGURACION!$A$7:$K$200,5,),"") -> 0 | I48: =IFERROR(VLOOKUP(Tabla8[[#This Row],[n°]],CONFIGURACION!$A$7:$K$200,7,),"") -> 0 | J48: =IFERROR(SUMIFS(TablaBDD[TOTAL DIAS],TablaBDD[NOMBRE],Tabla8[[#This Row],[NOMBRE]])+VLOOKUP(Tabla8[[#This Row],[NOMBRE]],CONFIGURACION!$B$7:$K$200,10,0),"") ->  | K48: =IFERROR(Tabla8[[#This Row],[DIAS ACUMULADOS]]-Tabla8[[#This Row],[DIAS TOMADAS]],"") -> 
D49: 46 | E49: =IFERROR(VLOOKUP(Tabla8[[#This Row],[n°]],CONFIGURACION!$A$7:$K$200,2,),"") -> 0 | F49: =IFERROR(VLOOKUP(Tabla8[[#This Row],[n°]],CONFIGURACION!$A$7:$K$200,3,),"") -> 0 | G49: =IFERROR(VLOOKUP(Tabla8[[#This Row],[n°]],CONFIGURACION!$A$7:$K$200,4,),"") -> 00:00:00 | H49: =IFERROR(VLOOKUP(Tabla8[[#This Row],[n°]],CONFIGURACION!$A$7:$K$200,5,),"") -> 0 | I49: =IFERROR(VLOOKUP(Tabla8[[#This Row],[n°]],CONFIGURACION!$A$7:$K$200,7,),"") -> 0 | J49: =IFERROR(SUMIFS(TablaBDD[TOTAL DIAS],TablaBDD[NOMBRE],Tabla8[[#This Row],[NOMBRE]])+VLOOKUP(Tabla8[[#This Row],[NOMBRE]],CONFIGURACION!$B$7:$K$200,10,0),"") ->  | K49: =IFERROR(Tabla8[[#This Row],[DIAS ACUMULADOS]]-Tabla8[[#This Row],[DIAS TOMADAS]],"") -> 
D50: 47 | E50: =IFERROR(VLOOKUP(Tabla8[[#This Row],[n°]],CONFIGURACION!$A$7:$K$200,2,),"") -> 0 | F50: =IFERROR(VLOOKUP(Tabla8[[#This Row],[n°]],CONFIGURACION!$A$7:$K$200,3,),"") -> 0 | G50: =IFERROR(VLOOKUP(Tabla8[[#This Row],[n°]],CONFIGURACION!$A$7:$K$200,4,),"") -> 00:00:00 | H50: =IFERROR(VLOOKUP(Tabla8[[#This Row],[n°]],CONFIGURACION!$A$7:$K$200,5,),"") -> 0 | I50: =IFERROR(VLOOKUP(Tabla8[[#This Row],[n°]],CONFIGURACION!$A$7:$K$200,7,),"") -> 0 | J50: =IFERROR(SUMIFS(TablaBDD[TOTAL DIAS],TablaBDD[NOMBRE],Tabla8[[#This Row],[NOMBRE]])+VLOOKUP(Tabla8[[#This Row],[NOMBRE]],CONFIGURACION!$B$7:$K$200,10,0),"") ->  | K50: =IFERROR(Tabla8[[#This Row],[DIAS ACUMULADOS]]-Tabla8[[#This Row],[DIAS TOMADAS]],"") -> 
D51: 48 | E51: =IFERROR(VLOOKUP(Tabla8[[#This Row],[n°]],CONFIGURACION!$A$7:$K$200,2,),"") -> 0 | F51: =IFERROR(VLOOKUP(Tabla8[[#This Row],[n°]],CONFIGURACION!$A$7:$K$200,3,),"") -> 0 | G51: =IFERROR(VLOOKUP(Tabla8[[#This Row],[n°]],CONFIGURACION!$A$7:$K$200,4,),"") -> 00:00:00 | H51: =IFERROR(VLOOKUP(Tabla8[[#This Row],[n°]],CONFIGURACION!$A$7:$K$200,5,),"") -> 0 | I51: =IFERROR(VLOOKUP(Tabla8[[#This Row],[n°]],CONFIGURACION!$A$7:$K$200,7,),"") -> 0 | J51: =IFERROR(SUMIFS(TablaBDD[TOTAL DIAS],TablaBDD[NOMBRE],Tabla8[[#This Row],[NOMBRE]])+VLOOKUP(Tabla8[[#This Row],[NOMBRE]],CONFIGURACION!$B$7:$K$200,10,0),"") ->  | K51: =IFERROR(Tabla8[[#This Row],[DIAS ACUMULADOS]]-Tabla8[[#This Row],[DIAS TOMADAS]],"") -> 
D52: 49 | E52: =IFERROR(VLOOKUP(Tabla8[[#This Row],[n°]],CONFIGURACION!$A$7:$K$200,2,),"") -> 0 | F52: =IFERROR(VLOOKUP(Tabla8[[#This Row],[n°]],CONFIGURACION!$A$7:$K$200,3,),"") -> 0 | G52: =IFERROR(VLOOKUP(Tabla8[[#This Row],[n°]],CONFIGURACION!$A$7:$K$200,4,),"") -> 00:00:00 | H52: =IFERROR(VLOOKUP(Tabla8[[#This Row],[n°]],CONFIGURACION!$A$7:$K$200,5,),"") ->  | I52: =IFERROR(VLOOKUP(Tabla8[[#This Row],[n°]],CONFIGURACION!$A$7:$K$200,7,),"") ->  | J52: =IFERROR(SUMIFS(TablaBDD[TOTAL DIAS],TablaBDD[NOMBRE],Tabla8[[#This Row],[NOMBRE]])+VLOOKUP(Tabla8[[#This Row],[NOMBRE]],CONFIGURACION!$B$7:$K$200,10,0),"") ->  | K52: =IFERROR(Tabla8[[#This Row],[DIAS ACUMULADOS]]-Tabla8[[#This Row],[DIAS TOMADAS]],"") -> 
D53: 50 | E53: =IFERROR(VLOOKUP(Tabla8[[#This Row],[n°]],CONFIGURACION!$A$7:$K$200,2,),"") -> 0 | F53: =IFERROR(VLOOKUP(Tabla8[[#This Row],[n°]],CONFIGURACION!$A$7:$K$200,3,),"") -> 0 | G53: =IFERROR(VLOOKUP(Tabla8[[#This Row],[n°]],CONFIGURACION!$A$7:$K$200,4,),"") -> 00:00:00 | H53: =IFERROR(VLOOKUP(Tabla8[[#This Row],[n°]],CONFIGURACION!$A$7:$K$200,5,),"") -> 0 | I53: =IFERROR(VLOOKUP(Tabla8[[#This Row],[n°]],CONFIGURACION!$A$7:$K$200,7,),"") -> 0 | J53: =IFERROR(SUMIFS(TablaBDD[TOTAL DIAS],TablaBDD[NOMBRE],Tabla8[[#This Row],[NOMBRE]])+VLOOKUP(Tabla8[[#This Row],[NOMBRE]],CONFIGURACION!$B$7:$K$200,10,0),"") ->  | K53: =IFERROR(Tabla8[[#This Row],[DIAS ACUMULADOS]]-Tabla8[[#This Row],[DIAS TOMADAS]],"") -> 
D54: 51 | E54: =IFERROR(VLOOKUP(Tabla8[[#This Row],[n°]],CONFIGURACION!$A$7:$K$200,2,),"") -> 0 | F54: =IFERROR(VLOOKUP(Tabla8[[#This Row],[n°]],CONFIGURACION!$A$7:$K$200,3,),"") -> 0 | G54: =IFERROR(VLOOKUP(Tabla8[[#This Row],[n°]],CONFIGURACION!$A$7:$K$200,4,),"") -> 00:00:00 | H54: =IFERROR(VLOOKUP(Tabla8[[#This Row],[n°]],CONFIGURACION!$A$7:$K$200,5,),"") -> 0 | I54: =IFERROR(VLOOKUP(Tabla8[[#This Row],[n°]],CONFIGURACION!$A$7:$K$200,7,),"") -> 0 | J54: =IFERROR(SUMIFS(TablaBDD[TOTAL DIAS],TablaBDD[NOMBRE],Tabla8[[#This Row],[NOMBRE]])+VLOOKUP(Tabla8[[#This Row],[NOMBRE]],CONFIGURACION!$B$7:$K$200,10,0),"") ->  | K54: =IFERROR(Tabla8[[#This Row],[DIAS ACUMULADOS]]-Tabla8[[#This Row],[DIAS TOMADAS]],"") -> 
D55: 52 | E55: =IFERROR(VLOOKUP(Tabla8[[#This Row],[n°]],CONFIGURACION!$A$7:$K$200,2,),"") -> 0 | F55: =IFERROR(VLOOKUP(Tabla8[[#This Row],[n°]],CONFIGURACION!$A$7:$K$200,3,),"") -> 0 | G55: =IFERROR(VLOOKUP(Tabla8[[#This Row],[n°]],CONFIGURACION!$A$7:$K$200,4,),"") -> 00:00:00 | H55: =IFERROR(VLOOKUP(Tabla8[[#This Row],[n°]],CONFIGURACION!$A$7:$K$200,5,),"") -> 0 | I55: =IFERROR(VLOOKUP(Tabla8[[#This Row],[n°]],CONFIGURACION!$A$7:$K$200,7,),"") -> 0 | J55: =IFERROR(SUMIFS(TablaBDD[TOTAL DIAS],TablaBDD[NOMBRE],Tabla8[[#This Row],[NOMBRE]])+VLOOKUP(Tabla8[[#This Row],[NOMBRE]],CONFIGURACION!$B$7:$K$200,10,0),"") ->  | K55: =IFERROR(Tabla8[[#This Row],[DIAS ACUMULADOS]]-Tabla8[[#This Row],[DIAS TOMADAS]],"") -> 
D56: 53 | E56: =IFERROR(VLOOKUP(Tabla8[[#This Row],[n°]],CONFIGURACION!$A$7:$K$200,2,),"") -> 0 | F56: =IFERROR(VLOOKUP(Tabla8[[#This Row],[n°]],CONFIGURACION!$A$7:$K$200,3,),"") -> 0 | G56: =IFERROR(VLOOKUP(Tabla8[[#This Row],[n°]],CONFIGURACION!$A$7:$K$200,4,),"") -> 00:00:00 | H56: =IFERROR(VLOOKUP(Tabla8[[#This Row],[n°]],CONFIGURACION!$A$7:$K$200,5,),"") -> 0 | I56: =IFERROR(VLOOKUP(Tabla8[[#This Row],[n°]],CONFIGURACION!$A$7:$K$200,7,),"") -> 0 | J56: =IFERROR(SUMIFS(TablaBDD[TOTAL DIAS],TablaBDD[NOMBRE],Tabla8[[#This Row],[NOMBRE]])+VLOOKUP(Tabla8[[#This Row],[NOMBRE]],CONFIGURACION!$B$7:$K$200,10,0),"") ->  | K56: =IFERROR(Tabla8[[#This Row],[DIAS ACUMULADOS]]-Tabla8[[#This Row],[DIAS TOMADAS]],"") -> 
D57: 54 | E57: =IFERROR(VLOOKUP(Tabla8[[#This Row],[n°]],CONFIGURACION!$A$7:$K$200,2,),"") -> 0 | F57: =IFERROR(VLOOKUP(Tabla8[[#This Row],[n°]],CONFIGURACION!$A$7:$K$200,3,),"") -> 0 | G57: =IFERROR(VLOOKUP(Tabla8[[#This Row],[n°]],CONFIGURACION!$A$7:$K$200,4,),"") -> 00:00:00 | H57: =IFERROR(VLOOKUP(Tabla8[[#This Row],[n°]],CONFIGURACION!$A$7:$K$200,5,),"") -> 0 | I57: =IFERROR(VLOOKUP(Tabla8[[#This Row],[n°]],CONFIGURACION!$A$7:$K$200,7,),"") -> 0 | J57: =IFERROR(SUMIFS(TablaBDD[TOTAL DIAS],TablaBDD[NOMBRE],Tabla8[[#This Row],[NOMBRE]])+VLOOKUP(Tabla8[[#This Row],[NOMBRE]],CONFIGURACION!$B$7:$K$200,10,0),"") ->  | K57: =IFERROR(Tabla8[[#This Row],[DIAS ACUMULADOS]]-Tabla8[[#This Row],[DIAS TOMADAS]],"") -> 
D58: 55 | E58: =IFERROR(VLOOKUP(Tabla8[[#This Row],[n°]],CONFIGURACION!$A$7:$K$200,2,),"") -> 0 | F58: =IFERROR(VLOOKUP(Tabla8[[#This Row],[n°]],CONFIGURACION!$A$7:$K$200,3,),"") -> 0 | G58: =IFERROR(VLOOKUP(Tabla8[[#This Row],[n°]],CONFIGURACION!$A$7:$K$200,4,),"") -> 00:00:00 | H58: =IFERROR(VLOOKUP(Tabla8[[#This Row],[n°]],CONFIGURACION!$A$7:$K$200,5,),"") -> 0 | I58: =IFERROR(VLOOKUP(Tabla8[[#This Row],[n°]],CONFIGURACION!$A$7:$K$200,7,),"") -> 0 | J58: =IFERROR(SUMIFS(TablaBDD[TOTAL DIAS],TablaBDD[NOMBRE],Tabla8[[#This Row],[NOMBRE]])+VLOOKUP(Tabla8[[#This Row],[NOMBRE]],CONFIGURACION!$B$7:$K$200,10,0),"") ->  | K58: =IFERROR(Tabla8[[#This Row],[DIAS ACUMULADOS]]-Tabla8[[#This Row],[DIAS TOMADAS]],"") -> 
D59: 56 | E59: =IFERROR(VLOOKUP(Tabla8[[#This Row],[n°]],CONFIGURACION!$A$7:$K$200,2,),"") -> 0 | F59: =IFERROR(VLOOKUP(Tabla8[[#This Row],[n°]],CONFIGURACION!$A$7:$K$200,3,),"") -> 0 | G59: =IFERROR(VLOOKUP(Tabla8[[#This Row],[n°]],CONFIGURACION!$A$7:$K$200,4,),"") -> 00:00:00 | H59: =IFERROR(VLOOKUP(Tabla8[[#This Row],[n°]],CONFIGURACION!$A$7:$K$200,5,),"") -> 0 | I59: =IFERROR(VLOOKUP(Tabla8[[#This Row],[n°]],CONFIGURACION!$A$7:$K$200,7,),"") -> 0 | J59: =IFERROR(SUMIFS(TablaBDD[TOTAL DIAS],TablaBDD[NOMBRE],Tabla8[[#This Row],[NOMBRE]])+VLOOKUP(Tabla8[[#This Row],[NOMBRE]],CONFIGURACION!$B$7:$K$200,10,0),"") ->  | K59: =IFERROR(Tabla8[[#This Row],[DIAS ACUMULADOS]]-Tabla8[[#This Row],[DIAS TOMADAS]],"") -> 
D60: 57 | E60: =IFERROR(VLOOKUP(Tabla8[[#This Row],[n°]],CONFIGURACION!$A$7:$K$200,2,),"") -> 0 | F60: =IFERROR(VLOOKUP(Tabla8[[#This Row],[n°]],CONFIGURACION!$A$7:$K$200,3,),"") -> 0 | G60: =IFERROR(VLOOKUP(Tabla8[[#This Row],[n°]],CONFIGURACION!$A$7:$K$200,4,),"") -> 00:00:00 | H60: =IFERROR(VLOOKUP(Tabla8[[#This Row],[n°]],CONFIGURACION!$A$7:$K$200,5,),"") -> 0 | I60: =IFERROR(VLOOKUP(Tabla8[[#This Row],[n°]],CONFIGURACION!$A$7:$K$200,7,),"") -> 0 | J60: =IFERROR(SUMIFS(TablaBDD[TOTAL DIAS],TablaBDD[NOMBRE],Tabla8[[#This Row],[NOMBRE]])+VLOOKUP(Tabla8[[#This Row],[NOMBRE]],CONFIGURACION!$B$7:$K$200,10,0),"") ->  | K60: =IFERROR(Tabla8[[#This Row],[DIAS ACUMULADOS]]-Tabla8[[#This Row],[DIAS TOMADAS]],"") -> 
D61: 58 | E61: =IFERROR(VLOOKUP(Tabla8[[#This Row],[n°]],CONFIGURACION!$A$7:$K$200,2,),"") -> 0 | F61: =IFERROR(VLOOKUP(Tabla8[[#This Row],[n°]],CONFIGURACION!$A$7:$K$200,3,),"") -> 0 | G61: =IFERROR(VLOOKUP(Tabla8[[#This Row],[n°]],CONFIGURACION!$A$7:$K$200,4,),"") -> 00:00:00 | H61: =IFERROR(VLOOKUP(Tabla8[[#This Row],[n°]],CONFIGURACION!$A$7:$K$200,5,),"") -> 0 | I61: =IFERROR(VLOOKUP(Tabla8[[#This Row],[n°]],CONFIGURACION!$A$7:$K$200,7,),"") -> 0 | J61: =IFERROR(SUMIFS(TablaBDD[TOTAL DIAS],TablaBDD[NOMBRE],Tabla8[[#This Row],[NOMBRE]])+VLOOKUP(Tabla8[[#This Row],[NOMBRE]],CONFIGURACION!$B$7:$K$200,10,0),"") ->  | K61: =IFERROR(Tabla8[[#This Row],[DIAS ACUMULADOS]]-Tabla8[[#This Row],[DIAS TOMADAS]],"") -> 
D62: 59 | E62: =IFERROR(VLOOKUP(Tabla8[[#This Row],[n°]],CONFIGURACION!$A$7:$K$200,2,),"") -> 0 | F62: =IFERROR(VLOOKUP(Tabla8[[#This Row],[n°]],CONFIGURACION!$A$7:$K$200,3,),"") -> 0 | G62: =IFERROR(VLOOKUP(Tabla8[[#This Row],[n°]],CONFIGURACION!$A$7:$K$200,4,),"") -> 00:00:00 | H62: =IFERROR(VLOOKUP(Tabla8[[#This Row],[n°]],CONFIGURACION!$A$7:$K$200,5,),"") -> 0 | I62: =IFERROR(VLOOKUP(Tabla8[[#This Row],[n°]],CONFIGURACION!$A$7:$K$200,7,),"") -> 0 | J62: =IFERROR(SUMIFS(TablaBDD[TOTAL DIAS],TablaBDD[NOMBRE],Tabla8[[#This Row],[NOMBRE]])+VLOOKUP(Tabla8[[#This Row],[NOMBRE]],CONFIGURACION!$B$7:$K$200,10,0),"") ->  | K62: =IFERROR(Tabla8[[#This Row],[DIAS ACUMULADOS]]-Tabla8[[#This Row],[DIAS TOMADAS]],"") -> 
D63: 60 | E63: =IFERROR(VLOOKUP(Tabla8[[#This Row],[n°]],CONFIGURACION!$A$7:$K$200,2,),"") -> 0 | F63: =IFERROR(VLOOKUP(Tabla8[[#This Row],[n°]],CONFIGURACION!$A$7:$K$200,3,),"") -> 0 | G63: =IFERROR(VLOOKUP(Tabla8[[#This Row],[n°]],CONFIGURACION!$A$7:$K$200,4,),"") -> 00:00:00 | H63: =IFERROR(VLOOKUP(Tabla8[[#This Row],[n°]],CONFIGURACION!$A$7:$K$200,5,),"") -> 0 | I63: =IFERROR(VLOOKUP(Tabla8[[#This Row],[n°]],CONFIGURACION!$A$7:$K$200,7,),"") -> 0 | J63: =IFERROR(SUMIFS(TablaBDD[TOTAL DIAS],TablaBDD[NOMBRE],Tabla8[[#This Row],[NOMBRE]])+VLOOKUP(Tabla8[[#This Row],[NOMBRE]],CONFIGURACION!$B$7:$K$200,10,0),"") ->  | K63: =IFERROR(Tabla8[[#This Row],[DIAS ACUMULADOS]]-Tabla8[[#This Row],[DIAS TOMADAS]],"") -> 
D64: 61 | E64: =IFERROR(VLOOKUP(Tabla8[[#This Row],[n°]],CONFIGURACION!$A$7:$K$200,2,),"") -> 0 | F64: =IFERROR(VLOOKUP(Tabla8[[#This Row],[n°]],CONFIGURACION!$A$7:$K$200,3,),"") -> 0 | G64: =IFERROR(VLOOKUP(Tabla8[[#This Row],[n°]],CONFIGURACION!$A$7:$K$200,4,),"") -> 00:00:00 | H64: =IFERROR(VLOOKUP(Tabla8[[#This Row],[n°]],CONFIGURACION!$A$7:$K$200,5,),"") -> 0 | I64: =IFERROR(VLOOKUP(Tabla8[[#This Row],[n°]],CONFIGURACION!$A$7:$K$200,7,),"") -> 0 | J64: =IFERROR(SUMIFS(TablaBDD[TOTAL DIAS],TablaBDD[NOMBRE],Tabla8[[#This Row],[NOMBRE]])+VLOOKUP(Tabla8[[#This Row],[NOMBRE]],CONFIGURACION!$B$7:$K$200,10,0),"") ->  | K64: =IFERROR(Tabla8[[#This Row],[DIAS ACUMULADOS]]-Tabla8[[#This Row],[DIAS TOMADAS]],"") -> 
D65: 62 | E65: =IFERROR(VLOOKUP(Tabla8[[#This Row],[n°]],CONFIGURACION!$A$7:$K$200,2,),"") -> 0 | F65: =IFERROR(VLOOKUP(Tabla8[[#This Row],[n°]],CONFIGURACION!$A$7:$K$200,3,),"") -> 0 | G65: =IFERROR(VLOOKUP(Tabla8[[#This Row],[n°]],CONFIGURACION!$A$7:$K$200,4,),"") -> 00:00:00 | H65: =IFERROR(VLOOKUP(Tabla8[[#This Row],[n°]],CONFIGURACION!$A$7:$K$200,5,),"") -> 0 | I65: =IFERROR(VLOOKUP(Tabla8[[#This Row],[n°]],CONFIGURACION!$A$7:$K$200,7,),"") -> 0 | J65: =IFERROR(SUMIFS(TablaBDD[TOTAL DIAS],TablaBDD[NOMBRE],Tabla8[[#This Row],[NOMBRE]])+VLOOKUP(Tabla8[[#This Row],[NOMBRE]],CONFIGURACION!$B$7:$K$200,10,0),"") ->  | K65: =IFERROR(Tabla8[[#This Row],[DIAS ACUMULADOS]]-Tabla8[[#This Row],[DIAS TOMADAS]],"") -> 
D66: 63 | E66: =IFERROR(VLOOKUP(Tabla8[[#This Row],[n°]],CONFIGURACION!$A$7:$K$200,2,),"") -> 0 | F66: =IFERROR(VLOOKUP(Tabla8[[#This Row],[n°]],CONFIGURACION!$A$7:$K$200,3,),"") -> 0 | G66: =IFERROR(VLOOKUP(Tabla8[[#This Row],[n°]],CONFIGURACION!$A$7:$K$200,4,),"") -> 00:00:00 | H66: =IFERROR(VLOOKUP(Tabla8[[#This Row],[n°]],CONFIGURACION!$A$7:$K$200,5,),"") -> 0 | I66: =IFERROR(VLOOKUP(Tabla8[[#This Row],[n°]],CONFIGURACION!$A$7:$K$200,7,),"") -> 0 | J66: =IFERROR(SUMIFS(TablaBDD[TOTAL DIAS],TablaBDD[NOMBRE],Tabla8[[#This Row],[NOMBRE]])+VLOOKUP(Tabla8[[#This Row],[NOMBRE]],CONFIGURACION!$B$7:$K$200,10,0),"") ->  | K66: =IFERROR(Tabla8[[#This Row],[DIAS ACUMULADOS]]-Tabla8[[#This Row],[DIAS TOMADAS]],"") -> 
D67: 64 | E67: =IFERROR(VLOOKUP(Tabla8[[#This Row],[n°]],CONFIGURACION!$A$7:$K$200,2,),"") -> 0 | F67: =IFERROR(VLOOKUP(Tabla8[[#This Row],[n°]],CONFIGURACION!$A$7:$K$200,3,),"") -> 0 | G67: =IFERROR(VLOOKUP(Tabla8[[#This Row],[n°]],CONFIGURACION!$A$7:$K$200,4,),"") -> 00:00:00 | H67: =IFERROR(VLOOKUP(Tabla8[[#This Row],[n°]],CONFIGURACION!$A$7:$K$200,5,),"") -> 0 | I67: =IFERROR(VLOOKUP(Tabla8[[#This Row],[n°]],CONFIGURACION!$A$7:$K$200,7,),"") -> 0 | J67: =IFERROR(SUMIFS(TablaBDD[TOTAL DIAS],TablaBDD[NOMBRE],Tabla8[[#This Row],[NOMBRE]])+VLOOKUP(Tabla8[[#This Row],[NOMBRE]],CONFIGURACION!$B$7:$K$200,10,0),"") ->  | K67: =IFERROR(Tabla8[[#This Row],[DIAS ACUMULADOS]]-Tabla8[[#This Row],[DIAS TOMADAS]],"") -> 
D68: 65 | E68: =IFERROR(VLOOKUP(Tabla8[[#This Row],[n°]],CONFIGURACION!$A$7:$K$200,2,),"") -> 0 | F68: =IFERROR(VLOOKUP(Tabla8[[#This Row],[n°]],CONFIGURACION!$A$7:$K$200,3,),"") -> 0 | G68: =IFERROR(VLOOKUP(Tabla8[[#This Row],[n°]],CONFIGURACION!$A$7:$K$200,4,),"") -> 00:00:00 | H68: =IFERROR(VLOOKUP(Tabla8[[#This Row],[n°]],CONFIGURACION!$A$7:$K$200,5,),"") -> 0 | I68: =IFERROR(VLOOKUP(Tabla8[[#This Row],[n°]],CONFIGURACION!$A$7:$K$200,7,),"") -> 0 | J68: =IFERROR(SUMIFS(TablaBDD[TOTAL DIAS],TablaBDD[NOMBRE],Tabla8[[#This Row],[NOMBRE]])+VLOOKUP(Tabla8[[#This Row],[NOMBRE]],CONFIGURACION!$B$7:$K$200,10,0),"") ->  | K68: =IFERROR(Tabla8[[#This Row],[DIAS ACUMULADOS]]-Tabla8[[#This Row],[DIAS TOMADAS]],"") -> 
D69: 66 | E69: =IFERROR(VLOOKUP(Tabla8[[#This Row],[n°]],CONFIGURACION!$A$7:$K$200,2,),"") -> 0 | F69: =IFERROR(VLOOKUP(Tabla8[[#This Row],[n°]],CONFIGURACION!$A$7:$K$200,3,),"") -> 0 | G69: =IFERROR(VLOOKUP(Tabla8[[#This Row],[n°]],CONFIGURACION!$A$7:$K$200,4,),"") -> 00:00:00 | H69: =IFERROR(VLOOKUP(Tabla8[[#This Row],[n°]],CONFIGURACION!$A$7:$K$200,5,),"") -> 0 | I69: =IFERROR(VLOOKUP(Tabla8[[#This Row],[n°]],CONFIGURACION!$A$7:$K$200,7,),"") -> 0 | J69: =IFERROR(SUMIFS(TablaBDD[TOTAL DIAS],TablaBDD[NOMBRE],Tabla8[[#This Row],[NOMBRE]])+VLOOKUP(Tabla8[[#This Row],[NOMBRE]],CONFIGURACION!$B$7:$K$200,10,0),"") ->  | K69: =IFERROR(Tabla8[[#This Row],[DIAS ACUMULADOS]]-Tabla8[[#This Row],[DIAS TOMADAS]],"") -> 
D70: 67 | E70: =IFERROR(VLOOKUP(Tabla8[[#This Row],[n°]],CONFIGURACION!$A$7:$K$200,2,),"") -> 0 | F70: =IFERROR(VLOOKUP(Tabla8[[#This Row],[n°]],CONFIGURACION!$A$7:$K$200,3,),"") -> 0 | G70: =IFERROR(VLOOKUP(Tabla8[[#This Row],[n°]],CONFIGURACION!$A$7:$K$200,4,),"") -> 00:00:00 | H70: =IFERROR(VLOOKUP(Tabla8[[#This Row],[n°]],CONFIGURACION!$A$7:$K$200,5,),"") -> 0 | I70: =IFERROR(VLOOKUP(Tabla8[[#This Row],[n°]],CONFIGURACION!$A$7:$K$200,7,),"") -> 0 | J70: =IFERROR(SUMIFS(TablaBDD[TOTAL DIAS],TablaBDD[NOMBRE],Tabla8[[#This Row],[NOMBRE]])+VLOOKUP(Tabla8[[#This Row],[NOMBRE]],CONFIGURACION!$B$7:$K$200,10,0),"") ->  | K70: =IFERROR(Tabla8[[#This Row],[DIAS ACUMULADOS]]-Tabla8[[#This Row],[DIAS TOMADAS]],"") -> 
D71: 68 | E71: =IFERROR(VLOOKUP(Tabla8[[#This Row],[n°]],CONFIGURACION!$A$7:$K$200,2,),"") -> 0 | F71: =IFERROR(VLOOKUP(Tabla8[[#This Row],[n°]],CONFIGURACION!$A$7:$K$200,3,),"") -> 0 | G71: =IFERROR(VLOOKUP(Tabla8[[#This Row],[n°]],CONFIGURACION!$A$7:$K$200,4,),"") -> 00:00:00 | H71: =IFERROR(VLOOKUP(Tabla8[[#This Row],[n°]],CONFIGURACION!$A$7:$K$200,5,),"") -> 0 | I71: =IFERROR(VLOOKUP(Tabla8[[#This Row],[n°]],CONFIGURACION!$A$7:$K$200,7,),"") -> 0 | J71: =IFERROR(SUMIFS(TablaBDD[TOTAL DIAS],TablaBDD[NOMBRE],Tabla8[[#This Row],[NOMBRE]])+VLOOKUP(Tabla8[[#This Row],[NOMBRE]],CONFIGURACION!$B$7:$K$200,10,0),"") ->  | K71: =IFERROR(Tabla8[[#This Row],[DIAS ACUMULADOS]]-Tabla8[[#This Row],[DIAS TOMADAS]],"") -> 
D72: 69 | E72: =IFERROR(VLOOKUP(Tabla8[[#This Row],[n°]],CONFIGURACION!$A$7:$K$200,2,),"") -> 0 | F72: =IFERROR(VLOOKUP(Tabla8[[#This Row],[n°]],CONFIGURACION!$A$7:$K$200,3,),"") -> 0 | G72: =IFERROR(VLOOKUP(Tabla8[[#This Row],[n°]],CONFIGURACION!$A$7:$K$200,4,),"") -> 00:00:00 | H72: =IFERROR(VLOOKUP(Tabla8[[#This Row],[n°]],CONFIGURACION!$A$7:$K$200,5,),"") -> 0 | I72: =IFERROR(VLOOKUP(Tabla8[[#This Row],[n°]],CONFIGURACION!$A$7:$K$200,7,),"") -> 0 | J72: =IFERROR(SUMIFS(TablaBDD[TOTAL DIAS],TablaBDD[NOMBRE],Tabla8[[#This Row],[NOMBRE]])+VLOOKUP(Tabla8[[#This Row],[NOMBRE]],CONFIGURACION!$B$7:$K$200,10,0),"") ->  | K72: =IFERROR(Tabla8[[#This Row],[DIAS ACUMULADOS]]-Tabla8[[#This Row],[DIAS TOMADAS]],"") -> 
D73: 70 | E73: =IFERROR(VLOOKUP(Tabla8[[#This Row],[n°]],CONFIGURACION!$A$7:$K$200,2,),"") -> 0 | F73: =IFERROR(VLOOKUP(Tabla8[[#This Row],[n°]],CONFIGURACION!$A$7:$K$200,3,),"") -> 0 | G73: =IFERROR(VLOOKUP(Tabla8[[#This Row],[n°]],CONFIGURACION!$A$7:$K$200,4,),"") -> 00:00:00 | H73: =IFERROR(VLOOKUP(Tabla8[[#This Row],[n°]],CONFIGURACION!$A$7:$K$200,5,),"") -> 0 | I73: =IFERROR(VLOOKUP(Tabla8[[#This Row],[n°]],CONFIGURACION!$A$7:$K$200,7,),"") -> 0 | J73: =IFERROR(SUMIFS(TablaBDD[TOTAL DIAS],TablaBDD[NOMBRE],Tabla8[[#This Row],[NOMBRE]])+VLOOKUP(Tabla8[[#This Row],[NOMBRE]],CONFIGURACION!$B$7:$K$200,10,0),"") ->  | K73: =IFERROR(Tabla8[[#This Row],[DIAS ACUMULADOS]]-Tabla8[[#This Row],[DIAS TOMADAS]],"") -> 
D74: 71 | E74: =IFERROR(VLOOKUP(Tabla8[[#This Row],[n°]],CONFIGURACION!$A$7:$K$200,2,),"") -> 0 | F74: =IFERROR(VLOOKUP(Tabla8[[#This Row],[n°]],CONFIGURACION!$A$7:$K$200,3,),"") -> 0 | G74: =IFERROR(VLOOKUP(Tabla8[[#This Row],[n°]],CONFIGURACION!$A$7:$K$200,4,),"") -> 00:00:00 | H74: =IFERROR(VLOOKUP(Tabla8[[#This Row],[n°]],CONFIGURACION!$A$7:$K$200,5,),"") -> 0 | I74: =IFERROR(VLOOKUP(Tabla8[[#This Row],[n°]],CONFIGURACION!$A$7:$K$200,7,),"") -> 0 | J74: =IFERROR(SUMIFS(TablaBDD[TOTAL DIAS],TablaBDD[NOMBRE],Tabla8[[#This Row],[NOMBRE]])+VLOOKUP(Tabla8[[#This Row],[NOMBRE]],CONFIGURACION!$B$7:$K$200,10,0),"") ->  | K74: =IFERROR(Tabla8[[#This Row],[DIAS ACUMULADOS]]-Tabla8[[#This Row],[DIAS TOMADAS]],"") -> 
D75: 72 | E75: =IFERROR(VLOOKUP(Tabla8[[#This Row],[n°]],CONFIGURACION!$A$7:$K$200,2,),"") -> 0 | F75: =IFERROR(VLOOKUP(Tabla8[[#This Row],[n°]],CONFIGURACION!$A$7:$K$200,3,),"") -> 0 | G75: =IFERROR(VLOOKUP(Tabla8[[#This Row],[n°]],CONFIGURACION!$A$7:$K$200,4,),"") -> 00:00:00 | H75: =IFERROR(VLOOKUP(Tabla8[[#This Row],[n°]],CONFIGURACION!$A$7:$K$200,5,),"") -> 0 | I75: =IFERROR(VLOOKUP(Tabla8[[#This Row],[n°]],CONFIGURACION!$A$7:$K$200,7,),"") -> 0 | J75: =IFERROR(SUMIFS(TablaBDD[TOTAL DIAS],TablaBDD[NOMBRE],Tabla8[[#This Row],[NOMBRE]])+VLOOKUP(Tabla8[[#This Row],[NOMBRE]],CONFIGURACION!$B$7:$K$200,10,0),"") ->  | K75: =IFERROR(Tabla8[[#This Row],[DIAS ACUMULADOS]]-Tabla8[[#This Row],[DIAS TOMADAS]],"") -> 
D76: 73 | E76: =IFERROR(VLOOKUP(Tabla8[[#This Row],[n°]],CONFIGURACION!$A$7:$K$200,2,),"") -> 0 | F76: =IFERROR(VLOOKUP(Tabla8[[#This Row],[n°]],CONFIGURACION!$A$7:$K$200,3,),"") -> 0 | G76: =IFERROR(VLOOKUP(Tabla8[[#This Row],[n°]],CONFIGURACION!$A$7:$K$200,4,),"") -> 00:00:00 | H76: =IFERROR(VLOOKUP(Tabla8[[#This Row],[n°]],CONFIGURACION!$A$7:$K$200,5,),"") -> 0 | I76: =IFERROR(VLOOKUP(Tabla8[[#This Row],[n°]],CONFIGURACION!$A$7:$K$200,7,),"") -> 0 | J76: =IFERROR(SUMIFS(TablaBDD[TOTAL DIAS],TablaBDD[NOMBRE],Tabla8[[#This Row],[NOMBRE]])+VLOOKUP(Tabla8[[#This Row],[NOMBRE]],CONFIGURACION!$B$7:$K$200,10,0),"") ->  | K76: =IFERROR(Tabla8[[#This Row],[DIAS ACUMULADOS]]-Tabla8[[#This Row],[DIAS TOMADAS]],"") -> 
D77: 74 | E77: =IFERROR(VLOOKUP(Tabla8[[#This Row],[n°]],CONFIGURACION!$A$7:$K$200,2,),"") -> 0 | F77: =IFERROR(VLOOKUP(Tabla8[[#This Row],[n°]],CONFIGURACION!$A$7:$K$200,3,),"") -> 0 | G77: =IFERROR(VLOOKUP(Tabla8[[#This Row],[n°]],CONFIGURACION!$A$7:$K$200,4,),"") -> 00:00:00 | H77: =IFERROR(VLOOKUP(Tabla8[[#This Row],[n°]],CONFIGURACION!$A$7:$K$200,5,),"") -> 0 | I77: =IFERROR(VLOOKUP(Tabla8[[#This Row],[n°]],CONFIGURACION!$A$7:$K$200,7,),"") -> 0 | J77: =IFERROR(SUMIFS(TablaBDD[TOTAL DIAS],TablaBDD[NOMBRE],Tabla8[[#This Row],[NOMBRE]])+VLOOKUP(Tabla8[[#This Row],[NOMBRE]],CONFIGURACION!$B$7:$K$200,10,0),"") ->  | K77: =IFERROR(Tabla8[[#This Row],[DIAS ACUMULADOS]]-Tabla8[[#This Row],[DIAS TOMADAS]],"") -> 
D78: 75 | E78: =IFERROR(VLOOKUP(Tabla8[[#This Row],[n°]],CONFIGURACION!$A$7:$K$200,2,),"") -> 0 | F78: =IFERROR(VLOOKUP(Tabla8[[#This Row],[n°]],CONFIGURACION!$A$7:$K$200,3,),"") -> 0 | G78: =IFERROR(VLOOKUP(Tabla8[[#This Row],[n°]],CONFIGURACION!$A$7:$K$200,4,),"") -> 00:00:00 | H78: =IFERROR(VLOOKUP(Tabla8[[#This Row],[n°]],CONFIGURACION!$A$7:$K$200,5,),"") -> 0 | I78: =IFERROR(VLOOKUP(Tabla8[[#This Row],[n°]],CONFIGURACION!$A$7:$K$200,7,),"") -> 0 | J78: =IFERROR(SUMIFS(TablaBDD[TOTAL DIAS],TablaBDD[NOMBRE],Tabla8[[#This Row],[NOMBRE]])+VLOOKUP(Tabla8[[#This Row],[NOMBRE]],CONFIGURACION!$B$7:$K$200,10,0),"") ->  | K78: =IFERROR(Tabla8[[#This Row],[DIAS ACUMULADOS]]-Tabla8[[#This Row],[DIAS TOMADAS]],"") -> 
D79: 76 | E79: =IFERROR(VLOOKUP(Tabla8[[#This Row],[n°]],CONFIGURACION!$A$7:$K$200,2,),"") -> 0 | F79: =IFERROR(VLOOKUP(Tabla8[[#This Row],[n°]],CONFIGURACION!$A$7:$K$200,3,),"") -> 0 | G79: =IFERROR(VLOOKUP(Tabla8[[#This Row],[n°]],CONFIGURACION!$A$7:$K$200,4,),"") -> 00:00:00 | H79: =IFERROR(VLOOKUP(Tabla8[[#This Row],[n°]],CONFIGURACION!$A$7:$K$200,5,),"") -> 0 | I79: =IFERROR(VLOOKUP(Tabla8[[#This Row],[n°]],CONFIGURACION!$A$7:$K$200,7,),"") -> 0 | J79: =IFERROR(SUMIFS(TablaBDD[TOTAL DIAS],TablaBDD[NOMBRE],Tabla8[[#This Row],[NOMBRE]])+VLOOKUP(Tabla8[[#This Row],[NOMBRE]],CONFIGURACION!$B$7:$K$200,10,0),"") ->  | K79: =IFERROR(Tabla8[[#This Row],[DIAS ACUMULADOS]]-Tabla8[[#This Row],[DIAS TOMADAS]],"") -> 
D80: 77 | E80: =IFERROR(VLOOKUP(Tabla8[[#This Row],[n°]],CONFIGURACION!$A$7:$K$200,2,),"") -> 0 | F80: =IFERROR(VLOOKUP(Tabla8[[#This Row],[n°]],CONFIGURACION!$A$7:$K$200,3,),"") -> 0 | G80: =IFERROR(VLOOKUP(Tabla8[[#This Row],[n°]],CONFIGURACION!$A$7:$K$200,4,),"") -> 00:00:00 | H80: =IFERROR(VLOOKUP(Tabla8[[#This Row],[n°]],CONFIGURACION!$A$7:$K$200,5,),"") -> 0 | I80: =IFERROR(VLOOKUP(Tabla8[[#This Row],[n°]],CONFIGURACION!$A$7:$K$200,7,),"") -> 0 | J80: =IFERROR(SUMIFS(TablaBDD[TOTAL DIAS],TablaBDD[NOMBRE],Tabla8[[#This Row],[NOMBRE]])+VLOOKUP(Tabla8[[#This Row],[NOMBRE]],CONFIGURACION!$B$7:$K$200,10,0),"") ->  | K80: =IFERROR(Tabla8[[#This Row],[DIAS ACUMULADOS]]-Tabla8[[#This Row],[DIAS TOMADAS]],"") -> 
D81: 78 | E81: =IFERROR(VLOOKUP(Tabla8[[#This Row],[n°]],CONFIGURACION!$A$7:$K$200,2,),"") -> 0 | F81: =IFERROR(VLOOKUP(Tabla8[[#This Row],[n°]],CONFIGURACION!$A$7:$K$200,3,),"") -> 0 | G81: =IFERROR(VLOOKUP(Tabla8[[#This Row],[n°]],CONFIGURACION!$A$7:$K$200,4,),"") -> 00:00:00 | H81: =IFERROR(VLOOKUP(Tabla8[[#This Row],[n°]],CONFIGURACION!$A$7:$K$200,5,),"") -> 0 | I81: =IFERROR(VLOOKUP(Tabla8[[#This Row],[n°]],CONFIGURACION!$A$7:$K$200,7,),"") -> 0 | J81: =IFERROR(SUMIFS(TablaBDD[TOTAL DIAS],TablaBDD[NOMBRE],Tabla8[[#This Row],[NOMBRE]])+VLOOKUP(Tabla8[[#This Row],[NOMBRE]],CONFIGURACION!$B$7:$K$200,10,0),"") ->  | K81: =IFERROR(Tabla8[[#This Row],[DIAS ACUMULADOS]]-Tabla8[[#This Row],[DIAS TOMADAS]],"") -> 
D82: 79 | E82: =IFERROR(VLOOKUP(Tabla8[[#This Row],[n°]],CONFIGURACION!$A$7:$K$200,2,),"") -> 0 | F82: =IFERROR(VLOOKUP(Tabla8[[#This Row],[n°]],CONFIGURACION!$A$7:$K$200,3,),"") -> 0 | G82: =IFERROR(VLOOKUP(Tabla8[[#This Row],[n°]],CONFIGURACION!$A$7:$K$200,4,),"") -> 00:00:00 | H82: =IFERROR(VLOOKUP(Tabla8[[#This Row],[n°]],CONFIGURACION!$A$7:$K$200,5,),"") -> 0 | I82: =IFERROR(VLOOKUP(Tabla8[[#This Row],[n°]],CONFIGURACION!$A$7:$K$200,7,),"") -> 0 | J82: =IFERROR(SUMIFS(TablaBDD[TOTAL DIAS],TablaBDD[NOMBRE],Tabla8[[#This Row],[NOMBRE]])+VLOOKUP(Tabla8[[#This Row],[NOMBRE]],CONFIGURACION!$B$7:$K$200,10,0),"") ->  | K82: =IFERROR(Tabla8[[#This Row],[DIAS ACUMULADOS]]-Tabla8[[#This Row],[DIAS TOMADAS]],"") -> 
D83: 80 | E83: =IFERROR(VLOOKUP(Tabla8[[#This Row],[n°]],CONFIGURACION!$A$7:$K$200,2,),"") -> 0 | F83: =IFERROR(VLOOKUP(Tabla8[[#This Row],[n°]],CONFIGURACION!$A$7:$K$200,3,),"") -> 0 | G83: =IFERROR(VLOOKUP(Tabla8[[#This Row],[n°]],CONFIGURACION!$A$7:$K$200,4,),"") -> 00:00:00 | H83: =IFERROR(VLOOKUP(Tabla8[[#This Row],[n°]],CONFIGURACION!$A$7:$K$200,5,),"") -> 0 | I83: =IFERROR(VLOOKUP(Tabla8[[#This Row],[n°]],CONFIGURACION!$A$7:$K$200,7,),"") -> 0 | J83: =IFERROR(SUMIFS(TablaBDD[TOTAL DIAS],TablaBDD[NOMBRE],Tabla8[[#This Row],[NOMBRE]])+VLOOKUP(Tabla8[[#This Row],[NOMBRE]],CONFIGURACION!$B$7:$K$200,10,0),"") ->  | K83: =IFERROR(Tabla8[[#This Row],[DIAS ACUMULADOS]]-Tabla8[[#This Row],[DIAS TOMADAS]],"") -> 
D84: 81 | E84: =IFERROR(VLOOKUP(Tabla8[[#This Row],[n°]],CONFIGURACION!$A$7:$K$200,2,),"") -> 0 | F84: =IFERROR(VLOOKUP(Tabla8[[#This Row],[n°]],CONFIGURACION!$A$7:$K$200,3,),"") -> 0 | G84: =IFERROR(VLOOKUP(Tabla8[[#This Row],[n°]],CONFIGURACION!$A$7:$K$200,4,),"") -> 00:00:00 | H84: =IFERROR(VLOOKUP(Tabla8[[#This Row],[n°]],CONFIGURACION!$A$7:$K$200,5,),"") -> 0 | I84: =IFERROR(VLOOKUP(Tabla8[[#This Row],[n°]],CONFIGURACION!$A$7:$K$200,7,),"") -> 0 | J84: =IFERROR(SUMIFS(TablaBDD[TOTAL DIAS],TablaBDD[NOMBRE],Tabla8[[#This Row],[NOMBRE]])+VLOOKUP(Tabla8[[#This Row],[NOMBRE]],CONFIGURACION!$B$7:$K$200,10,0),"") ->  | K84: =IFERROR(Tabla8[[#This Row],[DIAS ACUMULADOS]]-Tabla8[[#This Row],[DIAS TOMADAS]],"") -> 
D85: 82 | E85: =IFERROR(VLOOKUP(Tabla8[[#This Row],[n°]],CONFIGURACION!$A$7:$K$200,2,),"") -> 0 | F85: =IFERROR(VLOOKUP(Tabla8[[#This Row],[n°]],CONFIGURACION!$A$7:$K$200,3,),"") -> 0 | G85: =IFERROR(VLOOKUP(Tabla8[[#This Row],[n°]],CONFIGURACION!$A$7:$K$200,4,),"") -> 00:00:00 | H85: =IFERROR(VLOOKUP(Tabla8[[#This Row],[n°]],CONFIGURACION!$A$7:$K$200,5,),"") -> 0 | I85: =IFERROR(VLOOKUP(Tabla8[[#This Row],[n°]],CONFIGURACION!$A$7:$K$200,7,),"") -> 0 | J85: =IFERROR(SUMIFS(TablaBDD[TOTAL DIAS],TablaBDD[NOMBRE],Tabla8[[#This Row],[NOMBRE]])+VLOOKUP(Tabla8[[#This Row],[NOMBRE]],CONFIGURACION!$B$7:$K$200,10,0),"") ->  | K85: =IFERROR(Tabla8[[#This Row],[DIAS ACUMULADOS]]-Tabla8[[#This Row],[DIAS TOMADAS]],"") -> 
D86: 83 | E86: =IFERROR(VLOOKUP(Tabla8[[#This Row],[n°]],CONFIGURACION!$A$7:$K$200,2,),"") -> 0 | F86: =IFERROR(VLOOKUP(Tabla8[[#This Row],[n°]],CONFIGURACION!$A$7:$K$200,3,),"") -> 0 | G86: =IFERROR(VLOOKUP(Tabla8[[#This Row],[n°]],CONFIGURACION!$A$7:$K$200,4,),"") -> 00:00:00 | H86: =IFERROR(VLOOKUP(Tabla8[[#This Row],[n°]],CONFIGURACION!$A$7:$K$200,5,),"") -> 0 | I86: =IFERROR(VLOOKUP(Tabla8[[#This Row],[n°]],CONFIGURACION!$A$7:$K$200,7,),"") -> 0 | J86: =IFERROR(SUMIFS(TablaBDD[TOTAL DIAS],TablaBDD[NOMBRE],Tabla8[[#This Row],[NOMBRE]])+VLOOKUP(Tabla8[[#This Row],[NOMBRE]],CONFIGURACION!$B$7:$K$200,10,0),"") ->  | K86: =IFERROR(Tabla8[[#This Row],[DIAS ACUMULADOS]]-Tabla8[[#This Row],[DIAS TOMADAS]],"") -> 
D87: 84 | E87: =IFERROR(VLOOKUP(Tabla8[[#This Row],[n°]],CONFIGURACION!$A$7:$K$200,2,),"") -> 0 | F87: =IFERROR(VLOOKUP(Tabla8[[#This Row],[n°]],CONFIGURACION!$A$7:$K$200,3,),"") -> 0 | G87: =IFERROR(VLOOKUP(Tabla8[[#This Row],[n°]],CONFIGURACION!$A$7:$K$200,4,),"") -> 00:00:00 | H87: =IFERROR(VLOOKUP(Tabla8[[#This Row],[n°]],CONFIGURACION!$A$7:$K$200,5,),"") -> 0 | I87: =IFERROR(VLOOKUP(Tabla8[[#This Row],[n°]],CONFIGURACION!$A$7:$K$200,7,),"") -> 0 | J87: =IFERROR(SUMIFS(TablaBDD[TOTAL DIAS],TablaBDD[NOMBRE],Tabla8[[#This Row],[NOMBRE]])+VLOOKUP(Tabla8[[#This Row],[NOMBRE]],CONFIGURACION!$B$7:$K$200,10,0),"") ->  | K87: =IFERROR(Tabla8[[#This Row],[DIAS ACUMULADOS]]-Tabla8[[#This Row],[DIAS TOMADAS]],"") -> 
D88: 85 | E88: =IFERROR(VLOOKUP(Tabla8[[#This Row],[n°]],CONFIGURACION!$A$7:$K$200,2,),"") -> 0 | F88: =IFERROR(VLOOKUP(Tabla8[[#This Row],[n°]],CONFIGURACION!$A$7:$K$200,3,),"") -> 0 | G88: =IFERROR(VLOOKUP(Tabla8[[#This Row],[n°]],CONFIGURACION!$A$7:$K$200,4,),"") -> 00:00:00 | H88: =IFERROR(VLOOKUP(Tabla8[[#This Row],[n°]],CONFIGURACION!$A$7:$K$200,5,),"") -> 0 | I88: =IFERROR(VLOOKUP(Tabla8[[#This Row],[n°]],CONFIGURACION!$A$7:$K$200,7,),"") -> 0 | J88: =IFERROR(SUMIFS(TablaBDD[TOTAL DIAS],TablaBDD[NOMBRE],Tabla8[[#This Row],[NOMBRE]])+VLOOKUP(Tabla8[[#This Row],[NOMBRE]],CONFIGURACION!$B$7:$K$200,10,0),"") ->  | K88: =IFERROR(Tabla8[[#This Row],[DIAS ACUMULADOS]]-Tabla8[[#This Row],[DIAS TOMADAS]],"") -> 
D89: 86 | E89: =IFERROR(VLOOKUP(Tabla8[[#This Row],[n°]],CONFIGURACION!$A$7:$K$200,2,),"") -> 0 | F89: =IFERROR(VLOOKUP(Tabla8[[#This Row],[n°]],CONFIGURACION!$A$7:$K$200,3,),"") -> 0 | G89: =IFERROR(VLOOKUP(Tabla8[[#This Row],[n°]],CONFIGURACION!$A$7:$K$200,4,),"") -> 00:00:00 | H89: =IFERROR(VLOOKUP(Tabla8[[#This Row],[n°]],CONFIGURACION!$A$7:$K$200,5,),"") -> 0 | I89: =IFERROR(VLOOKUP(Tabla8[[#This Row],[n°]],CONFIGURACION!$A$7:$K$200,7,),"") -> 0 | J89: =IFERROR(SUMIFS(TablaBDD[TOTAL DIAS],TablaBDD[NOMBRE],Tabla8[[#This Row],[NOMBRE]])+VLOOKUP(Tabla8[[#This Row],[NOMBRE]],CONFIGURACION!$B$7:$K$200,10,0),"") ->  | K89: =IFERROR(Tabla8[[#This Row],[DIAS ACUMULADOS]]-Tabla8[[#This Row],[DIAS TOMADAS]],"") -> 
D90: 87 | E90: =IFERROR(VLOOKUP(Tabla8[[#This Row],[n°]],CONFIGURACION!$A$7:$K$200,2,),"") -> 0 | F90: =IFERROR(VLOOKUP(Tabla8[[#This Row],[n°]],CONFIGURACION!$A$7:$K$200,3,),"") -> 0 | G90: =IFERROR(VLOOKUP(Tabla8[[#This Row],[n°]],CONFIGURACION!$A$7:$K$200,4,),"") -> 00:00:00 | H90: =IFERROR(VLOOKUP(Tabla8[[#This Row],[n°]],CONFIGURACION!$A$7:$K$200,5,),"") -> 0 | I90: =IFERROR(VLOOKUP(Tabla8[[#This Row],[n°]],CONFIGURACION!$A$7:$K$200,7,),"") -> 0 | J90: =IFERROR(SUMIFS(TablaBDD[TOTAL DIAS],TablaBDD[NOMBRE],Tabla8[[#This Row],[NOMBRE]])+VLOOKUP(Tabla8[[#This Row],[NOMBRE]],CONFIGURACION!$B$7:$K$200,10,0),"") ->  | K90: =IFERROR(Tabla8[[#This Row],[DIAS ACUMULADOS]]-Tabla8[[#This Row],[DIAS TOMADAS]],"") -> 
D91: 88 | E91: =IFERROR(VLOOKUP(Tabla8[[#This Row],[n°]],CONFIGURACION!$A$7:$K$200,2,),"") -> 0 | F91: =IFERROR(VLOOKUP(Tabla8[[#This Row],[n°]],CONFIGURACION!$A$7:$K$200,3,),"") -> 0 | G91: =IFERROR(VLOOKUP(Tabla8[[#This Row],[n°]],CONFIGURACION!$A$7:$K$200,4,),"") -> 00:00:00 | H91: =IFERROR(VLOOKUP(Tabla8[[#This Row],[n°]],CONFIGURACION!$A$7:$K$200,5,),"") -> 0 | I91: =IFERROR(VLOOKUP(Tabla8[[#This Row],[n°]],CONFIGURACION!$A$7:$K$200,7,),"") -> 0 | J91: =IFERROR(SUMIFS(TablaBDD[TOTAL DIAS],TablaBDD[NOMBRE],Tabla8[[#This Row],[NOMBRE]])+VLOOKUP(Tabla8[[#This Row],[NOMBRE]],CONFIGURACION!$B$7:$K$200,10,0),"") ->  | K91: =IFERROR(Tabla8[[#This Row],[DIAS ACUMULADOS]]-Tabla8[[#This Row],[DIAS TOMADAS]],"") -> 
D92: 89 | E92: =IFERROR(VLOOKUP(Tabla8[[#This Row],[n°]],CONFIGURACION!$A$7:$K$200,2,),"") -> 0 | F92: =IFERROR(VLOOKUP(Tabla8[[#This Row],[n°]],CONFIGURACION!$A$7:$K$200,3,),"") -> 0 | G92: =IFERROR(VLOOKUP(Tabla8[[#This Row],[n°]],CONFIGURACION!$A$7:$K$200,4,),"") -> 00:00:00 | H92: =IFERROR(VLOOKUP(Tabla8[[#This Row],[n°]],CONFIGURACION!$A$7:$K$200,5,),"") -> 0 | I92: =IFERROR(VLOOKUP(Tabla8[[#This Row],[n°]],CONFIGURACION!$A$7:$K$200,7,),"") -> 0 | J92: =IFERROR(SUMIFS(TablaBDD[TOTAL DIAS],TablaBDD[NOMBRE],Tabla8[[#This Row],[NOMBRE]])+VLOOKUP(Tabla8[[#This Row],[NOMBRE]],CONFIGURACION!$B$7:$K$200,10,0),"") ->  | K92: =IFERROR(Tabla8[[#This Row],[DIAS ACUMULADOS]]-Tabla8[[#This Row],[DIAS TOMADAS]],"") -> 
D93: 90 | E93: =IFERROR(VLOOKUP(Tabla8[[#This Row],[n°]],CONFIGURACION!$A$7:$K$200,2,),"") -> 0 | F93: =IFERROR(VLOOKUP(Tabla8[[#This Row],[n°]],CONFIGURACION!$A$7:$K$200,3,),"") -> 0 | G93: =IFERROR(VLOOKUP(Tabla8[[#This Row],[n°]],CONFIGURACION!$A$7:$K$200,4,),"") -> 00:00:00 | H93: =IFERROR(VLOOKUP(Tabla8[[#This Row],[n°]],CONFIGURACION!$A$7:$K$200,5,),"") -> 0 | I93: =IFERROR(VLOOKUP(Tabla8[[#This Row],[n°]],CONFIGURACION!$A$7:$K$200,7,),"") -> 0 | J93: =IFERROR(SUMIFS(TablaBDD[TOTAL DIAS],TablaBDD[NOMBRE],Tabla8[[#This Row],[NOMBRE]])+VLOOKUP(Tabla8[[#This Row],[NOMBRE]],CONFIGURACION!$B$7:$K$200,10,0),"") ->  | K93: =IFERROR(Tabla8[[#This Row],[DIAS ACUMULADOS]]-Tabla8[[#This Row],[DIAS TOMADAS]],"") -> 
D94: 91 | E94: =IFERROR(VLOOKUP(Tabla8[[#This Row],[n°]],CONFIGURACION!$A$7:$K$200,2,),"") -> 0 | F94: =IFERROR(VLOOKUP(Tabla8[[#This Row],[n°]],CONFIGURACION!$A$7:$K$200,3,),"") -> 0 | G94: =IFERROR(VLOOKUP(Tabla8[[#This Row],[n°]],CONFIGURACION!$A$7:$K$200,4,),"") -> 00:00:00 | H94: =IFERROR(VLOOKUP(Tabla8[[#This Row],[n°]],CONFIGURACION!$A$7:$K$200,5,),"") -> 0 | I94: =IFERROR(VLOOKUP(Tabla8[[#This Row],[n°]],CONFIGURACION!$A$7:$K$200,7,),"") -> 0 | J94: =IFERROR(SUMIFS(TablaBDD[TOTAL DIAS],TablaBDD[NOMBRE],Tabla8[[#This Row],[NOMBRE]])+VLOOKUP(Tabla8[[#This Row],[NOMBRE]],CONFIGURACION!$B$7:$K$200,10,0),"") ->  | K94: =IFERROR(Tabla8[[#This Row],[DIAS ACUMULADOS]]-Tabla8[[#This Row],[DIAS TOMADAS]],"") -> 
D95: 92 | E95: =IFERROR(VLOOKUP(Tabla8[[#This Row],[n°]],CONFIGURACION!$A$7:$K$200,2,),"") -> 0 | F95: =IFERROR(VLOOKUP(Tabla8[[#This Row],[n°]],CONFIGURACION!$A$7:$K$200,3,),"") -> 0 | G95: =IFERROR(VLOOKUP(Tabla8[[#This Row],[n°]],CONFIGURACION!$A$7:$K$200,4,),"") -> 00:00:00 | H95: =IFERROR(VLOOKUP(Tabla8[[#This Row],[n°]],CONFIGURACION!$A$7:$K$200,5,),"") -> 0 | I95: =IFERROR(VLOOKUP(Tabla8[[#This Row],[n°]],CONFIGURACION!$A$7:$K$200,7,),"") -> 0 | J95: =IFERROR(SUMIFS(TablaBDD[TOTAL DIAS],TablaBDD[NOMBRE],Tabla8[[#This Row],[NOMBRE]])+VLOOKUP(Tabla8[[#This Row],[NOMBRE]],CONFIGURACION!$B$7:$K$200,10,0),"") ->  | K95: =IFERROR(Tabla8[[#This Row],[DIAS ACUMULADOS]]-Tabla8[[#This Row],[DIAS TOMADAS]],"") -> 
D96: 93 | E96: =IFERROR(VLOOKUP(Tabla8[[#This Row],[n°]],CONFIGURACION!$A$7:$K$200,2,),"") -> 0 | F96: =IFERROR(VLOOKUP(Tabla8[[#This Row],[n°]],CONFIGURACION!$A$7:$K$200,3,),"") -> 0 | G96: =IFERROR(VLOOKUP(Tabla8[[#This Row],[n°]],CONFIGURACION!$A$7:$K$200,4,),"") -> 00:00:00 | H96: =IFERROR(VLOOKUP(Tabla8[[#This Row],[n°]],CONFIGURACION!$A$7:$K$200,5,),"") -> 0 | I96: =IFERROR(VLOOKUP(Tabla8[[#This Row],[n°]],CONFIGURACION!$A$7:$K$200,7,),"") -> 0 | J96: =IFERROR(SUMIFS(TablaBDD[TOTAL DIAS],TablaBDD[NOMBRE],Tabla8[[#This Row],[NOMBRE]])+VLOOKUP(Tabla8[[#This Row],[NOMBRE]],CONFIGURACION!$B$7:$K$200,10,0),"") ->  | K96: =IFERROR(Tabla8[[#This Row],[DIAS ACUMULADOS]]-Tabla8[[#This Row],[DIAS TOMADAS]],"") -> 
D97: 94 | E97: =IFERROR(VLOOKUP(Tabla8[[#This Row],[n°]],CONFIGURACION!$A$7:$K$200,2,),"") -> 0 | F97: =IFERROR(VLOOKUP(Tabla8[[#This Row],[n°]],CONFIGURACION!$A$7:$K$200,3,),"") -> 0 | G97: =IFERROR(VLOOKUP(Tabla8[[#This Row],[n°]],CONFIGURACION!$A$7:$K$200,4,),"") -> 00:00:00 | H97: =IFERROR(VLOOKUP(Tabla8[[#This Row],[n°]],CONFIGURACION!$A$7:$K$200,5,),"") -> 0 | I97: =IFERROR(VLOOKUP(Tabla8[[#This Row],[n°]],CONFIGURACION!$A$7:$K$200,7,),"") -> 0 | J97: =IFERROR(SUMIFS(TablaBDD[TOTAL DIAS],TablaBDD[NOMBRE],Tabla8[[#This Row],[NOMBRE]])+VLOOKUP(Tabla8[[#This Row],[NOMBRE]],CONFIGURACION!$B$7:$K$200,10,0),"") ->  | K97: =IFERROR(Tabla8[[#This Row],[DIAS ACUMULADOS]]-Tabla8[[#This Row],[DIAS TOMADAS]],"") -> 
D98: 95 | E98: =IFERROR(VLOOKUP(Tabla8[[#This Row],[n°]],CONFIGURACION!$A$7:$K$200,2,),"") -> 0 | F98: =IFERROR(VLOOKUP(Tabla8[[#This Row],[n°]],CONFIGURACION!$A$7:$K$200,3,),"") -> 0 | G98: =IFERROR(VLOOKUP(Tabla8[[#This Row],[n°]],CONFIGURACION!$A$7:$K$200,4,),"") -> 00:00:00 | H98: =IFERROR(VLOOKUP(Tabla8[[#This Row],[n°]],CONFIGURACION!$A$7:$K$200,5,),"") -> 0 | I98: =IFERROR(VLOOKUP(Tabla8[[#This Row],[n°]],CONFIGURACION!$A$7:$K$200,7,),"") -> 0 | J98: =IFERROR(SUMIFS(TablaBDD[TOTAL DIAS],TablaBDD[NOMBRE],Tabla8[[#This Row],[NOMBRE]])+VLOOKUP(Tabla8[[#This Row],[NOMBRE]],CONFIGURACION!$B$7:$K$200,10,0),"") ->  | K98: =IFERROR(Tabla8[[#This Row],[DIAS ACUMULADOS]]-Tabla8[[#This Row],[DIAS TOMADAS]],"") -> 
D99: 96 | E99: =IFERROR(VLOOKUP(Tabla8[[#This Row],[n°]],CONFIGURACION!$A$7:$K$200,2,),"") -> 0 | F99: =IFERROR(VLOOKUP(Tabla8[[#This Row],[n°]],CONFIGURACION!$A$7:$K$200,3,),"") -> 0 | G99: =IFERROR(VLOOKUP(Tabla8[[#This Row],[n°]],CONFIGURACION!$A$7:$K$200,4,),"") -> 00:00:00 | H99: =IFERROR(VLOOKUP(Tabla8[[#This Row],[n°]],CONFIGURACION!$A$7:$K$200,5,),"") -> 0 | I99: =IFERROR(VLOOKUP(Tabla8[[#This Row],[n°]],CONFIGURACION!$A$7:$K$200,7,),"") -> 0 | J99: =IFERROR(SUMIFS(TablaBDD[TOTAL DIAS],TablaBDD[NOMBRE],Tabla8[[#This Row],[NOMBRE]])+VLOOKUP(Tabla8[[#This Row],[NOMBRE]],CONFIGURACION!$B$7:$K$200,10,0),"") ->  | K99: =IFERROR(Tabla8[[#This Row],[DIAS ACUMULADOS]]-Tabla8[[#This Row],[DIAS TOMADAS]],"") -> 
D100: 97 | E100: =IFERROR(VLOOKUP(Tabla8[[#This Row],[n°]],CONFIGURACION!$A$7:$K$200,2,),"") -> 0 | F100: =IFERROR(VLOOKUP(Tabla8[[#This Row],[n°]],CONFIGURACION!$A$7:$K$200,3,),"") -> 0 | G100: =IFERROR(VLOOKUP(Tabla8[[#This Row],[n°]],CONFIGURACION!$A$7:$K$200,4,),"") -> 00:00:00 | H100: =IFERROR(VLOOKUP(Tabla8[[#This Row],[n°]],CONFIGURACION!$A$7:$K$200,5,),"") -> 0 | I100: =IFERROR(VLOOKUP(Tabla8[[#This Row],[n°]],CONFIGURACION!$A$7:$K$200,7,),"") -> 0 | J100: =IFERROR(SUMIFS(TablaBDD[TOTAL DIAS],TablaBDD[NOMBRE],Tabla8[[#This Row],[NOMBRE]])+VLOOKUP(Tabla8[[#This Row],[NOMBRE]],CONFIGURACION!$B$7:$K$200,10,0),"") ->  | K100: =IFERROR(Tabla8[[#This Row],[DIAS ACUMULADOS]]-Tabla8[[#This Row],[DIAS TOMADAS]],"") -> 
D101: 98 | E101: =IFERROR(VLOOKUP(Tabla8[[#This Row],[n°]],CONFIGURACION!$A$7:$K$200,2,),"") -> 0 | F101: =IFERROR(VLOOKUP(Tabla8[[#This Row],[n°]],CONFIGURACION!$A$7:$K$200,3,),"") -> 0 | G101: =IFERROR(VLOOKUP(Tabla8[[#This Row],[n°]],CONFIGURACION!$A$7:$K$200,4,),"") -> 00:00:00 | H101: =IFERROR(VLOOKUP(Tabla8[[#This Row],[n°]],CONFIGURACION!$A$7:$K$200,5,),"") -> 0 | I101: =IFERROR(VLOOKUP(Tabla8[[#This Row],[n°]],CONFIGURACION!$A$7:$K$200,7,),"") -> 0 | J101: =IFERROR(SUMIFS(TablaBDD[TOTAL DIAS],TablaBDD[NOMBRE],Tabla8[[#This Row],[NOMBRE]])+VLOOKUP(Tabla8[[#This Row],[NOMBRE]],CONFIGURACION!$B$7:$K$200,10,0),"") ->  | K101: =IFERROR(Tabla8[[#This Row],[DIAS ACUMULADOS]]-Tabla8[[#This Row],[DIAS TOMADAS]],"") -> 
D102: 99 | E102: =IFERROR(VLOOKUP(Tabla8[[#This Row],[n°]],CONFIGURACION!$A$7:$K$200,2,),"") -> 0 | F102: =IFERROR(VLOOKUP(Tabla8[[#This Row],[n°]],CONFIGURACION!$A$7:$K$200,3,),"") -> 0 | G102: =IFERROR(VLOOKUP(Tabla8[[#This Row],[n°]],CONFIGURACION!$A$7:$K$200,4,),"") -> 00:00:00 | H102: =IFERROR(VLOOKUP(Tabla8[[#This Row],[n°]],CONFIGURACION!$A$7:$K$200,5,),"") -> 0 | I102: =IFERROR(VLOOKUP(Tabla8[[#This Row],[n°]],CONFIGURACION!$A$7:$K$200,7,),"") -> 0 | J102: =IFERROR(SUMIFS(TablaBDD[TOTAL DIAS],TablaBDD[NOMBRE],Tabla8[[#This Row],[NOMBRE]])+VLOOKUP(Tabla8[[#This Row],[NOMBRE]],CONFIGURACION!$B$7:$K$200,10,0),"") ->  | K102: =IFERROR(Tabla8[[#This Row],[DIAS ACUMULADOS]]-Tabla8[[#This Row],[DIAS TOMADAS]],"") -> 
D103: 100 | E103: =IFERROR(VLOOKUP(Tabla8[[#This Row],[n°]],CONFIGURACION!$A$7:$K$200,2,),"") -> 0 | F103: =IFERROR(VLOOKUP(Tabla8[[#This Row],[n°]],CONFIGURACION!$A$7:$K$200,3,),"") -> 0 | G103: =IFERROR(VLOOKUP(Tabla8[[#This Row],[n°]],CONFIGURACION!$A$7:$K$200,4,),"") -> 00:00:00 | H103: =IFERROR(VLOOKUP(Tabla8[[#This Row],[n°]],CONFIGURACION!$A$7:$K$200,5,),"") -> 0 | I103: =IFERROR(VLOOKUP(Tabla8[[#This Row],[n°]],CONFIGURACION!$A$7:$K$200,7,),"") -> 0 | J103: =IFERROR(SUMIFS(TablaBDD[TOTAL DIAS],TablaBDD[NOMBRE],Tabla8[[#This Row],[NOMBRE]])+VLOOKUP(Tabla8[[#This Row],[NOMBRE]],CONFIGURACION!$B$7:$K$200,10,0),"") ->  | K103: =IFERROR(Tabla8[[#This Row],[DIAS ACUMULADOS]]-Tabla8[[#This Row],[DIAS TOMADAS]],"") -> 
D104: 101 | E104: =IFERROR(VLOOKUP(Tabla8[[#This Row],[n°]],CONFIGURACION!$A$7:$K$200,2,),"") -> 0 | F104: =IFERROR(VLOOKUP(Tabla8[[#This Row],[n°]],CONFIGURACION!$A$7:$K$200,3,),"") -> 0 | G104: =IFERROR(VLOOKUP(Tabla8[[#This Row],[n°]],CONFIGURACION!$A$7:$K$200,4,),"") -> 00:00:00 | H104: =IFERROR(VLOOKUP(Tabla8[[#This Row],[n°]],CONFIGURACION!$A$7:$K$200,5,),"") -> 0 | I104: =IFERROR(VLOOKUP(Tabla8[[#This Row],[n°]],CONFIGURACION!$A$7:$K$200,7,),"") -> 0 | J104: =IFERROR(SUMIFS(TablaBDD[TOTAL DIAS],TablaBDD[NOMBRE],Tabla8[[#This Row],[NOMBRE]])+VLOOKUP(Tabla8[[#This Row],[NOMBRE]],CONFIGURACION!$B$7:$K$200,10,0),"") ->  | K104: =IFERROR(Tabla8[[#This Row],[DIAS ACUMULADOS]]-Tabla8[[#This Row],[DIAS TOMADAS]],"") -> 
D105: 102 | E105: =IFERROR(VLOOKUP(Tabla8[[#This Row],[n°]],CONFIGURACION!$A$7:$K$200,2,),"") -> 0 | F105: =IFERROR(VLOOKUP(Tabla8[[#This Row],[n°]],CONFIGURACION!$A$7:$K$200,3,),"") -> 0 | G105: =IFERROR(VLOOKUP(Tabla8[[#This Row],[n°]],CONFIGURACION!$A$7:$K$200,4,),"") -> 00:00:00 | H105: =IFERROR(VLOOKUP(Tabla8[[#This Row],[n°]],CONFIGURACION!$A$7:$K$200,5,),"") -> 0 | I105: =IFERROR(VLOOKUP(Tabla8[[#This Row],[n°]],CONFIGURACION!$A$7:$K$200,7,),"") -> 0 | J105: =IFERROR(SUMIFS(TablaBDD[TOTAL DIAS],TablaBDD[NOMBRE],Tabla8[[#This Row],[NOMBRE]])+VLOOKUP(Tabla8[[#This Row],[NOMBRE]],CONFIGURACION!$B$7:$K$200,10,0),"") ->  | K105: =IFERROR(Tabla8[[#This Row],[DIAS ACUMULADOS]]-Tabla8[[#This Row],[DIAS TOMADAS]],"") -> 
D106: 103 | E106: =IFERROR(VLOOKUP(Tabla8[[#This Row],[n°]],CONFIGURACION!$A$7:$K$200,2,),"") -> 0 | F106: =IFERROR(VLOOKUP(Tabla8[[#This Row],[n°]],CONFIGURACION!$A$7:$K$200,3,),"") -> 0 | G106: =IFERROR(VLOOKUP(Tabla8[[#This Row],[n°]],CONFIGURACION!$A$7:$K$200,4,),"") -> 00:00:00 | H106: =IFERROR(VLOOKUP(Tabla8[[#This Row],[n°]],CONFIGURACION!$A$7:$K$200,5,),"") -> 0 | I106: =IFERROR(VLOOKUP(Tabla8[[#This Row],[n°]],CONFIGURACION!$A$7:$K$200,7,),"") -> 0 | J106: =IFERROR(SUMIFS(TablaBDD[TOTAL DIAS],TablaBDD[NOMBRE],Tabla8[[#This Row],[NOMBRE]])+VLOOKUP(Tabla8[[#This Row],[NOMBRE]],CONFIGURACION!$B$7:$K$200,10,0),"") ->  | K106: =IFERROR(Tabla8[[#This Row],[DIAS ACUMULADOS]]-Tabla8[[#This Row],[DIAS TOMADAS]],"") -> 
D107: 104 | E107: =IFERROR(VLOOKUP(Tabla8[[#This Row],[n°]],CONFIGURACION!$A$7:$K$200,2,),"") -> 0 | F107: =IFERROR(VLOOKUP(Tabla8[[#This Row],[n°]],CONFIGURACION!$A$7:$K$200,3,),"") -> 0 | G107: =IFERROR(VLOOKUP(Tabla8[[#This Row],[n°]],CONFIGURACION!$A$7:$K$200,4,),"") -> 00:00:00 | H107: =IFERROR(VLOOKUP(Tabla8[[#This Row],[n°]],CONFIGURACION!$A$7:$K$200,5,),"") -> 0 | I107: =IFERROR(VLOOKUP(Tabla8[[#This Row],[n°]],CONFIGURACION!$A$7:$K$200,7,),"") -> 0 | J107: =IFERROR(SUMIFS(TablaBDD[TOTAL DIAS],TablaBDD[NOMBRE],Tabla8[[#This Row],[NOMBRE]])+VLOOKUP(Tabla8[[#This Row],[NOMBRE]],CONFIGURACION!$B$7:$K$200,10,0),"") ->  | K107: =IFERROR(Tabla8[[#This Row],[DIAS ACUMULADOS]]-Tabla8[[#This Row],[DIAS TOMADAS]],"") -> 
D108: 105 | E108: =IFERROR(VLOOKUP(Tabla8[[#This Row],[n°]],CONFIGURACION!$A$7:$K$200,2,),"") -> 0 | F108: =IFERROR(VLOOKUP(Tabla8[[#This Row],[n°]],CONFIGURACION!$A$7:$K$200,3,),"") -> 0 | G108: =IFERROR(VLOOKUP(Tabla8[[#This Row],[n°]],CONFIGURACION!$A$7:$K$200,4,),"") -> 00:00:00 | H108: =IFERROR(VLOOKUP(Tabla8[[#This Row],[n°]],CONFIGURACION!$A$7:$K$200,5,),"") -> 0 | I108: =IFERROR(VLOOKUP(Tabla8[[#This Row],[n°]],CONFIGURACION!$A$7:$K$200,7,),"") -> 0 | J108: =IFERROR(SUMIFS(TablaBDD[TOTAL DIAS],TablaBDD[NOMBRE],Tabla8[[#This Row],[NOMBRE]])+VLOOKUP(Tabla8[[#This Row],[NOMBRE]],CONFIGURACION!$B$7:$K$200,10,0),"") ->  | K108: =IFERROR(Tabla8[[#This Row],[DIAS ACUMULADOS]]-Tabla8[[#This Row],[DIAS TOMADAS]],"") -> 
D109: 106 | E109: =IFERROR(VLOOKUP(Tabla8[[#This Row],[n°]],CONFIGURACION!$A$7:$K$200,2,),"") -> 0 | F109: =IFERROR(VLOOKUP(Tabla8[[#This Row],[n°]],CONFIGURACION!$A$7:$K$200,3,),"") -> 0 | G109: =IFERROR(VLOOKUP(Tabla8[[#This Row],[n°]],CONFIGURACION!$A$7:$K$200,4,),"") -> 00:00:00 | H109: =IFERROR(VLOOKUP(Tabla8[[#This Row],[n°]],CONFIGURACION!$A$7:$K$200,5,),"") -> 0 | I109: =IFERROR(VLOOKUP(Tabla8[[#This Row],[n°]],CONFIGURACION!$A$7:$K$200,7,),"") -> 0 | J109: =IFERROR(SUMIFS(TablaBDD[TOTAL DIAS],TablaBDD[NOMBRE],Tabla8[[#This Row],[NOMBRE]])+VLOOKUP(Tabla8[[#This Row],[NOMBRE]],CONFIGURACION!$B$7:$K$200,10,0),"") ->  | K109: =IFERROR(Tabla8[[#This Row],[DIAS ACUMULADOS]]-Tabla8[[#This Row],[DIAS TOMADAS]],"") -> 
D110: 107 | E110: =IFERROR(VLOOKUP(Tabla8[[#This Row],[n°]],CONFIGURACION!$A$7:$K$200,2,),"") -> 0 | F110: =IFERROR(VLOOKUP(Tabla8[[#This Row],[n°]],CONFIGURACION!$A$7:$K$200,3,),"") -> 0 | G110: =IFERROR(VLOOKUP(Tabla8[[#This Row],[n°]],CONFIGURACION!$A$7:$K$200,4,),"") -> 00:00:00 | H110: =IFERROR(VLOOKUP(Tabla8[[#This Row],[n°]],CONFIGURACION!$A$7:$K$200,5,),"") -> 0 | I110: =IFERROR(VLOOKUP(Tabla8[[#This Row],[n°]],CONFIGURACION!$A$7:$K$200,7,),"") -> 0 | J110: =IFERROR(SUMIFS(TablaBDD[TOTAL DIAS],TablaBDD[NOMBRE],Tabla8[[#This Row],[NOMBRE]])+VLOOKUP(Tabla8[[#This Row],[NOMBRE]],CONFIGURACION!$B$7:$K$200,10,0),"") ->  | K110: =IFERROR(Tabla8[[#This Row],[DIAS ACUMULADOS]]-Tabla8[[#This Row],[DIAS TOMADAS]],"") -> 
D111: 108 | E111: =IFERROR(VLOOKUP(Tabla8[[#This Row],[n°]],CONFIGURACION!$A$7:$K$200,2,),"") -> 0 | F111: =IFERROR(VLOOKUP(Tabla8[[#This Row],[n°]],CONFIGURACION!$A$7:$K$200,3,),"") -> 0 | G111: =IFERROR(VLOOKUP(Tabla8[[#This Row],[n°]],CONFIGURACION!$A$7:$K$200,4,),"") -> 00:00:00 | H111: =IFERROR(VLOOKUP(Tabla8[[#This Row],[n°]],CONFIGURACION!$A$7:$K$200,5,),"") -> 0 | I111: =IFERROR(VLOOKUP(Tabla8[[#This Row],[n°]],CONFIGURACION!$A$7:$K$200,7,),"") -> 0 | J111: =IFERROR(SUMIFS(TablaBDD[TOTAL DIAS],TablaBDD[NOMBRE],Tabla8[[#This Row],[NOMBRE]])+VLOOKUP(Tabla8[[#This Row],[NOMBRE]],CONFIGURACION!$B$7:$K$200,10,0),"") ->  | K111: =IFERROR(Tabla8[[#This Row],[DIAS ACUMULADOS]]-Tabla8[[#This Row],[DIAS TOMADAS]],"") -> 
D112: 109 | E112: =IFERROR(VLOOKUP(Tabla8[[#This Row],[n°]],CONFIGURACION!$A$7:$K$200,2,),"") -> 0 | F112: =IFERROR(VLOOKUP(Tabla8[[#This Row],[n°]],CONFIGURACION!$A$7:$K$200,3,),"") -> 0 | G112: =IFERROR(VLOOKUP(Tabla8[[#This Row],[n°]],CONFIGURACION!$A$7:$K$200,4,),"") -> 00:00:00 | H112: =IFERROR(VLOOKUP(Tabla8[[#This Row],[n°]],CONFIGURACION!$A$7:$K$200,5,),"") -> 0 | I112: =IFERROR(VLOOKUP(Tabla8[[#This Row],[n°]],CONFIGURACION!$A$7:$K$200,7,),"") -> 0 | J112: =IFERROR(SUMIFS(TablaBDD[TOTAL DIAS],TablaBDD[NOMBRE],Tabla8[[#This Row],[NOMBRE]])+VLOOKUP(Tabla8[[#This Row],[NOMBRE]],CONFIGURACION!$B$7:$K$200,10,0),"") ->  | K112: =IFERROR(Tabla8[[#This Row],[DIAS ACUMULADOS]]-Tabla8[[#This Row],[DIAS TOMADAS]],"") -> 
D113: 110 | E113: =IFERROR(VLOOKUP(Tabla8[[#This Row],[n°]],CONFIGURACION!$A$7:$K$200,2,),"") -> 0 | F113: =IFERROR(VLOOKUP(Tabla8[[#This Row],[n°]],CONFIGURACION!$A$7:$K$200,3,),"") -> 0 | G113: =IFERROR(VLOOKUP(Tabla8[[#This Row],[n°]],CONFIGURACION!$A$7:$K$200,4,),"") -> 00:00:00 | H113: =IFERROR(VLOOKUP(Tabla8[[#This Row],[n°]],CONFIGURACION!$A$7:$K$200,5,),"") -> 0 | I113: =IFERROR(VLOOKUP(Tabla8[[#This Row],[n°]],CONFIGURACION!$A$7:$K$200,7,),"") -> 0 | J113: =IFERROR(SUMIFS(TablaBDD[TOTAL DIAS],TablaBDD[NOMBRE],Tabla8[[#This Row],[NOMBRE]])+VLOOKUP(Tabla8[[#This Row],[NOMBRE]],CONFIGURACION!$B$7:$K$200,10,0),"") ->  | K113: =IFERROR(Tabla8[[#This Row],[DIAS ACUMULADOS]]-Tabla8[[#This Row],[DIAS TOMADAS]],"") -> 
D114: 111 | E114: =IFERROR(VLOOKUP(Tabla8[[#This Row],[n°]],CONFIGURACION!$A$7:$K$200,2,),"") -> 0 | F114: =IFERROR(VLOOKUP(Tabla8[[#This Row],[n°]],CONFIGURACION!$A$7:$K$200,3,),"") -> 0 | G114: =IFERROR(VLOOKUP(Tabla8[[#This Row],[n°]],CONFIGURACION!$A$7:$K$200,4,),"") -> 00:00:00 | H114: =IFERROR(VLOOKUP(Tabla8[[#This Row],[n°]],CONFIGURACION!$A$7:$K$200,5,),"") -> 0 | I114: =IFERROR(VLOOKUP(Tabla8[[#This Row],[n°]],CONFIGURACION!$A$7:$K$200,7,),"") -> 0 | J114: =IFERROR(SUMIFS(TablaBDD[TOTAL DIAS],TablaBDD[NOMBRE],Tabla8[[#This Row],[NOMBRE]])+VLOOKUP(Tabla8[[#This Row],[NOMBRE]],CONFIGURACION!$B$7:$K$200,10,0),"") ->  | K114: =IFERROR(Tabla8[[#This Row],[DIAS ACUMULADOS]]-Tabla8[[#This Row],[DIAS TOMADAS]],"") -> 
D115: 112 | E115: =IFERROR(VLOOKUP(Tabla8[[#This Row],[n°]],CONFIGURACION!$A$7:$K$200,2,),"") -> 0 | F115: =IFERROR(VLOOKUP(Tabla8[[#This Row],[n°]],CONFIGURACION!$A$7:$K$200,3,),"") -> 0 | G115: =IFERROR(VLOOKUP(Tabla8[[#This Row],[n°]],CONFIGURACION!$A$7:$K$200,4,),"") -> 00:00:00 | H115: =IFERROR(VLOOKUP(Tabla8[[#This Row],[n°]],CONFIGURACION!$A$7:$K$200,5,),"") -> 0 | I115: =IFERROR(VLOOKUP(Tabla8[[#This Row],[n°]],CONFIGURACION!$A$7:$K$200,7,),"") -> 0 | J115: =IFERROR(SUMIFS(TablaBDD[TOTAL DIAS],TablaBDD[NOMBRE],Tabla8[[#This Row],[NOMBRE]])+VLOOKUP(Tabla8[[#This Row],[NOMBRE]],CONFIGURACION!$B$7:$K$200,10,0),"") ->  | K115: =IFERROR(Tabla8[[#This Row],[DIAS ACUMULADOS]]-Tabla8[[#This Row],[DIAS TOMADAS]],"") -> 
D116: 113 | E116: =IFERROR(VLOOKUP(Tabla8[[#This Row],[n°]],CONFIGURACION!$A$7:$K$200,2,),"") -> 0 | F116: =IFERROR(VLOOKUP(Tabla8[[#This Row],[n°]],CONFIGURACION!$A$7:$K$200,3,),"") -> 0 | G116: =IFERROR(VLOOKUP(Tabla8[[#This Row],[n°]],CONFIGURACION!$A$7:$K$200,4,),"") -> 00:00:00 | H116: =IFERROR(VLOOKUP(Tabla8[[#This Row],[n°]],CONFIGURACION!$A$7:$K$200,5,),"") -> 0 | I116: =IFERROR(VLOOKUP(Tabla8[[#This Row],[n°]],CONFIGURACION!$A$7:$K$200,7,),"") -> 0 | J116: =IFERROR(SUMIFS(TablaBDD[TOTAL DIAS],TablaBDD[NOMBRE],Tabla8[[#This Row],[NOMBRE]])+VLOOKUP(Tabla8[[#This Row],[NOMBRE]],CONFIGURACION!$B$7:$K$200,10,0),"") ->  | K116: =IFERROR(Tabla8[[#This Row],[DIAS ACUMULADOS]]-Tabla8[[#This Row],[DIAS TOMADAS]],"") -> 
D117: 114 | E117: =IFERROR(VLOOKUP(Tabla8[[#This Row],[n°]],CONFIGURACION!$A$7:$K$200,2,),"") -> 0 | F117: =IFERROR(VLOOKUP(Tabla8[[#This Row],[n°]],CONFIGURACION!$A$7:$K$200,3,),"") -> 0 | G117: =IFERROR(VLOOKUP(Tabla8[[#This Row],[n°]],CONFIGURACION!$A$7:$K$200,4,),"") -> 00:00:00 | H117: =IFERROR(VLOOKUP(Tabla8[[#This Row],[n°]],CONFIGURACION!$A$7:$K$200,5,),"") -> 0 | I117: =IFERROR(VLOOKUP(Tabla8[[#This Row],[n°]],CONFIGURACION!$A$7:$K$200,7,),"") -> 0 | J117: =IFERROR(SUMIFS(TablaBDD[TOTAL DIAS],TablaBDD[NOMBRE],Tabla8[[#This Row],[NOMBRE]])+VLOOKUP(Tabla8[[#This Row],[NOMBRE]],CONFIGURACION!$B$7:$K$200,10,0),"") ->  | K117: =IFERROR(Tabla8[[#This Row],[DIAS ACUMULADOS]]-Tabla8[[#This Row],[DIAS TOMADAS]],"") -> 
D118: 115 | E118: =IFERROR(VLOOKUP(Tabla8[[#This Row],[n°]],CONFIGURACION!$A$7:$K$200,2,),"") -> 0 | F118: =IFERROR(VLOOKUP(Tabla8[[#This Row],[n°]],CONFIGURACION!$A$7:$K$200,3,),"") -> 0 | G118: =IFERROR(VLOOKUP(Tabla8[[#This Row],[n°]],CONFIGURACION!$A$7:$K$200,4,),"") -> 00:00:00 | H118: =IFERROR(VLOOKUP(Tabla8[[#This Row],[n°]],CONFIGURACION!$A$7:$K$200,5,),"") -> 0 | I118: =IFERROR(VLOOKUP(Tabla8[[#This Row],[n°]],CONFIGURACION!$A$7:$K$200,7,),"") -> 0 | J118: =IFERROR(SUMIFS(TablaBDD[TOTAL DIAS],TablaBDD[NOMBRE],Tabla8[[#This Row],[NOMBRE]])+VLOOKUP(Tabla8[[#This Row],[NOMBRE]],CONFIGURACION!$B$7:$K$200,10,0),"") ->  | K118: =IFERROR(Tabla8[[#This Row],[DIAS ACUMULADOS]]-Tabla8[[#This Row],[DIAS TOMADAS]],"") -> 
D119: 116 | E119: =IFERROR(VLOOKUP(Tabla8[[#This Row],[n°]],CONFIGURACION!$A$7:$K$200,2,),"") -> 0 | F119: =IFERROR(VLOOKUP(Tabla8[[#This Row],[n°]],CONFIGURACION!$A$7:$K$200,3,),"") -> 0 | G119: =IFERROR(VLOOKUP(Tabla8[[#This Row],[n°]],CONFIGURACION!$A$7:$K$200,4,),"") -> 00:00:00 | H119: =IFERROR(VLOOKUP(Tabla8[[#This Row],[n°]],CONFIGURACION!$A$7:$K$200,5,),"") -> 0 | I119: =IFERROR(VLOOKUP(Tabla8[[#This Row],[n°]],CONFIGURACION!$A$7:$K$200,7,),"") -> 0 | J119: =IFERROR(SUMIFS(TablaBDD[TOTAL DIAS],TablaBDD[NOMBRE],Tabla8[[#This Row],[NOMBRE]])+VLOOKUP(Tabla8[[#This Row],[NOMBRE]],CONFIGURACION!$B$7:$K$200,10,0),"") ->  | K119: =IFERROR(Tabla8[[#This Row],[DIAS ACUMULADOS]]-Tabla8[[#This Row],[DIAS TOMADAS]],"") -> 
D120: 117 | E120: =IFERROR(VLOOKUP(Tabla8[[#This Row],[n°]],CONFIGURACION!$A$7:$K$200,2,),"") -> 0 | F120: =IFERROR(VLOOKUP(Tabla8[[#This Row],[n°]],CONFIGURACION!$A$7:$K$200,3,),"") -> 0 | G120: =IFERROR(VLOOKUP(Tabla8[[#This Row],[n°]],CONFIGURACION!$A$7:$K$200,4,),"") -> 00:00:00 | H120: =IFERROR(VLOOKUP(Tabla8[[#This Row],[n°]],CONFIGURACION!$A$7:$K$200,5,),"") -> 0 | I120: =IFERROR(VLOOKUP(Tabla8[[#This Row],[n°]],CONFIGURACION!$A$7:$K$200,7,),"") -> 0 | J120: =IFERROR(SUMIFS(TablaBDD[TOTAL DIAS],TablaBDD[NOMBRE],Tabla8[[#This Row],[NOMBRE]])+VLOOKUP(Tabla8[[#This Row],[NOMBRE]],CONFIGURACION!$B$7:$K$200,10,0),"") ->  | K120: =IFERROR(Tabla8[[#This Row],[DIAS ACUMULADOS]]-Tabla8[[#This Row],[DIAS TOMADAS]],"") -> 
D121: 118 | E121: =IFERROR(VLOOKUP(Tabla8[[#This Row],[n°]],CONFIGURACION!$A$7:$K$200,2,),"") -> 0 | F121: =IFERROR(VLOOKUP(Tabla8[[#This Row],[n°]],CONFIGURACION!$A$7:$K$200,3,),"") -> 0 | G121: =IFERROR(VLOOKUP(Tabla8[[#This Row],[n°]],CONFIGURACION!$A$7:$K$200,4,),"") -> 00:00:00 | H121: =IFERROR(VLOOKUP(Tabla8[[#This Row],[n°]],CONFIGURACION!$A$7:$K$200,5,),"") -> 0 | I121: =IFERROR(VLOOKUP(Tabla8[[#This Row],[n°]],CONFIGURACION!$A$7:$K$200,7,),"") -> 0 | J121: =IFERROR(SUMIFS(TablaBDD[TOTAL DIAS],TablaBDD[NOMBRE],Tabla8[[#This Row],[NOMBRE]])+VLOOKUP(Tabla8[[#This Row],[NOMBRE]],CONFIGURACION!$B$7:$K$200,10,0),"") ->  | K121: =IFERROR(Tabla8[[#This Row],[DIAS ACUMULADOS]]-Tabla8[[#This Row],[DIAS TOMADAS]],"") -> 
D122: 119 | E122: =IFERROR(VLOOKUP(Tabla8[[#This Row],[n°]],CONFIGURACION!$A$7:$K$200,2,),"") -> 0 | F122: =IFERROR(VLOOKUP(Tabla8[[#This Row],[n°]],CONFIGURACION!$A$7:$K$200,3,),"") -> 0 | G122: =IFERROR(VLOOKUP(Tabla8[[#This Row],[n°]],CONFIGURACION!$A$7:$K$200,4,),"") -> 00:00:00 | H122: =IFERROR(VLOOKUP(Tabla8[[#This Row],[n°]],CONFIGURACION!$A$7:$K$200,5,),"") -> 0 | I122: =IFERROR(VLOOKUP(Tabla8[[#This Row],[n°]],CONFIGURACION!$A$7:$K$200,7,),"") -> 0 | J122: =IFERROR(SUMIFS(TablaBDD[TOTAL DIAS],TablaBDD[NOMBRE],Tabla8[[#This Row],[NOMBRE]])+VLOOKUP(Tabla8[[#This Row],[NOMBRE]],CONFIGURACION!$B$7:$K$200,10,0),"") ->  | K122: =IFERROR(Tabla8[[#This Row],[DIAS ACUMULADOS]]-Tabla8[[#This Row],[DIAS TOMADAS]],"") -> 
D123: 120 | E123: =IFERROR(VLOOKUP(Tabla8[[#This Row],[n°]],CONFIGURACION!$A$7:$K$200,2,),"") -> 0 | F123: =IFERROR(VLOOKUP(Tabla8[[#This Row],[n°]],CONFIGURACION!$A$7:$K$200,3,),"") -> 0 | G123: =IFERROR(VLOOKUP(Tabla8[[#This Row],[n°]],CONFIGURACION!$A$7:$K$200,4,),"") -> 00:00:00 | H123: =IFERROR(VLOOKUP(Tabla8[[#This Row],[n°]],CONFIGURACION!$A$7:$K$200,5,),"") -> 0 | I123: =IFERROR(VLOOKUP(Tabla8[[#This Row],[n°]],CONFIGURACION!$A$7:$K$200,7,),"") -> 0 | J123: =IFERROR(SUMIFS(TablaBDD[TOTAL DIAS],TablaBDD[NOMBRE],Tabla8[[#This Row],[NOMBRE]])+VLOOKUP(Tabla8[[#This Row],[NOMBRE]],CONFIGURACION!$B$7:$K$200,10,0),"") ->  | K123: =IFERROR(Tabla8[[#This Row],[DIAS ACUMULADOS]]-Tabla8[[#This Row],[DIAS TOMADAS]],"") -> 
D124: 121 | E124: =IFERROR(VLOOKUP(Tabla8[[#This Row],[n°]],CONFIGURACION!$A$7:$K$200,2,),"") -> 0 | F124: =IFERROR(VLOOKUP(Tabla8[[#This Row],[n°]],CONFIGURACION!$A$7:$K$200,3,),"") -> 0 | G124: =IFERROR(VLOOKUP(Tabla8[[#This Row],[n°]],CONFIGURACION!$A$7:$K$200,4,),"") -> 00:00:00 | H124: =IFERROR(VLOOKUP(Tabla8[[#This Row],[n°]],CONFIGURACION!$A$7:$K$200,5,),"") -> 0 | I124: =IFERROR(VLOOKUP(Tabla8[[#This Row],[n°]],CONFIGURACION!$A$7:$K$200,7,),"") -> 0 | J124: =IFERROR(SUMIFS(TablaBDD[TOTAL DIAS],TablaBDD[NOMBRE],Tabla8[[#This Row],[NOMBRE]])+VLOOKUP(Tabla8[[#This Row],[NOMBRE]],CONFIGURACION!$B$7:$K$200,10,0),"") ->  | K124: =IFERROR(Tabla8[[#This Row],[DIAS ACUMULADOS]]-Tabla8[[#This Row],[DIAS TOMADAS]],"") -> 
D125: 122 | E125: =IFERROR(VLOOKUP(Tabla8[[#This Row],[n°]],CONFIGURACION!$A$7:$K$200,2,),"") -> 0 | F125: =IFERROR(VLOOKUP(Tabla8[[#This Row],[n°]],CONFIGURACION!$A$7:$K$200,3,),"") -> 0 | G125: =IFERROR(VLOOKUP(Tabla8[[#This Row],[n°]],CONFIGURACION!$A$7:$K$200,4,),"") -> 00:00:00 | H125: =IFERROR(VLOOKUP(Tabla8[[#This Row],[n°]],CONFIGURACION!$A$7:$K$200,5,),"") -> 0 | I125: =IFERROR(VLOOKUP(Tabla8[[#This Row],[n°]],CONFIGURACION!$A$7:$K$200,7,),"") -> 0 | J125: =IFERROR(SUMIFS(TablaBDD[TOTAL DIAS],TablaBDD[NOMBRE],Tabla8[[#This Row],[NOMBRE]])+VLOOKUP(Tabla8[[#This Row],[NOMBRE]],CONFIGURACION!$B$7:$K$200,10,0),"") ->  | K125: =IFERROR(Tabla8[[#This Row],[DIAS ACUMULADOS]]-Tabla8[[#This Row],[DIAS TOMADAS]],"") -> 
D126: 123 | E126: =IFERROR(VLOOKUP(Tabla8[[#This Row],[n°]],CONFIGURACION!$A$7:$K$200,2,),"") -> 0 | F126: =IFERROR(VLOOKUP(Tabla8[[#This Row],[n°]],CONFIGURACION!$A$7:$K$200,3,),"") -> 0 | G126: =IFERROR(VLOOKUP(Tabla8[[#This Row],[n°]],CONFIGURACION!$A$7:$K$200,4,),"") -> 00:00:00 | H126: =IFERROR(VLOOKUP(Tabla8[[#This Row],[n°]],CONFIGURACION!$A$7:$K$200,5,),"") -> 0 | I126: =IFERROR(VLOOKUP(Tabla8[[#This Row],[n°]],CONFIGURACION!$A$7:$K$200,7,),"") -> 0 | J126: =IFERROR(SUMIFS(TablaBDD[TOTAL DIAS],TablaBDD[NOMBRE],Tabla8[[#This Row],[NOMBRE]])+VLOOKUP(Tabla8[[#This Row],[NOMBRE]],CONFIGURACION!$B$7:$K$200,10,0),"") ->  | K126: =IFERROR(Tabla8[[#This Row],[DIAS ACUMULADOS]]-Tabla8[[#This Row],[DIAS TOMADAS]],"") -> 
D127: 124 | E127: =IFERROR(VLOOKUP(Tabla8[[#This Row],[n°]],CONFIGURACION!$A$7:$K$200,2,),"") -> 0 | F127: =IFERROR(VLOOKUP(Tabla8[[#This Row],[n°]],CONFIGURACION!$A$7:$K$200,3,),"") -> 0 | G127: =IFERROR(VLOOKUP(Tabla8[[#This Row],[n°]],CONFIGURACION!$A$7:$K$200,4,),"") -> 00:00:00 | H127: =IFERROR(VLOOKUP(Tabla8[[#This Row],[n°]],CONFIGURACION!$A$7:$K$200,5,),"") -> 0 | I127: =IFERROR(VLOOKUP(Tabla8[[#This Row],[n°]],CONFIGURACION!$A$7:$K$200,7,),"") -> 0 | J127: =IFERROR(SUMIFS(TablaBDD[TOTAL DIAS],TablaBDD[NOMBRE],Tabla8[[#This Row],[NOMBRE]])+VLOOKUP(Tabla8[[#This Row],[NOMBRE]],CONFIGURACION!$B$7:$K$200,10,0),"") ->  | K127: =IFERROR(Tabla8[[#This Row],[DIAS ACUMULADOS]]-Tabla8[[#This Row],[DIAS TOMADAS]],"") -> 
D128: 125 | E128: =IFERROR(VLOOKUP(Tabla8[[#This Row],[n°]],CONFIGURACION!$A$7:$K$200,2,),"") -> 0 | F128: =IFERROR(VLOOKUP(Tabla8[[#This Row],[n°]],CONFIGURACION!$A$7:$K$200,3,),"") -> 0 | G128: =IFERROR(VLOOKUP(Tabla8[[#This Row],[n°]],CONFIGURACION!$A$7:$K$200,4,),"") -> 00:00:00 | H128: =IFERROR(VLOOKUP(Tabla8[[#This Row],[n°]],CONFIGURACION!$A$7:$K$200,5,),"") -> 0 | I128: =IFERROR(VLOOKUP(Tabla8[[#This Row],[n°]],CONFIGURACION!$A$7:$K$200,7,),"") -> 0 | J128: =IFERROR(SUMIFS(TablaBDD[TOTAL DIAS],TablaBDD[NOMBRE],Tabla8[[#This Row],[NOMBRE]])+VLOOKUP(Tabla8[[#This Row],[NOMBRE]],CONFIGURACION!$B$7:$K$200,10,0),"") ->  | K128: =IFERROR(Tabla8[[#This Row],[DIAS ACUMULADOS]]-Tabla8[[#This Row],[DIAS TOMADAS]],"") -> 
D129: 126 | E129: =IFERROR(VLOOKUP(Tabla8[[#This Row],[n°]],CONFIGURACION!$A$7:$K$200,2,),"") -> 0 | F129: =IFERROR(VLOOKUP(Tabla8[[#This Row],[n°]],CONFIGURACION!$A$7:$K$200,3,),"") -> 0 | G129: =IFERROR(VLOOKUP(Tabla8[[#This Row],[n°]],CONFIGURACION!$A$7:$K$200,4,),"") -> 00:00:00 | H129: =IFERROR(VLOOKUP(Tabla8[[#This Row],[n°]],CONFIGURACION!$A$7:$K$200,5,),"") -> 0 | I129: =IFERROR(VLOOKUP(Tabla8[[#This Row],[n°]],CONFIGURACION!$A$7:$K$200,7,),"") -> 0 | J129: =IFERROR(SUMIFS(TablaBDD[TOTAL DIAS],TablaBDD[NOMBRE],Tabla8[[#This Row],[NOMBRE]])+VLOOKUP(Tabla8[[#This Row],[NOMBRE]],CONFIGURACION!$B$7:$K$200,10,0),"") ->  | K129: =IFERROR(Tabla8[[#This Row],[DIAS ACUMULADOS]]-Tabla8[[#This Row],[DIAS TOMADAS]],"") -> 
D130: 127 | E130: =IFERROR(VLOOKUP(Tabla8[[#This Row],[n°]],CONFIGURACION!$A$7:$K$200,2,),"") -> 0 | F130: =IFERROR(VLOOKUP(Tabla8[[#This Row],[n°]],CONFIGURACION!$A$7:$K$200,3,),"") -> 0 | G130: =IFERROR(VLOOKUP(Tabla8[[#This Row],[n°]],CONFIGURACION!$A$7:$K$200,4,),"") -> 00:00:00 | H130: =IFERROR(VLOOKUP(Tabla8[[#This Row],[n°]],CONFIGURACION!$A$7:$K$200,5,),"") -> 0 | I130: =IFERROR(VLOOKUP(Tabla8[[#This Row],[n°]],CONFIGURACION!$A$7:$K$200,7,),"") -> 0 | J130: =IFERROR(SUMIFS(TablaBDD[TOTAL DIAS],TablaBDD[NOMBRE],Tabla8[[#This Row],[NOMBRE]])+VLOOKUP(Tabla8[[#This Row],[NOMBRE]],CONFIGURACION!$B$7:$K$200,10,0),"") ->  | K130: =IFERROR(Tabla8[[#This Row],[DIAS ACUMULADOS]]-Tabla8[[#This Row],[DIAS TOMADAS]],"") -> 
D131: 128 | E131: =IFERROR(VLOOKUP(Tabla8[[#This Row],[n°]],CONFIGURACION!$A$7:$K$200,2,),"") -> 0 | F131: =IFERROR(VLOOKUP(Tabla8[[#This Row],[n°]],CONFIGURACION!$A$7:$K$200,3,),"") -> 0 | G131: =IFERROR(VLOOKUP(Tabla8[[#This Row],[n°]],CONFIGURACION!$A$7:$K$200,4,),"") -> 00:00:00 | H131: =IFERROR(VLOOKUP(Tabla8[[#This Row],[n°]],CONFIGURACION!$A$7:$K$200,5,),"") -> 0 | I131: =IFERROR(VLOOKUP(Tabla8[[#This Row],[n°]],CONFIGURACION!$A$7:$K$200,7,),"") -> 0 | J131: =IFERROR(SUMIFS(TablaBDD[TOTAL DIAS],TablaBDD[NOMBRE],Tabla8[[#This Row],[NOMBRE]])+VLOOKUP(Tabla8[[#This Row],[NOMBRE]],CONFIGURACION!$B$7:$K$200,10,0),"") ->  | K131: =IFERROR(Tabla8[[#This Row],[DIAS ACUMULADOS]]-Tabla8[[#This Row],[DIAS TOMADAS]],"") -> 
D132: 129 | E132: =IFERROR(VLOOKUP(Tabla8[[#This Row],[n°]],CONFIGURACION!$A$7:$K$200,2,),"") -> 0 | F132: =IFERROR(VLOOKUP(Tabla8[[#This Row],[n°]],CONFIGURACION!$A$7:$K$200,3,),"") -> 0 | G132: =IFERROR(VLOOKUP(Tabla8[[#This Row],[n°]],CONFIGURACION!$A$7:$K$200,4,),"") -> 00:00:00 | H132: =IFERROR(VLOOKUP(Tabla8[[#This Row],[n°]],CONFIGURACION!$A$7:$K$200,5,),"") -> 0 | I132: =IFERROR(VLOOKUP(Tabla8[[#This Row],[n°]],CONFIGURACION!$A$7:$K$200,7,),"") -> 0 | J132: =IFERROR(SUMIFS(TablaBDD[TOTAL DIAS],TablaBDD[NOMBRE],Tabla8[[#This Row],[NOMBRE]])+VLOOKUP(Tabla8[[#This Row],[NOMBRE]],CONFIGURACION!$B$7:$K$200,10,0),"") ->  | K132: =IFERROR(Tabla8[[#This Row],[DIAS ACUMULADOS]]-Tabla8[[#This Row],[DIAS TOMADAS]],"") -> 
D133: 130 | E133: =IFERROR(VLOOKUP(Tabla8[[#This Row],[n°]],CONFIGURACION!$A$7:$K$200,2,),"") -> 0 | F133: =IFERROR(VLOOKUP(Tabla8[[#This Row],[n°]],CONFIGURACION!$A$7:$K$200,3,),"") -> 0 | G133: =IFERROR(VLOOKUP(Tabla8[[#This Row],[n°]],CONFIGURACION!$A$7:$K$200,4,),"") -> 00:00:00 | H133: =IFERROR(VLOOKUP(Tabla8[[#This Row],[n°]],CONFIGURACION!$A$7:$K$200,5,),"") -> 0 | I133: =IFERROR(VLOOKUP(Tabla8[[#This Row],[n°]],CONFIGURACION!$A$7:$K$200,7,),"") -> 0 | J133: =IFERROR(SUMIFS(TablaBDD[TOTAL DIAS],TablaBDD[NOMBRE],Tabla8[[#This Row],[NOMBRE]])+VLOOKUP(Tabla8[[#This Row],[NOMBRE]],CONFIGURACION!$B$7:$K$200,10,0),"") ->  | K133: =IFERROR(Tabla8[[#This Row],[DIAS ACUMULADOS]]-Tabla8[[#This Row],[DIAS TOMADAS]],"") -> 
D134: 131 | E134: =IFERROR(VLOOKUP(Tabla8[[#This Row],[n°]],CONFIGURACION!$A$7:$K$200,2,),"") -> 0 | F134: =IFERROR(VLOOKUP(Tabla8[[#This Row],[n°]],CONFIGURACION!$A$7:$K$200,3,),"") -> 0 | G134: =IFERROR(VLOOKUP(Tabla8[[#This Row],[n°]],CONFIGURACION!$A$7:$K$200,4,),"") -> 00:00:00 | H134: =IFERROR(VLOOKUP(Tabla8[[#This Row],[n°]],CONFIGURACION!$A$7:$K$200,5,),"") -> 0 | I134: =IFERROR(VLOOKUP(Tabla8[[#This Row],[n°]],CONFIGURACION!$A$7:$K$200,7,),"") -> 0 | J134: =IFERROR(SUMIFS(TablaBDD[TOTAL DIAS],TablaBDD[NOMBRE],Tabla8[[#This Row],[NOMBRE]])+VLOOKUP(Tabla8[[#This Row],[NOMBRE]],CONFIGURACION!$B$7:$K$200,10,0),"") ->  | K134: =IFERROR(Tabla8[[#This Row],[DIAS ACUMULADOS]]-Tabla8[[#This Row],[DIAS TOMADAS]],"") -> 
D135: 132 | E135: =IFERROR(VLOOKUP(Tabla8[[#This Row],[n°]],CONFIGURACION!$A$7:$K$200,2,),"") -> 0 | F135: =IFERROR(VLOOKUP(Tabla8[[#This Row],[n°]],CONFIGURACION!$A$7:$K$200,3,),"") -> 0 | G135: =IFERROR(VLOOKUP(Tabla8[[#This Row],[n°]],CONFIGURACION!$A$7:$K$200,4,),"") -> 00:00:00 | H135: =IFERROR(VLOOKUP(Tabla8[[#This Row],[n°]],CONFIGURACION!$A$7:$K$200,5,),"") -> 0 | I135: =IFERROR(VLOOKUP(Tabla8[[#This Row],[n°]],CONFIGURACION!$A$7:$K$200,7,),"") -> 0 | J135: =IFERROR(SUMIFS(TablaBDD[TOTAL DIAS],TablaBDD[NOMBRE],Tabla8[[#This Row],[NOMBRE]])+VLOOKUP(Tabla8[[#This Row],[NOMBRE]],CONFIGURACION!$B$7:$K$200,10,0),"") ->  | K135: =IFERROR(Tabla8[[#This Row],[DIAS ACUMULADOS]]-Tabla8[[#This Row],[DIAS TOMADAS]],"") -> 
D136: 133 | E136: =IFERROR(VLOOKUP(Tabla8[[#This Row],[n°]],CONFIGURACION!$A$7:$K$200,2,),"") -> 0 | F136: =IFERROR(VLOOKUP(Tabla8[[#This Row],[n°]],CONFIGURACION!$A$7:$K$200,3,),"") -> 0 | G136: =IFERROR(VLOOKUP(Tabla8[[#This Row],[n°]],CONFIGURACION!$A$7:$K$200,4,),"") -> 00:00:00 | H136: =IFERROR(VLOOKUP(Tabla8[[#This Row],[n°]],CONFIGURACION!$A$7:$K$200,5,),"") -> 0 | I136: =IFERROR(VLOOKUP(Tabla8[[#This Row],[n°]],CONFIGURACION!$A$7:$K$200,7,),"") -> 0 | J136: =IFERROR(SUMIFS(TablaBDD[TOTAL DIAS],TablaBDD[NOMBRE],Tabla8[[#This Row],[NOMBRE]])+VLOOKUP(Tabla8[[#This Row],[NOMBRE]],CONFIGURACION!$B$7:$K$200,10,0),"") ->  | K136: =IFERROR(Tabla8[[#This Row],[DIAS ACUMULADOS]]-Tabla8[[#This Row],[DIAS TOMADAS]],"") -> 
D137: 134 | E137: =IFERROR(VLOOKUP(Tabla8[[#This Row],[n°]],CONFIGURACION!$A$7:$K$200,2,),"") -> 0 | F137: =IFERROR(VLOOKUP(Tabla8[[#This Row],[n°]],CONFIGURACION!$A$7:$K$200,3,),"") -> 0 | G137: =IFERROR(VLOOKUP(Tabla8[[#This Row],[n°]],CONFIGURACION!$A$7:$K$200,4,),"") -> 00:00:00 | H137: =IFERROR(VLOOKUP(Tabla8[[#This Row],[n°]],CONFIGURACION!$A$7:$K$200,5,),"") -> 0 | I137: =IFERROR(VLOOKUP(Tabla8[[#This Row],[n°]],CONFIGURACION!$A$7:$K$200,7,),"") -> 0 | J137: =IFERROR(SUMIFS(TablaBDD[TOTAL DIAS],TablaBDD[NOMBRE],Tabla8[[#This Row],[NOMBRE]])+VLOOKUP(Tabla8[[#This Row],[NOMBRE]],CONFIGURACION!$B$7:$K$200,10,0),"") ->  | K137: =IFERROR(Tabla8[[#This Row],[DIAS ACUMULADOS]]-Tabla8[[#This Row],[DIAS TOMADAS]],"") -> 
D138: 135 | E138: =IFERROR(VLOOKUP(Tabla8[[#This Row],[n°]],CONFIGURACION!$A$7:$K$200,2,),"") -> 0 | F138: =IFERROR(VLOOKUP(Tabla8[[#This Row],[n°]],CONFIGURACION!$A$7:$K$200,3,),"") -> 0 | G138: =IFERROR(VLOOKUP(Tabla8[[#This Row],[n°]],CONFIGURACION!$A$7:$K$200,4,),"") -> 00:00:00 | H138: =IFERROR(VLOOKUP(Tabla8[[#This Row],[n°]],CONFIGURACION!$A$7:$K$200,5,),"") -> 0 | I138: =IFERROR(VLOOKUP(Tabla8[[#This Row],[n°]],CONFIGURACION!$A$7:$K$200,7,),"") -> 0 | J138: =IFERROR(SUMIFS(TablaBDD[TOTAL DIAS],TablaBDD[NOMBRE],Tabla8[[#This Row],[NOMBRE]])+VLOOKUP(Tabla8[[#This Row],[NOMBRE]],CONFIGURACION!$B$7:$K$200,10,0),"") ->  | K138: =IFERROR(Tabla8[[#This Row],[DIAS ACUMULADOS]]-Tabla8[[#This Row],[DIAS TOMADAS]],"") -> 
D139: 136 | E139: =IFERROR(VLOOKUP(Tabla8[[#This Row],[n°]],CONFIGURACION!$A$7:$K$200,2,),"") -> 0 | F139: =IFERROR(VLOOKUP(Tabla8[[#This Row],[n°]],CONFIGURACION!$A$7:$K$200,3,),"") -> 0 | G139: =IFERROR(VLOOKUP(Tabla8[[#This Row],[n°]],CONFIGURACION!$A$7:$K$200,4,),"") -> 00:00:00 | H139: =IFERROR(VLOOKUP(Tabla8[[#This Row],[n°]],CONFIGURACION!$A$7:$K$200,5,),"") -> 0 | I139: =IFERROR(VLOOKUP(Tabla8[[#This Row],[n°]],CONFIGURACION!$A$7:$K$200,7,),"") -> 0 | J139: =IFERROR(SUMIFS(TablaBDD[TOTAL DIAS],TablaBDD[NOMBRE],Tabla8[[#This Row],[NOMBRE]])+VLOOKUP(Tabla8[[#This Row],[NOMBRE]],CONFIGURACION!$B$7:$K$200,10,0),"") ->  | K139: =IFERROR(Tabla8[[#This Row],[DIAS ACUMULADOS]]-Tabla8[[#This Row],[DIAS TOMADAS]],"") -> 
D140: 137 | E140: =IFERROR(VLOOKUP(Tabla8[[#This Row],[n°]],CONFIGURACION!$A$7:$K$200,2,),"") -> 0 | F140: =IFERROR(VLOOKUP(Tabla8[[#This Row],[n°]],CONFIGURACION!$A$7:$K$200,3,),"") -> 0 | G140: =IFERROR(VLOOKUP(Tabla8[[#This Row],[n°]],CONFIGURACION!$A$7:$K$200,4,),"") -> 00:00:00 | H140: =IFERROR(VLOOKUP(Tabla8[[#This Row],[n°]],CONFIGURACION!$A$7:$K$200,5,),"") -> 0 | I140: =IFERROR(VLOOKUP(Tabla8[[#This Row],[n°]],CONFIGURACION!$A$7:$K$200,7,),"") -> 0 | J140: =IFERROR(SUMIFS(TablaBDD[TOTAL DIAS],TablaBDD[NOMBRE],Tabla8[[#This Row],[NOMBRE]])+VLOOKUP(Tabla8[[#This Row],[NOMBRE]],CONFIGURACION!$B$7:$K$200,10,0),"") ->  | K140: =IFERROR(Tabla8[[#This Row],[DIAS ACUMULADOS]]-Tabla8[[#This Row],[DIAS TOMADAS]],"") -> 
D141: 138 | E141: =IFERROR(VLOOKUP(Tabla8[[#This Row],[n°]],CONFIGURACION!$A$7:$K$200,2,),"") -> 0 | F141: =IFERROR(VLOOKUP(Tabla8[[#This Row],[n°]],CONFIGURACION!$A$7:$K$200,3,),"") -> 0 | G141: =IFERROR(VLOOKUP(Tabla8[[#This Row],[n°]],CONFIGURACION!$A$7:$K$200,4,),"") -> 00:00:00 | H141: =IFERROR(VLOOKUP(Tabla8[[#This Row],[n°]],CONFIGURACION!$A$7:$K$200,5,),"") -> 0 | I141: =IFERROR(VLOOKUP(Tabla8[[#This Row],[n°]],CONFIGURACION!$A$7:$K$200,7,),"") -> 0 | J141: =IFERROR(SUMIFS(TablaBDD[TOTAL DIAS],TablaBDD[NOMBRE],Tabla8[[#This Row],[NOMBRE]])+VLOOKUP(Tabla8[[#This Row],[NOMBRE]],CONFIGURACION!$B$7:$K$200,10,0),"") ->  | K141: =IFERROR(Tabla8[[#This Row],[DIAS ACUMULADOS]]-Tabla8[[#This Row],[DIAS TOMADAS]],"") -> 
D142: 139 | E142: =IFERROR(VLOOKUP(Tabla8[[#This Row],[n°]],CONFIGURACION!$A$7:$K$200,2,),"") -> 0 | F142: =IFERROR(VLOOKUP(Tabla8[[#This Row],[n°]],CONFIGURACION!$A$7:$K$200,3,),"") -> 0 | G142: =IFERROR(VLOOKUP(Tabla8[[#This Row],[n°]],CONFIGURACION!$A$7:$K$200,4,),"") -> 00:00:00 | H142: =IFERROR(VLOOKUP(Tabla8[[#This Row],[n°]],CONFIGURACION!$A$7:$K$200,5,),"") -> 0 | I142: =IFERROR(VLOOKUP(Tabla8[[#This Row],[n°]],CONFIGURACION!$A$7:$K$200,7,),"") -> 0 | J142: =IFERROR(SUMIFS(TablaBDD[TOTAL DIAS],TablaBDD[NOMBRE],Tabla8[[#This Row],[NOMBRE]])+VLOOKUP(Tabla8[[#This Row],[NOMBRE]],CONFIGURACION!$B$7:$K$200,10,0),"") ->  | K142: =IFERROR(Tabla8[[#This Row],[DIAS ACUMULADOS]]-Tabla8[[#This Row],[DIAS TOMADAS]],"") -> 
D143: 140 | E143: =IFERROR(VLOOKUP(Tabla8[[#This Row],[n°]],CONFIGURACION!$A$7:$K$200,2,),"") -> 0 | F143: =IFERROR(VLOOKUP(Tabla8[[#This Row],[n°]],CONFIGURACION!$A$7:$K$200,3,),"") -> 0 | G143: =IFERROR(VLOOKUP(Tabla8[[#This Row],[n°]],CONFIGURACION!$A$7:$K$200,4,),"") -> 00:00:00 | H143: =IFERROR(VLOOKUP(Tabla8[[#This Row],[n°]],CONFIGURACION!$A$7:$K$200,5,),"") -> 0 | I143: =IFERROR(VLOOKUP(Tabla8[[#This Row],[n°]],CONFIGURACION!$A$7:$K$200,7,),"") -> 0 | J143: =IFERROR(SUMIFS(TablaBDD[TOTAL DIAS],TablaBDD[NOMBRE],Tabla8[[#This Row],[NOMBRE]])+VLOOKUP(Tabla8[[#This Row],[NOMBRE]],CONFIGURACION!$B$7:$K$200,10,0),"") ->  | K143: =IFERROR(Tabla8[[#This Row],[DIAS ACUMULADOS]]-Tabla8[[#This Row],[DIAS TOMADAS]],"") -> 
D144: 141 | E144: =IFERROR(VLOOKUP(Tabla8[[#This Row],[n°]],CONFIGURACION!$A$7:$K$200,2,),"") -> 0 | F144: =IFERROR(VLOOKUP(Tabla8[[#This Row],[n°]],CONFIGURACION!$A$7:$K$200,3,),"") -> 0 | G144: =IFERROR(VLOOKUP(Tabla8[[#This Row],[n°]],CONFIGURACION!$A$7:$K$200,4,),"") -> 00:00:00 | H144: =IFERROR(VLOOKUP(Tabla8[[#This Row],[n°]],CONFIGURACION!$A$7:$K$200,5,),"") -> 0 | I144: =IFERROR(VLOOKUP(Tabla8[[#This Row],[n°]],CONFIGURACION!$A$7:$K$200,7,),"") -> 0 | J144: =IFERROR(SUMIFS(TablaBDD[TOTAL DIAS],TablaBDD[NOMBRE],Tabla8[[#This Row],[NOMBRE]])+VLOOKUP(Tabla8[[#This Row],[NOMBRE]],CONFIGURACION!$B$7:$K$200,10,0),"") ->  | K144: =IFERROR(Tabla8[[#This Row],[DIAS ACUMULADOS]]-Tabla8[[#This Row],[DIAS TOMADAS]],"") -> 
D145: 142 | E145: =IFERROR(VLOOKUP(Tabla8[[#This Row],[n°]],CONFIGURACION!$A$7:$K$200,2,),"") -> 0 | F145: =IFERROR(VLOOKUP(Tabla8[[#This Row],[n°]],CONFIGURACION!$A$7:$K$200,3,),"") -> 0 | G145: =IFERROR(VLOOKUP(Tabla8[[#This Row],[n°]],CONFIGURACION!$A$7:$K$200,4,),"") -> 00:00:00 | H145: =IFERROR(VLOOKUP(Tabla8[[#This Row],[n°]],CONFIGURACION!$A$7:$K$200,5,),"") -> 0 | I145: =IFERROR(VLOOKUP(Tabla8[[#This Row],[n°]],CONFIGURACION!$A$7:$K$200,7,),"") -> 0 | J145: =IFERROR(SUMIFS(TablaBDD[TOTAL DIAS],TablaBDD[NOMBRE],Tabla8[[#This Row],[NOMBRE]])+VLOOKUP(Tabla8[[#This Row],[NOMBRE]],CONFIGURACION!$B$7:$K$200,10,0),"") ->  | K145: =IFERROR(Tabla8[[#This Row],[DIAS ACUMULADOS]]-Tabla8[[#This Row],[DIAS TOMADAS]],"") -> 
D146: 143 | E146: =IFERROR(VLOOKUP(Tabla8[[#This Row],[n°]],CONFIGURACION!$A$7:$K$200,2,),"") -> 0 | F146: =IFERROR(VLOOKUP(Tabla8[[#This Row],[n°]],CONFIGURACION!$A$7:$K$200,3,),"") -> 0 | G146: =IFERROR(VLOOKUP(Tabla8[[#This Row],[n°]],CONFIGURACION!$A$7:$K$200,4,),"") -> 00:00:00 | H146: =IFERROR(VLOOKUP(Tabla8[[#This Row],[n°]],CONFIGURACION!$A$7:$K$200,5,),"") -> 0 | I146: =IFERROR(VLOOKUP(Tabla8[[#This Row],[n°]],CONFIGURACION!$A$7:$K$200,7,),"") -> 0 | J146: =IFERROR(SUMIFS(TablaBDD[TOTAL DIAS],TablaBDD[NOMBRE],Tabla8[[#This Row],[NOMBRE]])+VLOOKUP(Tabla8[[#This Row],[NOMBRE]],CONFIGURACION!$B$7:$K$200,10,0),"") ->  | K146: =IFERROR(Tabla8[[#This Row],[DIAS ACUMULADOS]]-Tabla8[[#This Row],[DIAS TOMADAS]],"") -> 
D147: 144 | E147: =IFERROR(VLOOKUP(Tabla8[[#This Row],[n°]],CONFIGURACION!$A$7:$K$200,2,),"") -> 0 | F147: =IFERROR(VLOOKUP(Tabla8[[#This Row],[n°]],CONFIGURACION!$A$7:$K$200,3,),"") -> 0 | G147: =IFERROR(VLOOKUP(Tabla8[[#This Row],[n°]],CONFIGURACION!$A$7:$K$200,4,),"") -> 00:00:00 | H147: =IFERROR(VLOOKUP(Tabla8[[#This Row],[n°]],CONFIGURACION!$A$7:$K$200,5,),"") -> 0 | I147: =IFERROR(VLOOKUP(Tabla8[[#This Row],[n°]],CONFIGURACION!$A$7:$K$200,7,),"") -> 0 | J147: =IFERROR(SUMIFS(TablaBDD[TOTAL DIAS],TablaBDD[NOMBRE],Tabla8[[#This Row],[NOMBRE]])+VLOOKUP(Tabla8[[#This Row],[NOMBRE]],CONFIGURACION!$B$7:$K$200,10,0),"") ->  | K147: =IFERROR(Tabla8[[#This Row],[DIAS ACUMULADOS]]-Tabla8[[#This Row],[DIAS TOMADAS]],"") -> 
D148: 145 | E148: =IFERROR(VLOOKUP(Tabla8[[#This Row],[n°]],CONFIGURACION!$A$7:$K$200,2,),"") -> 0 | F148: =IFERROR(VLOOKUP(Tabla8[[#This Row],[n°]],CONFIGURACION!$A$7:$K$200,3,),"") -> 0 | G148: =IFERROR(VLOOKUP(Tabla8[[#This Row],[n°]],CONFIGURACION!$A$7:$K$200,4,),"") -> 00:00:00 | H148: =IFERROR(VLOOKUP(Tabla8[[#This Row],[n°]],CONFIGURACION!$A$7:$K$200,5,),"") -> 0 | I148: =IFERROR(VLOOKUP(Tabla8[[#This Row],[n°]],CONFIGURACION!$A$7:$K$200,7,),"") -> 0 | J148: =IFERROR(SUMIFS(TablaBDD[TOTAL DIAS],TablaBDD[NOMBRE],Tabla8[[#This Row],[NOMBRE]])+VLOOKUP(Tabla8[[#This Row],[NOMBRE]],CONFIGURACION!$B$7:$K$200,10,0),"") ->  | K148: =IFERROR(Tabla8[[#This Row],[DIAS ACUMULADOS]]-Tabla8[[#This Row],[DIAS TOMADAS]],"") -> 
D149: 146 | E149: =IFERROR(VLOOKUP(Tabla8[[#This Row],[n°]],CONFIGURACION!$A$7:$K$200,2,),"") -> 0 | F149: =IFERROR(VLOOKUP(Tabla8[[#This Row],[n°]],CONFIGURACION!$A$7:$K$200,3,),"") -> 0 | G149: =IFERROR(VLOOKUP(Tabla8[[#This Row],[n°]],CONFIGURACION!$A$7:$K$200,4,),"") -> 00:00:00 | H149: =IFERROR(VLOOKUP(Tabla8[[#This Row],[n°]],CONFIGURACION!$A$7:$K$200,5,),"") -> 0 | I149: =IFERROR(VLOOKUP(Tabla8[[#This Row],[n°]],CONFIGURACION!$A$7:$K$200,7,),"") -> 0 | J149: =IFERROR(SUMIFS(TablaBDD[TOTAL DIAS],TablaBDD[NOMBRE],Tabla8[[#This Row],[NOMBRE]])+VLOOKUP(Tabla8[[#This Row],[NOMBRE]],CONFIGURACION!$B$7:$K$200,10,0),"") ->  | K149: =IFERROR(Tabla8[[#This Row],[DIAS ACUMULADOS]]-Tabla8[[#This Row],[DIAS TOMADAS]],"") -> 
D150: 147 | E150: =IFERROR(VLOOKUP(Tabla8[[#This Row],[n°]],CONFIGURACION!$A$7:$K$200,2,),"") -> 0 | F150: =IFERROR(VLOOKUP(Tabla8[[#This Row],[n°]],CONFIGURACION!$A$7:$K$200,3,),"") -> 0 | G150: =IFERROR(VLOOKUP(Tabla8[[#This Row],[n°]],CONFIGURACION!$A$7:$K$200,4,),"") -> 00:00:00 | H150: =IFERROR(VLOOKUP(Tabla8[[#This Row],[n°]],CONFIGURACION!$A$7:$K$200,5,),"") -> 0 | I150: =IFERROR(VLOOKUP(Tabla8[[#This Row],[n°]],CONFIGURACION!$A$7:$K$200,7,),"") -> 0 | J150: =IFERROR(SUMIFS(TablaBDD[TOTAL DIAS],TablaBDD[NOMBRE],Tabla8[[#This Row],[NOMBRE]])+VLOOKUP(Tabla8[[#This Row],[NOMBRE]],CONFIGURACION!$B$7:$K$200,10,0),"") ->  | K150: =IFERROR(Tabla8[[#This Row],[DIAS ACUMULADOS]]-Tabla8[[#This Row],[DIAS TOMADAS]],"") -> 
D151: 148 | E151: =IFERROR(VLOOKUP(Tabla8[[#This Row],[n°]],CONFIGURACION!$A$7:$K$200,2,),"") -> 0 | F151: =IFERROR(VLOOKUP(Tabla8[[#This Row],[n°]],CONFIGURACION!$A$7:$K$200,3,),"") -> 0 | G151: =IFERROR(VLOOKUP(Tabla8[[#This Row],[n°]],CONFIGURACION!$A$7:$K$200,4,),"") -> 00:00:00 | H151: =IFERROR(VLOOKUP(Tabla8[[#This Row],[n°]],CONFIGURACION!$A$7:$K$200,5,),"") -> 0 | I151: =IFERROR(VLOOKUP(Tabla8[[#This Row],[n°]],CONFIGURACION!$A$7:$K$200,7,),"") -> 0 | J151: =IFERROR(SUMIFS(TablaBDD[TOTAL DIAS],TablaBDD[NOMBRE],Tabla8[[#This Row],[NOMBRE]])+VLOOKUP(Tabla8[[#This Row],[NOMBRE]],CONFIGURACION!$B$7:$K$200,10,0),"") ->  | K151: =IFERROR(Tabla8[[#This Row],[DIAS ACUMULADOS]]-Tabla8[[#This Row],[DIAS TOMADAS]],"") -> 
D152: 149 | E152: =IFERROR(VLOOKUP(Tabla8[[#This Row],[n°]],CONFIGURACION!$A$7:$K$200,2,),"") -> 0 | F152: =IFERROR(VLOOKUP(Tabla8[[#This Row],[n°]],CONFIGURACION!$A$7:$K$200,3,),"") -> 0 | G152: =IFERROR(VLOOKUP(Tabla8[[#This Row],[n°]],CONFIGURACION!$A$7:$K$200,4,),"") -> 00:00:00 | H152: =IFERROR(VLOOKUP(Tabla8[[#This Row],[n°]],CONFIGURACION!$A$7:$K$200,5,),"") -> 0 | I152: =IFERROR(VLOOKUP(Tabla8[[#This Row],[n°]],CONFIGURACION!$A$7:$K$200,7,),"") -> 0 | J152: =IFERROR(SUMIFS(TablaBDD[TOTAL DIAS],TablaBDD[NOMBRE],Tabla8[[#This Row],[NOMBRE]])+VLOOKUP(Tabla8[[#This Row],[NOMBRE]],CONFIGURACION!$B$7:$K$200,10,0),"") ->  | K152: =IFERROR(Tabla8[[#This Row],[DIAS ACUMULADOS]]-Tabla8[[#This Row],[DIAS TOMADAS]],"") -> 
D153: 150 | E153: =IFERROR(VLOOKUP(Tabla8[[#This Row],[n°]],CONFIGURACION!$A$7:$K$200,2,),"") -> 0 | F153: =IFERROR(VLOOKUP(Tabla8[[#This Row],[n°]],CONFIGURACION!$A$7:$K$200,3,),"") -> 0 | G153: =IFERROR(VLOOKUP(Tabla8[[#This Row],[n°]],CONFIGURACION!$A$7:$K$200,4,),"") -> 00:00:00 | H153: =IFERROR(VLOOKUP(Tabla8[[#This Row],[n°]],CONFIGURACION!$A$7:$K$200,5,),"") -> 0 | I153: =IFERROR(VLOOKUP(Tabla8[[#This Row],[n°]],CONFIGURACION!$A$7:$K$200,7,),"") -> 0 | J153: =IFERROR(SUMIFS(TablaBDD[TOTAL DIAS],TablaBDD[NOMBRE],Tabla8[[#This Row],[NOMBRE]])+VLOOKUP(Tabla8[[#This Row],[NOMBRE]],CONFIGURACION!$B$7:$K$200,10,0),"") ->  | K153: =IFERROR(Tabla8[[#This Row],[DIAS ACUMULADOS]]-Tabla8[[#This Row],[DIAS TOMADAS]],"") -> 
D154: 151 | E154: =IFERROR(VLOOKUP(Tabla8[[#This Row],[n°]],CONFIGURACION!$A$7:$K$200,2,),"") -> 0 | F154: =IFERROR(VLOOKUP(Tabla8[[#This Row],[n°]],CONFIGURACION!$A$7:$K$200,3,),"") -> 0 | G154: =IFERROR(VLOOKUP(Tabla8[[#This Row],[n°]],CONFIGURACION!$A$7:$K$200,4,),"") -> 00:00:00 | H154: =IFERROR(VLOOKUP(Tabla8[[#This Row],[n°]],CONFIGURACION!$A$7:$K$200,5,),"") -> 0 | I154: =IFERROR(VLOOKUP(Tabla8[[#This Row],[n°]],CONFIGURACION!$A$7:$K$200,7,),"") -> 0 | J154: =IFERROR(SUMIFS(TablaBDD[TOTAL DIAS],TablaBDD[NOMBRE],Tabla8[[#This Row],[NOMBRE]])+VLOOKUP(Tabla8[[#This Row],[NOMBRE]],CONFIGURACION!$B$7:$K$200,10,0),"") ->  | K154: =IFERROR(Tabla8[[#This Row],[DIAS ACUMULADOS]]-Tabla8[[#This Row],[DIAS TOMADAS]],"") -> 
D155: 152 | E155: =IFERROR(VLOOKUP(Tabla8[[#This Row],[n°]],CONFIGURACION!$A$7:$K$200,2,),"") -> 0 | F155: =IFERROR(VLOOKUP(Tabla8[[#This Row],[n°]],CONFIGURACION!$A$7:$K$200,3,),"") -> 0 | G155: =IFERROR(VLOOKUP(Tabla8[[#This Row],[n°]],CONFIGURACION!$A$7:$K$200,4,),"") -> 00:00:00 | H155: =IFERROR(VLOOKUP(Tabla8[[#This Row],[n°]],CONFIGURACION!$A$7:$K$200,5,),"") -> 0 | I155: =IFERROR(VLOOKUP(Tabla8[[#This Row],[n°]],CONFIGURACION!$A$7:$K$200,7,),"") -> 0 | J155: =IFERROR(SUMIFS(TablaBDD[TOTAL DIAS],TablaBDD[NOMBRE],Tabla8[[#This Row],[NOMBRE]])+VLOOKUP(Tabla8[[#This Row],[NOMBRE]],CONFIGURACION!$B$7:$K$200,10,0),"") ->  | K155: =IFERROR(Tabla8[[#This Row],[DIAS ACUMULADOS]]-Tabla8[[#This Row],[DIAS TOMADAS]],"") -> 
D156: 153 | E156: =IFERROR(VLOOKUP(Tabla8[[#This Row],[n°]],CONFIGURACION!$A$7:$K$200,2,),"") -> 0 | F156: =IFERROR(VLOOKUP(Tabla8[[#This Row],[n°]],CONFIGURACION!$A$7:$K$200,3,),"") -> 0 | G156: =IFERROR(VLOOKUP(Tabla8[[#This Row],[n°]],CONFIGURACION!$A$7:$K$200,4,),"") -> 00:00:00 | H156: =IFERROR(VLOOKUP(Tabla8[[#This Row],[n°]],CONFIGURACION!$A$7:$K$200,5,),"") -> 0 | I156: =IFERROR(VLOOKUP(Tabla8[[#This Row],[n°]],CONFIGURACION!$A$7:$K$200,7,),"") -> 0 | J156: =IFERROR(SUMIFS(TablaBDD[TOTAL DIAS],TablaBDD[NOMBRE],Tabla8[[#This Row],[NOMBRE]])+VLOOKUP(Tabla8[[#This Row],[NOMBRE]],CONFIGURACION!$B$7:$K$200,10,0),"") ->  | K156: =IFERROR(Tabla8[[#This Row],[DIAS ACUMULADOS]]-Tabla8[[#This Row],[DIAS TOMADAS]],"") -> 
D157: 154 | E157: =IFERROR(VLOOKUP(Tabla8[[#This Row],[n°]],CONFIGURACION!$A$7:$K$200,2,),"") -> 0 | F157: =IFERROR(VLOOKUP(Tabla8[[#This Row],[n°]],CONFIGURACION!$A$7:$K$200,3,),"") -> 0 | G157: =IFERROR(VLOOKUP(Tabla8[[#This Row],[n°]],CONFIGURACION!$A$7:$K$200,4,),"") -> 00:00:00 | H157: =IFERROR(VLOOKUP(Tabla8[[#This Row],[n°]],CONFIGURACION!$A$7:$K$200,5,),"") -> 0 | I157: =IFERROR(VLOOKUP(Tabla8[[#This Row],[n°]],CONFIGURACION!$A$7:$K$200,7,),"") -> 0 | J157: =IFERROR(SUMIFS(TablaBDD[TOTAL DIAS],TablaBDD[NOMBRE],Tabla8[[#This Row],[NOMBRE]])+VLOOKUP(Tabla8[[#This Row],[NOMBRE]],CONFIGURACION!$B$7:$K$200,10,0),"") ->  | K157: =IFERROR(Tabla8[[#This Row],[DIAS ACUMULADOS]]-Tabla8[[#This Row],[DIAS TOMADAS]],"") -> 
D158: 155 | E158: =IFERROR(VLOOKUP(Tabla8[[#This Row],[n°]],CONFIGURACION!$A$7:$K$200,2,),"") -> 0 | F158: =IFERROR(VLOOKUP(Tabla8[[#This Row],[n°]],CONFIGURACION!$A$7:$K$200,3,),"") -> 0 | G158: =IFERROR(VLOOKUP(Tabla8[[#This Row],[n°]],CONFIGURACION!$A$7:$K$200,4,),"") -> 00:00:00 | H158: =IFERROR(VLOOKUP(Tabla8[[#This Row],[n°]],CONFIGURACION!$A$7:$K$200,5,),"") -> 0 | I158: =IFERROR(VLOOKUP(Tabla8[[#This Row],[n°]],CONFIGURACION!$A$7:$K$200,7,),"") -> 0 | J158: =IFERROR(SUMIFS(TablaBDD[TOTAL DIAS],TablaBDD[NOMBRE],Tabla8[[#This Row],[NOMBRE]])+VLOOKUP(Tabla8[[#This Row],[NOMBRE]],CONFIGURACION!$B$7:$K$200,10,0),"") ->  | K158: =IFERROR(Tabla8[[#This Row],[DIAS ACUMULADOS]]-Tabla8[[#This Row],[DIAS TOMADAS]],"") -> 
D159: 156 | E159: =IFERROR(VLOOKUP(Tabla8[[#This Row],[n°]],CONFIGURACION!$A$7:$K$200,2,),"") -> 0 | F159: =IFERROR(VLOOKUP(Tabla8[[#This Row],[n°]],CONFIGURACION!$A$7:$K$200,3,),"") -> 0 | G159: =IFERROR(VLOOKUP(Tabla8[[#This Row],[n°]],CONFIGURACION!$A$7:$K$200,4,),"") -> 00:00:00 | H159: =IFERROR(VLOOKUP(Tabla8[[#This Row],[n°]],CONFIGURACION!$A$7:$K$200,5,),"") -> 0 | I159: =IFERROR(VLOOKUP(Tabla8[[#This Row],[n°]],CONFIGURACION!$A$7:$K$200,7,),"") -> 0 | J159: =IFERROR(SUMIFS(TablaBDD[TOTAL DIAS],TablaBDD[NOMBRE],Tabla8[[#This Row],[NOMBRE]])+VLOOKUP(Tabla8[[#This Row],[NOMBRE]],CONFIGURACION!$B$7:$K$200,10,0),"") ->  | K159: =IFERROR(Tabla8[[#This Row],[DIAS ACUMULADOS]]-Tabla8[[#This Row],[DIAS TOMADAS]],"") -> 
D160: 157 | E160: =IFERROR(VLOOKUP(Tabla8[[#This Row],[n°]],CONFIGURACION!$A$7:$K$200,2,),"") -> 0 | F160: =IFERROR(VLOOKUP(Tabla8[[#This Row],[n°]],CONFIGURACION!$A$7:$K$200,3,),"") -> 0 | G160: =IFERROR(VLOOKUP(Tabla8[[#This Row],[n°]],CONFIGURACION!$A$7:$K$200,4,),"") -> 00:00:00 | H160: =IFERROR(VLOOKUP(Tabla8[[#This Row],[n°]],CONFIGURACION!$A$7:$K$200,5,),"") -> 0 | I160: =IFERROR(VLOOKUP(Tabla8[[#This Row],[n°]],CONFIGURACION!$A$7:$K$200,7,),"") -> 0 | J160: =IFERROR(SUMIFS(TablaBDD[TOTAL DIAS],TablaBDD[NOMBRE],Tabla8[[#This Row],[NOMBRE]])+VLOOKUP(Tabla8[[#This Row],[NOMBRE]],CONFIGURACION!$B$7:$K$200,10,0),"") ->  | K160: =IFERROR(Tabla8[[#This Row],[DIAS ACUMULADOS]]-Tabla8[[#This Row],[DIAS TOMADAS]],"") -> 
D161: 158 | E161: =IFERROR(VLOOKUP(Tabla8[[#This Row],[n°]],CONFIGURACION!$A$7:$K$200,2,),"") -> 0 | F161: =IFERROR(VLOOKUP(Tabla8[[#This Row],[n°]],CONFIGURACION!$A$7:$K$200,3,),"") -> 0 | G161: =IFERROR(VLOOKUP(Tabla8[[#This Row],[n°]],CONFIGURACION!$A$7:$K$200,4,),"") -> 00:00:00 | H161: =IFERROR(VLOOKUP(Tabla8[[#This Row],[n°]],CONFIGURACION!$A$7:$K$200,5,),"") -> 0 | I161: =IFERROR(VLOOKUP(Tabla8[[#This Row],[n°]],CONFIGURACION!$A$7:$K$200,7,),"") -> 0 | J161: =IFERROR(SUMIFS(TablaBDD[TOTAL DIAS],TablaBDD[NOMBRE],Tabla8[[#This Row],[NOMBRE]])+VLOOKUP(Tabla8[[#This Row],[NOMBRE]],CONFIGURACION!$B$7:$K$200,10,0),"") ->  | K161: =IFERROR(Tabla8[[#This Row],[DIAS ACUMULADOS]]-Tabla8[[#This Row],[DIAS TOMADAS]],"") -> 
D162: 159 | E162: =IFERROR(VLOOKUP(Tabla8[[#This Row],[n°]],CONFIGURACION!$A$7:$K$200,2,),"") -> 0 | F162: =IFERROR(VLOOKUP(Tabla8[[#This Row],[n°]],CONFIGURACION!$A$7:$K$200,3,),"") -> 0 | G162: =IFERROR(VLOOKUP(Tabla8[[#This Row],[n°]],CONFIGURACION!$A$7:$K$200,4,),"") -> 00:00:00 | H162: =IFERROR(VLOOKUP(Tabla8[[#This Row],[n°]],CONFIGURACION!$A$7:$K$200,5,),"") -> 0 | I162: =IFERROR(VLOOKUP(Tabla8[[#This Row],[n°]],CONFIGURACION!$A$7:$K$200,7,),"") -> 0 | J162: =IFERROR(SUMIFS(TablaBDD[TOTAL DIAS],TablaBDD[NOMBRE],Tabla8[[#This Row],[NOMBRE]])+VLOOKUP(Tabla8[[#This Row],[NOMBRE]],CONFIGURACION!$B$7:$K$200,10,0),"") ->  | K162: =IFERROR(Tabla8[[#This Row],[DIAS ACUMULADOS]]-Tabla8[[#This Row],[DIAS TOMADAS]],"") -> 
D163: 160 | E163: =IFERROR(VLOOKUP(Tabla8[[#This Row],[n°]],CONFIGURACION!$A$7:$K$200,2,),"") -> 0 | F163: =IFERROR(VLOOKUP(Tabla8[[#This Row],[n°]],CONFIGURACION!$A$7:$K$200,3,),"") -> 0 | G163: =IFERROR(VLOOKUP(Tabla8[[#This Row],[n°]],CONFIGURACION!$A$7:$K$200,4,),"") -> 00:00:00 | H163: =IFERROR(VLOOKUP(Tabla8[[#This Row],[n°]],CONFIGURACION!$A$7:$K$200,5,),"") -> 0 | I163: =IFERROR(VLOOKUP(Tabla8[[#This Row],[n°]],CONFIGURACION!$A$7:$K$200,7,),"") -> 0 | J163: =IFERROR(SUMIFS(TablaBDD[TOTAL DIAS],TablaBDD[NOMBRE],Tabla8[[#This Row],[NOMBRE]])+VLOOKUP(Tabla8[[#This Row],[NOMBRE]],CONFIGURACION!$B$7:$K$200,10,0),"") ->  | K163: =IFERROR(Tabla8[[#This Row],[DIAS ACUMULADOS]]-Tabla8[[#This Row],[DIAS TOMADAS]],"") -> 
D164: 161 | E164: =IFERROR(VLOOKUP(Tabla8[[#This Row],[n°]],CONFIGURACION!$A$7:$K$200,2,),"") -> 0 | F164: =IFERROR(VLOOKUP(Tabla8[[#This Row],[n°]],CONFIGURACION!$A$7:$K$200,3,),"") -> 0 | G164: =IFERROR(VLOOKUP(Tabla8[[#This Row],[n°]],CONFIGURACION!$A$7:$K$200,4,),"") -> 00:00:00 | H164: =IFERROR(VLOOKUP(Tabla8[[#This Row],[n°]],CONFIGURACION!$A$7:$K$200,5,),"") -> 0 | I164: =IFERROR(VLOOKUP(Tabla8[[#This Row],[n°]],CONFIGURACION!$A$7:$K$200,7,),"") -> 0 | J164: =IFERROR(SUMIFS(TablaBDD[TOTAL DIAS],TablaBDD[NOMBRE],Tabla8[[#This Row],[NOMBRE]])+VLOOKUP(Tabla8[[#This Row],[NOMBRE]],CONFIGURACION!$B$7:$K$200,10,0),"") ->  | K164: =IFERROR(Tabla8[[#This Row],[DIAS ACUMULADOS]]-Tabla8[[#This Row],[DIAS TOMADAS]],"") -> 
D165: 162 | E165: =IFERROR(VLOOKUP(Tabla8[[#This Row],[n°]],CONFIGURACION!$A$7:$K$200,2,),"") -> 0 | F165: =IFERROR(VLOOKUP(Tabla8[[#This Row],[n°]],CONFIGURACION!$A$7:$K$200,3,),"") -> 0 | G165: =IFERROR(VLOOKUP(Tabla8[[#This Row],[n°]],CONFIGURACION!$A$7:$K$200,4,),"") -> 00:00:00 | H165: =IFERROR(VLOOKUP(Tabla8[[#This Row],[n°]],CONFIGURACION!$A$7:$K$200,5,),"") -> 0 | I165: =IFERROR(VLOOKUP(Tabla8[[#This Row],[n°]],CONFIGURACION!$A$7:$K$200,7,),"") -> 0 | J165: =IFERROR(SUMIFS(TablaBDD[TOTAL DIAS],TablaBDD[NOMBRE],Tabla8[[#This Row],[NOMBRE]])+VLOOKUP(Tabla8[[#This Row],[NOMBRE]],CONFIGURACION!$B$7:$K$200,10,0),"") ->  | K165: =IFERROR(Tabla8[[#This Row],[DIAS ACUMULADOS]]-Tabla8[[#This Row],[DIAS TOMADAS]],"") -> 
D166: 163 | E166: =IFERROR(VLOOKUP(Tabla8[[#This Row],[n°]],CONFIGURACION!$A$7:$K$200,2,),"") -> 0 | F166: =IFERROR(VLOOKUP(Tabla8[[#This Row],[n°]],CONFIGURACION!$A$7:$K$200,3,),"") -> 0 | G166: =IFERROR(VLOOKUP(Tabla8[[#This Row],[n°]],CONFIGURACION!$A$7:$K$200,4,),"") -> 00:00:00 | H166: =IFERROR(VLOOKUP(Tabla8[[#This Row],[n°]],CONFIGURACION!$A$7:$K$200,5,),"") -> 0 | I166: =IFERROR(VLOOKUP(Tabla8[[#This Row],[n°]],CONFIGURACION!$A$7:$K$200,7,),"") -> 0 | J166: =IFERROR(SUMIFS(TablaBDD[TOTAL DIAS],TablaBDD[NOMBRE],Tabla8[[#This Row],[NOMBRE]])+VLOOKUP(Tabla8[[#This Row],[NOMBRE]],CONFIGURACION!$B$7:$K$200,10,0),"") ->  | K166: =IFERROR(Tabla8[[#This Row],[DIAS ACUMULADOS]]-Tabla8[[#This Row],[DIAS TOMADAS]],"") -> 
D167: 164 | E167: =IFERROR(VLOOKUP(Tabla8[[#This Row],[n°]],CONFIGURACION!$A$7:$K$200,2,),"") -> 0 | F167: =IFERROR(VLOOKUP(Tabla8[[#This Row],[n°]],CONFIGURACION!$A$7:$K$200,3,),"") -> 0 | G167: =IFERROR(VLOOKUP(Tabla8[[#This Row],[n°]],CONFIGURACION!$A$7:$K$200,4,),"") -> 00:00:00 | H167: =IFERROR(VLOOKUP(Tabla8[[#This Row],[n°]],CONFIGURACION!$A$7:$K$200,5,),"") -> 0 | I167: =IFERROR(VLOOKUP(Tabla8[[#This Row],[n°]],CONFIGURACION!$A$7:$K$200,7,),"") -> 0 | J167: =IFERROR(SUMIFS(TablaBDD[TOTAL DIAS],TablaBDD[NOMBRE],Tabla8[[#This Row],[NOMBRE]])+VLOOKUP(Tabla8[[#This Row],[NOMBRE]],CONFIGURACION!$B$7:$K$200,10,0),"") ->  | K167: =IFERROR(Tabla8[[#This Row],[DIAS ACUMULADOS]]-Tabla8[[#This Row],[DIAS TOMADAS]],"") -> 
D168: 165 | E168: =IFERROR(VLOOKUP(Tabla8[[#This Row],[n°]],CONFIGURACION!$A$7:$K$200,2,),"") -> 0 | F168: =IFERROR(VLOOKUP(Tabla8[[#This Row],[n°]],CONFIGURACION!$A$7:$K$200,3,),"") -> 0 | G168: =IFERROR(VLOOKUP(Tabla8[[#This Row],[n°]],CONFIGURACION!$A$7:$K$200,4,),"") -> 00:00:00 | H168: =IFERROR(VLOOKUP(Tabla8[[#This Row],[n°]],CONFIGURACION!$A$7:$K$200,5,),"") -> 0 | I168: =IFERROR(VLOOKUP(Tabla8[[#This Row],[n°]],CONFIGURACION!$A$7:$K$200,7,),"") -> 0 | J168: =IFERROR(SUMIFS(TablaBDD[TOTAL DIAS],TablaBDD[NOMBRE],Tabla8[[#This Row],[NOMBRE]])+VLOOKUP(Tabla8[[#This Row],[NOMBRE]],CONFIGURACION!$B$7:$K$200,10,0),"") ->  | K168: =IFERROR(Tabla8[[#This Row],[DIAS ACUMULADOS]]-Tabla8[[#This Row],[DIAS TOMADAS]],"") -> 
D169: 166 | E169: =IFERROR(VLOOKUP(Tabla8[[#This Row],[n°]],CONFIGURACION!$A$7:$K$200,2,),"") -> 0 | F169: =IFERROR(VLOOKUP(Tabla8[[#This Row],[n°]],CONFIGURACION!$A$7:$K$200,3,),"") -> 0 | G169: =IFERROR(VLOOKUP(Tabla8[[#This Row],[n°]],CONFIGURACION!$A$7:$K$200,4,),"") -> 00:00:00 | H169: =IFERROR(VLOOKUP(Tabla8[[#This Row],[n°]],CONFIGURACION!$A$7:$K$200,5,),"") -> 0 | I169: =IFERROR(VLOOKUP(Tabla8[[#This Row],[n°]],CONFIGURACION!$A$7:$K$200,7,),"") -> 0 | J169: =IFERROR(SUMIFS(TablaBDD[TOTAL DIAS],TablaBDD[NOMBRE],Tabla8[[#This Row],[NOMBRE]])+VLOOKUP(Tabla8[[#This Row],[NOMBRE]],CONFIGURACION!$B$7:$K$200,10,0),"") ->  | K169: =IFERROR(Tabla8[[#This Row],[DIAS ACUMULADOS]]-Tabla8[[#This Row],[DIAS TOMADAS]],"") -> 
D170: 167 | E170: =IFERROR(VLOOKUP(Tabla8[[#This Row],[n°]],CONFIGURACION!$A$7:$K$200,2,),"") -> 0 | F170: =IFERROR(VLOOKUP(Tabla8[[#This Row],[n°]],CONFIGURACION!$A$7:$K$200,3,),"") -> 0 | G170: =IFERROR(VLOOKUP(Tabla8[[#This Row],[n°]],CONFIGURACION!$A$7:$K$200,4,),"") -> 00:00:00 | H170: =IFERROR(VLOOKUP(Tabla8[[#This Row],[n°]],CONFIGURACION!$A$7:$K$200,5,),"") -> 0 | I170: =IFERROR(VLOOKUP(Tabla8[[#This Row],[n°]],CONFIGURACION!$A$7:$K$200,7,),"") -> 0 | J170: =IFERROR(SUMIFS(TablaBDD[TOTAL DIAS],TablaBDD[NOMBRE],Tabla8[[#This Row],[NOMBRE]])+VLOOKUP(Tabla8[[#This Row],[NOMBRE]],CONFIGURACION!$B$7:$K$200,10,0),"") ->  | K170: =IFERROR(Tabla8[[#This Row],[DIAS ACUMULADOS]]-Tabla8[[#This Row],[DIAS TOMADAS]],"") -> 
D171: 168 | E171: =IFERROR(VLOOKUP(Tabla8[[#This Row],[n°]],CONFIGURACION!$A$7:$K$200,2,),"") -> 0 | F171: =IFERROR(VLOOKUP(Tabla8[[#This Row],[n°]],CONFIGURACION!$A$7:$K$200,3,),"") -> 0 | G171: =IFERROR(VLOOKUP(Tabla8[[#This Row],[n°]],CONFIGURACION!$A$7:$K$200,4,),"") -> 00:00:00 | H171: =IFERROR(VLOOKUP(Tabla8[[#This Row],[n°]],CONFIGURACION!$A$7:$K$200,5,),"") -> 0 | I171: =IFERROR(VLOOKUP(Tabla8[[#This Row],[n°]],CONFIGURACION!$A$7:$K$200,7,),"") -> 0 | J171: =IFERROR(SUMIFS(TablaBDD[TOTAL DIAS],TablaBDD[NOMBRE],Tabla8[[#This Row],[NOMBRE]])+VLOOKUP(Tabla8[[#This Row],[NOMBRE]],CONFIGURACION!$B$7:$K$200,10,0),"") ->  | K171: =IFERROR(Tabla8[[#This Row],[DIAS ACUMULADOS]]-Tabla8[[#This Row],[DIAS TOMADAS]],"") -> 
D172: 169 | E172: =IFERROR(VLOOKUP(Tabla8[[#This Row],[n°]],CONFIGURACION!$A$7:$K$200,2,),"") -> 0 | F172: =IFERROR(VLOOKUP(Tabla8[[#This Row],[n°]],CONFIGURACION!$A$7:$K$200,3,),"") -> 0 | G172: =IFERROR(VLOOKUP(Tabla8[[#This Row],[n°]],CONFIGURACION!$A$7:$K$200,4,),"") -> 00:00:00 | H172: =IFERROR(VLOOKUP(Tabla8[[#This Row],[n°]],CONFIGURACION!$A$7:$K$200,5,),"") -> 0 | I172: =IFERROR(VLOOKUP(Tabla8[[#This Row],[n°]],CONFIGURACION!$A$7:$K$200,7,),"") -> 0 | J172: =IFERROR(SUMIFS(TablaBDD[TOTAL DIAS],TablaBDD[NOMBRE],Tabla8[[#This Row],[NOMBRE]])+VLOOKUP(Tabla8[[#This Row],[NOMBRE]],CONFIGURACION!$B$7:$K$200,10,0),"") ->  | K172: =IFERROR(Tabla8[[#This Row],[DIAS ACUMULADOS]]-Tabla8[[#This Row],[DIAS TOMADAS]],"") -> 
D173: 170 | E173: =IFERROR(VLOOKUP(Tabla8[[#This Row],[n°]],CONFIGURACION!$A$7:$K$200,2,),"") -> 0 | F173: =IFERROR(VLOOKUP(Tabla8[[#This Row],[n°]],CONFIGURACION!$A$7:$K$200,3,),"") -> 0 | G173: =IFERROR(VLOOKUP(Tabla8[[#This Row],[n°]],CONFIGURACION!$A$7:$K$200,4,),"") -> 00:00:00 | H173: =IFERROR(VLOOKUP(Tabla8[[#This Row],[n°]],CONFIGURACION!$A$7:$K$200,5,),"") -> 0 | I173: =IFERROR(VLOOKUP(Tabla8[[#This Row],[n°]],CONFIGURACION!$A$7:$K$200,7,),"") -> 0 | J173: =IFERROR(SUMIFS(TablaBDD[TOTAL DIAS],TablaBDD[NOMBRE],Tabla8[[#This Row],[NOMBRE]])+VLOOKUP(Tabla8[[#This Row],[NOMBRE]],CONFIGURACION!$B$7:$K$200,10,0),"") ->  | K173: =IFERROR(Tabla8[[#This Row],[DIAS ACUMULADOS]]-Tabla8[[#This Row],[DIAS TOMADAS]],"") -> 
D174: 171 | E174: =IFERROR(VLOOKUP(Tabla8[[#This Row],[n°]],CONFIGURACION!$A$7:$K$200,2,),"") -> 0 | F174: =IFERROR(VLOOKUP(Tabla8[[#This Row],[n°]],CONFIGURACION!$A$7:$K$200,3,),"") -> 0 | G174: =IFERROR(VLOOKUP(Tabla8[[#This Row],[n°]],CONFIGURACION!$A$7:$K$200,4,),"") -> 00:00:00 | H174: =IFERROR(VLOOKUP(Tabla8[[#This Row],[n°]],CONFIGURACION!$A$7:$K$200,5,),"") -> 0 | I174: =IFERROR(VLOOKUP(Tabla8[[#This Row],[n°]],CONFIGURACION!$A$7:$K$200,7,),"") -> 0 | J174: =IFERROR(SUMIFS(TablaBDD[TOTAL DIAS],TablaBDD[NOMBRE],Tabla8[[#This Row],[NOMBRE]])+VLOOKUP(Tabla8[[#This Row],[NOMBRE]],CONFIGURACION!$B$7:$K$200,10,0),"") ->  | K174: =IFERROR(Tabla8[[#This Row],[DIAS ACUMULADOS]]-Tabla8[[#This Row],[DIAS TOMADAS]],"") -> 
D175: 172 | E175: =IFERROR(VLOOKUP(Tabla8[[#This Row],[n°]],CONFIGURACION!$A$7:$K$200,2,),"") -> 0 | F175: =IFERROR(VLOOKUP(Tabla8[[#This Row],[n°]],CONFIGURACION!$A$7:$K$200,3,),"") -> 0 | G175: =IFERROR(VLOOKUP(Tabla8[[#This Row],[n°]],CONFIGURACION!$A$7:$K$200,4,),"") -> 00:00:00 | H175: =IFERROR(VLOOKUP(Tabla8[[#This Row],[n°]],CONFIGURACION!$A$7:$K$200,5,),"") -> 0 | I175: =IFERROR(VLOOKUP(Tabla8[[#This Row],[n°]],CONFIGURACION!$A$7:$K$200,7,),"") -> 0 | J175: =IFERROR(SUMIFS(TablaBDD[TOTAL DIAS],TablaBDD[NOMBRE],Tabla8[[#This Row],[NOMBRE]])+VLOOKUP(Tabla8[[#This Row],[NOMBRE]],CONFIGURACION!$B$7:$K$200,10,0),"") ->  | K175: =IFERROR(Tabla8[[#This Row],[DIAS ACUMULADOS]]-Tabla8[[#This Row],[DIAS TOMADAS]],"") -> 
D176: 173 | E176: =IFERROR(VLOOKUP(Tabla8[[#This Row],[n°]],CONFIGURACION!$A$7:$K$200,2,),"") -> 0 | F176: =IFERROR(VLOOKUP(Tabla8[[#This Row],[n°]],CONFIGURACION!$A$7:$K$200,3,),"") -> 0 | G176: =IFERROR(VLOOKUP(Tabla8[[#This Row],[n°]],CONFIGURACION!$A$7:$K$200,4,),"") -> 00:00:00 | H176: =IFERROR(VLOOKUP(Tabla8[[#This Row],[n°]],CONFIGURACION!$A$7:$K$200,5,),"") -> 0 | I176: =IFERROR(VLOOKUP(Tabla8[[#This Row],[n°]],CONFIGURACION!$A$7:$K$200,7,),"") -> 0 | J176: =IFERROR(SUMIFS(TablaBDD[TOTAL DIAS],TablaBDD[NOMBRE],Tabla8[[#This Row],[NOMBRE]])+VLOOKUP(Tabla8[[#This Row],[NOMBRE]],CONFIGURACION!$B$7:$K$200,10,0),"") ->  | K176: =IFERROR(Tabla8[[#This Row],[DIAS ACUMULADOS]]-Tabla8[[#This Row],[DIAS TOMADAS]],"") -> 
D177: 174 | E177: =IFERROR(VLOOKUP(Tabla8[[#This Row],[n°]],CONFIGURACION!$A$7:$K$200,2,),"") -> 0 | F177: =IFERROR(VLOOKUP(Tabla8[[#This Row],[n°]],CONFIGURACION!$A$7:$K$200,3,),"") -> 0 | G177: =IFERROR(VLOOKUP(Tabla8[[#This Row],[n°]],CONFIGURACION!$A$7:$K$200,4,),"") -> 00:00:00 | H177: =IFERROR(VLOOKUP(Tabla8[[#This Row],[n°]],CONFIGURACION!$A$7:$K$200,5,),"") -> 0 | I177: =IFERROR(VLOOKUP(Tabla8[[#This Row],[n°]],CONFIGURACION!$A$7:$K$200,7,),"") -> 0 | J177: =IFERROR(SUMIFS(TablaBDD[TOTAL DIAS],TablaBDD[NOMBRE],Tabla8[[#This Row],[NOMBRE]])+VLOOKUP(Tabla8[[#This Row],[NOMBRE]],CONFIGURACION!$B$7:$K$200,10,0),"") ->  | K177: =IFERROR(Tabla8[[#This Row],[DIAS ACUMULADOS]]-Tabla8[[#This Row],[DIAS TOMADAS]],"") -> 
D178: 175 | E178: =IFERROR(VLOOKUP(Tabla8[[#This Row],[n°]],CONFIGURACION!$A$7:$K$200,2,),"") -> 0 | F178: =IFERROR(VLOOKUP(Tabla8[[#This Row],[n°]],CONFIGURACION!$A$7:$K$200,3,),"") -> 0 | G178: =IFERROR(VLOOKUP(Tabla8[[#This Row],[n°]],CONFIGURACION!$A$7:$K$200,4,),"") -> 00:00:00 | H178: =IFERROR(VLOOKUP(Tabla8[[#This Row],[n°]],CONFIGURACION!$A$7:$K$200,5,),"") -> 0 | I178: =IFERROR(VLOOKUP(Tabla8[[#This Row],[n°]],CONFIGURACION!$A$7:$K$200,7,),"") -> 0 | J178: =IFERROR(SUMIFS(TablaBDD[TOTAL DIAS],TablaBDD[NOMBRE],Tabla8[[#This Row],[NOMBRE]])+VLOOKUP(Tabla8[[#This Row],[NOMBRE]],CONFIGURACION!$B$7:$K$200,10,0),"") ->  | K178: =IFERROR(Tabla8[[#This Row],[DIAS ACUMULADOS]]-Tabla8[[#This Row],[DIAS TOMADAS]],"") -> 
D179: 176 | E179: =IFERROR(VLOOKUP(Tabla8[[#This Row],[n°]],CONFIGURACION!$A$7:$K$200,2,),"") -> 0 | F179: =IFERROR(VLOOKUP(Tabla8[[#This Row],[n°]],CONFIGURACION!$A$7:$K$200,3,),"") -> 0 | G179: =IFERROR(VLOOKUP(Tabla8[[#This Row],[n°]],CONFIGURACION!$A$7:$K$200,4,),"") -> 00:00:00 | H179: =IFERROR(VLOOKUP(Tabla8[[#This Row],[n°]],CONFIGURACION!$A$7:$K$200,5,),"") -> 0 | I179: =IFERROR(VLOOKUP(Tabla8[[#This Row],[n°]],CONFIGURACION!$A$7:$K$200,7,),"") -> 0 | J179: =IFERROR(SUMIFS(TablaBDD[TOTAL DIAS],TablaBDD[NOMBRE],Tabla8[[#This Row],[NOMBRE]])+VLOOKUP(Tabla8[[#This Row],[NOMBRE]],CONFIGURACION!$B$7:$K$200,10,0),"") ->  | K179: =IFERROR(Tabla8[[#This Row],[DIAS ACUMULADOS]]-Tabla8[[#This Row],[DIAS TOMADAS]],"") -> 
D180: 177 | E180: =IFERROR(VLOOKUP(Tabla8[[#This Row],[n°]],CONFIGURACION!$A$7:$K$200,2,),"") -> 0 | F180: =IFERROR(VLOOKUP(Tabla8[[#This Row],[n°]],CONFIGURACION!$A$7:$K$200,3,),"") -> 0 | G180: =IFERROR(VLOOKUP(Tabla8[[#This Row],[n°]],CONFIGURACION!$A$7:$K$200,4,),"") -> 00:00:00 | H180: =IFERROR(VLOOKUP(Tabla8[[#This Row],[n°]],CONFIGURACION!$A$7:$K$200,5,),"") -> 0 | I180: =IFERROR(VLOOKUP(Tabla8[[#This Row],[n°]],CONFIGURACION!$A$7:$K$200,7,),"") -> 0 | J180: =IFERROR(SUMIFS(TablaBDD[TOTAL DIAS],TablaBDD[NOMBRE],Tabla8[[#This Row],[NOMBRE]])+VLOOKUP(Tabla8[[#This Row],[NOMBRE]],CONFIGURACION!$B$7:$K$200,10,0),"") ->  | K180: =IFERROR(Tabla8[[#This Row],[DIAS ACUMULADOS]]-Tabla8[[#This Row],[DIAS TOMADAS]],"") -> 
D181: 178 | E181: =IFERROR(VLOOKUP(Tabla8[[#This Row],[n°]],CONFIGURACION!$A$7:$K$200,2,),"") -> 0 | F181: =IFERROR(VLOOKUP(Tabla8[[#This Row],[n°]],CONFIGURACION!$A$7:$K$200,3,),"") -> 0 | G181: =IFERROR(VLOOKUP(Tabla8[[#This Row],[n°]],CONFIGURACION!$A$7:$K$200,4,),"") -> 00:00:00 | H181: =IFERROR(VLOOKUP(Tabla8[[#This Row],[n°]],CONFIGURACION!$A$7:$K$200,5,),"") -> 0 | I181: =IFERROR(VLOOKUP(Tabla8[[#This Row],[n°]],CONFIGURACION!$A$7:$K$200,7,),"") -> 0 | J181: =IFERROR(SUMIFS(TablaBDD[TOTAL DIAS],TablaBDD[NOMBRE],Tabla8[[#This Row],[NOMBRE]])+VLOOKUP(Tabla8[[#This Row],[NOMBRE]],CONFIGURACION!$B$7:$K$200,10,0),"") ->  | K181: =IFERROR(Tabla8[[#This Row],[DIAS ACUMULADOS]]-Tabla8[[#This Row],[DIAS TOMADAS]],"") -> 
D182: 179 | E182: =IFERROR(VLOOKUP(Tabla8[[#This Row],[n°]],CONFIGURACION!$A$7:$K$200,2,),"") -> 0 | F182: =IFERROR(VLOOKUP(Tabla8[[#This Row],[n°]],CONFIGURACION!$A$7:$K$200,3,),"") -> 0 | G182: =IFERROR(VLOOKUP(Tabla8[[#This Row],[n°]],CONFIGURACION!$A$7:$K$200,4,),"") -> 00:00:00 | H182: =IFERROR(VLOOKUP(Tabla8[[#This Row],[n°]],CONFIGURACION!$A$7:$K$200,5,),"") -> 0 | I182: =IFERROR(VLOOKUP(Tabla8[[#This Row],[n°]],CONFIGURACION!$A$7:$K$200,7,),"") -> 0 | J182: =IFERROR(SUMIFS(TablaBDD[TOTAL DIAS],TablaBDD[NOMBRE],Tabla8[[#This Row],[NOMBRE]])+VLOOKUP(Tabla8[[#This Row],[NOMBRE]],CONFIGURACION!$B$7:$K$200,10,0),"") ->  | K182: =IFERROR(Tabla8[[#This Row],[DIAS ACUMULADOS]]-Tabla8[[#This Row],[DIAS TOMADAS]],"") -> 
D183: 180 | E183: =IFERROR(VLOOKUP(Tabla8[[#This Row],[n°]],CONFIGURACION!$A$7:$K$200,2,),"") -> 0 | F183: =IFERROR(VLOOKUP(Tabla8[[#This Row],[n°]],CONFIGURACION!$A$7:$K$200,3,),"") -> 0 | G183: =IFERROR(VLOOKUP(Tabla8[[#This Row],[n°]],CONFIGURACION!$A$7:$K$200,4,),"") -> 00:00:00 | H183: =IFERROR(VLOOKUP(Tabla8[[#This Row],[n°]],CONFIGURACION!$A$7:$K$200,5,),"") -> 0 | I183: =IFERROR(VLOOKUP(Tabla8[[#This Row],[n°]],CONFIGURACION!$A$7:$K$200,7,),"") -> 0 | J183: =IFERROR(SUMIFS(TablaBDD[TOTAL DIAS],TablaBDD[NOMBRE],Tabla8[[#This Row],[NOMBRE]])+VLOOKUP(Tabla8[[#This Row],[NOMBRE]],CONFIGURACION!$B$7:$K$200,10,0),"") ->  | K183: =IFERROR(Tabla8[[#This Row],[DIAS ACUMULADOS]]-Tabla8[[#This Row],[DIAS TOMADAS]],"") -> 
D184: 181 | E184: =IFERROR(VLOOKUP(Tabla8[[#This Row],[n°]],CONFIGURACION!$A$7:$K$200,2,),"") -> 0 | F184: =IFERROR(VLOOKUP(Tabla8[[#This Row],[n°]],CONFIGURACION!$A$7:$K$200,3,),"") -> 0 | G184: =IFERROR(VLOOKUP(Tabla8[[#This Row],[n°]],CONFIGURACION!$A$7:$K$200,4,),"") -> 00:00:00 | H184: =IFERROR(VLOOKUP(Tabla8[[#This Row],[n°]],CONFIGURACION!$A$7:$K$200,5,),"") -> 0 | I184: =IFERROR(VLOOKUP(Tabla8[[#This Row],[n°]],CONFIGURACION!$A$7:$K$200,7,),"") -> 0 | J184: =IFERROR(SUMIFS(TablaBDD[TOTAL DIAS],TablaBDD[NOMBRE],Tabla8[[#This Row],[NOMBRE]])+VLOOKUP(Tabla8[[#This Row],[NOMBRE]],CONFIGURACION!$B$7:$K$200,10,0),"") ->  | K184: =IFERROR(Tabla8[[#This Row],[DIAS ACUMULADOS]]-Tabla8[[#This Row],[DIAS TOMADAS]],"") -> 
D185: 182 | E185: =IFERROR(VLOOKUP(Tabla8[[#This Row],[n°]],CONFIGURACION!$A$7:$K$200,2,),"") -> 0 | F185: =IFERROR(VLOOKUP(Tabla8[[#This Row],[n°]],CONFIGURACION!$A$7:$K$200,3,),"") -> 0 | G185: =IFERROR(VLOOKUP(Tabla8[[#This Row],[n°]],CONFIGURACION!$A$7:$K$200,4,),"") -> 00:00:00 | H185: =IFERROR(VLOOKUP(Tabla8[[#This Row],[n°]],CONFIGURACION!$A$7:$K$200,5,),"") -> 0 | I185: =IFERROR(VLOOKUP(Tabla8[[#This Row],[n°]],CONFIGURACION!$A$7:$K$200,7,),"") -> 0 | J185: =IFERROR(SUMIFS(TablaBDD[TOTAL DIAS],TablaBDD[NOMBRE],Tabla8[[#This Row],[NOMBRE]])+VLOOKUP(Tabla8[[#This Row],[NOMBRE]],CONFIGURACION!$B$7:$K$200,10,0),"") ->  | K185: =IFERROR(Tabla8[[#This Row],[DIAS ACUMULADOS]]-Tabla8[[#This Row],[DIAS TOMADAS]],"") -> 
D186: 183 | E186: =IFERROR(VLOOKUP(Tabla8[[#This Row],[n°]],CONFIGURACION!$A$7:$K$200,2,),"") -> 0 | F186: =IFERROR(VLOOKUP(Tabla8[[#This Row],[n°]],CONFIGURACION!$A$7:$K$200,3,),"") -> 0 | G186: =IFERROR(VLOOKUP(Tabla8[[#This Row],[n°]],CONFIGURACION!$A$7:$K$200,4,),"") -> 00:00:00 | H186: =IFERROR(VLOOKUP(Tabla8[[#This Row],[n°]],CONFIGURACION!$A$7:$K$200,5,),"") -> 0 | I186: =IFERROR(VLOOKUP(Tabla8[[#This Row],[n°]],CONFIGURACION!$A$7:$K$200,7,),"") -> 0 | J186: =IFERROR(SUMIFS(TablaBDD[TOTAL DIAS],TablaBDD[NOMBRE],Tabla8[[#This Row],[NOMBRE]])+VLOOKUP(Tabla8[[#This Row],[NOMBRE]],CONFIGURACION!$B$7:$K$200,10,0),"") ->  | K186: =IFERROR(Tabla8[[#This Row],[DIAS ACUMULADOS]]-Tabla8[[#This Row],[DIAS TOMADAS]],"") -> 
D187: 184 | E187: =IFERROR(VLOOKUP(Tabla8[[#This Row],[n°]],CONFIGURACION!$A$7:$K$200,2,),"") -> 0 | F187: =IFERROR(VLOOKUP(Tabla8[[#This Row],[n°]],CONFIGURACION!$A$7:$K$200,3,),"") -> 0 | G187: =IFERROR(VLOOKUP(Tabla8[[#This Row],[n°]],CONFIGURACION!$A$7:$K$200,4,),"") -> 00:00:00 | H187: =IFERROR(VLOOKUP(Tabla8[[#This Row],[n°]],CONFIGURACION!$A$7:$K$200,5,),"") -> 0 | I187: =IFERROR(VLOOKUP(Tabla8[[#This Row],[n°]],CONFIGURACION!$A$7:$K$200,7,),"") -> 0 | J187: =IFERROR(SUMIFS(TablaBDD[TOTAL DIAS],TablaBDD[NOMBRE],Tabla8[[#This Row],[NOMBRE]])+VLOOKUP(Tabla8[[#This Row],[NOMBRE]],CONFIGURACION!$B$7:$K$200,10,0),"") ->  | K187: =IFERROR(Tabla8[[#This Row],[DIAS ACUMULADOS]]-Tabla8[[#This Row],[DIAS TOMADAS]],"") -> 
D188: 185 | E188: =IFERROR(VLOOKUP(Tabla8[[#This Row],[n°]],CONFIGURACION!$A$7:$K$200,2,),"") -> 0 | F188: =IFERROR(VLOOKUP(Tabla8[[#This Row],[n°]],CONFIGURACION!$A$7:$K$200,3,),"") -> 0 | G188: =IFERROR(VLOOKUP(Tabla8[[#This Row],[n°]],CONFIGURACION!$A$7:$K$200,4,),"") -> 00:00:00 | H188: =IFERROR(VLOOKUP(Tabla8[[#This Row],[n°]],CONFIGURACION!$A$7:$K$200,5,),"") -> 0 | I188: =IFERROR(VLOOKUP(Tabla8[[#This Row],[n°]],CONFIGURACION!$A$7:$K$200,7,),"") -> 0 | J188: =IFERROR(SUMIFS(TablaBDD[TOTAL DIAS],TablaBDD[NOMBRE],Tabla8[[#This Row],[NOMBRE]])+VLOOKUP(Tabla8[[#This Row],[NOMBRE]],CONFIGURACION!$B$7:$K$200,10,0),"") ->  | K188: =IFERROR(Tabla8[[#This Row],[DIAS ACUMULADOS]]-Tabla8[[#This Row],[DIAS TOMADAS]],"") -> 
D189: 186 | E189: =IFERROR(VLOOKUP(Tabla8[[#This Row],[n°]],CONFIGURACION!$A$7:$K$200,2,),"") -> 0 | F189: =IFERROR(VLOOKUP(Tabla8[[#This Row],[n°]],CONFIGURACION!$A$7:$K$200,3,),"") -> 0 | G189: =IFERROR(VLOOKUP(Tabla8[[#This Row],[n°]],CONFIGURACION!$A$7:$K$200,4,),"") -> 00:00:00 | H189: =IFERROR(VLOOKUP(Tabla8[[#This Row],[n°]],CONFIGURACION!$A$7:$K$200,5,),"") -> 0 | I189: =IFERROR(VLOOKUP(Tabla8[[#This Row],[n°]],CONFIGURACION!$A$7:$K$200,7,),"") -> 0 | J189: =IFERROR(SUMIFS(TablaBDD[TOTAL DIAS],TablaBDD[NOMBRE],Tabla8[[#This Row],[NOMBRE]])+VLOOKUP(Tabla8[[#This Row],[NOMBRE]],CONFIGURACION!$B$7:$K$200,10,0),"") ->  | K189: =IFERROR(Tabla8[[#This Row],[DIAS ACUMULADOS]]-Tabla8[[#This Row],[DIAS TOMADAS]],"") -> 
D190: 187 | E190: =IFERROR(VLOOKUP(Tabla8[[#This Row],[n°]],CONFIGURACION!$A$7:$K$200,2,),"") -> 0 | F190: =IFERROR(VLOOKUP(Tabla8[[#This Row],[n°]],CONFIGURACION!$A$7:$K$200,3,),"") -> 0 | G190: =IFERROR(VLOOKUP(Tabla8[[#This Row],[n°]],CONFIGURACION!$A$7:$K$200,4,),"") -> 00:00:00 | H190: =IFERROR(VLOOKUP(Tabla8[[#This Row],[n°]],CONFIGURACION!$A$7:$K$200,5,),"") -> 0 | I190: =IFERROR(VLOOKUP(Tabla8[[#This Row],[n°]],CONFIGURACION!$A$7:$K$200,7,),"") -> 0 | J190: =IFERROR(SUMIFS(TablaBDD[TOTAL DIAS],TablaBDD[NOMBRE],Tabla8[[#This Row],[NOMBRE]])+VLOOKUP(Tabla8[[#This Row],[NOMBRE]],CONFIGURACION!$B$7:$K$200,10,0),"") ->  | K190: =IFERROR(Tabla8[[#This Row],[DIAS ACUMULADOS]]-Tabla8[[#This Row],[DIAS TOMADAS]],"") -> 
D191: 188 | E191: =IFERROR(VLOOKUP(Tabla8[[#This Row],[n°]],CONFIGURACION!$A$7:$K$200,2,),"") -> 0 | F191: =IFERROR(VLOOKUP(Tabla8[[#This Row],[n°]],CONFIGURACION!$A$7:$K$200,3,),"") -> 0 | G191: =IFERROR(VLOOKUP(Tabla8[[#This Row],[n°]],CONFIGURACION!$A$7:$K$200,4,),"") -> 00:00:00 | H191: =IFERROR(VLOOKUP(Tabla8[[#This Row],[n°]],CONFIGURACION!$A$7:$K$200,5,),"") -> 0 | I191: =IFERROR(VLOOKUP(Tabla8[[#This Row],[n°]],CONFIGURACION!$A$7:$K$200,7,),"") -> 0 | J191: =IFERROR(SUMIFS(TablaBDD[TOTAL DIAS],TablaBDD[NOMBRE],Tabla8[[#This Row],[NOMBRE]])+VLOOKUP(Tabla8[[#This Row],[NOMBRE]],CONFIGURACION!$B$7:$K$200,10,0),"") ->  | K191: =IFERROR(Tabla8[[#This Row],[DIAS ACUMULADOS]]-Tabla8[[#This Row],[DIAS TOMADAS]],"") -> 
D192: 189 | E192: =IFERROR(VLOOKUP(Tabla8[[#This Row],[n°]],CONFIGURACION!$A$7:$K$200,2,),"") -> 0 | F192: =IFERROR(VLOOKUP(Tabla8[[#This Row],[n°]],CONFIGURACION!$A$7:$K$200,3,),"") -> 0 | G192: =IFERROR(VLOOKUP(Tabla8[[#This Row],[n°]],CONFIGURACION!$A$7:$K$200,4,),"") -> 00:00:00 | H192: =IFERROR(VLOOKUP(Tabla8[[#This Row],[n°]],CONFIGURACION!$A$7:$K$200,5,),"") -> 0 | I192: =IFERROR(VLOOKUP(Tabla8[[#This Row],[n°]],CONFIGURACION!$A$7:$K$200,7,),"") -> 0 | J192: =IFERROR(SUMIFS(TablaBDD[TOTAL DIAS],TablaBDD[NOMBRE],Tabla8[[#This Row],[NOMBRE]])+VLOOKUP(Tabla8[[#This Row],[NOMBRE]],CONFIGURACION!$B$7:$K$200,10,0),"") ->  | K192: =IFERROR(Tabla8[[#This Row],[DIAS ACUMULADOS]]-Tabla8[[#This Row],[DIAS TOMADAS]],"") -> 
D193: 190 | E193: =IFERROR(VLOOKUP(Tabla8[[#This Row],[n°]],CONFIGURACION!$A$7:$K$200,2,),"") -> 0 | F193: =IFERROR(VLOOKUP(Tabla8[[#This Row],[n°]],CONFIGURACION!$A$7:$K$200,3,),"") -> 0 | G193: =IFERROR(VLOOKUP(Tabla8[[#This Row],[n°]],CONFIGURACION!$A$7:$K$200,4,),"") -> 00:00:00 | H193: =IFERROR(VLOOKUP(Tabla8[[#This Row],[n°]],CONFIGURACION!$A$7:$K$200,5,),"") -> 0 | I193: =IFERROR(VLOOKUP(Tabla8[[#This Row],[n°]],CONFIGURACION!$A$7:$K$200,7,),"") -> 0 | J193: =IFERROR(SUMIFS(TablaBDD[TOTAL DIAS],TablaBDD[NOMBRE],Tabla8[[#This Row],[NOMBRE]])+VLOOKUP(Tabla8[[#This Row],[NOMBRE]],CONFIGURACION!$B$7:$K$200,10,0),"") ->  | K193: =IFERROR(Tabla8[[#This Row],[DIAS ACUMULADOS]]-Tabla8[[#This Row],[DIAS TOMADAS]],"") -> 
D194: 191 | E194: =IFERROR(VLOOKUP(Tabla8[[#This Row],[n°]],CONFIGURACION!$A$7:$K$200,2,),"") -> 0 | F194: =IFERROR(VLOOKUP(Tabla8[[#This Row],[n°]],CONFIGURACION!$A$7:$K$200,3,),"") -> 0 | G194: =IFERROR(VLOOKUP(Tabla8[[#This Row],[n°]],CONFIGURACION!$A$7:$K$200,4,),"") -> 00:00:00 | H194: =IFERROR(VLOOKUP(Tabla8[[#This Row],[n°]],CONFIGURACION!$A$7:$K$200,5,),"") -> 0 | I194: =IFERROR(VLOOKUP(Tabla8[[#This Row],[n°]],CONFIGURACION!$A$7:$K$200,7,),"") -> 0 | J194: =IFERROR(SUMIFS(TablaBDD[TOTAL DIAS],TablaBDD[NOMBRE],Tabla8[[#This Row],[NOMBRE]])+VLOOKUP(Tabla8[[#This Row],[NOMBRE]],CONFIGURACION!$B$7:$K$200,10,0),"") ->  | K194: =IFERROR(Tabla8[[#This Row],[DIAS ACUMULADOS]]-Tabla8[[#This Row],[DIAS TOMADAS]],"") -> 
D195: 192 | E195: =IFERROR(VLOOKUP(Tabla8[[#This Row],[n°]],CONFIGURACION!$A$7:$K$200,2,),"") -> 0 | F195: =IFERROR(VLOOKUP(Tabla8[[#This Row],[n°]],CONFIGURACION!$A$7:$K$200,3,),"") -> 0 | G195: =IFERROR(VLOOKUP(Tabla8[[#This Row],[n°]],CONFIGURACION!$A$7:$K$200,4,),"") -> 00:00:00 | H195: =IFERROR(VLOOKUP(Tabla8[[#This Row],[n°]],CONFIGURACION!$A$7:$K$200,5,),"") -> 0 | I195: =IFERROR(VLOOKUP(Tabla8[[#This Row],[n°]],CONFIGURACION!$A$7:$K$200,7,),"") -> 0 | J195: =IFERROR(SUMIFS(TablaBDD[TOTAL DIAS],TablaBDD[NOMBRE],Tabla8[[#This Row],[NOMBRE]])+VLOOKUP(Tabla8[[#This Row],[NOMBRE]],CONFIGURACION!$B$7:$K$200,10,0),"") ->  | K195: =IFERROR(Tabla8[[#This Row],[DIAS ACUMULADOS]]-Tabla8[[#This Row],[DIAS TOMADAS]],"") -> 
D196: 193 | E196: =IFERROR(VLOOKUP(Tabla8[[#This Row],[n°]],CONFIGURACION!$A$7:$K$200,2,),"") -> 0 | F196: =IFERROR(VLOOKUP(Tabla8[[#This Row],[n°]],CONFIGURACION!$A$7:$K$200,3,),"") -> 0 | G196: =IFERROR(VLOOKUP(Tabla8[[#This Row],[n°]],CONFIGURACION!$A$7:$K$200,4,),"") -> 00:00:00 | H196: =IFERROR(VLOOKUP(Tabla8[[#This Row],[n°]],CONFIGURACION!$A$7:$K$200,5,),"") -> 0 | I196: =IFERROR(VLOOKUP(Tabla8[[#This Row],[n°]],CONFIGURACION!$A$7:$K$200,7,),"") -> 0 | J196: =IFERROR(SUMIFS(TablaBDD[TOTAL DIAS],TablaBDD[NOMBRE],Tabla8[[#This Row],[NOMBRE]])+VLOOKUP(Tabla8[[#This Row],[NOMBRE]],CONFIGURACION!$B$7:$K$200,10,0),"") ->  | K196: =IFERROR(Tabla8[[#This Row],[DIAS ACUMULADOS]]-Tabla8[[#This Row],[DIAS TOMADAS]],"") -> 

Sheet BDD
C2: INGRESE LOS DATOS AQUÍ Y LUEGO PINCHAR INSERTAR - ESTA HOJA SE USA PARA INGRESAR LAS INFORMACIONES DE VAC TOMADAS
C3: NOMBRE | D3: RUT | E3: FECHA INICIO | F3: FECHA FINAL | G3: PERIODO | J3: PARA GENERAR COMPRABANTE HAZ CLICK SOBRE EL NOMBRE DEL TRABAJADOR EN LA TABLA Y PRECIONAR EL Boton verde GENERAR COMPROBANTE
D4: =IFERROR(VLOOKUP(nombre,TablaEMPLEADOS[],2,0),"") -> 
C5: Esa hoja se usa solo para ingresar vacaciones asignados, para borrar los datos de ejemplo, seleccione el nombre y haz click en el boton rojo ELIMINAR FILA
B6: Columna1 | C6: NOMBRE | D6: RUT | E6: FECHA INICIO | F6: FECHA FINAL | G6: PERIODO | H6: TOTAL DIAS | I6: TOTAL DIAS MANUAL | J6: COMENTARIO (opcional)
B7: =COUNTIF($C$7:C7,VERIFICACION!$D$4) -> 0 | D7: =IFERROR(VLOOKUP(BDD!$C7,TablaEMPLEADOS[],2,0),"") ->  | H7: =IFERROR(IF(TablaBDD[[#This Row],[TOTAL DIAS MANUAL]]<>"",TablaBDD[[#This Row],[TOTAL DIAS MANUAL]],IF(OR(BDD!$E7="",BDD!$F7=""),"",NETWORKDAYS(BDD!$E7,BDD!$F7,DiasFeriados))),"") -> 
B8: =COUNTIF($C$7:C8,VERIFICACION!$D$4) -> 0 | C8: VERONICA ANDREA HERNANDEZ LAZO | D8: =IFERROR(VLOOKUP(BDD!$C8,TablaEMPLEADOS[],2,0),"") ->  | E8: 2020-07-02 | F8: 2020-07-23 | H8: =IFERROR(IF(TablaBDD[[#This Row],[TOTAL DIAS MANUAL]]<>"",TablaBDD[[#This Row],[TOTAL DIAS MANUAL]],IF(OR(BDD!$E8="",BDD!$F8=""),"",NETWORKDAYS(BDD!$E8,BDD!$F8,DiasFeriados))),"") -> 15
B9: =COUNTIF($C$7:C9,VERIFICACION!$D$4) -> 0 | C9: LUCIA KARINA MONTANO BULNES | D9: =IFERROR(VLOOKUP(BDD!$C9,TablaEMPLEADOS[],2,0),"") ->  | E9: 2020-06-24 | F9: 2020-07-27 | H9: =IFERROR(IF(TablaBDD[[#This Row],[TOTAL DIAS MANUAL]]<>"",TablaBDD[[#This Row],[TOTAL DIAS MANUAL]],IF(OR(BDD!$E9="",BDD!$F9=""),"",NETWORKDAYS(BDD!$E9,BDD!$F9,DiasFeriados))),"") -> 22
B10: =COUNTIF($C$7:C10,VERIFICACION!$D$4) -> 0 | D10: =IFERROR(VLOOKUP(BDD!$C10,TablaEMPLEADOS[],2,0),"") ->  | H10: =IFERROR(IF(TablaBDD[[#This Row],[TOTAL DIAS MANUAL]]<>"",TablaBDD[[#This Row],[TOTAL DIAS MANUAL]],IF(OR(BDD!$E10="",BDD!$F10=""),"",NETWORKDAYS(BDD!$E10,BDD!$F10,DiasFeriados))),"") -> 
B11: =COUNTIF($C$7:C11,VERIFICACION!$D$4) -> 0 | D11: =IFERROR(VLOOKUP(BDD!$C11,TablaEMPLEADOS[],2,0),"") ->  | H11: =IFERROR(IF(TablaBDD[[#This Row],[TOTAL DIAS MANUAL]]<>"",TablaBDD[[#This Row],[TOTAL DIAS MANUAL]],IF(OR(BDD!$E11="",BDD!$F11=""),"",NETWORKDAYS(BDD!$E11,BDD!$F11,DiasFeriados))),"") -> 

Sheet VERIFICACION
B4: NOMBRE EMPLEADO | G4: =IF($G$6="","NO",$G$6) -> NO
B5: FECHA CONTRATACION | C5: ANTIGÜEDAD LABORAL | D5: DIAS VACACIONES | E5: DIAS ASIGNADOS | F5: SALDO VACACIONES | G5: FECHA DE CORTE
B6: =IFERROR(VLOOKUP(D4,TablaEMPLEADOS[],3,0),"") ->  | C6: =IFERROR(VLOOKUP(D4,TablaEMPLEADOS[],4,0),"") ->  | D6: =IFERROR(VLOOKUP(D4,TablaEMPLEADOS[],6,0),"") ->  | E6: =IFERROR((VLOOKUP(D4,TablaEMPLEADOS[],10,0))+SUM(Tabla5[DIAS TOMADOS]),"") ->  | F6: =IFERROR(D6-E6,"") -> 
C7: =IFERROR(VLOOKUP(D4,TablaEMPLEADOS[],9,0),"") -> 
B8: DETALLE DE LOS FERIADOS ASIGNADOS
B10: NOMBRE | C10: RUT | D10: FECHA INICIO | E10: FECHA FINAL | F10: PERIODO | G10: DIAS TOMADOS | H10: COMENTARIO
A11: 1 | B11: =IFERROR(VLOOKUP(A11,TablaBDD[],2,0),"") ->  | C11: =IFERROR(VLOOKUP(A11,TablaBDD[],3,0),"") ->  | D11: =IFERROR(VLOOKUP(A11,TablaBDD[],4,0),"") ->  | E11: =IFERROR(VLOOKUP(A11,TablaBDD[],5,0),"") ->  | F11: =IFERROR(VLOOKUP(A11,TablaBDD[],6,0),"") ->  | G11: =IFERROR(VLOOKUP(A11,TablaBDD[],7,0),"") ->  | H11: =IFERROR(VLOOKUP(A11,TablaBDD[],9,0),"") -> 
A12: 2 | B12: =IFERROR(VLOOKUP(A12,TablaBDD[],2,0),"") ->  | C12: =IFERROR(VLOOKUP(A12,TablaBDD[],3,0),"") ->  | D12: =IFERROR(VLOOKUP(A12,TablaBDD[],4,0),"") ->  | E12: =IFERROR(VLOOKUP(A12,TablaBDD[],5,0),"") ->  | F12: =IFERROR(VLOOKUP(A12,TablaBDD[],6,0),"") ->  | G12: =IFERROR(VLOOKUP(A12,TablaBDD[],7,0),"") ->  | H12: =IFERROR(VLOOKUP(A12,TablaBDD[],9,0),"") -> 
A13: 3 | B13: =IFERROR(VLOOKUP(A13,TablaBDD[],2,0),"") ->  | C13: =IFERROR(VLOOKUP(A13,TablaBDD[],3,0),"") ->  | D13: =IFERROR(VLOOKUP(A13,TablaBDD[],4,0),"") ->  | E13: =IFERROR(VLOOKUP(A13,TablaBDD[],5,0),"") ->  | F13: =IFERROR(VLOOKUP(A13,TablaBDD[],6,0),"") ->  | G13: =IFERROR(VLOOKUP(A13,TablaBDD[],7,0),"") ->  | H13: =IFERROR(VLOOKUP(A13,TablaBDD[],9,0),"") -> 
A14: 4 | B14: =IFERROR(VLOOKUP(A14,TablaBDD[],2,0),"") ->  | C14: =IFERROR(VLOOKUP(A14,TablaBDD[],3,0),"") ->  | D14: =IFERROR(VLOOKUP(A14,TablaBDD[],4,0),"") ->  | E14: =IFERROR(VLOOKUP(A14,TablaBDD[],5,0),"") ->  | F14: =IFERROR(VLOOKUP(A14,TablaBDD[],6,0),"") ->  | G14: =IFERROR(VLOOKUP(A14,TablaBDD[],7,0),"") ->  | H14: =IFERROR(VLOOKUP(A14,TablaBDD[],9,0),"") -> 
A15: 5 | B15: =IFERROR(VLOOKUP(A15,TablaBDD[],2,0),"") ->  | C15: =IFERROR(VLOOKUP(A15,TablaBDD[],3,0),"") ->  | D15: =IFERROR(VLOOKUP(A15,TablaBDD[],4,0),"") ->  | E15: =IFERROR(VLOOKUP(A15,TablaBDD[],5,0),"") ->  | F15: =IFERROR(VLOOKUP(A15,TablaBDD[],6,0),"") ->  | G15: =IFERROR(VLOOKUP(A15,TablaBDD[],7,0),"") ->  | H15: =IFERROR(VLOOKUP(A15,TablaBDD[],9,0),"") -> 
A16: 6 | B16: =IFERROR(VLOOKUP(A16,TablaBDD[],2,0),"") ->  | C16: =IFERROR(VLOOKUP(A16,TablaBDD[],3,0),"") ->  | D16: =IFERROR(VLOOKUP(A16,TablaBDD[],4,0),"") ->  | E16: =IFERROR(VLOOKUP(A16,TablaBDD[],5,0),"") ->  | F16: =IFERROR(VLOOKUP(A16,TablaBDD[],6,0),"") ->  | G16: =IFERROR(VLOOKUP(A16,TablaBDD[],7,0),"") ->  | H16: =IFERROR(VLOOKUP(A16,TablaBDD[],9,0),"") -> 
A17: 7 | B17: =IFERROR(VLOOKUP(A17,TablaBDD[],2,0),"") ->  | C17: =IFERROR(VLOOKUP(A17,TablaBDD[],3,0),"") ->  | D17: =IFERROR(VLOOKUP(A17,TablaBDD[],4,0),"") ->  | E17: =IFERROR(VLOOKUP(A17,TablaBDD[],5,0),"") ->  | F17: =IFERROR(VLOOKUP(A17,TablaBDD[],6,0),"") ->  | G17: =IFERROR(VLOOKUP(A17,TablaBDD[],7,0),"") ->  | H17: =IFERROR(VLOOKUP(A17,TablaBDD[],9,0),"") -> 
A18: 8 | B18: =IFERROR(VLOOKUP(A18,TablaBDD[],2,0),"") ->  | C18: =IFERROR(VLOOKUP(A18,TablaBDD[],3,0),"") ->  | D18: =IFERROR(VLOOKUP(A18,TablaBDD[],4,0),"") ->  | E18: =IFERROR(VLOOKUP(A18,TablaBDD[],5,0),"") ->  | F18: =IFERROR(VLOOKUP(A18,TablaBDD[],6,0),"") ->  | G18: =IFERROR(VLOOKUP(A18,TablaBDD[],7,0),"") ->  | H18: =IFERROR(VLOOKUP(A18,TablaBDD[],9,0),"") -> 
A19: 9 | B19: =IFERROR(VLOOKUP(A19,TablaBDD[],2,0),"") ->  | C19: =IFERROR(VLOOKUP(A19,TablaBDD[],3,0),"") ->  | D19: =IFERROR(VLOOKUP(A19,TablaBDD[],4,0),"") ->  | E19: =IFERROR(VLOOKUP(A19,TablaBDD[],5,0),"") ->  | F19: =IFERROR(VLOOKUP(A19,TablaBDD[],6,0),"") ->  | G19: =IFERROR(VLOOKUP(A19,TablaBDD[],7,0),"") ->  | H19: =IFERROR(VLOOKUP(A19,TablaBDD[],9,0),"") -> 
A20: 10 | B20: =IFERROR(VLOOKUP(A20,TablaBDD[],2,0),"") ->  | C20: =IFERROR(VLOOKUP(A20,TablaBDD[],3,0),"") ->  | D20: =IFERROR(VLOOKUP(A20,TablaBDD[],4,0),"") ->  | E20: =IFERROR(VLOOKUP(A20,TablaBDD[],5,0),"") ->  | F20: =IFERROR(VLOOKUP(A20,TablaBDD[],6,0),"") ->  | G20: =IFERROR(VLOOKUP(A20,TablaBDD[],7,0),"") ->  | H20: =IFERROR(VLOOKUP(A20,TablaBDD[],9,0),"") -> 
A21: 11 | B21: =IFERROR(VLOOKUP(A21,TablaBDD[],2,0),"") ->  | C21: =IFERROR(VLOOKUP(A21,TablaBDD[],3,0),"") ->  | D21: =IFERROR(VLOOKUP(A21,TablaBDD[],4,0),"") ->  | E21: =IFERROR(VLOOKUP(A21,TablaBDD[],5,0),"") ->  | F21: =IFERROR(VLOOKUP(A21,TablaBDD[],6,0),"") ->  | G21: =IFERROR(VLOOKUP(A21,TablaBDD[],7,0),"") ->  | H21: =IFERROR(VLOOKUP(A21,TablaBDD[],9,0),"") -> 
A22: 12 | B22: =IFERROR(VLOOKUP(A22,TablaBDD[],2,0),"") ->  | C22: =IFERROR(VLOOKUP(A22,TablaBDD[],3,0),"") ->  | D22: =IFERROR(VLOOKUP(A22,TablaBDD[],4,0),"") ->  | E22: =IFERROR(VLOOKUP(A22,TablaBDD[],5,0),"") ->  | F22: =IFERROR(VLOOKUP(A22,TablaBDD[],6,0),"") ->  | G22: =IFERROR(VLOOKUP(A22,TablaBDD[],7,0),"") ->  | H22: =IFERROR(VLOOKUP(A22,TablaBDD[],9,0),"") -> 
A23: 13 | B23: =IFERROR(VLOOKUP(A23,TablaBDD[],2,0),"") ->  | C23: =IFERROR(VLOOKUP(A23,TablaBDD[],3,0),"") ->  | D23: =IFERROR(VLOOKUP(A23,TablaBDD[],4,0),"") ->  | E23: =IFERROR(VLOOKUP(A23,TablaBDD[],5,0),"") ->  | F23: =IFERROR(VLOOKUP(A23,TablaBDD[],6,0),"") ->  | G23: =IFERROR(VLOOKUP(A23,TablaBDD[],7,0),"") ->  | H23: =IFERROR(VLOOKUP(A23,TablaBDD[],9,0),"") -> 
A24: 14 | B24: =IFERROR(VLOOKUP(A24,TablaBDD[],2,0),"") ->  | C24: =IFERROR(VLOOKUP(A24,TablaBDD[],3,0),"") ->  | D24: =IFERROR(VLOOKUP(A24,TablaBDD[],4,0),"") ->  | E24: =IFERROR(VLOOKUP(A24,TablaBDD[],5,0),"") ->  | F24: =IFERROR(VLOOKUP(A24,TablaBDD[],6,0),"") ->  | G24: =IFERROR(VLOOKUP(A24,TablaBDD[],7,0),"") ->  | H24: =IFERROR(VLOOKUP(A24,TablaBDD[],9,0),"") -> 
A25: 15 | B25: =IFERROR(VLOOKUP(A25,TablaBDD[],2,0),"") ->  | C25: =IFERROR(VLOOKUP(A25,TablaBDD[],3,0),"") ->  | D25: =IFERROR(VLOOKUP(A25,TablaBDD[],4,0),"") ->  | E25: =IFERROR(VLOOKUP(A25,TablaBDD[],5,0),"") ->  | F25: =IFERROR(VLOOKUP(A25,TablaBDD[],6,0),"") ->  | G25: =IFERROR(VLOOKUP(A25,TablaBDD[],7,0),"") ->  | H25: =IFERROR(VLOOKUP(A25,TablaBDD[],9,0),"") -> 
A26: 16 | B26: =IFERROR(VLOOKUP(A26,TablaBDD[],2,0),"") ->  | C26: =IFERROR(VLOOKUP(A26,TablaBDD[],3,0),"") ->  | D26: =IFERROR(VLOOKUP(A26,TablaBDD[],4,0),"") ->  | E26: =IFERROR(VLOOKUP(A26,TablaBDD[],5,0),"") ->  | F26: =IFERROR(VLOOKUP(A26,TablaBDD[],6,0),"") ->  | G26: =IFERROR(VLOOKUP(A26,TablaBDD[],7,0),"") ->  | H26: =IFERROR(VLOOKUP(A26,TablaBDD[],9,0),"") -> 
A27: 17 | B27: =IFERROR(VLOOKUP(A27,TablaBDD[],2,0),"") ->  | C27: =IFERROR(VLOOKUP(A27,TablaBDD[],3,0),"") ->  | D27: =IFERROR(VLOOKUP(A27,TablaBDD[],4,0),"") ->  | E27: =IFERROR(VLOOKUP(A27,TablaBDD[],5,0),"") ->  | F27: =IFERROR(VLOOKUP(A27,TablaBDD[],6,0),"") ->  | G27: =IFERROR(VLOOKUP(A27,TablaBDD[],7,0),"") ->  | H27: =IFERROR(VLOOKUP(A27,TablaBDD[],9,0),"") -> 
A28: 18 | B28: =IFERROR(VLOOKUP(A28,TablaBDD[],2,0),"") ->  | C28: =IFERROR(VLOOKUP(A28,TablaBDD[],3,0),"") ->  | D28: =IFERROR(VLOOKUP(A28,TablaBDD[],4,0),"") ->  | E28: =IFERROR(VLOOKUP(A28,TablaBDD[],5,0),"") ->  | F28: =IFERROR(VLOOKUP(A28,TablaBDD[],6,0),"") ->  | G28: =IFERROR(VLOOKUP(A28,TablaBDD[],7,0),"") ->  | H28: =IFERROR(VLOOKUP(A28,TablaBDD[],9,0),"") -> 
A29: 19 | B29: =IFERROR(VLOOKUP(A29,TablaBDD[],2,0),"") ->  | C29: =IFERROR(VLOOKUP(A29,TablaBDD[],3,0),"") ->  | D29: =IFERROR(VLOOKUP(A29,TablaBDD[],4,0),"") ->  | E29: =IFERROR(VLOOKUP(A29,TablaBDD[],5,0),"") ->  | F29: =IFERROR(VLOOKUP(A29,TablaBDD[],6,0),"") ->  | G29: =IFERROR(VLOOKUP(A29,TablaBDD[],7,0),"") ->  | H29: =IFERROR(VLOOKUP(A29,TablaBDD[],9,0),"") -> 
A30: 20 | B30: =IFERROR(VLOOKUP(A30,TablaBDD[],2,0),"") ->  | C30: =IFERROR(VLOOKUP(A30,TablaBDD[],3,0),"") ->  | D30: =IFERROR(VLOOKUP(A30,TablaBDD[],4,0),"") ->  | E30: =IFERROR(VLOOKUP(A30,TablaBDD[],5,0),"") ->  | F30: =IFERROR(VLOOKUP(A30,TablaBDD[],6,0),"") ->  | G30: =IFERROR(VLOOKUP(A30,TablaBDD[],7,0),"") ->  | H30: =IFERROR(VLOOKUP(A30,TablaBDD[],9,0),"") -> 
A31: 21 | B31: =IFERROR(VLOOKUP(A31,TablaBDD[],2,0),"") ->  | C31: =IFERROR(VLOOKUP(A31,TablaBDD[],3,0),"") ->  | D31: =IFERROR(VLOOKUP(A31,TablaBDD[],4,0),"") ->  | E31: =IFERROR(VLOOKUP(A31,TablaBDD[],5,0),"") ->  | F31: =IFERROR(VLOOKUP(A31,TablaBDD[],6,0),"") ->  | G31: =IFERROR(VLOOKUP(A31,TablaBDD[],7,0),"") ->  | H31: =IFERROR(VLOOKUP(A31,TablaBDD[],9,0),"") -> 
A32: 22 | B32: =IFERROR(VLOOKUP(A32,TablaBDD[],2,0),"") ->  | C32: =IFERROR(VLOOKUP(A32,TablaBDD[],3,0),"") ->  | D32: =IFERROR(VLOOKUP(A32,TablaBDD[],4,0),"") ->  | E32: =IFERROR(VLOOKUP(A32,TablaBDD[],5,0),"") ->  | F32: =IFERROR(VLOOKUP(A32,TablaBDD[],6,0),"") ->  | G32: =IFERROR(VLOOKUP(A32,TablaBDD[],7,0),"") ->  | H32: =IFERROR(VLOOKUP(A32,TablaBDD[],9,0),"") -> 
A33: 23 | B33: =IFERROR(VLOOKUP(A33,TablaBDD[],2,0),"") ->  | C33: =IFERROR(VLOOKUP(A33,TablaBDD[],3,0),"") ->  | D33: =IFERROR(VLOOKUP(A33,TablaBDD[],4,0),"") ->  | E33: =IFERROR(VLOOKUP(A33,TablaBDD[],5,0),"") ->  | F33: =IFERROR(VLOOKUP(A33,TablaBDD[],6,0),"") ->  | G33: =IFERROR(VLOOKUP(A33,TablaBDD[],7,0),"") ->  | H33: =IFERROR(VLOOKUP(A33,TablaBDD[],9,0),"") -> 
A34: 24 | B34: =IFERROR(VLOOKUP(A34,TablaBDD[],2,0),"") ->  | C34: =IFERROR(VLOOKUP(A34,TablaBDD[],3,0),"") ->  | D34: =IFERROR(VLOOKUP(A34,TablaBDD[],4,0),"") ->  | E34: =IFERROR(VLOOKUP(A34,TablaBDD[],5,0),"") ->  | F34: =IFERROR(VLOOKUP(A34,TablaBDD[],6,0),"") ->  | G34: =IFERROR(VLOOKUP(A34,TablaBDD[],7,0),"") ->  | H34: =IFERROR(VLOOKUP(A34,TablaBDD[],9,0),"") -> 
A35: 25 | B35: =IFERROR(VLOOKUP(A35,TablaBDD[],2,0),"") ->  | C35: =IFERROR(VLOOKUP(A35,TablaBDD[],3,0),"") ->  | D35: =IFERROR(VLOOKUP(A35,TablaBDD[],4,0),"") ->  | E35: =IFERROR(VLOOKUP(A35,TablaBDD[],5,0),"") ->  | F35: =IFERROR(VLOOKUP(A35,TablaBDD[],6,0),"") ->  | G35: =IFERROR(VLOOKUP(A35,TablaBDD[],7,0),"") ->  | H35: =IFERROR(VLOOKUP(A35,TablaBDD[],9,0),"") -> 
A36: 26 | B36: =IFERROR(VLOOKUP(A36,TablaBDD[],2,0),"") ->  | C36: =IFERROR(VLOOKUP(A36,TablaBDD[],3,0),"") ->  | D36: =IFERROR(VLOOKUP(A36,TablaBDD[],4,0),"") ->  | E36: =IFERROR(VLOOKUP(A36,TablaBDD[],5,0),"") ->  | F36: =IFERROR(VLOOKUP(A36,TablaBDD[],6,0),"") ->  | G36: =IFERROR(VLOOKUP(A36,TablaBDD[],7,0),"") ->  | H36: =IFERROR(VLOOKUP(A36,TablaBDD[],9,0),"") -> 
A37: 27 | B37: =IFERROR(VLOOKUP(A37,TablaBDD[],2,0),"") ->  | C37: =IFERROR(VLOOKUP(A37,TablaBDD[],3,0),"") ->  | D37: =IFERROR(VLOOKUP(A37,TablaBDD[],4,0),"") ->  | E37: =IFERROR(VLOOKUP(A37,TablaBDD[],5,0),"") ->  | F37: =IFERROR(VLOOKUP(A37,TablaBDD[],6,0),"") ->  | G37: =IFERROR(VLOOKUP(A37,TablaBDD[],7,0),"") ->  | H37: =IFERROR(VLOOKUP(A37,TablaBDD[],9,0),"") -> 
A38: 28 | B38: =IFERROR(VLOOKUP(A38,TablaBDD[],2,0),"") ->  | C38: =IFERROR(VLOOKUP(A38,TablaBDD[],3,0),"") ->  | D38: =IFERROR(VLOOKUP(A38,TablaBDD[],4,0),"") ->  | E38: =IFERROR(VLOOKUP(A38,TablaBDD[],5,0),"") ->  | F38: =IFERROR(VLOOKUP(A38,TablaBDD[],6,0),"") ->  | G38: =IFERROR(VLOOKUP(A38,TablaBDD[],7,0),"") ->  | H38: =IFERROR(VLOOKUP(A38,TablaBDD[],9,0),"") -> 
A39: 29 | B39: =IFERROR(VLOOKUP(A39,TablaBDD[],2,0),"") ->  | C39: =IFERROR(VLOOKUP(A39,TablaBDD[],3,0),"") ->  | D39: =IFERROR(VLOOKUP(A39,TablaBDD[],4,0),"") ->  | E39: =IFERROR(VLOOKUP(A39,TablaBDD[],5,0),"") ->  | F39: =IFERROR(VLOOKUP(A39,TablaBDD[],6,0),"") ->  | G39: =IFERROR(VLOOKUP(A39,TablaBDD[],7,0),"") ->  | H39: =IFERROR(VLOOKUP(A39,TablaBDD[],9,0),"") -> 
A40: 30 | B40: =IFERROR(VLOOKUP(A40,TablaBDD[],2,0),"") ->  | C40: =IFERROR(VLOOKUP(A40,TablaBDD[],3,0),"") ->  | D40: =IFERROR(VLOOKUP(A40,TablaBDD[],4,0),"") ->  | E40: =IFERROR(VLOOKUP(A40,TablaBDD[],5,0),"") ->  | F40: =IFERROR(VLOOKUP(A40,TablaBDD[],6,0),"") ->  | G40: =IFERROR(VLOOKUP(A40,TablaBDD[],7,0),"") ->  | H40: =IFERROR(VLOOKUP(A40,TablaBDD[],9,0),"") -> 
A41: 31 | B41: =IFERROR(VLOOKUP(A41,TablaBDD[],2,0),"") ->  | C41: =IFERROR(VLOOKUP(A41,TablaBDD[],3,0),"") ->  | D41: =IFERROR(VLOOKUP(A41,TablaBDD[],4,0),"") ->  | E41: =IFERROR(VLOOKUP(A41,TablaBDD[],5,0),"") ->  | F41: =IFERROR(VLOOKUP(A41,TablaBDD[],6,0),"") ->  | G41: =IFERROR(VLOOKUP(A41,TablaBDD[],7,0),"") ->  | H41: =IFERROR(VLOOKUP(A41,TablaBDD[],9,0),"") -> 
A42: 32 | B42: =IFERROR(VLOOKUP(A42,TablaBDD[],2,0),"") ->  | C42: =IFERROR(VLOOKUP(A42,TablaBDD[],3,0),"") ->  | D42: =IFERROR(VLOOKUP(A42,TablaBDD[],4,0),"") ->  | E42: =IFERROR(VLOOKUP(A42,TablaBDD[],5,0),"") ->  | F42: =IFERROR(VLOOKUP(A42,TablaBDD[],6,0),"") ->  | G42: =IFERROR(VLOOKUP(A42,TablaBDD[],7,0),"") ->  | H42: =IFERROR(VLOOKUP(A42,TablaBDD[],9,0),"") -> 
A43: 33 | B43: =IFERROR(VLOOKUP(A43,TablaBDD[],2,0),"") ->  | C43: =IFERROR(VLOOKUP(A43,TablaBDD[],3,0),"") ->  | D43: =IFERROR(VLOOKUP(A43,TablaBDD[],4,0),"") ->  | E43: =IFERROR(VLOOKUP(A43,TablaBDD[],5,0),"") ->  | F43: =IFERROR(VLOOKUP(A43,TablaBDD[],6,0),"") ->  | G43: =IFERROR(VLOOKUP(A43,TablaBDD[],7,0),"") ->  | H43: =IFERROR(VLOOKUP(A43,TablaBDD[],9,0),"") -> 
A44: 34 | B44: =IFERROR(VLOOKUP(A44,TablaBDD[],2,0),"") ->  | C44: =IFERROR(VLOOKUP(A44,TablaBDD[],3,0),"") ->  | D44: =IFERROR(VLOOKUP(A44,TablaBDD[],4,0),"") ->  | E44: =IFERROR(VLOOKUP(A44,TablaBDD[],5,0),"") ->  | F44: =IFERROR(VLOOKUP(A44,TablaBDD[],6,0),"") ->  | G44: =IFERROR(VLOOKUP(A44,TablaBDD[],7,0),"") ->  | H44: =IFERROR(VLOOKUP(A44,TablaBDD[],9,0),"") -> 
A45: 35 | B45: =IFERROR(VLOOKUP(A45,TablaBDD[],2,0),"") ->  | C45: =IFERROR(VLOOKUP(A45,TablaBDD[],3,0),"") ->  | D45: =IFERROR(VLOOKUP(A45,TablaBDD[],4,0),"") ->  | E45: =IFERROR(VLOOKUP(A45,TablaBDD[],5,0),"") ->  | F45: =IFERROR(VLOOKUP(A45,TablaBDD[],6,0),"") ->  | G45: =IFERROR(VLOOKUP(A45,TablaBDD[],7,0),"") ->  | H45: =IFERROR(VLOOKUP(A45,TablaBDD[],9,0),"") -> 
A46: 36 | B46: =IFERROR(VLOOKUP(A46,TablaBDD[],2,0),"") ->  | C46: =IFERROR(VLOOKUP(A46,TablaBDD[],3,0),"") ->  | D46: =IFERROR(VLOOKUP(A46,TablaBDD[],4,0),"") ->  | E46: =IFERROR(VLOOKUP(A46,TablaBDD[],5,0),"") ->  | F46: =IFERROR(VLOOKUP(A46,TablaBDD[],6,0),"") ->  | G46: =IFERROR(VLOOKUP(A46,TablaBDD[],7,0),"") ->  | H46: =IFERROR(VLOOKUP(A46,TablaBDD[],9,0),"") -> 
A47: 37 | B47: =IFERROR(VLOOKUP(A47,TablaBDD[],2,0),"") ->  | C47: =IFERROR(VLOOKUP(A47,TablaBDD[],3,0),"") ->  | D47: =IFERROR(VLOOKUP(A47,TablaBDD[],4,0),"") ->  | E47: =IFERROR(VLOOKUP(A47,TablaBDD[],5,0),"") ->  | F47: =IFERROR(VLOOKUP(A47,TablaBDD[],6,0),"") ->  | G47: =IFERROR(VLOOKUP(A47,TablaBDD[],7,0),"") ->  | H47: =IFERROR(VLOOKUP(A47,TablaBDD[],9,0),"") -> 
A48: 38 | B48: =IFERROR(VLOOKUP(A48,TablaBDD[],2,0),"") ->  | C48: =IFERROR(VLOOKUP(A48,TablaBDD[],3,0),"") ->  | D48: =IFERROR(VLOOKUP(A48,TablaBDD[],4,0),"") ->  | E48: =IFERROR(VLOOKUP(A48,TablaBDD[],5,0),"") ->  | F48: =IFERROR(VLOOKUP(A48,TablaBDD[],6,0),"") ->  | G48: =IFERROR(VLOOKUP(A48,TablaBDD[],7,0),"") ->  | H48: =IFERROR(VLOOKUP(A48,TablaBDD[],9,0),"") -> 
A49: 39 | B49: =IFERROR(VLOOKUP(A49,TablaBDD[],2,0),"") ->  | C49: =IFERROR(VLOOKUP(A49,TablaBDD[],3,0),"") ->  | D49: =IFERROR(VLOOKUP(A49,TablaBDD[],4,0),"") ->  | E49: =IFERROR(VLOOKUP(A49,TablaBDD[],5,0),"") ->  | F49: =IFERROR(VLOOKUP(A49,TablaBDD[],6,0),"") ->  | G49: =IFERROR(VLOOKUP(A49,TablaBDD[],7,0),"") ->  | H49: =IFERROR(VLOOKUP(A49,TablaBDD[],9,0),"") -> 
A50: 40 | B50: =IFERROR(VLOOKUP(A50,TablaBDD[],2,0),"") ->  | C50: =IFERROR(VLOOKUP(A50,TablaBDD[],3,0),"") ->  | D50: =IFERROR(VLOOKUP(A50,TablaBDD[],4,0),"") ->  | E50: =IFERROR(VLOOKUP(A50,TablaBDD[],5,0),"") ->  | F50: =IFERROR(VLOOKUP(A50,TablaBDD[],6,0),"") ->  | G50: =IFERROR(VLOOKUP(A50,TablaBDD[],7,0),"") ->  | H50: =IFERROR(VLOOKUP(A50,TablaBDD[],9,0),"") -> 
A51: 41 | B51: =IFERROR(VLOOKUP(A51,TablaBDD[],2,0),"") ->  | C51: =IFERROR(VLOOKUP(A51,TablaBDD[],3,0),"") ->  | D51: =IFERROR(VLOOKUP(A51,TablaBDD[],4,0),"") ->  | E51: =IFERROR(VLOOKUP(A51,TablaBDD[],5,0),"") ->  | F51: =IFERROR(VLOOKUP(A51,TablaBDD[],6,0),"") ->  | G51: =IFERROR(VLOOKUP(A51,TablaBDD[],7,0),"") ->  | H51: =IFERROR(VLOOKUP(A51,TablaBDD[],9,0),"") -> 
A52: 42 | B52: =IFERROR(VLOOKUP(A52,TablaBDD[],2,0),"") ->  | C52: =IFERROR(VLOOKUP(A52,TablaBDD[],3,0),"") ->  | D52: =IFERROR(VLOOKUP(A52,TablaBDD[],4,0),"") ->  | E52: =IFERROR(VLOOKUP(A52,TablaBDD[],5,0),"") ->  | F52: =IFERROR(VLOOKUP(A52,TablaBDD[],6,0),"") ->  | G52: =IFERROR(VLOOKUP(A52,TablaBDD[],7,0),"") ->  | H52: =IFERROR(VLOOKUP(A52,TablaBDD[],9,0),"") -> 
A53: 43 | B53: =IFERROR(VLOOKUP(A53,TablaBDD[],2,0),"") ->  | C53: =IFERROR(VLOOKUP(A53,TablaBDD[],3,0),"") ->  | D53: =IFERROR(VLOOKUP(A53,TablaBDD[],4,0),"") ->  | E53: =IFERROR(VLOOKUP(A53,TablaBDD[],5,0),"") ->  | F53: =IFERROR(VLOOKUP(A53,TablaBDD[],6,0),"") ->  | G53: =IFERROR(VLOOKUP(A53,TablaBDD[],7,0),"") ->  | H53: =IFERROR(VLOOKUP(A53,TablaBDD[],9,0),"") -> 
A54: 44 | B54: =IFERROR(VLOOKUP(A54,TablaBDD[],2,0),"") ->  | C54: =IFERROR(VLOOKUP(A54,TablaBDD[],3,0),"") ->  | D54: =IFERROR(VLOOKUP(A54,TablaBDD[],4,0),"") ->  | E54: =IFERROR(VLOOKUP(A54,TablaBDD[],5,0),"") ->  | F54: =IFERROR(VLOOKUP(A54,TablaBDD[],6,0),"") ->  | G54: =IFERROR(VLOOKUP(A54,TablaBDD[],7,0),"") ->  | H54: =IFERROR(VLOOKUP(A54,TablaBDD[],9,0),"") -> 
A55: 45 | B55: =IFERROR(VLOOKUP(A55,TablaBDD[],2,0),"") ->  | C55: =IFERROR(VLOOKUP(A55,TablaBDD[],3,0),"") ->  | D55: =IFERROR(VLOOKUP(A55,TablaBDD[],4,0),"") ->  | E55: =IFERROR(VLOOKUP(A55,TablaBDD[],5,0),"") ->  | F55: =IFERROR(VLOOKUP(A55,TablaBDD[],6,0),"") ->  | G55: =IFERROR(VLOOKUP(A55,TablaBDD[],7,0),"") ->  | H55: =IFERROR(VLOOKUP(A55,TablaBDD[],9,0),"") -> 
A56: 46 | B56: =IFERROR(VLOOKUP(A56,TablaBDD[],2,0),"") ->  | C56: =IFERROR(VLOOKUP(A56,TablaBDD[],3,0),"") ->  | D56: =IFERROR(VLOOKUP(A56,TablaBDD[],4,0),"") ->  | E56: =IFERROR(VLOOKUP(A56,TablaBDD[],5,0),"") ->  | F56: =IFERROR(VLOOKUP(A56,TablaBDD[],6,0),"") ->  | G56: =IFERROR(VLOOKUP(A56,TablaBDD[],7,0),"") ->  | H56: =IFERROR(VLOOKUP(A56,TablaBDD[],9,0),"") -> 
B58: RESUMEN DE LAS VACACIONES
B59: PERIODO | C59: =CONFIGURACION!D3 -> 2017 | D59: PERIODO | E59: =C59+1 -> 2018 | F59: PERIODO | G59: =E59+1 -> 2019
B60: TOTAL DIAS TOMADOS | C60: =SUMIF(Tabla5[PERIODO],C59,Tabla5[DIAS TOMADOS]) -> 0 | D60: TOTAL DIAS TOMADOS | E60: =SUMIF(Tabla5[PERIODO],E59,Tabla5[DIAS TOMADOS]) -> 0 | F60: TOTAL DIAS TOMADOS | G60: =SUMIF(Tabla5[PERIODO],G59,Tabla5[DIAS TOMADOS]) -> 0
B61: TOTAL DIAS PENDIENTES | C61: =15-C60 -> 15 | D61: TOTAL DIAS PENDIENTES | E61: =15-E60 -> 15 | F61: TOTAL DIAS PENDIENTES | G61: =15-G60 -> 15

Sheet COMPROBANTE
C3: NOMBRE EMPLEADO
N5: =D13&" "&TEXT(D18,"DD-MM-YY") -> 
A6: =IFERROR(VLOOKUP(E3,TablaEMPLEADOS[],6,0),"") -> 
A7: =IFERROR((VLOOKUP(E3,TablaEMPLEADOS[],9,0))+SUM(Tabla5[DIAS TOMADOS]),"") -> 
C8: COMPROBANTE DE FERIADO | I8: LUGAR | J8: DÍA | K8: MES | L8: AÑO
H9: =VLOOKUP($E$3,VERIFICACION!$D$4:$G$4,4,0) ->  | I9: Stgo | J9: =TODAY() -> 2020-07-21 | K9: =TODAY() -> 2020-07-21 | L9: =TODAY() -> 2020-07-21
C11: En cumplimiento a las disposiciones legales vigentes PG SECURITY deja constancia que a contar de las fechas que se indican el trabajador :
C13: DON(A) : | I13: RUT : | J13: =IFERROR(VLOOKUP($D$13,BDD!$C$6:$I$20001,2,0),"") -> 
C14: Hará uso de sus días Vacaciones correspondiente a:
C15: Feriado Anual con remuneración íntegra de acuerdo al siguiente detalle de fechas:
C17: DESCANSO EFECTIVO ENTRE LAS FECHAS QUE SE INDICAN:
C18: DESDE EL: | D18: =IFERROR(VLOOKUP($D$13,BDD!$C$6:$I$20001,3,0),"") ->  | F18: HASTA EL : | G18: =IFERROR(VLOOKUP($D$13,BDD!$C$6:$I$20001,4,0),"") -> 
C24: DETALLE DEL FERIADO | G24: DÍAS | H24: =IF(DIA_MANUAL<>"",DIA_MANUAL,NETWORKDAYS(D18,G18,DiasFeriados))-H28 ->  | I24: NOTA
C25: DÍAS VACACIONES | G25: =IFERROR(H24,"") -> 
C26: VACACIONS PROGRESIVAS | G26: 0
A27: =G18-D18+1 ->  | C27: SABADOS, DOMINGOS E INHABILES | G27: =IFERROR(A27-H24,"") -> 
C28: DÍAS ASIGNADOS | G28: =IFERROR(G25+G26,"") ->  | H28: =G26 -> 0
C29: SALDO VACACIONES | G29: =IFERROR(($A$6-$A$7)-VLOOKUP($E$3,TablaEMPLEADOS[],10,0),"") -> 
D34: FIRMA DEL EMPLEADOR | J34: FIRMA DEL TRABAJADOR
J35: RUT: | K35: =J13 -> 

Sheet LICENCIAS
D3: No | E3: NOMBRE | F3: RUT | G3: FECHA INICIO | H3: FECHA FINAL | I3: DURACION
D4: =COUNTIF($E$4:E4, VERIFICACIONLICENCIA!$F$3) -> 0 | E4: LUCIA KARINA MONTANO BULNES | F4: =IFERROR(VLOOKUP(Tabla4[[#This Row],[NOMBRE]],TablaEMPLEADOS[],2,0),"") ->  | G4: 2020-03-29 | H4: 2020-04-11 | I4: 14
D5: =COUNTIF($E$4:E5, VERIFICACIONLICENCIA!$F$3) -> 1 | E5: WALDO ARTURO IBAÑEZ LISBOA | F5: =IFERROR(VLOOKUP(Tabla4[[#This Row],[NOMBRE]],TablaEMPLEADOS[],2,0),"") ->  | G5: 2020-03-12 | H5: 2020-04-28 | I5: 7 | J5: <--------- | K5: Seleccione una celda de la fila de la cual necesita
D6: =COUNTIF($E$4:E6, VERIFICACIONLICENCIA!$F$3) -> 2 | E6: WALDO ARTURO IBAÑEZ LISBOA | F6: =IFERROR(VLOOKUP(Tabla4[[#This Row],[NOMBRE]],TablaEMPLEADOS[],2,0),"") ->  | G6: 2020-04-29 | H6: 2020-05-12 | I6: 14 | K6: generar el comprobante y haz click en el boton :
D7: =COUNTIF($E$4:E7, VERIFICACIONLICENCIA!$F$3) -> 3 | E7: WALDO ARTURO IBAÑEZ LISBOA | F7: =IFERROR(VLOOKUP(Tabla4[[#This Row],[NOMBRE]],TablaEMPLEADOS[],2,0),"") ->  | G7: 2020-05-13 | H7: 2020-06-11 | I7: 30 | K7: GENERAR COMPROBANTE
D8: =COUNTIF($E$4:E8, VERIFICACIONLICENCIA!$F$3) -> 4 | E8: WALDO ARTURO IBAÑEZ LISBOA | F8: =IFERROR(VLOOKUP(Tabla4[[#This Row],[NOMBRE]],TablaEMPLEADOS[],2,0),"") ->  | G8: 2020-06-12 | H8: 2020-07-16 | I8: 45
D9: =COUNTIF($E$4:E9, VERIFICACIONLICENCIA!$F$3) -> 4 | E9: JOSE DEL CARMEN ANDRADE SALDIVIA | F9: =IFERROR(VLOOKUP(Tabla4[[#This Row],[NOMBRE]],TablaEMPLEADOS[],2,0),"") ->  | G9: 2020-06-17 | H9: 2020-06-30 | I9: 14
D10: =COUNTIF($E$4:E10, VERIFICACIONLICENCIA!$F$3) -> 4 | E10: LUIS ROBERTO PEREZ GUERRA | F10: =IFERROR(VLOOKUP(Tabla4[[#This Row],[NOMBRE]],TablaEMPLEADOS[],2,0),"") ->  | G10: 2020-06-22 | H10: 2020-06-25 | I10: 4
D11: =COUNTIF($E$4:E11, VERIFICACIONLICENCIA!$F$3) -> 4 | F11: =IFERROR(VLOOKUP(Tabla4[[#This Row],[NOMBRE]],TablaEMPLEADOS[],2,0),"") -> 
D12: =COUNTIF($E$4:E12, VERIFICACIONLICENCIA!$F$3) -> 4 | F12: =IFERROR(VLOOKUP(Tabla4[[#This Row],[NOMBRE]],TablaEMPLEADOS[],2,0),"") -> 
D13: =COUNTIF($E$4:E13, VERIFICACIONLICENCIA!$F$3) -> 4 | F13: =IFERROR(VLOOKUP(Tabla4[[#This Row],[NOMBRE]],TablaEMPLEADOS[],2,0),"") -> 
D14: =COUNTIF($E$4:E14, VERIFICACIONLICENCIA!$F$3) -> 4 | F14: =IFERROR(VLOOKUP(Tabla4[[#This Row],[NOMBRE]],TablaEMPLEADOS[],2,0),"") -> 
D15: =COUNTIF($E$4:E15, VERIFICACIONLICENCIA!$F$3) -> 4 | F15: =IFERROR(VLOOKUP(Tabla4[[#This Row],[NOMBRE]],TablaEMPLEADOS[],2,0),"") -> 
D16: =COUNTIF($E$4:E16, VERIFICACIONLICENCIA!$F$3) -> 4 | F16: =IFERROR(VLOOKUP(Tabla4[[#This Row],[NOMBRE]],TablaEMPLEADOS[],2,0),"") -> 
D17: =COUNTIF($E$4:E17, VERIFICACIONLICENCIA!$F$3) -> 4 | F17: =IFERROR(VLOOKUP(Tabla4[[#This Row],[NOMBRE]],TablaEMPLEADOS[],2,0),"") -> 
D18: =COUNTIF($E$4:E18, VERIFICACIONLICENCIA!$F$3) -> 4 | F18: =IFERROR(VLOOKUP(Tabla4[[#This Row],[NOMBRE]],TablaEMPLEADOS[],2,0),"") -> 
D19: =COUNTIF($E$4:E19, VERIFICACIONLICENCIA!$F$3) -> 4 | F19: =IFERROR(VLOOKUP(Tabla4[[#This Row],[NOMBRE]],TablaEMPLEADOS[],2,0),"") -> 
D20: =COUNTIF($E$4:E20, VERIFICACIONLICENCIA!$F$3) -> 4 | F20: =IFERROR(VLOOKUP(Tabla4[[#This Row],[NOMBRE]],TablaEMPLEADOS[],2,0),"") -> 
D21: =COUNTIF($E$4:E21, VERIFICACIONLICENCIA!$F$3) -> 4 | F21: =IFERROR(VLOOKUP(Tabla4[[#This Row],[NOMBRE]],TablaEMPLEADOS[],2,0),"") -> 
D22: =COUNTIF($E$4:E22, VERIFICACIONLICENCIA!$F$3) -> 4 | F22: =IFERROR(VLOOKUP(Tabla4[[#This Row],[NOMBRE]],TablaEMPLEADOS[],2,0),"") -> 
D23: =COUNTIF($E$4:E23, VERIFICACIONLICENCIA!$F$3) -> 4 | F23: =IFERROR(VLOOKUP(Tabla4[[#This Row],[NOMBRE]],TablaEMPLEADOS[],2,0),"") -> 
D24: =COUNTIF($E$4:E24, VERIFICACIONLICENCIA!$F$3) -> 4 | F24: =IFERROR(VLOOKUP(Tabla4[[#This Row],[NOMBRE]],TablaEMPLEADOS[],2,0),"") -> 
D25: =COUNTIF($E$4:E25, VERIFICACIONLICENCIA!$F$3) -> 4 | F25: =IFERROR(VLOOKUP(Tabla4[[#This Row],[NOMBRE]],TablaEMPLEADOS[],2,0),"") -> 
D26: =COUNTIF($E$4:E26, VERIFICACIONLICENCIA!$F$3) -> 4 | F26: =IFERROR(VLOOKUP(Tabla4[[#This Row],[NOMBRE]],TablaEMPLEADOS[],2,0),"") -> 
D27: =COUNTIF($E$4:E27, VERIFICACIONLICENCIA!$F$3) -> 4 | F27: =IFERROR(VLOOKUP(Tabla4[[#This Row],[NOMBRE]],TablaEMPLEADOS[],2,0),"") -> 
D28: =COUNTIF($E$4:E28, VERIFICACIONLICENCIA!$F$3) -> 4 | F28: =IFERROR(VLOOKUP(Tabla4[[#This Row],[NOMBRE]],TablaEMPLEADOS[],2,0),"") -> 
D29: =COUNTIF($E$4:E29, VERIFICACIONLICENCIA!$F$3) -> 4 | F29: =IFERROR(VLOOKUP(Tabla4[[#This Row],[NOMBRE]],TablaEMPLEADOS[],2,0),"") -> 
D30: =COUNTIF($E$4:E30, VERIFICACIONLICENCIA!$F$3) -> 4 | F30: =IFERROR(VLOOKUP(Tabla4[[#This Row],[NOMBRE]],TablaEMPLEADOS[],2,0),"") -> 
D31: =COUNTIF($E$4:E31, VERIFICACIONLICENCIA!$F$3) -> 4 | F31: =IFERROR(VLOOKUP(Tabla4[[#This Row],[NOMBRE]],TablaEMPLEADOS[],2,0),"") -> 
D32: =COUNTIF($E$4:E32, VERIFICACIONLICENCIA!$F$3) -> 4 | F32: =IFERROR(VLOOKUP(Tabla4[[#This Row],[NOMBRE]],TablaEMPLEADOS[],2,0),"") -> 
D33: =COUNTIF($E$4:E33, VERIFICACIONLICENCIA!$F$3) -> 4 | F33: =IFERROR(VLOOKUP(Tabla4[[#This Row],[NOMBRE]],TablaEMPLEADOS[],2,0),"") -> 
D34: =COUNTIF($E$4:E34, VERIFICACIONLICENCIA!$F$3) -> 4 | F34: =IFERROR(VLOOKUP(Tabla4[[#This Row],[NOMBRE]],TablaEMPLEADOS[],2,0),"") -> 
D35: =COUNTIF($E$4:E35, VERIFICACIONLICENCIA!$F$3) -> 4 | F35: =IFERROR(VLOOKUP(Tabla4[[#This Row],[NOMBRE]],TablaEMPLEADOS[],2,0),"") -> 
D36: =COUNTIF($E$4:E36, VERIFICACIONLICENCIA!$F$3) -> 4 | F36: =IFERROR(VLOOKUP(Tabla4[[#This Row],[NOMBRE]],TablaEMPLEADOS[],2,0),"") -> 
D37: =COUNTIF($E$4:E37, VERIFICACIONLICENCIA!$F$3) -> 4 | F37: =IFERROR(VLOOKUP(Tabla4[[#This Row],[NOMBRE]],TablaEMPLEADOS[],2,0),"") -> 
D38: =COUNTIF($E$4:E38, VERIFICACIONLICENCIA!$F$3) -> 4 | F38: =IFERROR(VLOOKUP(Tabla4[[#This Row],[NOMBRE]],TablaEMPLEADOS[],2,0),"") -> 
D39: =COUNTIF($E$4:E39, VERIFICACIONLICENCIA!$F$3) -> 4 | F39: =IFERROR(VLOOKUP(Tabla4[[#This Row],[NOMBRE]],TablaEMPLEADOS[],2,0),"") -> 
D40: =COUNTIF($E$4:E40, VERIFICACIONLICENCIA!$F$3) -> 4 | F40: =IFERROR(VLOOKUP(Tabla4[[#This Row],[NOMBRE]],TablaEMPLEADOS[],2,0),"") -> 
D41: =COUNTIF($E$4:E41, VERIFICACIONLICENCIA!$F$3) -> 4 | F41: =IFERROR(VLOOKUP(Tabla4[[#This Row],[NOMBRE]],TablaEMPLEADOS[],2,0),"") -> 
D42: =COUNTIF($E$4:E42, VERIFICACIONLICENCIA!$F$3) -> 4 | F42: =IFERROR(VLOOKUP(Tabla4[[#This Row],[NOMBRE]],TablaEMPLEADOS[],2,0),"") -> 
D43: =COUNTIF($E$4:E43, VERIFICACIONLICENCIA!$F$3) -> 4 | F43: =IFERROR(VLOOKUP(Tabla4[[#This Row],[NOMBRE]],TablaEMPLEADOS[],2,0),"") -> 
D44: =COUNTIF($E$4:E44, VERIFICACIONLICENCIA!$F$3) -> 4 | F44: =IFERROR(VLOOKUP(Tabla4[[#This Row],[NOMBRE]],TablaEMPLEADOS[],2,0),"") -> 
D45: =COUNTIF($E$4:E45, VERIFICACIONLICENCIA!$F$3) -> 4 | F45: =IFERROR(VLOOKUP(Tabla4[[#This Row],[NOMBRE]],TablaEMPLEADOS[],2,0),"") -> 
D46: =COUNTIF($E$4:E46, VERIFICACIONLICENCIA!$F$3) -> 4 | F46: =IFERROR(VLOOKUP(Tabla4[[#This Row],[NOMBRE]],TablaEMPLEADOS[],2,0),"") -> 
D47: =COUNTIF($E$4:E47, VERIFICACIONLICENCIA!$F$3) -> 4 | F47: =IFERROR(VLOOKUP(Tabla4[[#This Row],[NOMBRE]],TablaEMPLEADOS[],2,0),"") -> 
D48: =COUNTIF($E$4:E48, VERIFICACIONLICENCIA!$F$3) -> 4 | F48: =IFERROR(VLOOKUP(Tabla4[[#This Row],[NOMBRE]],TablaEMPLEADOS[],2,0),"") -> 
D49: =COUNTIF($E$4:E49, VERIFICACIONLICENCIA!$F$3) -> 4 | F49: =IFERROR(VLOOKUP(Tabla4[[#This Row],[NOMBRE]],TablaEMPLEADOS[],2,0),"") -> 
D50: =COUNTIF($E$4:E50, VERIFICACIONLICENCIA!$F$3) -> 4 | F50: =IFERROR(VLOOKUP(Tabla4[[#This Row],[NOMBRE]],TablaEMPLEADOS[],2,0),"") -> 
D51: =COUNTIF($E$4:E51, VERIFICACIONLICENCIA!$F$3) -> 4 | F51: =IFERROR(VLOOKUP(Tabla4[[#This Row],[NOMBRE]],TablaEMPLEADOS[],2,0),"") -> 
D52: =COUNTIF($E$4:E52, VERIFICACIONLICENCIA!$F$3) -> 4 | F52: =IFERROR(VLOOKUP(Tabla4[[#This Row],[NOMBRE]],TablaEMPLEADOS[],2,0),"") -> 
D53: =COUNTIF($E$4:E53, VERIFICACIONLICENCIA!$F$3) -> 4 | F53: =IFERROR(VLOOKUP(Tabla4[[#This Row],[NOMBRE]],TablaEMPLEADOS[],2,0),"") -> 
D54: =COUNTIF($E$4:E54, VERIFICACIONLICENCIA!$F$3) -> 4 | F54: =IFERROR(VLOOKUP(Tabla4[[#This Row],[NOMBRE]],TablaEMPLEADOS[],2,0),"") -> 
D55: =COUNTIF($E$4:E55, VERIFICACIONLICENCIA!$F$3) -> 4 | F55: =IFERROR(VLOOKUP(Tabla4[[#This Row],[NOMBRE]],TablaEMPLEADOS[],2,0),"") -> 
D56: =COUNTIF($E$4:E56, VERIFICACIONLICENCIA!$F$3) -> 4 | F56: =IFERROR(VLOOKUP(Tabla4[[#This Row],[NOMBRE]],TablaEMPLEADOS[],2,0),"") -> 
D57: =COUNTIF($E$4:E57, VERIFICACIONLICENCIA!$F$3) -> 4 | F57: =IFERROR(VLOOKUP(Tabla4[[#This Row],[NOMBRE]],TablaEMPLEADOS[],2,0),"") -> 
D58: =COUNTIF($E$4:E58, VERIFICACIONLICENCIA!$F$3) -> 4 | F58: =IFERROR(VLOOKUP(Tabla4[[#This Row],[NOMBRE]],TablaEMPLEADOS[],2,0),"") -> 
D59: =COUNTIF($E$4:E59, VERIFICACIONLICENCIA!$F$3) -> 4 | F59: =IFERROR(VLOOKUP(Tabla4[[#This Row],[NOMBRE]],TablaEMPLEADOS[],2,0),"") -> 
D60: =COUNTIF($E$4:E60, VERIFICACIONLICENCIA!$F$3) -> 4 | F60: =IFERROR(VLOOKUP(Tabla4[[#This Row],[NOMBRE]],TablaEMPLEADOS[],2,0),"") -> 
D61: =COUNTIF($E$4:E61, VERIFICACIONLICENCIA!$F$3) -> 4 | F61: =IFERROR(VLOOKUP(Tabla4[[#This Row],[NOMBRE]],TablaEMPLEADOS[],2,0),"") -> 
D62: =COUNTIF($E$4:E62, VERIFICACIONLICENCIA!$F$3) -> 4 | F62: =IFERROR(VLOOKUP(Tabla4[[#This Row],[NOMBRE]],TablaEMPLEADOS[],2,0),"") -> 
D63: =COUNTIF($E$4:E63, VERIFICACIONLICENCIA!$F$3) -> 4 | F63: =IFERROR(VLOOKUP(Tabla4[[#This Row],[NOMBRE]],TablaEMPLEADOS[],2,0),"") -> 
D64: =COUNTIF($E$4:E64, VERIFICACIONLICENCIA!$F$3) -> 4 | F64: =IFERROR(VLOOKUP(Tabla4[[#This Row],[NOMBRE]],TablaEMPLEADOS[],2,0),"") -> 
D65: =COUNTIF($E$4:E65, VERIFICACIONLICENCIA!$F$3) -> 4 | F65: =IFERROR(VLOOKUP(Tabla4[[#This Row],[NOMBRE]],TablaEMPLEADOS[],2,0),"") -> 
D66: =COUNTIF($E$4:E66, VERIFICACIONLICENCIA!$F$3) -> 4 | F66: =IFERROR(VLOOKUP(Tabla4[[#This Row],[NOMBRE]],TablaEMPLEADOS[],2,0),"") -> 
D67: =COUNTIF($E$4:E67, VERIFICACIONLICENCIA!$F$3) -> 4 | F67: =IFERROR(VLOOKUP(Tabla4[[#This Row],[NOMBRE]],TablaEMPLEADOS[],2,0),"") -> 
D68: =COUNTIF($E$4:E68, VERIFICACIONLICENCIA!$F$3) -> 4 | F68: =IFERROR(VLOOKUP(Tabla4[[#This Row],[NOMBRE]],TablaEMPLEADOS[],2,0),"") -> 
D69: =COUNTIF($E$4:E69, VERIFICACIONLICENCIA!$F$3) -> 4 | F69: =IFERROR(VLOOKUP(Tabla4[[#This Row],[NOMBRE]],TablaEMPLEADOS[],2,0),"") -> 
D70: =COUNTIF($E$4:E70, VERIFICACIONLICENCIA!$F$3) -> 4 | F70: =IFERROR(VLOOKUP(Tabla4[[#This Row],[NOMBRE]],TablaEMPLEADOS[],2,0),"") -> 
D71: =COUNTIF($E$4:E71, VERIFICACIONLICENCIA!$F$3) -> 4 | F71: =IFERROR(VLOOKUP(Tabla4[[#This Row],[NOMBRE]],TablaEMPLEADOS[],2,0),"") -> 
D72: =COUNTIF($E$4:E72, VERIFICACIONLICENCIA!$F$3) -> 4 | F72: =IFERROR(VLOOKUP(Tabla4[[#This Row],[NOMBRE]],TablaEMPLEADOS[],2,0),"") -> 
D73: =COUNTIF($E$4:E73, VERIFICACIONLICENCIA!$F$3) -> 4 | F73: =IFERROR(VLOOKUP(Tabla4[[#This Row],[NOMBRE]],TablaEMPLEADOS[],2,0),"") -> 
D74: =COUNTIF($E$4:E74, VERIFICACIONLICENCIA!$F$3) -> 4 | F74: =IFERROR(VLOOKUP(Tabla4[[#This Row],[NOMBRE]],TablaEMPLEADOS[],2,0),"") -> 
D75: =COUNTIF($E$4:E75, VERIFICACIONLICENCIA!$F$3) -> 4 | F75: =IFERROR(VLOOKUP(Tabla4[[#This Row],[NOMBRE]],TablaEMPLEADOS[],2,0),"") -> 
D76: =COUNTIF($E$4:E76, VERIFICACIONLICENCIA!$F$3) -> 4 | F76: =IFERROR(VLOOKUP(Tabla4[[#This Row],[NOMBRE]],TablaEMPLEADOS[],2,0),"") -> 
D77: =COUNTIF($E$4:E77, VERIFICACIONLICENCIA!$F$3) -> 4 | F77: =IFERROR(VLOOKUP(Tabla4[[#This Row],[NOMBRE]],TablaEMPLEADOS[],2,0),"") -> 
D78: =COUNTIF($E$4:E78, VERIFICACIONLICENCIA!$F$3) -> 4 | F78: =IFERROR(VLOOKUP(Tabla4[[#This Row],[NOMBRE]],TablaEMPLEADOS[],2,0),"") -> 
D79: =COUNTIF($E$4:E79, VERIFICACIONLICENCIA!$F$3) -> 4 | F79: =IFERROR(VLOOKUP(Tabla4[[#This Row],[NOMBRE]],TablaEMPLEADOS[],2,0),"") -> 
D80: =COUNTIF($E$4:E80, VERIFICACIONLICENCIA!$F$3) -> 4 | F80: =IFERROR(VLOOKUP(Tabla4[[#This Row],[NOMBRE]],TablaEMPLEADOS[],2,0),"") -> 
D81: =COUNTIF($E$4:E81, VERIFICACIONLICENCIA!$F$3) -> 4 | F81: =IFERROR(VLOOKUP(Tabla4[[#This Row],[NOMBRE]],TablaEMPLEADOS[],2,0),"") -> 
D82: =COUNTIF($E$4:E82, VERIFICACIONLICENCIA!$F$3) -> 4 | F82: =IFERROR(VLOOKUP(Tabla4[[#This Row],[NOMBRE]],TablaEMPLEADOS[],2,0),"") -> 
D83: =COUNTIF($E$4:E83, VERIFICACIONLICENCIA!$F$3) -> 4 | F83: =IFERROR(VLOOKUP(Tabla4[[#This Row],[NOMBRE]],TablaEMPLEADOS[],2,0),"") -> 
D84: =COUNTIF($E$4:E84, VERIFICACIONLICENCIA!$F$3) -> 4 | F84: =IFERROR(VLOOKUP(Tabla4[[#This Row],[NOMBRE]],TablaEMPLEADOS[],2,0),"") -> 
D85: =COUNTIF($E$4:E85, VERIFICACIONLICENCIA!$F$3) -> 4 | F85: =IFERROR(VLOOKUP(Tabla4[[#This Row],[NOMBRE]],TablaEMPLEADOS[],2,0),"") -> 
D86: =COUNTIF($E$4:E86, VERIFICACIONLICENCIA!$F$3) -> 4 | F86: =IFERROR(VLOOKUP(Tabla4[[#This Row],[NOMBRE]],TablaEMPLEADOS[],2,0),"") -> 
D87: =COUNTIF($E$4:E87, VERIFICACIONLICENCIA!$F$3) -> 4 | F87: =IFERROR(VLOOKUP(Tabla4[[#This Row],[NOMBRE]],TablaEMPLEADOS[],2,0),"") -> 
D88: =COUNTIF($E$4:E88, VERIFICACIONLICENCIA!$F$3) -> 4 | F88: =IFERROR(VLOOKUP(Tabla4[[#This Row],[NOMBRE]],TablaEMPLEADOS[],2,0),"") -> 
D89: =COUNTIF($E$4:E89, VERIFICACIONLICENCIA!$F$3) -> 4 | F89: =IFERROR(VLOOKUP(Tabla4[[#This Row],[NOMBRE]],TablaEMPLEADOS[],2,0),"") -> 
D90: =COUNTIF($E$4:E90, VERIFICACIONLICENCIA!$F$3) -> 4 | F90: =IFERROR(VLOOKUP(Tabla4[[#This Row],[NOMBRE]],TablaEMPLEADOS[],2,0),"") -> 
D91: =COUNTIF($E$4:E91, VERIFICACIONLICENCIA!$F$3) -> 4 | F91: =IFERROR(VLOOKUP(Tabla4[[#This Row],[NOMBRE]],TablaEMPLEADOS[],2,0),"") -> 
D92: =COUNTIF($E$4:E92, VERIFICACIONLICENCIA!$F$3) -> 4 | F92: =IFERROR(VLOOKUP(Tabla4[[#This Row],[NOMBRE]],TablaEMPLEADOS[],2,0),"") -> 
D93: =COUNTIF($E$4:E93, VERIFICACIONLICENCIA!$F$3) -> 4 | F93: =IFERROR(VLOOKUP(Tabla4[[#This Row],[NOMBRE]],TablaEMPLEADOS[],2,0),"") -> 
D94: =COUNTIF($E$4:E94, VERIFICACIONLICENCIA!$F$3) -> 4 | F94: =IFERROR(VLOOKUP(Tabla4[[#This Row],[NOMBRE]],TablaEMPLEADOS[],2,0),"") -> 
D95: =COUNTIF($E$4:E95, VERIFICACIONLICENCIA!$F$3) -> 4 | F95: =IFERROR(VLOOKUP(Tabla4[[#This Row],[NOMBRE]],TablaEMPLEADOS[],2,0),"") -> 
D96: =COUNTIF($E$4:E96, VERIFICACIONLICENCIA!$F$3) -> 4 | F96: =IFERROR(VLOOKUP(Tabla4[[#This Row],[NOMBRE]],TablaEMPLEADOS[],2,0),"") -> 
D97: =COUNTIF($E$4:E97, VERIFICACIONLICENCIA!$F$3) -> 4 | F97: =IFERROR(VLOOKUP(Tabla4[[#This Row],[NOMBRE]],TablaEMPLEADOS[],2,0),"") -> 
D98: =COUNTIF($E$4:E98, VERIFICACIONLICENCIA!$F$3) -> 4 | F98: =IFERROR(VLOOKUP(Tabla4[[#This Row],[NOMBRE]],TablaEMPLEADOS[],2,0),"") -> 
D99: =COUNTIF($E$4:E99, VERIFICACIONLICENCIA!$F$3) -> 4 | F99: =IFERROR(VLOOKUP(Tabla4[[#This Row],[NOMBRE]],TablaEMPLEADOS[],2,0),"") -> 
D100: =COUNTIF($E$4:E100, VERIFICACIONLICENCIA!$F$3) -> 4 | F100: =IFERROR(VLOOKUP(Tabla4[[#This Row],[NOMBRE]],TablaEMPLEADOS[],2,0),"") -> 
D101: =COUNTIF($E$4:E101, VERIFICACIONLICENCIA!$F$3) -> 4 | F101: =IFERROR(VLOOKUP(Tabla4[[#This Row],[NOMBRE]],TablaEMPLEADOS[],2,0),"") -> 
D102: =COUNTIF($E$4:E102, VERIFICACIONLICENCIA!$F$3) -> 4 | F102: =IFERROR(VLOOKUP(Tabla4[[#This Row],[NOMBRE]],TablaEMPLEADOS[],2,0),"") -> 
D103: =COUNTIF($E$4:E103, VERIFICACIONLICENCIA!$F$3) -> 4 | F103: =IFERROR(VLOOKUP(Tabla4[[#This Row],[NOMBRE]],TablaEMPLEADOS[],2,0),"") -> 
D104: =COUNTIF($E$4:E104, VERIFICACIONLICENCIA!$F$3) -> 4 | F104: =IFERROR(VLOOKUP(Tabla4[[#This Row],[NOMBRE]],TablaEMPLEADOS[],2,0),"") -> 
D105: =COUNTIF($E$4:E105, VERIFICACIONLICENCIA!$F$3) -> 4 | F105: =IFERROR(VLOOKUP(Tabla4[[#This Row],[NOMBRE]],TablaEMPLEADOS[],2,0),"") -> 
D106: =COUNTIF($E$4:E106, VERIFICACIONLICENCIA!$F$3) -> 4 | F106: =IFERROR(VLOOKUP(Tabla4[[#This Row],[NOMBRE]],TablaEMPLEADOS[],2,0),"") -> 
D107: =COUNTIF($E$4:E107, VERIFICACIONLICENCIA!$F$3) -> 4 | F107: =IFERROR(VLOOKUP(Tabla4[[#This Row],[NOMBRE]],TablaEMPLEADOS[],2,0),"") -> 
D108: =COUNTIF($E$4:E108, VERIFICACIONLICENCIA!$F$3) -> 4 | F108: =IFERROR(VLOOKUP(Tabla4[[#This Row],[NOMBRE]],TablaEMPLEADOS[],2,0),"") -> 
D109: =COUNTIF($E$4:E109, VERIFICACIONLICENCIA!$F$3) -> 4 | F109: =IFERROR(VLOOKUP(Tabla4[[#This Row],[NOMBRE]],TablaEMPLEADOS[],2,0),"") -> 
D110: =COUNTIF($E$4:E110, VERIFICACIONLICENCIA!$F$3) -> 4 | F110: =IFERROR(VLOOKUP(Tabla4[[#This Row],[NOMBRE]],TablaEMPLEADOS[],2,0),"") -> 
D111: =COUNTIF($E$4:E111, VERIFICACIONLICENCIA!$F$3) -> 4 | F111: =IFERROR(VLOOKUP(Tabla4[[#This Row],[NOMBRE]],TablaEMPLEADOS[],2,0),"") -> 
D112: =COUNTIF($E$4:E112, VERIFICACIONLICENCIA!$F$3) -> 4 | F112: =IFERROR(VLOOKUP(Tabla4[[#This Row],[NOMBRE]],TablaEMPLEADOS[],2,0),"") -> 
D113: =COUNTIF($E$4:E113, VERIFICACIONLICENCIA!$F$3) -> 4 | F113: =IFERROR(VLOOKUP(Tabla4[[#This Row],[NOMBRE]],TablaEMPLEADOS[],2,0),"") -> 
D114: =COUNTIF($E$4:E114, VERIFICACIONLICENCIA!$F$3) -> 4 | F114: =IFERROR(VLOOKUP(Tabla4[[#This Row],[NOMBRE]],TablaEMPLEADOS[],2,0),"") -> 
D115: =COUNTIF($E$4:E115, VERIFICACIONLICENCIA!$F$3) -> 4 | F115: =IFERROR(VLOOKUP(Tabla4[[#This Row],[NOMBRE]],TablaEMPLEADOS[],2,0),"") -> 
D116: =COUNTIF($E$4:E116, VERIFICACIONLICENCIA!$F$3) -> 4 | F116: =IFERROR(VLOOKUP(Tabla4[[#This Row],[NOMBRE]],TablaEMPLEADOS[],2,0),"") -> 
D117: =COUNTIF($E$4:E117, VERIFICACIONLICENCIA!$F$3) -> 4 | F117: =IFERROR(VLOOKUP(Tabla4[[#This Row],[NOMBRE]],TablaEMPLEADOS[],2,0),"") -> 
D118: =COUNTIF($E$4:E118, VERIFICACIONLICENCIA!$F$3) -> 4 | F118: =IFERROR(VLOOKUP(Tabla4[[#This Row],[NOMBRE]],TablaEMPLEADOS[],2,0),"") -> 
D119: =COUNTIF($E$4:E119, VERIFICACIONLICENCIA!$F$3) -> 4 | F119: =IFERROR(VLOOKUP(Tabla4[[#This Row],[NOMBRE]],TablaEMPLEADOS[],2,0),"") -> 
D120: =COUNTIF($E$4:E120, VERIFICACIONLICENCIA!$F$3) -> 4 | F120: =IFERROR(VLOOKUP(Tabla4[[#This Row],[NOMBRE]],TablaEMPLEADOS[],2,0),"") -> 
D121: =COUNTIF($E$4:E121, VERIFICACIONLICENCIA!$F$3) -> 4 | F121: =IFERROR(VLOOKUP(Tabla4[[#This Row],[NOMBRE]],TablaEMPLEADOS[],2,0),"") -> 
D122: =COUNTIF($E$4:E122, VERIFICACIONLICENCIA!$F$3) -> 4 | F122: =IFERROR(VLOOKUP(Tabla4[[#This Row],[NOMBRE]],TablaEMPLEADOS[],2,0),"") -> 
D123: =COUNTIF($E$4:E123, VERIFICACIONLICENCIA!$F$3) -> 4 | F123: =IFERROR(VLOOKUP(Tabla4[[#This Row],[NOMBRE]],TablaEMPLEADOS[],2,0),"") -> 
D124: =COUNTIF($E$4:E124, VERIFICACIONLICENCIA!$F$3) -> 4 | F124: =IFERROR(VLOOKUP(Tabla4[[#This Row],[NOMBRE]],TablaEMPLEADOS[],2,0),"") -> 
D125: =COUNTIF($E$4:E125, VERIFICACIONLICENCIA!$F$3) -> 4 | F125: =IFERROR(VLOOKUP(Tabla4[[#This Row],[NOMBRE]],TablaEMPLEADOS[],2,0),"") -> 
D126: =COUNTIF($E$4:E126, VERIFICACIONLICENCIA!$F$3) -> 4 | F126: =IFERROR(VLOOKUP(Tabla4[[#This Row],[NOMBRE]],TablaEMPLEADOS[],2,0),"") -> 
D127: =COUNTIF($E$4:E127, VERIFICACIONLICENCIA!$F$3) -> 4 | F127: =IFERROR(VLOOKUP(Tabla4[[#This Row],[NOMBRE]],TablaEMPLEADOS[],2,0),"") -> 
D128: =COUNTIF($E$4:E128, VERIFICACIONLICENCIA!$F$3) -> 4 | F128: =IFERROR(VLOOKUP(Tabla4[[#This Row],[NOMBRE]],TablaEMPLEADOS[],2,0),"") -> 
D129: =COUNTIF($E$4:E129, VERIFICACIONLICENCIA!$F$3) -> 4 | F129: =IFERROR(VLOOKUP(Tabla4[[#This Row],[NOMBRE]],TablaEMPLEADOS[],2,0),"") -> 
D130: =COUNTIF($E$4:E130, VERIFICACIONLICENCIA!$F$3) -> 4 | F130: =IFERROR(VLOOKUP(Tabla4[[#This Row],[NOMBRE]],TablaEMPLEADOS[],2,0),"") -> 
D131: =COUNTIF($E$4:E131, VERIFICACIONLICENCIA!$F$3) -> 4 | F131: =IFERROR(VLOOKUP(Tabla4[[#This Row],[NOMBRE]],TablaEMPLEADOS[],2,0),"") -> 
D132: =COUNTIF($E$4:E132, VERIFICACIONLICENCIA!$F$3) -> 4 | F132: =IFERROR(VLOOKUP(Tabla4[[#This Row],[NOMBRE]],TablaEMPLEADOS[],2,0),"") -> 
D133: =COUNTIF($E$4:E133, VERIFICACIONLICENCIA!$F$3) -> 4 | F133: =IFERROR(VLOOKUP(Tabla4[[#This Row],[NOMBRE]],TablaEMPLEADOS[],2,0),"") -> 
D134: =COUNTIF($E$4:E134, VERIFICACIONLICENCIA!$F$3) -> 4 | F134: =IFERROR(VLOOKUP(Tabla4[[#This Row],[NOMBRE]],TablaEMPLEADOS[],2,0),"") -> 
D135: =COUNTIF($E$4:E135, VERIFICACIONLICENCIA!$F$3) -> 4 | F135: =IFERROR(VLOOKUP(Tabla4[[#This Row],[NOMBRE]],TablaEMPLEADOS[],2,0),"") -> 
D136: =COUNTIF($E$4:E136, VERIFICACIONLICENCIA!$F$3) -> 4 | F136: =IFERROR(VLOOKUP(Tabla4[[#This Row],[NOMBRE]],TablaEMPLEADOS[],2,0),"") -> 
D137: =COUNTIF($E$4:E137, VERIFICACIONLICENCIA!$F$3) -> 4 | F137: =IFERROR(VLOOKUP(Tabla4[[#This Row],[NOMBRE]],TablaEMPLEADOS[],2,0),"") -> 
D138: =COUNTIF($E$4:E138, VERIFICACIONLICENCIA!$F$3) -> 4 | F138: =IFERROR(VLOOKUP(Tabla4[[#This Row],[NOMBRE]],TablaEMPLEADOS[],2,0),"") -> 
D139: =COUNTIF($E$4:E139, VERIFICACIONLICENCIA!$F$3) -> 4 | F139: =IFERROR(VLOOKUP(Tabla4[[#This Row],[NOMBRE]],TablaEMPLEADOS[],2,0),"") -> 
D140: =COUNTIF($E$4:E140, VERIFICACIONLICENCIA!$F$3) -> 4 | F140: =IFERROR(VLOOKUP(Tabla4[[#This Row],[NOMBRE]],TablaEMPLEADOS[],2,0),"") -> 
D141: =COUNTIF($E$4:E141, VERIFICACIONLICENCIA!$F$3) -> 4 | F141: =IFERROR(VLOOKUP(Tabla4[[#This Row],[NOMBRE]],TablaEMPLEADOS[],2,0),"") -> 
D142: =COUNTIF($E$4:E142, VERIFICACIONLICENCIA!$F$3) -> 4 | F142: =IFERROR(VLOOKUP(Tabla4[[#This Row],[NOMBRE]],TablaEMPLEADOS[],2,0),"") -> 
D143: =COUNTIF($E$4:E143, VERIFICACIONLICENCIA!$F$3) -> 4 | F143: =IFERROR(VLOOKUP(Tabla4[[#This Row],[NOMBRE]],TablaEMPLEADOS[],2,0),"") -> 
D144: =COUNTIF($E$4:E144, VERIFICACIONLICENCIA!$F$3) -> 4 | F144: =IFERROR(VLOOKUP(Tabla4[[#This Row],[NOMBRE]],TablaEMPLEADOS[],2,0),"") -> 
D145: =COUNTIF($E$4:E145, VERIFICACIONLICENCIA!$F$3) -> 4 | F145: =IFERROR(VLOOKUP(Tabla4[[#This Row],[NOMBRE]],TablaEMPLEADOS[],2,0),"") -> 
D146: =COUNTIF($E$4:E146, VERIFICACIONLICENCIA!$F$3) -> 4 | F146: =IFERROR(VLOOKUP(Tabla4[[#This Row],[NOMBRE]],TablaEMPLEADOS[],2,0),"") -> 
D147: =COUNTIF($E$4:E147, VERIFICACIONLICENCIA!$F$3) -> 4 | F147: =IFERROR(VLOOKUP(Tabla4[[#This Row],[NOMBRE]],TablaEMPLEADOS[],2,0),"") -> 
D148: =COUNTIF($E$4:E148, VERIFICACIONLICENCIA!$F$3) -> 4 | F148: =IFERROR(VLOOKUP(Tabla4[[#This Row],[NOMBRE]],TablaEMPLEADOS[],2,0),"") -> 
D149: =COUNTIF($E$4:E149, VERIFICACIONLICENCIA!$F$3) -> 4 | F149: =IFERROR(VLOOKUP(Tabla4[[#This Row],[NOMBRE]],TablaEMPLEADOS[],2,0),"") -> 
D150: =COUNTIF($E$4:E150, VERIFICACIONLICENCIA!$F$3) -> 4 | F150: =IFERROR(VLOOKUP(Tabla4[[#This Row],[NOMBRE]],TablaEMPLEADOS[],2,0),"") -> 
D151: =COUNTIF($E$4:E151, VERIFICACIONLICENCIA!$F$3) -> 4 | F151: =IFERROR(VLOOKUP(Tabla4[[#This Row],[NOMBRE]],TablaEMPLEADOS[],2,0),"") -> 
D152: =COUNTIF($E$4:E152, VERIFICACIONLICENCIA!$F$3) -> 4 | F152: =IFERROR(VLOOKUP(Tabla4[[#This Row],[NOMBRE]],TablaEMPLEADOS[],2,0),"") -> 
D153: =COUNTIF($E$4:E153, VERIFICACIONLICENCIA!$F$3) -> 4 | F153: =IFERROR(VLOOKUP(Tabla4[[#This Row],[NOMBRE]],TablaEMPLEADOS[],2,0),"") -> 
D154: =COUNTIF($E$4:E154, VERIFICACIONLICENCIA!$F$3) -> 4 | F154: =IFERROR(VLOOKUP(Tabla4[[#This Row],[NOMBRE]],TablaEMPLEADOS[],2,0),"") -> 
D155: =COUNTIF($E$4:E155, VERIFICACIONLICENCIA!$F$3) -> 4 | F155: =IFERROR(VLOOKUP(Tabla4[[#This Row],[NOMBRE]],TablaEMPLEADOS[],2,0),"") -> 
D156: =COUNTIF($E$4:E156, VERIFICACIONLICENCIA!$F$3) -> 4 | F156: =IFERROR(VLOOKUP(Tabla4[[#This Row],[NOMBRE]],TablaEMPLEADOS[],2,0),"") -> 
D157: =COUNTIF($E$4:E157, VERIFICACIONLICENCIA!$F$3) -> 4 | F157: =IFERROR(VLOOKUP(Tabla4[[#This Row],[NOMBRE]],TablaEMPLEADOS[],2,0),"") -> 
D158: =COUNTIF($E$4:E158, VERIFICACIONLICENCIA!$F$3) -> 4 | F158: =IFERROR(VLOOKUP(Tabla4[[#This Row],[NOMBRE]],TablaEMPLEADOS[],2,0),"") -> 
D159: =COUNTIF($E$4:E159, VERIFICACIONLICENCIA!$F$3) -> 4 | F159: =IFERROR(VLOOKUP(Tabla4[[#This Row],[NOMBRE]],TablaEMPLEADOS[],2,0),"") -> 
D160: =COUNTIF($E$4:E160, VERIFICACIONLICENCIA!$F$3) -> 4 | F160: =IFERROR(VLOOKUP(Tabla4[[#This Row],[NOMBRE]],TablaEMPLEADOS[],2,0),"") -> 
D161: =COUNTIF($E$4:E161, VERIFICACIONLICENCIA!$F$3) -> 4 | F161: =IFERROR(VLOOKUP(Tabla4[[#This Row],[NOMBRE]],TablaEMPLEADOS[],2,0),"") -> 
D162: =COUNTIF($E$4:E162, VERIFICACIONLICENCIA!$F$3) -> 4 | F162: =IFERROR(VLOOKUP(Tabla4[[#This Row],[NOMBRE]],TablaEMPLEADOS[],2,0),"") -> 
D163: =COUNTIF($E$4:E163, VERIFICACIONLICENCIA!$F$3) -> 4 | F163: =IFERROR(VLOOKUP(Tabla4[[#This Row],[NOMBRE]],TablaEMPLEADOS[],2,0),"") -> 
